Workbook

Sheet 出典情報
A1: 項目名 | C1: 出典 | D1: 注記
A2: 一人当たり急性期医療密度指数 | C2: その地域の住民が、どの程度の急性期医療を利用できるかの目安を示す指標。 指標の意味は、1.0が全国平均。0.8を下回ると少ない、0.6を下回ると非常に少ない、1.2以上充実、1.5以上非常に充実。 2015年 日本創成会議・首都圏問題検討分科会 提言「東京圏高齢化危機回避戦略」 資料3「全国各地の医療・介護の余力を評価する」 p5-p9 (備考）http://www.policycouncil.jp/pdf/prop04/prop04_3_150702.pdf
A3: 一人当たり慢性期医療密度指数 | C3: その地域の住民が、どの程度の医療療養病床を利用できるかの目安を示す指標。 指標の意味は、1.0が全国平均。0.8を下回ると少ない、0.6を下回ると非常に少ない、1.2以上充実、1.5以上非常に充実。 2015年 日本創成会議・首都圏問題検討分科会 提言「東京圏高齢化危機回避戦略」 資料3「全国各地の医療・介護の余力を評価する」 p5-p9 (備考）http://www.policycouncil.jp/pdf/prop04/prop04_3_150702.pdf
A4: 2015年介護ベット準備率 | C4: 2015年の介護ベッドの各地域の余力を示す指標。 各地域の2015年の75歳以上1000人に対する介護付き施設のベッド数が、2015年の全国平均（81床）と比べ何%程度多いか少ないかを示す。 2015年 日本創成会議・首都圏問題検討分科会 提言「東京圏高齢化危機回避戦略」 資料3「全国各地の医療・介護の余力を評価する」 p10 (備考）http://www.policycouncil.jp/pdf/prop04/prop04_3_150702.pdf
A5: 2040年介護ベット準備率 | C5: 2040年の推計75歳以上高齢者数からみて、現在の介護ベッドの各地域の余力を示す指標。 各地域の2015年の75歳以上1000人に対する介護付き施設のベッド数が、2040年の75歳以上推計高齢者に対して現在の全国平均（81床）のベッドを供給するために必要なベッド数と比べ、現在のベッド数は何%程度多いか少ないかを示す。 2015年 日本創成会議・首都圏問題検討分科会 提言「東京圏高齢化危機回避戦略」 資料3「全国各地の医療・介護の余力を評価する」 p10
A6: 一人当たり医師数指数 | C6: 各地域の人口当たりの総医師数（＝病院勤務医数＋診療所勤務の医師数）を、全国平均と比較した指標。
A7: 一人当たり看護師数指数 | C7: 各地域の人口当たりの総看護師数（＝病院勤務看護師数＋診療所勤務の看護師数）を、全国平均と比較した指標。
A8: 医療施設総従事者数 総医師数 | C8: 病院従事者数(病院勤務医数)+診療所従事者数(診療所医師数)
A9: 医療施設総従事者数 総看護師数 | C9: 病院従事者数(総看護師数)+診療所従事者数(総看護師数)
A10: 医療施設総従事者数 総療法士数 | C10: 病院従事者数(理学療法士)+病院従事者数(作業療法士)+病院従事者数(言語聴覚士)
A11: 救急・集中治療室病床数 ER | C11: 令和5年度病床機能報告 救命救急入院料1～4
A12: 救急・集中治療室病床数 ICU | C12: 令和5年度病床機能報告 特定集中治療室管理料1～4
A13: 救急・集中治療室病床数 HCU | C13: 令和5年度病床機能報告 ハイケアユニット入院医療管理料1～2
A14: 救急・集中治療室病床数 SCU | C14: 令和5年度病床機能報告 脳卒中ケアユニット入院医療管理料
A15: 救急・集中治療室病床数 NICU | C15: 令和5年度病床機能報告 新生児特定集中治療室管理料1～2
A16: 救急・集中治療室病床数 GCU | C16: 令和5年度病床機能報告 新生児治療回復室入院医療管理料
A17: 救急・集中治療室病床数 MFICU | C17: 令和5年度病床機能報告 総合周産期特定集中治療室管理料
A18: 救急・集中治療室病床数 PICU | C18: 令和5年度病床機能報告 小児特定集中治療室管理料
A19: 感染症指定医療機関 施設数 | C19: 厚生労働省「感染症指定医療機関の指定状況」 令和6年4月1日
A20: 感染症指定医療機関 病床数 感染症 | C20: 厚生労働省「感染症指定医療機関の指定状況」 令和6年4月1日 特定感染症指定病床＋第一種感染症指定病床＋第二種感染症指定医療機関の感染症病床
A21: 感染症指定医療機関 病床数 結核 | C21: 厚生労働省「感染症指定医療機関の指定状況」 令和6年4月1日 第二種感染症指定医療機関の結核病床
A22: 病床機能報告制度による2023年の機能別病床数 | C22: 令和5年度病床機能報告
A23: 2025年病床機能別必要病床数(推計) | C23: 各都道府県ホームページ：平成28年6月時点
A24: 介護付き入所系施設合計・定員合計 | C24: 老人保健施設+特別養護老人ホーム+介護医療院+軽費老人ホーム+介護付老人ホーム+サービス付き高齢者向け住宅(介護保険適用のみ)+グループホーム
A25: 介護施設・在宅職員数 看護師 | C25: 介護従事者数(介護施設看護師数)+(在宅看護師数)
A26: 介護施設・在宅職員数 介護職員 | C26: 介護従事者数(介護施設介護職員)+(在宅介護職員)
A27: 医療費 | C27: 令和4年度医療費の地域差分析 厚生労働省
A28: 介護費 | C28: 令和4年度介護保険事業状況報告（年報） 令和4年度累計（令和4年3月サービス分から令和5年2月サービス分まで） 算出方法：「介護給付費総額」÷「第一被保険者数」 | D28: ※愛知県、福岡県、沖縄県の一部市町村は二次医療圏をまたぐ広域連合を構成しているため、二次医療圏値の算定には構成市町村の75歳以上人口による按分を用いて算出しています。
A29: 病院数 | C29: 令和5年10月1日医療施設（静態・動態）調査 総務省統計局「政府統計の窓口（e-Stat）」
A30: DPC対象病院数 | C30: 令和7年厚生労働省告示第百六六号 令和7年5月28日
A31: DPC大学病院本院群 | C31: 令和7年厚生労働省告示第百六六号 令和7年5月28日 | D31: 旧Ⅰ群数
A32: DPC特定病院群 | C32: 令和7年厚生労働省告示第百六六号 令和7年5月28日 | D32: 旧Ⅱ群数
A33: DPC標準病院群 | C33: 令和7年厚生労働省告示第百六六号 令和7年5月28日 | D33: 旧Ⅲ群数
A34: 算定病床数 | C34: 令和5年度DPC退院患者調査 令和5年4月～令和6年3月 | D34: 準備病院・出来高病院を含む
A35: 大学病院 | C35: 令和7年5月地方厚生局
A36: 救急救命センター | C36: 令和6年12月救急医学会
A37: 地域医療支援病院 | C37: 各都道府県ホームページ（令和6年12月時点公表されているデータ）
A38: がん診療拠点病院 | C38: 令和7年1月独立行政法人国立がん研究センターがん対策情報センター
A39: 周産期母子医療センター | C39: 令和7年4月厚生労働省
A40: 総合入院加算 | C40: 令和7年5月地方厚生局
A41: 病床数 | C41: 令和5年10月1日医療施設（静態・動態）調査 総務省統計局「政府統計の窓口（e-Stat）」
A42: 一般病床数 | C42: 令和5年10月1日医療施設（静態・動態）調査 総務省統計局「政府統計の窓口（e-Stat）」
A43: 療養病床数 | C43: 令和5年10月1日医療施設（静態・動態）調査 総務省統計局「政府統計の窓口（e-Stat）」
A44: 精神病床数 | C44: 令和5年10月1日医療施設（静態・動態）調査 総務省統計局「政府統計の窓口（e-Stat）」
A45: 結核病床数 | C45: 令和5年10月1日医療施設（静態・動態）調査 総務省統計局「政府統計の窓口（e-Stat）」
A46: 回復期リハビリ病棟病床数 | C46: 令和7年5月地方厚生局
A47: 感染症病床数 | C47: 令和5年10月1日医療施設（静態・動態）調査 総務省統計局「政府統計の窓口（e-Stat）」
A48: 地域包括ケア病床数 | C48: 令和7年5月地方厚生局
A49: 病院勤務医数 | C49: 令和5年10月1日医療施設（静態・動態）調査 総務省統計局「政府統計の窓口（e-Stat）」
A50: 病院勤務医数（常勤） | C50: 令和5年10月1日医療施設（静態・動態）調査 総務省統計局「政府統計の窓口（e-Stat）」
A51: 病院勤務医数（非常勤） | C51: 令和5年10月1日医療施設（静態・動態）調査 総務省統計局「政府統計の窓口（e-Stat）」
A52: 総看護師数（病院） | C52: 令和5年10月1日医療施設（静態・動態）調査 総務省統計局「政府統計の窓口（e-Stat）」
A53: 正看護師数（病院） | C53: 令和5年10月1日医療施設（静態・動態）調査 総務省統計局「政府統計の窓口（e-Stat）」
A54: 准看護師数（病院） | C54: 令和5年10月1日医療施設（静態・動態）調査 総務省統計局「政府統計の窓口（e-Stat）」
A55: 理学療法士 | C55: 令和5年10月1日医療施設（静態・動態）調査 総務省統計局「政府統計の窓口（e-Stat）」
A56: 作業療法士 | C56: 令和5年10月1日医療施設（静態・動態）調査 総務省統計局「政府統計の窓口（e-Stat）」
A57: 言語聴覚士 | C57: 令和5年10月1日医療施設（静態・動態）調査 総務省統計局「政府統計の窓口（e-Stat）」
A58: 全身麻酔 | C58: 令和5年度病床機能報告 | D58: 令和5年4月～令和6年3月
A59: 分娩総数 | C59: 令和5年10月1日医療施設（静態・動態）調査 総務省統計局「政府統計の窓口（e-Stat）」 | D59: 令和5年9月の月間件数×12
A60: 分娩（病院） | C60: 令和5年10月1日医療施設（静態・動態）調査 総務省統計局「政府統計の窓口（e-Stat）」 | D60: 令和5年9月の月間件数×12
A61: 分娩（診療所） | C61: 令和5年10月1日医療施設（静態・動態）調査 総務省統計局「政府統計の窓口（e-Stat）」 | D61: 令和5年9月の月間件数×12
A62: 標準化死亡比 | C62: 平成30～令和4年人口動態保健所・市区町村別統計
A63: 流入・流出 | C63: 令和5年10月患者調査 総務省統計局「政府統計の窓口（e-Stat）」
A64: 診療所施設数 | C64: 令和5年10月1日医療施設（静態・動態）調査 総務省統計局「政府統計の窓口（e-Stat）」
A65: 有床診療所施設数 | C65: 令和5年10月1日医療施設（静態・動態）調査 総務省統計局「政府統計の窓口（e-Stat）」
A66: 無床診療所施設数 | C66: 令和5年10月1日医療施設（静態・動態）調査 総務省統計局「政府統計の窓口（e-Stat）」
A67: 診療所病床総数 | C67: 令和5年10月1日医療施設（静態・動態）調査 総務省統計局「政府統計の窓口（e-Stat）」
A68: 診療所一般病床数 | C68: 令和5年10月1日医療施設（静態・動態）調査 総務省統計局「政府統計の窓口（e-Stat）」
A69: 診療所療養病床数 | C69: 令和5年10月1日医療施設（静態・動態）調査 総務省統計局「政府統計の窓口（e-Stat）」
A70: 診療所医師数 | C70: 令和5年10月1日医療施設（静態・動態）調査 総務省統計局「政府統計の窓口（e-Stat）」
A71: 診療所勤務医数（常勤） | C71: 令和5年10月1日医療施設（静態・動態）調査 総務省統計局「政府統計の窓口（e-Stat）」
A72: 診療所勤務医数（非常勤） | C72: 令和5年10月1日医療施設（静態・動態）調査 総務省統計局「政府統計の窓口（e-Stat）」
A73: 総看護師数（診療所） | C73: 令和5年10月1日医療施設（静態・動態）調査 総務省統計局「政府統計の窓口（e-Stat）」
A74: 正看護師数（診療所） | C74: 令和5年10月1日医療施設（静態・動態）調査 総務省統計局「政府統計の窓口（e-Stat）」
A75: 准看護師数（診療所） | C75: 令和5年10月1日医療施設（静態・動態）調査 総務省統計局「政府統計の窓口（e-Stat）」
A76: 薬剤師数 | C76: 令和4年医師・歯科医師・薬剤師統計
A77: 専門医数 | C77: 令和4年医師・歯科医師・薬剤師統計
A78: 在宅療養支援診療所 | C78: 令和5年5月地方厚生局
A79: 在宅療養支援病院 | C79: 令和5年5月地方厚生局
A80: 訪問診療施設数 | C80: 令和5年10月1日医療施設（静態・動態）調査 総務省統計局「政府統計の窓口（e-Stat）」
A81: 訪問診療実施件数 | C81: 令和5年10月1日医療施設（静態・動態）調査 総務省統計局「政府統計の窓口（e-Stat）」 | D81: 令和5年9月1日～30日の月間件数
A82: 在宅看取り施設数 | C82: 令和5年10月1日医療施設（静態・動態）調査 総務省統計局「政府統計の窓口（e-Stat）」
A83: 在宅看取り実施件数 | C83: 令和5年10月1日医療施設（静態・動態）調査 総務省統計局「政府統計の窓口（e-Stat）」 | D83: 令和5年9月1日～30日の月間件数
A84: 介護療養(療養医療施設) 施設数・定員合計 | C84: 令和7年5月厚生労働省 介護サービス情報公表システム
A85: 老人保健施設 施設数・定員合計 | C85: 令和7年5月厚生労働省 介護サービス情報公表システム
A86: 特別養護老人ホーム（地域密着型含む） 施設数・定員合計 | C86: 令和7年5月厚生労働省 介護サービス情報公表システム
A87: 介護医療院 施設数・定員合計 | C87: 令和7年5月厚生労働省 介護サービス情報公表システム
A88: 軽費老人ホーム 施設数・定員合計 | C88: 令和7年5月厚生労働省 介護サービス情報公表システム
A89: 介護付老人ホーム 施設数・定員合計 | C89: 令和7年5月厚生労働省 介護サービス情報公表システム
A90: サービス付き高齢者向け住宅(介護保険適用のみ) 施設数・定員合計 | C90: 令和5年4月国土交通省・厚生労働省サービス付き高齢者向け住宅 情報提供システム
A91: グループホーム 施設数・定員合計 | C91: 令和7年5月厚生労働省 介護サービス情報公表システム
A92: サービス付き高齢者向け住宅(介護保険適用を除く) 登録件数・住宅戸数 | C92: 令和5年4月国土交通省・厚生労働省サービス付き高齢者向け住宅 情報提供システム
A93: サービス付き高齢者向け住宅 登録件数・住宅戸数 | C93: 令和5年4月国土交通省・厚生労働省サービス付き高齢者向け住宅 情報提供システム
A94: 訪問看護ステーション(介護保険適用) | C94: 令和7年5月厚生労働省 介護サービス情報公表システム
A95: 利用者 訪問看護 | C95: 令和7年5月厚生労働省 介護サービス情報公表システム
A96: 利用者 訪問介護 | C96: 令和7年5月厚生労働省 介護サービス情報公表システム
A97: 介護従事者数 介護施設看護師数 | C97: 令和7年5月厚生労働省 介護サービス情報公表システム [対象介護サービス] 特定施設入居者生活介護（有料老人ホーム）、介護老人福祉施設、介護老人保健施設、認知症対応型共同生活介護、特定施設入居者生活介護（軽費老人ホーム）、特定施設入居者生活介護（サービス付き高齢者向け住宅）、特定施設入居者生活介護（有料老人ホーム・外部サービス利用型）、特定施設入居者生活介護（軽費老人ホーム・外部サービス利用型）、特定施設入居者生活介護（サービス付き高齢者向け住宅・外部サービス利用型）、地域密着型特定施設入居者生活介護（有料老人ホーム）、地域密着型特定施設入居者生活介護（軽費老人ホーム）、地域密着型特定施設入居者生活介護（サービス付き高齢者向け住宅）、地域密着型介護老人福祉施設入所者生活介護、介護医療院、短期入所療養介護（介護医療院）
A98: 介護従事者数 在宅看護師数(訪問系サービス) | C98: 令和7年5月厚生労働省 介護サービス情報公表システム [対象介護サービス] 訪問看護
A99: 介護従事者数 介護施設介護職員 | C99: 令和7年5月厚生労働省 介護サービス情報公表システム [対象介護サービス] 居宅介護支援、訪問入浴介護、訪問看護、訪問リハビリテーション、福祉用具貸与、特定福祉用具販売、通所介護、通所リハビリテーション、短期入所生活介護、短期入所療養介護（介護老人保健施設）、夜間対応型訪問介護、認知症対応型通所介護、小規模多機能型居宅介護、定期巡回・随時対応型訪問介護看護、複合型サービス、特定施設入居者生活介護（有料老人ホーム）、介護老人福祉施設、介護老人保健施設、認知症対応型共同生活介護、特定施設入居者生活介護（軽費老人ホーム）、特定施設入居者生活介護（サービス付き高齢者向け住宅）、特定施設入居者生活介護（有料老人ホーム・外部サービス利用型）、特定施設入居者生活介護（軽費老人ホーム・外部サービス利用型）、特定施設入居者生活介護（サービス付き高齢者向け住宅・外部サービス利用型）、地域密着型特定施設入居者生活介護（有料老人ホーム）、地域密着型特定施設入居者生活介護（軽費老人ホーム）、地域密着型特定施設入居者生活介護（サービス付き高齢者向け住宅）、療養通所介護、地域密着型介護老人福祉施設入所者生活介護、地域密着型通所介護、介護医療院、短期入所療養介護（介護医療院）
A100: 介護従事者数 在宅介護職員(訪問系サービス) | C100: 令和5年5月厚生労働省 介護サービス情報公表システム [対象介護サービス] 訪問介護
A101: 人口 | C101: 令和2年国勢調査 人口等基本集計
A102: 人口密度 | C102: 令和2年国勢調査 人口等基本集計
A103: 面積 | C103: 令和2年国勢調査 人口等基本集計
A104: 2020年 (総人口) | C104: 令和2年国勢調査 人口等基本集計
A105: 2025年 (総人口) | C105: 国立社会保障・人口問題研究所 市区町村別将来推計人口 平成30年3月推計
A106: 2030年 (総人口) | C106: 国立社会保障・人口問題研究所 市区町村別将来推計人口 平成30年3月推計
A107: 2035年 (総人口) | C107: 国立社会保障・人口問題研究所 市区町村別将来推計人口 平成30年3月推計
A108: 2040年 (総人口) | C108: 国立社会保障・人口問題研究所 市区町村別将来推計人口 平成30年3月推計
A109: 2045年(総人口) | C109: 国立社会保障・人口問題研究所 市区町村別将来推計人口 平成30年3月推計
A110: 2020年(～14歳人口) | C110: 令和2年国勢調査 不詳補完結果(参考表）
A111: 2025年(～14歳人口) | C111: 国立社会保障・人口問題研究所 市区町村別将来推計人口 平成30年3月推計
A112: 2030年(～14歳人口) | C112: 国立社会保障・人口問題研究所 市区町村別将来推計人口 平成30年3月推計
A113: 2035年(～14歳人口) | C113: 国立社会保障・人口問題研究所 市区町村別将来推計人口 平成30年3月推計
A114: 2040年(～14歳人口) | C114: 国立社会保障・人口問題研究所 市区町村別将来推計人口 平成30年3月推計
A115: 2045年(～14歳人口) | C115: 国立社会保障・人口問題研究所 市区町村別将来推計人口 平成30年3月推計
A116: 2020年(15～64歳人口) | C116: 令和2年国勢調査 不詳補完結果(参考表）
A117: 2025年(15～64歳人口) | C117: 国立社会保障・人口問題研究所 市区町村別将来推計人口 平成30年3月推計
A118: 2030年(15～64歳人口) | C118: 国立社会保障・人口問題研究所 市区町村別将来推計人口 平成30年3月推計
A119: 2035年(15～64歳人口) | C119: 国立社会保障・人口問題研究所 市区町村別将来推計人口 平成30年3月推計
A120: 2040年15(～64歳人口) | C120: 国立社会保障・人口問題研究所 市区町村別将来推計人口 平成30年3月推計
A121: 2045年15(～64歳人口) | C121: 国立社会保障・人口問題研究所 市区町村別将来推計人口 平成30年3月推計
A122: 2020年(65歳以上人口) | C122: 令和2年国勢調査 不詳補完結果(参考表）
A123: 2025年(65歳以上人口) | C123: 国立社会保障・人口問題研究所 市区町村別将来推計人口 平成30年3月推計
A124: 2030年(65歳以上人口) | C124: 国立社会保障・人口問題研究所 市区町村別将来推計人口 平成30年3月推計
A125: 2035年(65歳以上人口) | C125: 国立社会保障・人口問題研究所 市区町村別将来推計人口 平成30年3月推計
A126: 2040年(65歳以上人口) | C126: 国立社会保障・人口問題研究所 市区町村別将来推計人口 平成30年3月推計
A127: 2045年(65歳以上人口) | C127: 国立社会保障・人口問題研究所 市区町村別将来推計人口 平成30年3月推計
A128: 2020年(65～74歳人口) | C128: 令和2年国勢調査 不詳補完結果(参考表）
A129: 2025年(65～74歳人口) | C129: 国立社会保障・人口問題研究所 市区町村別将来推計人口 平成30年3月推計
A130: 2030年(65～74歳人口) | C130: 国立社会保障・人口問題研究所 市区町村別将来推計人口 平成30年3月推計
A131: 2035年(65～74歳人口) | C131: 国立社会保障・人口問題研究所 市区町村別将来推計人口 平成30年3月推計
A132: 2040年(65～74歳人口) | C132: 国立社会保障・人口問題研究所 市区町村別将来推計人口 平成30年3月推計
A133: 2045年(65～74歳人口) | C133: 国立社会保障・人口問題研究所 市区町村別将来推計人口 平成30年3月推計
A134: 2020年(75～84歳人口) | C134: 令和2年国勢調査 不詳補完結果(参考表）
A135: 2025年(75～84歳人口) | C135: 国立社会保障・人口問題研究所 市区町村別将来推計人口 平成30年3月推計
A136: 2030年(75～84歳人口) | C136: 国立社会保障・人口問題研究所 市区町村別将来推計人口 平成30年3月推計
A137: 2035年(75～84歳人口) | C137: 国立社会保障・人口問題研究所 市区町村別将来推計人口 平成30年3月推計
A138: 2040年(75～84歳人口) | C138: 国立社会保障・人口問題研究所 市区町村別将来推計人口 平成30年3月推計
A139: 2045年(75～84歳人口) | C139: 国立社会保障・人口問題研究所 市区町村別将来推計人口 平成30年3月推計
A140: 2020年(85歳以上人口) | C140: 令和2年国勢調査 不詳補完結果(参考表）
A141: 2025年(85歳以上人口) | C141: 国立社会保障・人口問題研究所 市区町村別将来推計人口 平成30年3月推計
A142: 2030年(85歳以上人口) | C142: 国立社会保障・人口問題研究所 市区町村別将来推計人口 平成30年3月推計
A143: 2035年(85歳以上人口) | C143: 国立社会保障・人口問題研究所 市区町村別将来推計人口 平成30年3月推計
A144: 2040年(85歳以上人口) | C144: 国立社会保障・人口問題研究所 市区町村別将来推計人口 平成30年3月推計
A145: 2045年(85歳以上人口) | C145: 国立社会保障・人口問題研究所 市区町村別将来推計人口 平成30年3月推計
A146: 年間全身麻酔件数別基幹病院 | C146: ［基礎データ］ 厚生労働省「令和2年度DPC導入の影響評価に係る調査「退院患者調査」の結果報告について」資料：手術化学療法放射線療法全身麻酔についてより抜粋 令和5年03月公表 [医療機関群] 中央社会保険医療協議会 入院・外来医療等の調査・評価分科会（令和５年度第１回） 資料：機能評価係数Ⅱの内訳（医療機関別） 令和5年4月公表 ［救命区分］ 日本救急医学会 全国救命救急センター設置状況 令和4年12月現在
A148: ※福島県の市区町村別将来人口推計は現在取得できないため空欄としています。
A149: 将来人口推計の全国値は福島県全体に対する推計値を含んでいるため、二次医療圏別の合計と一致しません。
A151: ※地域区分項目の判定基準は以下のとおりです。
A152: ・大都市型二次医療圏・・・人口が１００万人以上であるか、または人口密度が2,000人/㎢以上である二次医療圏
A153: ・地方都市型二次医療圏・・・大都市型二次医療圏の条件以外で、人口が２０万人以上であるか、または人口が１０万人以上で、かつ人口密度が200人/㎢以上である
A154: 二次医療圏
A155: ・過疎地域型二次医療圏・・・大都市型二次医療圏、地方都市型二次医療圏の条件以外の二次医療圏
A173: ※年間全身麻酔件数別基幹病院の基礎データは令和4年度調査（令和6年公表）を用いていますが、施設名については令和7年7月1日時点公表分を採用しました。
A176: 【 システム名 】２次医療圏データベースVer.14（巧見さん）プロ版
A177: 【 総 監 修 】高橋泰（国際医療福祉大学大学院 教授）
A178: 【システム開発】渡部鉄兵（株式会社ウェルネス）
A179: 【 著 作 】株式会社ウェルネス
A182: 【更新履歴】
A183: 2017.08.22：Ver 8.0.1 リリース
A184: 2017.08.24：Ver 8.0.2 リリース
A185: ・地図機能の一部不具合を修正しました。
A186: 2017.08.28：Ver 8.0.3 リリース
A187: ・2025年介護ベット準備率および2040年介護ベット準備率の全国値を修正しました。
A188: ・一人当たり医師数指数および一人当たり看護師数指数を更新しました。
A189: 2017.09.04：Ver 8.0.4 リリース
A190: ・医療費データを「平成27年度医療費の地域差分析」を基に更新しました。
A191: 2018.05.14：Ver 8.0.5 リリース
A192: ・病床機能報告制度による2016年の機能別病床数に富山県・福井県・三重県・高知県・宮崎県・沖縄県を追加しました。
A193: ・病床機能報告制度による2016年の機能別病床数の秋田県、愛知県データを修正しました。
A194: ・病床機能報告制度による2015年の機能別病床数の栃木県、愛知県データを修正しました。
A195: 2019.01.23：Ver 9.0.1 リリース
A196: 2019.01.30：Ver 9.0.2 リリース
A197: ・不要な作業用シートを除去しました。
A198: ・病床機能報告制度による2017年の機能別病床数の「休床・無回答」の値を修正しました（合計や他の値は影響ありません）。
A199: 2019.04.25：Ver 9.1.1 リリース
A200: ・出典情報に現状の医療圏との差異に関する情報を記載しました。
A201: ・年間全身麻酔件数別基幹病院データの更新を行い、基礎データと施設名の結びつきの不具合を修正しました。
A202: 2019.05.27：Ver 9.2.1 リリース
A203: ・全身麻酔件数の値を修正しました。
A204: 2020.03.03：Ver 10.0.1 リリース
A205: 2020.04.23：Ver 10.0.2 リリース
A206: ・病院数（DPC対象病院～総合入院加算）の不具合を修正しました。
A207: 2020.08.01：Ver 10.1.1 リリース
A208: ・データおよび地図機能を最新の二次医療圏（335医療圏版）に対応しました。
A209: 2020.06.28：Ver 11.0.1 リリース
A210: ・救急・集中治療室病床数データ、感染症指定医療機関データを収録しました。
A211: ・介護医療院関連データを収録しました。
A212: 2021.08.05：Ver 11.0.2 リリース
A213: ・地域区分の不具合を修正しました。
A214: 2022.07.29：Ver 12.0.1 リリース
A215: 2022.09.01：Ver 12.0.2 リリース
A216: ・地図塗分けの不具合を修正しました。
A217: 2023.08.04：Ver 13.0.1 リリース
A218: 2025.08.04：Ver 14.0.1 リリース
A219: ・秋田県の二次医療圏再編（2024年4月1日～）に対応しました。
A220: ・令和5年度末でサービスが終了した介護療養型医療施設関連データを削除しました。
A221: 2025.08.06：Ver 14.0.2 リリース
A222: ・秋田県の二次医療圏における2020年の年齢階級別人口の不具合を修正しました。
A223: 2025.08.28：Ver 14.0.3 リリース
... 1 more rows

Sheet 巧見くん
A1: 巧見（タクミ）さん バージョン14 ２次医療圏色塗りツール | I1: プロ版 .
AX2: 2025年病床機能別医療需要ベッド数（ガイドライン） 医療機関所在地ベース | BT2: 2025年病床機能別医療需要ベッド数（ガイドライン） 患者所在地ベース | EL2: ※回復期病床数・地域包括ケア病床数には一般病床、療養病床の一部を含んでいます。
B3: 二次医療圏 | C3: 地域区分 | E3: 色指定 | I3: 二次医療圏略称 | J3: 二次医療圏 フリガナ | K3: 市町村概要 | L3: 一人当たり急性期医療密度指数 | M3: 一人当たり慢性期医療密度指数 | N3: 2015年介護ベット準備率 | O3: 2040年介護ベット準備率 | P3: 一人当たり 医師数指数 | Q3: 一人当たり 看護師数指数 | R3: 75歳以上 2015介護 余力ド指数 | S3: 75歳以上 2025介護 余力ド指数 | T3: 75歳以上 2040介護 余力ド指数 | X3: 医療施設総従事者数 | AB3: 救急・集中治療室病床数 | AK3: 感染症指定医療機関 | AQ3: 病床機能報告制度による2023年の機能別病床数 | AX3: 慢性期バターンA | BC3: 慢性期バターンB | BH3: 慢性期バターンC | BM3: 慢性期バターンなし | BT3: 慢性期バターンA | BY3: 慢性期バターンB | CD3: 慢性期バターンC | CI3: 慢性期バターンなし | CP3: 介護付き入所系施設合計 | CR3: 81.38218538 | CV3: 介護施設・在宅職員数 | CY3: 医療・介護費 | DU3: 病院数 | EG3: 病院病床数 | EO3: 病院従事者数 | EX3: 全身麻酔 | EY3: 分娩総数 | EZ3: 分娩件数 （病院） | FA3: 分娩件数 （診療所） | FB3: 標準化死亡比 | GL3: 全体 | GO3: 一般病床 | GR3: 療養病床 | GU3: 医療療養 | GW3: 介護療養 | GY3: 精神病床 | HB3: 診療所 | HH3: 診療所従事者数 | HO3: 薬剤師数 | HQ3: 専門医数 | JV3: 在宅医療 | KC3: 介護療養 | KE3: 老健 | KG3: 特養 | KI3: 介護医療院 | KK3: 軽費ホーム | KM3: 有料ホーム | KO3: サ高住(特定施設） | KQ3: グループホーム | KS3: サ高住(非特定施設） | KU3: サ高住(全施設） | KX3: 訪問看護ステーション数(介護保険適用) | KZ3: 利用者数 | LC3: 介護従事者数 ※常勤換算 | LH3: 人口 | LI3: 人口密度 | LJ3: 面積 | LK3: (総人口) | LQ3: （～14歳人口） | LW3: （15～64歳人口） | MC3: (65歳以上人口) | MI3: （65～74歳人口） | MO3: （75～84歳人口） | MU3: （85歳以上人口） | NA3: 所属市町村 | NB3: 年間全身麻酔数2000件以上の基幹病院 | NC3: 年間全身麻酔数1000件以上の基幹病院 | ND3: 年間全身麻酔数500件以上の基幹病院
D4: 構成市区町村 | F4: 都道府県 | G4: 地図区分 | H4: 二次医療圏コード | U4: 十万人当 医師数 | V4: 十万人当 看護師数 | X4: 総医師数 | Y4: 総看護師数 | Z4: 総療法士数 | AB4: ER | AC4: ICU | AD4: HCU | AE4: SCU | AF4: NICU | AG4: GCU | AH4: MFICU | AI4: PICU | AK4: 施設数 特定 | AL4: 施設数 第一種 | AM4: 施設数 第二種 | AN4: 病床数 感染症 | AO4: 病床数 結核 | AQ4: 合計 病床数 | AR4: 高度急性期病床数 | AS4: 急性期 病床数 | AT4: 回復期 病床数 | AU4: 慢性期 病床数 | AV4: 休床・無回答 | AX4: 全体 | AY4: 高度急性期 | AZ4: 急性期 | BA4: 回復期 | BB4: 慢性期A | BC4: 全体 | BD4: 高度急性期 | BE4: 急性期 | BF4: 回復期 | BG4: 慢性期B | BH4: 全体 | BI4: 高度急性期 | BJ4: 急性期 | BK4: 回復期 | BL4: 慢性期C | BM4: 全体 | BN4: 高度急性期 | BO4: 急性期 | BP4: 回復期 | BQ4: 慢性期 | BR4: 無回答 | BT4: 全体 | BU4: 高度急性期 | BV4: 急性期 | BW4: 回復期 | BX4: 慢性期A | BY4: 全体 | BZ4: 高度急性期 | CA4: 急性期 | CB4: 回復期 | CC4: 慢性期B | CD4: 全体 | CE4: 高度急性期 | CF4: 急性期 | CG4: 回復期 | CH4: 慢性期C | CI4: 全体 | CJ4: 高度急性期 | CK4: 急性期 | CL4: 回復期 | CM4: 慢性期 | CN4: 無回答 | CP4: 施設数 | CQ4: 定員合計 | CR4: 75歳1000人当2015定員 | CS4: 75歳1000人当2025目標 | CT4: 75歳1000人当2040目標 | CV4: 看護師 | CW4: 介護職員 | CY4: １人当たり国保医療費（計） | CZ4: １人当たり国保医療費（入院） | DA4: １人当たり国保医療費（入院外+調剤） | DB4: １人当たり国保医療費（歯科） | DC4: 地域差指数（計） | DD4: 地域差指数（入院） | DE4: 地域差指数（入院外+調剤） | DF4: 地域差指数（歯科） | DG4: 地域差指数寄与度（入院） | DH4: 地域差指数寄与度（入院外+調剤） | DI4: 地域差指数寄与度（歯科） | DJ4: １人当たり 介護費 | DK4: 保険給付支払額 | DL4: 第１号被保険者数 | DU4: 総病院数 | DV4: DPC対象 病院 | DW4: DPC大学 病院本院群 | DX4: DPC特定 病院群 | DY4: DPC標準 病院群 | DZ4: DPC算定病床数 | EA4: 大学病院 | EB4: 救急救命センター | EC4: 地域医療支援病院 | ED4: がん診療拠点病院 | EE4: 周産期母子医療センター | EF4: 総合入院加算 | EG4: 病床数 | EH4: 一般病床数 | EI4: 療養病床数 | EJ4: 精神病床数 | EK4: 結核病床数 | EL4: 回復期病床数 | EM4: 感染病床数 | EN4: 地域包括ケア病床数 | EO4: 医師数 | EP4: 医師数 （常勤） | EQ4: 医師数 （非常勤） | ER4: 総看護師数 | ES4: 正看護師 | ET4: 准看護師 | EU4: 理学療法士 | EV4: 作業療法士 | EW4: 言語聴覚士 | FB4: 総数 男性 | FC4: 総数 女性 | FD4: がん 総数 男性 | FE4: がん 総数 女性 | FF4: がん 胃 男性 | FG4: がん 胃 女性 | FH4: がん 大腸 男性 | FI4: がん 大腸 女性 | FJ4: がん 肝及び肝内胆管 男性 | FK4: がん 肝及び肝内胆管 女性 | FL4: がん 気管、気管支及び肺 男性 | FM4: がん 気管、気管支及び肺 女性 | FN4: 心疾患 総数 男性 | FO4: 心疾患 総数 女性 | FP4: 急性心筋梗塞 男性 | FQ4: 急性心筋梗塞 女性 | FR4: 心不全 男性 | FS4: 心不全 女性 | FT4: 脳血管疾患 総数 男性 | FU4: 脳血管疾患 総数 女性 | FV4: 脳内出血 男性 | FW4: 脳内出血 女性 | FX4: 脳梗塞 男性 | FY4: 脳梗塞 女性 | FZ4: 肺炎 男性 | GA4: 肺炎 女性 | GB4: 肝疾患 男性 | GC4: 肝疾患 女性 | GD4: 腎不全 男性 | GE4: 腎不全 女性 | GF4: 老衰 男性 | GG4: 老衰 女性 | GH4: 不慮の事故 男性 | GI4: 不慮の事故 女性 | GJ4: 自殺 男性 | GK4: 自殺 女性 | GL4: 流入 | GM4: 流出 | GN4: 流入-流出 | GO4: 流入 | GP4: 流出 | GQ4: 流入-流出 | GR4: 流入 | GS4: 流出 | GT4: 流入-流出 | GU4: 流入 | GV4: 流出 | GW4: 流入 | GX4: 流出 | GY4: 流入 | GZ4: 流出 | HB4: 診療所 施設数 | HC4: 有床診療所施設数 | HD4: 無床診療所施設数 | HE4: 診療所 総病床数 | HF4: 診療所 一般病床数 | HG4: 診療所 療養病床数 | HH4: 診療所 医師数 | HI4: 医師数 （常勤） | HJ4: 医師数 （非常勤） | HK4: 総看護師数 | HL4: 正看護師数 | HM4: 准看護師数 | HQ4: 総合内科 専門医数 | HR4: 呼吸器 専門医数 | HS4: 循環器 専門医数 | HT4: 消化器病 専門医数 | HU4: 腎臓 専門医数 | HV4: 肝臓 専門医数 | HW4: 神経内科 専門医数 | HX4: 糖尿病 専門医数 | HY4: 内分泌代謝科専門医数 | HZ4: 血液 専門医数 | IA4: 皮膚科 専門医数 | IB4: アレルギー 専門医数 | IC4: リウマチ 専門医数 | ID4: 感染症 専門医数 | IE4: 小児科 専門医数 | IF4: 心療内科 専門医数 | IG4: 精神科 専門医数 | IH4: 外科 専門医数 | II4: 呼吸器外科 専門医数 | IJ4: 心臓血管外科専門医数 | IK4: 乳腺 専門医数 | IL4: 気管食道科 専門医数 | IM4: 消化器外科 専門医数 | IN4: 泌尿器科 専門医数 | IO4: 脳神経外科 専門医数 | IP4: 整形外科 専門医数 | IQ4: 形成外科 専門医数 | IR4: 眼科 専門医数 | IS4: 耳鼻咽喉科 専門医数 | IT4: 小児外科 専門医数 | IU4: 産婦人科 専門医数 | IV4: リハビリテーション科 専門医数 | IW4: 放射線科 専門医数 | IX4: 麻酔科 専門医数 | IY4: 病理 専門医数 | IZ4: 救急科 専門医数 | JA4: 超音波 専門医数 | JB4: 細胞診 専門医数 | JC4: 透析 専門医数 | JD4: 老年病 専門医数 | JE4: 消化器内視鏡専門医数 | JF4: 臨床遺伝 専門医数 | JG4: 漢方 専門医数 | JH4: レーザー 専門医数 | JI4: 気管支鏡 専門医数 | JJ4: 核医学 専門医数 | JK4: 大腸肛門病 専門医数 | JL4: 婦人科腫瘍 専門医数 | JM4: ペインクリニック専門医数 | JN4: 熱傷 専門医数 | JO4: 脳血管内治療専門医数 | JP4: がん薬物療法専門医数 | JQ4: 周産期（新生児）専門医数 | JR4: 生殖医療 専門医数 | JS4: 小児神経 専門医数 | JT4: 一般病院連携精神医学専門医数 | JV4: 在宅療養 支援診療所 | JW4: 在宅療養 支援病院 | JX4: 訪問診療 施設数 | JY4: 訪問診療 実施件数 | JZ4: 在宅看取り施設数 | KA4: 在宅看取り実施件数 | KC4: 施設数 | KD4: 定員合計 | KE4: 施設数 | KF4: 定員合計 | KG4: 施設数 | KH4: 定員合計 | KI4: 施設数 | KJ4: 定員合計 | KK4: 施設数 | KL4: 定員合計 | KM4: 施設数 | KN4: 定員合計 | KO4: 施設数 | KP4: 定員合計 | KQ4: 施設数 | KR4: 定員合計 | KS4: 登録件数 | KT4: 戸数 | KU4: 登録件数 | KV4: 戸数 | KZ4: 訪問看護 | LA4: 訪問介護 | LC4: 介護施設看護師数 | LD4: 在宅看護師数 | LE4: 介護施設介護職員 | LF4: 在宅介護職員 | LK4: 2020年 | LL4: 2025年 | LM4: 2030年 | LN4: 2035年 | LO4: 2040年 | LP4: 2045年 | LQ4: 2020年 | LR4: 2025年 | LS4: 2030年 | LT4: 2035年 | LU4: 2040年 | LV4: 2045年 | LW4: 2020年 | LX4: 2025年 | LY4: 2030年 | LZ4: 2035年 | MA4: 2040年 | MB4: 2045年 | MC4: 2020年 | MD4: 2025年 | ME4: 2030年 | MF4: 2035年 | MG4: 2040年 | MH4: 2045年 | MI4: 2020年 | MJ4: 2025年 | MK4: 2030年 | ML4: 2035年 | MM4: 2040年 | MN4: 2045年 | MO4: 2020年 | MP4: 2025年 | MQ4: 2030年 | MR4: 2035年 | MS4: 2040年 | MT4: 2045年 | MU4: 2020年 | MV4: 2025年 | MW4: 2030年 | MX4: 2035年 | MY4: 2040年 | MZ4: 2045年
A5: 0 | B5: 全国 | L5: 1 | M5: 1 | N5: 0 | O5: 0 | P5: 1 | Q5: 1 | R5: 0.04216536644 | S5: -0.2671693403 | T5: -0.272390249 | U5: 259.2973322 | V5: 844.8218597 | X5: =SUM(X6:X335) -> 413121.7 | Y5: =SUM(Y6:Y335) -> 1152204.8 | Z5: =SUM(Z6:Z335) -> 156933 | AB5: =SUM(AB6:AB335) -> 6084 | AC5: 5728 | AD5: 7390 | AE5: 1622 | AF5: 1582 | AG5: 2935 | AH5: 2493 | AI5: 193 | AK5: =SUM(AK6:AK335) -> 4 | AL5: =SUM(AL6:AL335) -> 56 | AM5: =SUM(AM6:AM335) -> 533 | AN5: =SUM(AN6:AN335) -> 1909 | AO5: =SUM(AO6:AO335) -> 2777 | AQ5: =SUM(AQ6:AQ335) -> 1215634 | AR5: 160542 | AS5: 525243 | AT5: 204715 | AU5: 305825 | AV5: 19309 | AX5: =SUM(AX6:AX335) -> 477509.5 | AY5: 54198.4 | AZ5: 166965.3 | BA5: 155373.8 | BB5: 100972 | BC5: 895417.2 | BD5: 100348.8 | BE5: 305751.9 | BF5: 285188.8 | BG5: 204127.7 | BH5: 182191.9 | BI5: 16529.6 | BJ5: 57169.5 | BK5: 58096.2 | BL5: 50396.6 | BM5: 13827 | BN5: 615 | BO5: 2248 | BP5: 769 | BQ5: 2671 | BR5: 7524 | BT5: =SUM(BT6:BT335) -> 461991.1 | BU5: 53353.4 | BV5: 162257.6 | BW5: 148806 | BX5: 97574.1 | BY5: 671046.6 | BZ5: 76059.4 | CA5: 229325.9 | CB5: 211830.5 | CC5: 153830.8 | CD5: 164073.5 | CE5: 15502.8 | CF5: 51581.7 | CG5: 52950.7 | CH5: 44038.3 | CI5: 0 | CJ5: 0 | CK5: 0 | CL5: 0 | CM5: 0 | CN5: 0 | CP5: =SUM(CP6:CP335) -> 34630 | CQ5: =SUM(CQ6:CQ335) -> 1606752 | CR5: 1339503 | CS5: 1772098.307 | CT5: 1779399.592 | CV5: =SUM(CV6:CV335) -> 207915.6328 | CW5: =SUM(CW6:CW335) -> 1537349.636 | CY5: 395006.2695 | CZ5: 153303.9752 | DA5: 214046.447 | DB5: 27655.84728 | DC5: 1 | DD5: 1 | DE5: 1 | DF5: 1 | DG5: 0 | DH5: 0 | DI5: 0 | DJ5: 278055.9714 | DK5: 8484852857 | DL5: 33922327 | DU5: =SUM(DU6:DU335) -> 8092 | DV5: 1761 | DW5: 82 | DX5: 178 | DY5: 1501 | DZ5: 617094 | EA5: 179 | EB5: 304 | EC5: 707 | ED5: 456 | EE5: 412 | EF5: 192 | EG5: 1481183 | EH5: 882862 | EI5: 273745 | EJ5: 318921 | EK5: 3744 | EL5: 91081 | EM5: 1911 | EN5: 103750 | EO5: 260350 | EP5: 197039 | EQ5: 63311 | ER5: 900017.1 | ES5: 828480.4 | ET5: 71536.7 | EU5: 88925.5 | EV5: 50304.4 | EW5: 17703.1 | EX5: 2515866 | EY5: 703505 | EZ5: 388585 | FA5: 314920 | FB5: 100 | FC5: 100 | FD5: 100 | FE5: 100 | FF5: 100 | FG5: 100 | FH5: 100 | FI5: 100 | FJ5: 100 | FK5: 100 | FL5: 100 | FM5: 100 | FN5: 100 | FO5: 100 | FP5: 100 | FQ5: 100 | FR5: 100 | FS5: 100 | FT5: 100 | FU5: 100 | FV5: 100 | FW5: 100 | FX5: 100 | FY5: 100 | FZ5: 100 | GA5: 100 | GB5: 100 | GC5: 100 | GD5: 100 | GE5: 100 | GF5: 100 | GG5: 100 | GH5: 100 | GI5: 100 | GJ5: 100 | GK5: 100 | GL5: 20.7 | GM5: 20.7 | GN5: 0 | GO5: 20.1 | GP5: 20.1 | GQ5: 0 | GR5: 17.2 | GS5: 17.2 | GT5: 0 | GU5: 17.3 | GV5: 17.3 | GW5: 15.9 | GX5: 15.9 | GY5: 24.9 | GZ5: 24.9 | HB5: =SUM(HB6:HB335) -> 104894 | HC5: 5641 | HD5: 99253 | HE5: 75780 | HF5: 70782 | HG5: 4906 | HH5: 152771.7 | HI5: 107085 | HJ5: 45686.7 | HK5: 252187.7 | HL5: 177361 | HM5: 74826.7 | HO5: =SUM(HO6:HO335) -> 323690 | HQ5: =SUM(HQ6:HQ335) -> 27644 | HR5: 6358 | HS5: 13629 | HT5: 19708 | HU5: 5099 | HV5: 6253 | HW5: 5147 | HX5: 5535 | HY5: 2785 | HZ5: 3597 | IA5: 5851 | IB5: 3800 | IC5: 4714 | ID5: 1358 | IE5: 13891 | IF5: 308 | IG5: 10100 | IH5: 22288 | II5: 1481 | IJ5: 2323 | IK5: 1670 | IL5: 932 | IM5: 7927 | IN5: 6352 | IO5: 6966 | IP5: 17466 | IQ5: 2459 | IR5: 10013 | IS5: 7327 | IT5: 748 | IU5: 11371 | IV5: 3009 | IW5: =SUM(IW6:IW335) -> 6331 | IX5: 8146 | IY5: 1944 | IZ5: 4827 | JA5: 1908 | JB5: 2219 | JC5: 4782 | JD5: 1316 | JE5: 15235 | JF5: 1293 | JG5: 1586 | JH5: 269 | JI5: 2116 | JJ5: 899 | JK5: 1620 | JL5: 912 | JM5: 1287 | JN5: 291 | JO5: 1372 | JP5: 1330 | JQ5: 1719 | JR5: 985 | JS5: 948 | JT5: 339 | JV5: =SUM(JV6:JV335) -> 15614 | JW5: 2184 | JX5: 21674 | JY5: 1731002 | JZ5: 6740 | KA5: 24940 | KC5: =SUM(KC6:KC335) -> 7 | KD5: 398 | KE5: 4064 | KF5: 360638 | KG5: 9722 | KH5: 625062 | KI5: 914 | KJ5: 52356 | KK5: 557 | KL5: 25512 | KM5: 4495 | KN5: 279470 | KO5: 765 | KP5: 39291 | KQ5: 14113 | KR5: 224423 | KS5: 7564 | KT5: 250709 | KU5: 8173 | KV5: 281597 | KX5: =SUM(KX6:KX335) -> 17403 | KZ5: =SUM(KZ6:KZ335) -> 817852 | LA5: =SUM(LA6:LA335) -> 1177418 | LC5: =SUM(LC6:LC335) -> 117988.9503 | LD5: =SUM(LD6:LD335) -> 89926.6825 | LE5: =SUM(LE6:LE335) -> 1303897.947 | LF5: =SUM(LF6:LF335) -> 233451.6886 | LH5: =SUM(LH6:LH335) -> 126146099 | LI5: =LH5/LJ5 -> 338.2302554 | LJ5: =SUM(LJ6:LJ335) -> 372959.24 | LK5: 126146099 | LL5: 123262448 | LM5: 120115781 | LN5: 116638904 | LO5: 112837404 | LP5: 108801338 | LQ5: 15031602 | LR5: 13632522 | LS5: 12397006 | LT5: 11691192 | LU5: 11419045 | LV5: 11026930 | LW5: 75087865 | LX5: 73101025 | LY5: 70756829 | LZ5: 67215555 | MA5: 62133374 | MB5: 58322916 | MC5: 36026632 | MD5: 36528901 | ME5: 36961946 | MF5: 37732157 | MG5: 39284985 | MH5: 39451492 | MI5: 17424824 | MJ5: 14982342 | MK5: 14348996 | ML5: 15348382 | MM5: 17010015 | MN5: 16679991 | MO5: 12468410 | MP5: 14473460 | MQ5: 14491452 | MR5: 12573291 | MS5: 12214651 | MT5: 13188815 | MU5: 6133398 | MV5: 7073098 | MW5: 8121498 | MX5: 9810484 | MY5: 10060319 | MZ5: 9582687
A6: 1 | B6: 南渡島 | C6: =IF(OR($LH6>=1000000,$LI6>=2000),"大都市型",IF(OR($LH6>=200000,AND($LH6>=100000,$LI6>=200)),"地方都市型","過疎地域型")) -> 地方都市型 | D6: 松前郡松前町,松前郡福島町,上磯郡知内町,上磯郡木古内町,亀田郡七飯町,茅部郡鹿部町,茅部郡森町,函館市,北斗市 | F6: 北海道 | G6: 北海道 | H6: 0101 | I6: 函館（北海道） | J6: ミナミオシマ | K6: 函館市、北斗市及び周辺部 | L6: 1.771781394 | M6: 1.289874603 | N6: 0.1598448442 | O6: 0.09574520788 | P6: 0.8464548612 | Q6: 1.444757636 | R6: 0.1827742772 | S6: 0.02854659378 | T6: 0.1204240419 | U6: 242.2288316 | V6: 1280.762246 | X6: 995.8 | Y6: 4740.4 | Z6: 664.8 | AB6: 30 | AC6: 34 | AD6: 18 | AE6: 9 | AF6: 9 | AG6: 18 | AH6: 0 | AI6: 0 | AK6: 0 | AL6: 0 | AM6: 2 | AN6: 6 | AO6: 10 | AQ6: 5461 | AR6: 844 | AS6: 2456 | AT6: 791 | AU6: 1291 | AV6: 79 | AX6: 4816 | AY6: 585 | AZ6: 1759 | BA6: 1691 | BB6: 781 | BC6: 4882 | BD6: 585 | BE6: 1759 | BF6: 1691 | BG6: 847 | BH6: 0 | BM6: 0 | BT6: 4661 | BU6: 547 | BV6: 1679 | BW6: 1609 | BX6: 826 | BY6: 4730 | BZ6: 547 | CA6: 1679 | CB6: 1609 | CC6: 895 | CD6: 0 | CI6: 0 | CP6: 140 | CQ6: 5980 | CR6: 4923.78498 | CS6: 5853.006772 | CT6: 5299.445148 | CV6: 699.16 | CW6: 5720.305 | CY6: 448515.0719 | CZ6: 188168.0703 | DA6: 233816.6037 | DB6: 26530.39787 | DC6: 1.073149814 | DD6: 1.153409809 | DE6: 1.034294611 | DF6: 0.923177786 | DG6: 0.05988233573 | DH6: 0.01854984476 | DI6: -0.005282366735 | DJ6: 289934.7618 | DK6: 29784639.16 | DL6: 118087 | DU6: 33 | DV6: 8 | DW6: 0 | DX6: 0 | DY6: 8 | DZ6: 2834 | EA6: 0 | EB6: 1 | EC6: 2 | ED6: 2 | EE6: 2 | EF6: 0 | EG6: 6852 | EH6: 4203 | EI6: 1018 | EJ6: 1615 | EK6: 10 | EL6: 473 | EM6: 6 | EN6: 390 | EO6: 653.6 | EP6: 561 | EQ6: 92.6 | ER6: 3939 | ES6: 3480.9 | ET6: 458.1 | EU6: 355.5 | EV6: 228.9 | EW6: 80.4 | EX6: 9540 | EY6: 1740 | EZ6: 972 | FA6: 768 | FB6: 115.3184796 | FC6: 110.9617442 | FD6: 125.7836617 | FE6: 124.4995284 | FF6: 122.7882729 | FG6: 110.5807864 | FH6: 131.1696938 | FI6: 141.3939312 | FJ6: 124.7101958 | FK6: 105.1012358 | FL6: 126.2280021 | FM6: 130.9191504 | FN6: 85.18588033 | FO6: 95.2891391 | FP6: 76.42357144 | FQ6: 79.64289631 | FR6: 99.19163167 | FS6: 106.314069 | FT6: 106.5070981 | FU6: 97.63823098 | FV6: 107.0819012 | FW6: 99.68110968 | FX6: 107.6977982 | FY6: 94.96688385 | FZ6: 128.804454 | GA6: 128.3553699 | GB6: 115.1599457 | GC6: 117.1304176 | GD6: 163.0725542 | GE6: 146.5837826 | GF6: 70.83764615 | GG6: 90.47296353 | GH6: 112.5433505 | GI6: 104.3863723 | GJ6: 114.766146 | GK6: 104.1847886 | GL6: 8.1 | GM6: 3 | GN6: -5.1 | GO6: 8.5 | GP6: 3.5 | GQ6: -5 | GR6: 4.2 | GS6: 1.9 | GT6: -2.3 | GU6: 4.2 | GV6: 1.9 | GW6: 0 | GX6: 0 | GY6: 9.9 | GZ6: 2.6 | HB6: 261 | HC6: 21 | HD6: 240 | HE6: 285 | HF6: 285 | HG6: 0 | HH6: 342.2 | HI6: 244 | HJ6: 98.2 | HK6: 801.4 | HL6: 420.7 | HM6: 380.7 | HO6: 797 | HQ6: 53 | HR6: 13 | HS6: 37 | HT6: 48 | HU6: 4 | HV6: 12 | HW6: 7 | HX6: 6 | HY6: 4 | HZ6: 4 | IA6: 18 | IB6: 5 | IC6: 11 | ID6: 3 | IE6: 30 | IF6: 1 | IG6: 29 | IH6: 54 | II6: 2 | IJ6: 8 | IK6: 4 | IL6: 1 | IM6: 19 | IN6: 16 | IO6: 26 | IP6: 52 | IQ6: 6 | IR6: 17 | IS6: 13 | IT6: 1 | IU6: 22 | IV6: 6 | IW6: 11 | IX6: 29 | IY6: 3 | IZ6: 14 | JA6: 2 | JB6: 3 | JC6: 4 | JD6: 5 | JE6: 43 | JF6: 4 | JG6: 5 | JH6: 0 | JI6: 2 | JJ6: 0 | JK6: 5 | JL6: 1 | JM6: 1 | JN6: 1 | JO6: 8 | JP6: 0 | JQ6: 2 | JR6: 2 | JS6: 3 | JT6: 1 | JV6: 30 | JW6: 10 | JX6: 60 | JY6: 8014 | JZ6: 14 | KA6: 32 | KC6: 0 | KD6: 0 | KE6: 12 | KF6: 1252 | KG6: 33 | KH6: 2053 | KI6: 5 | KJ6: 374 | KK6: 5 | KL6: 279 | KM6: 15 | KN6: 753 | KO6: 2 | KP6: 75 | KQ6: 68 | KR6: 1194 | KS6: 50 | KT6: 1701 | KU6: 53 | KV6: 1783 | KX6: 50 | KZ6: 2414 | LA6: 3803 | LC6: 427.36 | LD6: 271.8 | LE6: 5076.375 | LF6: 643.93 | LH6: 359223 | LI6: 134.5102224 | LJ6: 2670.6 | LK6: 359223 | LL6: 332064 | LM6: 307907 | LN6: 283545 | LO6: 259252 | LP6: 235604 | LQ6: 35205 | LR6: 29115 | LS6: 24066 | LT6: 20737 | LU6: 18884 | LV6: 17184 | LW6: 194764 | LX6: 176283 | LY6: 161566 | LZ6: 144767 | MA6: 124143 | MB6: 107438 | MC6: 129254 | MD6: 126666 | ME6: 122275 | MF6: 118041 | MG6: 116225 | MH6: 110982 | MI6: 62958 | MJ6: 52035 | MK6: 44733 | ML6: 43811 | MM6: 46433 | MN6: 44606 | MO6: 43489 | MP6: 49735 | MQ6: 50860 | MR6: 42331 | MS6: 36978 | MT6: 36598 | MU6: 22807 | MV6: 24896 | MW6: 26682 | MX6: 31899 | MY6: 32814 | MZ6: 29778 | NA6: 函館市、北斗市、松前郡松前町、松前郡福島町、上磯郡知内町、上磯郡木古内町、亀田郡七飯町、茅部郡鹿部町、茅部郡森町 | NB6: 函館中央病院（標準群）、函館五稜郭病院（標準群） | NC6: 市立函館病院（標準群・救命）
A7: 2 | B7: 南檜山 | C7: =IF(OR($LH7>=1000000,$LI7>=2000),"大都市型",IF(OR($LH7>=200000,AND($LH7>=100000,$LI7>=200)),"地方都市型","過疎地域型")) -> 過疎地域型 | D7: 檜山郡江差町,爾志郡乙部町,檜山郡厚沢部町,奥尻郡奥尻町,檜山郡上ノ国町 | F7: 北海道 | G7: 北海道 | H7: 0102 | I7: 江差（北海道） | J7: ミナミヒヤマ | K7: 江差町、上ノ国町及び周辺部 | L7: 0.9767843862 | M7: 1.886518711 | N7: 0.1382321842 | O7: 0.2571571953 | P7: 0.7352400579 | Q7: 0.9151583684 | R7: 0.2310948524 | S7: 0.1927513227 | T7: 0.3372047018 | U7: 153.8006507 | V7: 820.5518232 | X7: 50.9 | Y7: 176.7 | Z7: 4 | AB7: 0 | AC7: 0 | AD7: 0 | AE7: 0 | AF7: 0 | AG7: 0 | AH7: 0 | AI7: 0 | AK7: 0 | AL7: 0 | AM7: 1 | AN7: 4 | AO7: 0 | AQ7: 339 | AR7: 0 | AS7: 174 | AT7: 0 | AU7: 165 | AV7: 0 | AX7: 158 | AZ7: 56 | BA7: 72 | BB7: 30 | BC7: 177 | BE7: 56 | BF7: 72 | BG7: 49 | BH7: 0 | BM7: 0 | BT7: 302 | BU7: 30 | BV7: 105 | BW7: 119 | BX7: 48 | BY7: 324 | BZ7: 30 | CA7: 105 | CB7: 119 | CC7: 70 | CD7: 0 | CI7: 0 | CP7: 16 | CQ7: 529 | CR7: 399.8306768 | CS7: 419.7693122 | CT7: 344.6535551 | CV7: 39.1 | CW7: 461.53 | CY7: 440870.9715 | CZ7: 194020.3618 | DA7: 221780.4868 | DB7: 25070.12281 | DC7: 1.017643381 | DD7: 1.143265907 | DE7: 0.9476012297 | DF7: 0.850522367 | DG7: 0.05612120893 | DH7: -0.02830759153 | DI7: -0.01017023627 | DJ7: 311664.4667 | DK7: 2406851.035 | DL7: 8948 | DU7: 5 | DV7: 0 | DW7: 0 | DX7: 0 | DY7: 0 | DZ7: 158 | EA7: 0 | EB7: 0 | EC7: 0 | ED7: 0 | EE7: 1 | EF7: 0 | EG7: 429 | EH7: 266 | EI7: 111 | EJ7: 48 | EK7: 0 | EL7: 0 | EM7: 4 | EN7: 35 | EO7: 39.9 | EP7: 17 | EQ7: 22.9 | ER7: 150.5 | ES7: 134.4 | ET7: 16.1 | EU7: 3 | EV7: 1 | EW7: 0 | EX7: 0 | EY7: 0 | EZ7: 0 | FA7: 0 | FB7: 106.2141434 | FC7: 102.9784233 | FD7: 114.1018778 | FE7: 116.8876386 | FF7: 105.8865789 | FG7: 107.4 | FH7: 114.6449619 | FI7: 120.009085 | FJ7: 116.1403921 | FK7: 117.9 | FL7: 120.1898051 | FM7: 133.0291778 | FN7: 107.4977358 | FO7: 103.9562206 | FP7: 108.1425066 | FR7: 138.9668223 | FS7: 127.1535903 | FT7: 103.7729512 | FU7: 99.63757629 | FV7: 103.4267748 | FW7: 129.3 | FX7: 106.0298431 | FY7: 98.47134745 | FZ7: 93.4339235 | GA7: 97.28800022 | GB7: 121.9874783 | GD7: 143.5605865 | GE7: 110.1 | GF7: 94.68382776 | GG7: 97.8073207 | GH7: 111.8210007 | GI7: 125.7446211 | GJ7: 175.8 | GL7: 2.4 | GM7: 60.2 | GN7: 57.8 | GO7: 0 | GP7: 57.2 | GQ7: 57.2 | GR7: 4.9 | GS7: 37 | GT7: 32.1 | GU7: 4.9 | GV7: 37 | GW7: 0 | GX7: 0 | GY7: 0 | GZ7: 100 | HB7: 12 | HC7: 3 | HD7: 9 | HE7: 42 | HF7: 42 | HG7: 0 | HH7: 11 | HI7: 5 | HJ7: 6 | HK7: 26.2 | HL7: 10.9 | HM7: 15.3 | HO7: 22 | HQ7: 0 | HR7: 0 | HS7: 0 | HT7: 0 | HU7: 0 | HV7: 0 | HW7: 0 | HX7: 0 | HY7: 0 | HZ7: 0 | IA7: 0 | IB7: 0 | IC7: 0 | ID7: 0 | IE7: 0 | IF7: 0 | IG7: 0 | IH7: 2 | II7: 0 | IJ7: 0 | IK7: 0 | IL7: 0 | IM7: 0 | IN7: 0 | IO7: 0 | IP7: 0 | IQ7: 0 | IR7: 0 | IS7: 0 | IT7: 0 | IU7: 0 | IV7: 0 | IW7: 0 | IX7: 0 | IY7: 0 | IZ7: 1 | JA7: 0 | JB7: 0 | JC7: 0 | JD7: 0 | JE7: 0 | JF7: 0 | JG7: 0 | JH7: 0 | JI7: 0 | JJ7: 0 | JK7: 0 | JL7: 0 | JM7: 0 | JN7: 1 | JO7: 0 | JP7: 0 | JQ7: 0 | JR7: 0 | JS7: 0 | JT7: 0 | JV7: 0 | JW7: 1 | JX7: 3 | JY7: 16 | JZ7: 0 | KA7: 0 | KC7: 0 | KD7: 0 | KE7: 1 | KF7: 80 | KG7: 6 | KH7: 319 | KI7: 0 | KJ7: 0 | KK7: 1 | KL7: 20 | KM7: 1 | KN7: 20 | KO7: 0 | KP7: 0 | KQ7: 7 | KR7: 90 | KS7: 0 | KT7: 0 | KU7: 0 | KV7: 0 | KX7: 4 | KZ7: 82 | LA7: 247 | LC7: 29.2 | LD7: 9.9 | LE7: 421.85 | LF7: 39.68 | LH7: 21139 | LI7: 14.85158253 | LJ7: 1423.35 | LK7: 21139 | LL7: 18697 | LM7: 16437 | LN7: 14315 | LO7: 12386 | LP7: 10612 | LQ7: 1764 | LR7: 1329 | LS7: 962 | LT7: 766 | LU7: 651 | LV7: 540 | LW7: 10567 | LX7: 9121 | LY7: 7916 | LZ7: 6695 | MA7: 5419 | MB7: 4381 | MC7: 8808 | MD7: 8247 | ME7: 7559 | MF7: 6854 | MG7: 6316 | MH7: 5691 | MI7: 3994 | MJ7: 3247 | MK7: 2605 | ML7: 2306 | MM7: 2240 | MN7: 2075 | MO7: 3071 | MP7: 3147 | MQ7: 3133 | MR7: 2576 | MS7: 2094 | MT7: 1870 | MU7: 1743 | MV7: 1853 | MW7: 1821 | MX7: 1972 | MY7: 1982 | MZ7: 1746 | NA7: 檜山郡江差町、檜山郡上ノ国町、檜山郡厚沢部町、爾志郡乙部町、奥尻郡奥尻町
A8: 3 | B8: 北渡島檜山 | C8: =IF(OR($LH8>=1000000,$LI8>=2000),"大都市型",IF(OR($LH8>=200000,AND($LH8>=100000,$LI8>=200)),"地方都市型","過疎地域型")) -> 過疎地域型 | D8: 二海郡八雲町,山越郡長万部町,久遠郡せたな町,瀬棚郡今金町 | F8: 北海道 | G8: 北海道 | H8: 0103 | I8: 長万部（北海道） | J8: キタオシマヒヤマ | K8: 八雲町、長万部町及び周辺部 | L8: 1.433194168 | M8: 2.451652466 | N8: 0.146338289 | O8: 0.2109230328 | P8: 0.863805867 | Q8: 1.129400411 | R8: 0.20449979 | S8: 0.1714782227 | T8: 0.2646842596 | U8: 190.491267 | V8: 1327.370587 | X8: 94.5 | Y8: 344.6 | Z8: 40 | AB8: 0 | AC8: 0 | AD8: 0 | AE8: 0 | AF8: 0 | AG8: 0 | AH8: 0 | AI8: 0 | AK8: 0 | AL8: 0 | AM8: 1 | AN8: 4 | AO8: 0 | AQ8: 697 | AR8: 0 | AS8: 108 | AT8: 375 | AU8: 214 | AV8: 0 | AX8: 464 | AY8: 18 | AZ8: 103 | BA8: 128 | BB8: 215 | BC8: 530 | BD8: 18 | BE8: 103 | BF8: 128 | BG8: 281 | BH8: 0 | BM8: 0 | BT8: 596 | BU8: 54 | BV8: 182 | BW8: 195 | BX8: 165 | BY8: 659 | BZ8: 54 | CA8: 182 | CB8: 195 | CC8: 228 | CD8: 0 | CI8: 0 | CP8: 18 | CQ8: 737 | CR8: 607.7621604 | CS8: 632.9906379 | CT8: 561.7812257 | CV8: 57.42 | CW8: 527.72 | CY8: 462709.9267 | CZ8: 245656.7846 | DA8: 194504.7869 | DB8: 22548.35519 | DC8: 1.153174379 | DD8: 1.575416676 | DE8: 0.8947255969 | DF8: 0.8073995277 | DG8: 0.2236155171 | DH8: -0.05703604303 | DI8: -0.01340509487 | DJ8: 266146.0111 | DK8: 3210097.533 | DL8: 13146 | DU8: 6 | DV8: 0 | DW8: 0 | DX8: 0 | DY8: 0 | DZ8: 215 | EA8: 0 | EB8: 0 | EC8: 0 | ED8: 0 | EE8: 1 | EF8: 0 | EG8: 730 | EH8: 442 | EI8: 184 | EJ8: 100 | EK8: 0 | EL8: 35 | EM8: 4 | EN8: 73 | EO8: 84.5 | EP8: 36 | EQ8: 48.5 | ER8: 318.7 | ES8: 254.2 | ET8: 64.5 | EU8: 27 | EV8: 12 | EW8: 1 | EX8: 278 | EY8: 108 | EZ8: 108 | FA8: 0 | FB8: 101.6092973 | FC8: 97.60063803 | FD8: 114.8726041 | FE8: 113.3574047 | FF8: 111.8825684 | FG8: 107.7165333 | FH8: 115.1117413 | FI8: 120.2603151 | FJ8: 117.9049113 | FK8: 109.4381373 | FL8: 121.9678793 | FM8: 126.0616194 | FN8: 92.03124741 | FO8: 90.35019061 | FP8: 85.79377256 | FQ8: 98.20406016 | FR8: 111.723591 | FS8: 100.7622783 | FT8: 105.6950877 | FU8: 107.3010626 | FV8: 103.967253 | FW8: 109.2288665 | FX8: 105.2445703 | FY8: 108.0534569 | FZ8: 103.4625077 | GA8: 105.0019386 | GB8: 98.6 | GD8: 149.139841 | GE8: 136.3710525 | GF8: 71.02859584 | GG8: 73.59993779 | GH8: 100.8621938 | GI8: 99.1957909 | GJ8: 124.6416158 | GK8: 122.7 | GL8: 10.1 | GM8: 35.9 | GN8: 25.8 | GO8: 6.2 | GP8: 43.9 | GQ8: 37.7 | GR8: 14.8 | GS8: 10.4 | GT8: -4.4 | GU8: 14.8 | GV8: 10.4 | GW8: 0 | GX8: 0 | GY8: 13.3 | GZ8: 39.3 | HB8: 16 | HC8: 0 | HD8: 16 | HE8: 0 | HF8: 0 | HG8: 0 | HH8: 10 | HI8: 6 | HJ8: 4 | HK8: 25.9 | HL8: 12.4 | HM8: 13.5 | HO8: 51 | HQ8: 2 | HR8: 0 | HS8: 1 | HT8: 1 | HU8: 1 | HV8: 0 | HW8: 0 | HX8: 0 | HY8: 0 | HZ8: 0 | IA8: 0 | IB8: 0 | IC8: 1 | ID8: 0 | IE8: 0 | IF8: 0 | IG8: 1 | IH8: 6 | II8: 1 | IJ8: 1 | IK8: 0 | IL8: 0 | IM8: 2 | IN8: 0 | IO8: 0 | IP8: 4 | IQ8: 0 | IR8: 0 | IS8: 1 | IT8: 0 | IU8: 1 | IV8: 1 | IW8: 0 | IX8: 0 | IY8: 0 | IZ8: 0 | JA8: 0 | JB8: 0 | JC8: 0 | JD8: 0 | JE8: 1 | JF8: 0 | JG8: 0 | JH8: 0 | JI8: 0 | JJ8: 0 | JK8: 0 | JL8: 0 | JM8: 0 | JN8: 0 | JO8: 0 | JP8: 0 | JQ8: 0 | JR8: 0 | JS8: 0 | JT8: 0 | JV8: 0 | JW8: 1 | JX8: 7 | JY8: 446 | JZ8: 0 | KA8: 0 | KC8: 0 | KD8: 0 | KE8: 2 | KF8: 170 | KG8: 7 | KH8: 374 | KI8: 0 | KJ8: 0 | KK8: 2 | KL8: 58 | KM8: 0 | KN8: 0 | KO8: 0 | KP8: 0 | KQ8: 7 | KR8: 135 | KS8: 1 | KT8: 12 | KU8: 2 | KV8: 33 | KX8: 3 | KZ8: 52 | LA8: 127 | LC8: 49.92 | LD8: 7.5 | LE8: 502.54 | LF8: 25.18 | LH8: 33405 | LI8: 13.50368062 | LJ8: 2473.77 | LK8: 33405 | LL8: 30219 | LM8: 27163 | LN8: 24235 | LO8: 21456 | LP8: 18832 | LQ8: 3075 | LR8: 2433 | LS8: 1905 | LT8: 1563 | LU8: 1339 | LV8: 1149 | LW8: 17065 | LX8: 15279 | LY8: 13550 | LZ8: 11861 | MA8: 9859 | MB8: 8161 | MC8: 13265 | MD8: 12507 | ME8: 11708 | MF8: 10811 | MG8: 10258 | MH8: 9522 | MI8: 6121 | MJ8: 5160 | MK8: 4191 | ML8: 3728 | MM8: 3748 | MN8: 3682 | MO8: 4311 | MP8: 4626 | MQ8: 4839 | MR8: 4097 | MS8: 3375 | MT8: 3028 | MU8: 2833 | MV8: 2721 | MW8: 2678 | MX8: 2986 | MY8: 3135 | MZ8: 2812 | NA8: 二海郡八雲町、山越郡長万部町、瀬棚郡今金町、久遠郡せたな町
A9: 4 | B9: 札幌 | C9: 大都市型 | D9: 札幌市中央区,札幌市手稲区,江別市,札幌市清田区,札幌市豊平区,札幌市南区,札幌市白石区,札幌市西区,石狩郡新篠津村,札幌市北区,北広島市,千歳市,札幌市厚別区,恵庭市,石狩市,石狩郡当別町,札幌市東区 | F9: 北海道 | G9: 北海道 | H9: 0104 | I9: 札幌（北海道） | J9: サッポロ | K9: 札幌市、江別市及び周辺部 | L9: 1.363171943 | M9: 1.62963899 | N9: 0.03913978462 | O9: -0.6514466471 | P9: 1.086994106 | Q9: 1.345449737 | R9: 0.08129225245 | S9: -0.365211552 | T9: -0.5789984902 | U9: 289.6569747 | V9: 1101.925079 | X9: 8532 | Y9: 29453.9 | Z9: 4436.3 | AB9: 114 | AC9: 116 | AD9: 109 | AE9: 107 | AF9: 50 | AG9: 55 | AH9: 54 | AI9: 0 | AK9: 0 | AL9: 1 | AM9: 3 | AN9: 8 | AO9: 31 | AQ9: 33854 | AR9: 2914 | AS9: 15548 | AT9: 3348 | AU9: 11413 | AV9: 631 | AX9: 35488 | AY9: 3913 | AZ9: 10951 | BA9: 9792 | BB9: 10832 | BC9: 37399 | BD9: 3913 | BE9: 10951 | BF9: 9792 | BG9: 12743 | BH9: 0 | BM9: 0 | BT9: 32250 | BU9: 3422 | BV9: 9780 | BW9: 8863 | BX9: 10185 | BY9: 34064 | BZ9: 3422 | CA9: 9780 | CB9: 8863 | CC9: 11999 | CD9: 0 | CI9: 0 | CP9: 633 | CQ9: 27916 | CR9: 23555.66665 | CS9: 35004.02419 | CT9: 40485.52129 | CV9: 3529.33 | CW9: 26529.17 | CY9: 426758.6051 | CZ9: 180121.7014 | DA9: 216571.4376 | DB9: 30065.46611 | DC9: 1.057867333 | DD9: 1.148636231 | DE9: 0.9911599589 | DF9: 1.070038174 | DG9: 0.05777728555 | DH9: -0.004788071569 | DI9: 0.004878119167 | DJ9: 244450.2928 | DK9: 124338847.1 | DL9: 547548 | DU9: 228 | DV9: 44 | DW9: 2 | DX9: 1 | DY9: 41 | DZ9: 15799 | EA9: 4 | EB9: 5 | EC9: 8 | ED9: 8 | EE9: 7 | EF9: 1 | EG9: 40728 | EH9: 24395 | EI9: 7957 | EJ9: 8301 | EK9: 67 | EL9: 2072 | EM9: 8 | EN9: 1359 | EO9: 5836.9 | EP9: 4287 | EQ9: 1549.9 | ER9: 24428 | ES9: 22862.7 | ET9: 1565.3 | EU9: 2339.5 | EV9: 1539.5 | EW9: 557.3 | EX9: 83499 | EY9: 14244 | EZ9: 8064 | FA9: 6180 | FB9: 98.89067028 | FC9: 97.35978047 | FD9: 108.7649756 | FE9: 112.5421666 | FF9: 93.75264642 | FG9: 96.79310871 | FH9: 102.9459056 | FI9: 110.4657084 | FJ9: 104.518627 | FK9: 98.53263181 | FL9: 116.817375 | FM9: 135.0904125 | FN9: 81.95892044 | FO9: 89.19760786 | FP9: 63.49024319 | FQ9: 70.4983824 | FR9: 99.98649146 | FS9: 103.7550129 | FT9: 93.75069699 | FU9: 88.23008901 | FV9: 90.45523938 | FW9: 87.41667902 | FX9: 94.47755074 | FY9: 87.75228049 | FZ9: 100.2686541 | GA9: 96.6622668 | GB9: 96.10352585 | GC9: 102.9100195 | GD9: 117.103776 | GE9: 121.3961135 | GF9: 67.72874088 | GG9: 68.79548412 | GH9: 83.50934364 | GI9: 85.88941619 | GJ9: 98.51531221 | GK9: 107.7279382 | GL9: 9.9 | GM9: 1.5 | GN9: -8.4 | GO9: 11.7 | GP9: 1.2 | GQ9: -10.5 | GR9: 8.7 | GS9: 0.7 | GT9: -8 | GU9: 8.8 | GV9: 0.7 | GW9: 7.5 | GX9: 0 | GY9: 6.7 | GZ9: 3 | HB9: 1671 | HC9: 157 | HD9: 1514 | HE9: 2106 | HF9: 2049 | HG9: 57 | HH9: 2695.1 | HI9: 1919 | HJ9: 776.1 | HK9: 5025.9 | HL9: 4059.9 | HM9: 966 | HO9: 6254 | HQ9: 584 | HR9: 141 | HS9: 300 | HT9: 589 | HU9: 74 | HV9: 147 | HW9: 104 | HX9: 105 | HY9: 49 | HZ9: 115 | IA9: 157 | IB9: 64 | IC9: 92 | ID9: 28 | IE9: 263 | IF9: 12 | IG9: 272 | IH9: 478 | II9: 36 | IJ9: 67 | IK9: 44 | IL9: 11 | IM9: 195 | IN9: 157 | IO9: 205 | IP9: 416 | IQ9: 60 | IR9: 202 | IS9: 163 | IT9: 13 | IU9: 215 | IV9: 55 | IW9: 123 | IX9: 288 | IY9: 43 | IZ9: 93 | JA9: 29 | JB9: 78 | JC9: 80 | JD9: 30 | JE9: 395 | JF9: 32 | JG9: 27 | JH9: 3 | JI9: 58 | JJ9: 25 | JK9: 41 | JL9: 25 | JM9: 40 | JN9: 10 | JO9: 27 | JP9: 47 | JQ9: 28 | JR9: 32 | JS9: 18 | JT9: 10 | JV9: 209 | JW9: 39 | JX9: 250 | JY9: 44776 | JZ9: 99 | KA9: 304 | KC9: 0 | KD9: 0 | KE9: 59 | KF9: 5419 | KG9: 118 | KH9: 8772 | KI9: 14 | KJ9: 922 | KK9: 12 | KL9: 740 | KM9: 80 | KN9: 5774 | KO9: 8 | KP9: 415 | KQ9: 342 | KR9: 5874 | KS9: 312 | KT9: 15808 | KU9: 312 | KV9: 15582 | KX9: 312 | KZ9: 19713 | LA9: 19874 | LC9: 1756.12 | LD9: 1773.21 | LE9: 21974.92 | LF9: 4554.25 | LH9: 2396732 | LI9: 677.0123384 | LJ9: 3540.16 | LK9: 2396732 | LL9: 2384597 | LM9: 2352076 | LN9: 2304753 | LO9: 2240953 | LP9: 2164420 | LQ9: 265212 | LR9: 246104 | LS9: 225309 | LT9: 212096 | LU9: 205766 | LV9: 198888 | LW9: 1457365 | LX9: 1429060 | LY9: 1382765 | LZ9: 1316698 | MA9: 1216625 | MB9: 1134722 | MC9: 674155 | MD9: 709433 | ME9: 744002 | MF9: 775959 | MG9: 818562 | MH9: 830810 | MI9: 344518 | MJ9: 306107 | MK9: 291782 | ML9: 308127 | MM9: 339568 | MN9: 340172 | MO9: 217586 | MP9: 272163 | MQ9: 297499 | MR9: 265786 | MS9: 256909 | MT9: 273837 | MU9: 112051 | MV9: 131163 | MW9: 154721 | MX9: 202046 | MY9: 222085 | MZ9: 216801 | NA9: 札幌市中央区、札幌市北区、札幌市東区、札幌市白石区、札幌市豊平区、札幌市南区、札幌市西区、札幌市厚別区、札幌市手稲区、札幌市清田区、江別市、千歳市、恵庭市、北広島市、石狩市、石狩郡当別町、石狩郡新篠津村 | NB9: NTT東日本札幌病院（標準群）、えにわ病院（標準群）、斗南病院（標準群）、手稲渓仁会病院（標準群・救命）、KKR札幌医療センター（標準群）、市立札幌病院（標準群・救命）、札幌東徳洲会病院（特定群）、北海道大学病院（大学本院群・救命）、札幌医科大学附属病院（大学本院群・救命） | NC9: 札幌厚生病院（標準群）、JR札幌病院（標準群）、NHO北海道医療センター（標準群・救命）、NHO北海道がんセンター（標準群）、恵佑会札幌病院（標準群）、札幌徳洲会病院（標準群）、坂泌尿器科病院（標準群）、札幌孝仁会記念病院（標準群）、北海道整形外科記念病院（標準群）、JCHO北海道病院（標準群）、勤医協中央病院（標準群）、天使病院（標準群） | ND9: 中村記念病院（標準群）、市立千歳市民病院（標準群）、札幌禎心会病院（標準群）、札幌真駒内病院（標準群）、イムス札幌消化器中央総合病院（標準群）、JCHO札幌北辰病院（標準群）、札幌整形循環器病院（標準群）、札幌心臓血管クリニック（標準群）
A10: 5 | B10: 後志 | C10: 過疎地域型 | D10: 虻田郡留寿都村,虻田郡真狩村,小樽市,磯谷郡蘭越町,寿都郡寿都町,虻田郡喜茂別町,虻田郡倶知安町,積丹郡積丹町,虻田郡ニセコ町,島牧郡島牧村,虻田郡京極町,古宇郡神恵内村,古平郡古平町,余市郡仁木町,余市郡余市町,余市郡赤井川村,寿都郡黒松内町,岩内郡共和町,岩内郡岩内町,古宇郡泊村 | F10: 北海道 | G10: 北海道 | H10: 0105 | I10: 小樽（北海道） | J10: シリベシ | K10: 小樽市及び周辺部 | L10: 0.8838350413 | M10: 1.889707168 | N10: 0.1909439532 | O10: 0.2505127598 | P10: 0.7946602767 | Q10: 1.302362697 | R10: 0.2353823837 | S10: 0.1444724335 | T10: 0.2916792979 | U10: 216.1921832 | V10: 1104.627198 | X10: 517.6 | Y10: 2365.9 | Z10: 337.2 | AB10: 0 | AC10: 0 | AD10: 14 | AE10: 6 | AF10: 0 | AG10: 0 | AH10: 0 | AI10: 0 | AK10: 0 | AL10: 0 | AM10: 2 | AN10: 4 | AO10: 4 | AQ10: 2639 | AR10: 102 | AS10: 1222 | AT10: 436 | AU10: 879 | AV10: 0 | AX10: 2120 | AY10: 164 | AZ10: 638 | BA10: 646 | BB10: 672 | BC10: 2384 | BD10: 164 | BE10: 638 | BF10: 646 | BG10: 936 | BH10: 0 | BM10: 0 | BT10: 2898 | BU10: 277 | BV10: 895 | BW10: 852 | BX10: 874 | BY10: 3288 | BZ10: 277 | CA10: 895 | CB10: 852 | CC10: 1264 | CD10: 0 | CI10: 0 | CP10: 104 | CQ10: 4156 | CR10: 3219.804782 | CS10: 3602.626582 | CT10: 2982.738476 | CV10: 359.65 | CW10: 3506.05 | CY10: 475190.4505 | CZ10: 224905.2798 | DA10: 221097.7746 | DB10: 29187.39611 | DC10: 1.140977534 | DD10: 1.384264737 | DE10: 0.9811050881 | DF10: 1.018827845 | DG10: 0.1499064832 | DH10: -0.01022405325 | DI10: 0.001295103693 | DJ10: 282558.01 | DK10: 20471304.38 | DL10: 74955 | DU10: 21 | DV10: 6 | DW10: 0 | DX10: 0 | DY10: 6 | DZ10: 1070 | EA10: 0 | EB10: 0 | EC10: 1 | ED10: 1 | EE10: 1 | EF10: 1 | EG10: 3719 | EH10: 1766 | EI10: 719 | EJ10: 1226 | EK10: 4 | EL10: 174 | EM10: 4 | EN10: 365 | EO10: 331.7 | EP10: 244 | EQ10: 87.7 | ER10: 1904.2 | ES10: 1644.1 | ET10: 260.1 | EU10: 180.2 | EV10: 118.4 | EW10: 38.6 | EX10: 3843 | EY10: 432 | EZ10: 192 | FA10: 240 | FB10: 107.6973424 | FC10: 104.6720583 | FD10: 118.32468 | FE10: 116.9719266 | FF10: 107.8982047 | FG10: 112.6702519 | FH10: 106.0571202 | FI10: 115.3746484 | FJ10: 110.6580993 | FK10: 114.4061802 | FL10: 132.8679854 | FM10: 137.8350073 | FN10: 109.63792 | FO10: 111.2882759 | FP10: 85.40686886 | FQ10: 77.44543244 | FR10: 143.3783025 | FS10: 136.1501256 | FT10: 101.8515871 | FU10: 97.4107902 | FV10: 93.09438278 | FW10: 90.57539856 | FX10: 111.0010553 | FY10: 102.9866238 | FZ10: 98.03223393 | GA10: 84.23511483 | GB10: 100.7246495 | GC10: 109.9792455 | GD10: 145.6259338 | GE10: 157.6044497 | GF10: 66.31870092 | GG10: 73.95131169 | GH10: 99.21138188 | GI10: 89.44102603 | GJ10: 91.39945778 | GK10: 102.9 | GL10: 6.2 | GM10: 26.3 | GN10: 20.1 | GO10: 6 | GP10: 30.1 | GQ10: 24.1 | GR10: 1.9 | GS10: 30.3 | GT10: 28.4 | GU10: 1.9 | GV10: 29.6 | GW10: 0 | GX10: 100 | GY10: 9.4 | GZ10: 16.4 | HB10: 147 | HC10: 21 | HD10: 126 | HE10: 321 | HF10: 283 | HG10: 38 | HH10: 185.9 | HI10: 141 | HJ10: 44.9 | HK10: 461.7 | HL10: 282.1 | HM10: 179.6 | HO10: 450 | HQ10: 21 | HR10: 3 | HS10: 14 | HT10: 29 | HU10: 2 | HV10: 5 | HW10: 9 | HX10: 2 | HY10: 2 | HZ10: 1 | IA10: 2 | IB10: 2 | IC10: 2 | ID10: 1 | IE10: 12 | IF10: 1 | IG10: 19 | IH10: 35 | II10: 2 | IJ10: 5 | IK10: 0 | IL10: 0 | IM10: 7 | IN10: 10 | IO10: 15 | IP10: 19 | IQ10: 3 | IR10: 8 | IS10: 7 | IT10: 0 | IU10: 8 | IV10: 2 | IW10: 4 | IX10: 12 | IY10: 4 | IZ10: 3 | JA10: 0 | JB10: 6 | JC10: 3 | JD10: 0 | JE10: 22 | JF10: 0 | JG10: 4 | JH10: 0 | JI10: 3 | JJ10: 1 | JK10: 2 | JL10: 2 | JM10: 2 | JN10: 0 | JO10: 1 | JP10: 0 | JQ10: 1 | JR10: 1 | JS10: 0 | JT10: 0 | JV10: 22 | JW10: 2 | JX10: 35 | JY10: 1630 | JZ10: 12 | KA10: 25 | KC10: 0 | KD10: 0 | KE10: 11 | KF10: 1016 | KG10: 23 | KH10: 1437 | KI10: 4 | KJ10: 142 | KK10: 0 | KL10: 0 | KM10: 4 | KN10: 253 | KO10: 5 | KP10: 274 | KQ10: 57 | KR10: 1034 | KS10: 13 | KT10: 424 | KU10: 18 | KV10: 678 | KX10: 27 | KZ10: 1256 | LA10: 3687 | LC10: 269.77 | LD10: 89.88 | LE10: 3150.92 | LF10: 355.13 | LH10: 198888 | LI10: 46.19007585 | LJ10: 4305.86 | LK10: 198888 | LL10: 181807 | LM10: 165556 | LN10: 149947 | LO10: 135072 | LP10: 121130 | LQ10: 18330 | LR10: 15167 | LS10: 12585 | LT10: 10973 | LU10: 9899 | LV10: 8894 | LW10: 103544 | LX10: 94160 | LY10: 84755 | LZ10: 74753 | MA10: 63573 | MB10: 54788 | MC10: 77014 | MD10: 72480 | ME10: 68216 | MF10: 64221 | MG10: 61600 | MH10: 57448 | MI10: 36034 | MJ10: 28304 | MK10: 23986 | ML10: 23534 | MM10: 24191 | MN10: 22643 | MO10: 26398 | MP10: 28882 | MQ10: 28339 | MR10: 22422 | MS10: 19310 | MT10: 19102 | MU10: 14582 | MV10: 15294 | MW10: 15891 | MX10: 18265 | MY10: 18099 | MZ10: 15703 | NA10: 小樽市、島牧郡島牧村、寿都郡寿都町、寿都郡黒松内町、磯谷郡蘭越町、虻田郡喜茂別町、虻田郡京極町、虻田郡倶知安町、虻田郡ニセコ町、虻田郡真狩村、虻田郡留寿都村、岩内郡共和町、岩内郡岩内町、古宇郡泊村、古宇郡神恵内村、積丹郡積丹町、古平郡古平町、余市郡仁木町、余市郡余市町、余市郡赤井川村 | NC10: 小樽市立病院（標準群） | ND10: 北海道済生会小樽病院（標準群）
A11: 6 | B11: 南空知 | C11: 過疎地域型 | D11: 美唄市,夕張郡長沼町,三笠市,夕張市,岩見沢市,空知郡南幌町,夕張郡栗山町,樺戸郡月形町,夕張郡由仁町 | F11: 北海道 | G11: 北海道 | H11: 0106 | I11: 夕張（北海道） | J11: ミナミソラチ | K11: 夕張市、岩見沢市及び周辺部 | L11: 0.7965185543 | M11: 1.301060429 | N11: 0.1687990854 | O11: 0.1587479767 | P11: 0.6644192804 | Q11: 1.069363907 | R11: 0.2007496215 | S11: 0.09812975868 | T11: 0.1910848675 | U11: 187.849673 | V11: 1028.835485 | X11: 331.8 | Y11: 1489.4 | Z11: 140.8 | AB11: 0 | AC11: 0 | AD11: 0 | AE11: 0 | AF11: 0 | AG11: 0 | AH11: 0 | AI11: 0 | AK11: 0 | AL11: 0 | AM11: 1 | AN11: 4 | AO11: 0 | AQ11: 1692 | AR11: 0 | AS11: 1086 | AT11: 79 | AU11: 527 | AV11: 0 | AX11: 1439 | AY11: 98 | AZ11: 474 | BA11: 541 | BB11: 326 | BC11: 1592 | BD11: 98 | BE11: 474 | BF11: 541 | BG11: 479 | BH11: 0 | BM11: 0 | BT11: 2034 | BU11: 188 | BV11: 684 | BW11: 706 | BX11: 456 | BY11: 2223 | BZ11: 188 | CA11: 684 | CB11: 706 | CC11: 645 | CD11: 0 | CI11: 0 | CP11: 89 | CQ11: 3641 | CR11: 2624.738243 | CS11: 2961.741873 | CT11: 2656.477295 | CV11: 361.635 | CW11: 2831.55 | CY11: 439766.2187 | CZ11: 185864.3043 | DA11: 225128.766 | DB11: 28773.14838 | DC11: 1.053848015 | DD11: 1.142219993 | DE11: 0.9967607447 | DF11: 1.002084175 | DG11: 0.05545784672 | DH11: -0.001753239979 | DI11: 0.0001434080053 | DJ11: 273417.663 | DK11: 14009839.53 | DL11: 57642 | DU11: 17 | DV11: 2 | DW11: 0 | DX11: 0 | DY11: 2 | DZ11: 878 | EA11: 0 | EB11: 0 | EC11: 0 | ED11: 1 | EE11: 1 | EF11: 1 | EG11: 2534 | EH11: 1256 | EI11: 500 | EJ11: 774 | EK11: 0 | EL11: 44 | EM11: 4 | EN11: 132 | EO11: 195.9 | EP11: 131 | EQ11: 64.9 | ER11: 1133.1 | ES11: 983.9 | ET11: 149.2 | EU11: 75 | EV11: 56.8 | EW11: 9 | EX11: 1840 | EY11: 216 | EZ11: 96 | FA11: 120 | FB11: 105.1284794 | FC11: 100.1433599 | FD11: 113.1932686 | FE11: 114.2584148 | FF11: 95.65785264 | FG11: 103.412478 | FH11: 108.5323143 | FI11: 113.6885344 | FJ11: 107.8144785 | FK11: 122.6659189 | FL11: 123.4207373 | FM11: 128.2528405 | FN11: 108.058712 | FO11: 101.4414546 | FP11: 114.3797212 | FQ11: 157.2853139 | FR11: 147.7087374 | FS11: 109.3467638 | FT11: 110.2781251 | FU11: 104.9999398 | FV11: 123.0146679 | FW11: 103.6581323 | FX11: 103.9110972 | FY11: 106.6262907 | FZ11: 96.93827615 | GA11: 90.39134277 | GB11: 103.65128 | GC11: 123.6579337 | GD11: 123.8721216 | GE11: 143.6646947 | GF11: 82.56334305 | GG11: 86.66331085 | GH11: 106.8068764 | GI11: 98.98195614 | GJ11: 112.0623898 | GK11: 121.8135941 | GL11: 10.1 | GM11: 30.6 | GN11: 20.5 | GO11: 14.1 | GP11: 36.6 | GQ11: 22.5 | GR11: 4.1 | GS11: 24 | GT11: 19.9 | GU11: 4.1 | GV11: 24 | GW11: 0 | GX11: 0 | GY11: 8.1 | GZ11: 24.8 | HB11: 107 | HC11: 15 | HD11: 92 | HE11: 243 | HF11: 232 | HG11: 11 | HH11: 135.9 | HI11: 97 | HJ11: 38.9 | HK11: 356.3 | HL11: 193.6 | HM11: 162.7 | HO11: 261 | HQ11: 25 | HR11: 17 | HS11: 13 | HT11: 15 | HU11: 0 | HV11: 3 | HW11: 2 | HX11: 3 | HY11: 3 | HZ11: 2 | IA11: 3 | IB11: 1 | IC11: 3 | ID11: 0 | IE11: 11 | IF11: 0 | IG11: 18 | IH11: 20 | II11: 1 | IJ11: 1 | IK11: 0 | IL11: 1 | IM11: 5 | IN11: 5 | IO11: 4 | IP11: 23 | IQ11: 1 | IR11: 9 | IS11: 6 | IT11: 0 | IU11: 2 | IV11: 2 | IW11: 0 | IX11: 4 | IY11: 1 | IZ11: 1 | JA11: 0 | JB11: 2 | JC11: 5 | JD11: 1 | JE11: 11 | JF11: 0 | JG11: 1 | JH11: 0 | JI11: 7 | JJ11: 0 | JK11: 0 | JL11: 0 | JM11: 1 | JN11: 0 | JO11: 1 | JP11: 0 | JQ11: 1 | JR11: 0 | JS11: 0 | JT11: 0 | JV11: 19 | JW11: 4 | JX11: 24 | JY11: 1474 | JZ11: 8 | KA11: 22 | KC11: 0 | KD11: 0 | KE11: 11 | KF11: 942 | KG11: 18 | KH11: 1268 | KI11: 3 | KJ11: 138 | KK11: 2 | KL11: 130 | KM11: 10 | KN11: 462 | KO11: 4 | KP11: 134 | KQ11: 41 | KR11: 567 | KS11: 13 | KT11: 417 | KU11: 17 | KV11: 551 | KX11: 24 | KZ11: 1126 | LA11: 1122 | LC11: 256.83 | LD11: 104.805 | LE11: 2640.37 | LF11: 191.18 | LH11: 152486 | LI11: 59.51253781 | LJ11: 2562.25 | LK11: 152486 | LL11: 139452 | LM11: 126573 | LN11: 114129 | LO11: 102289 | LP11: 91123 | LQ11: 13876 | LR11: 11690 | LS11: 9539 | LT11: 8069 | LU11: 7176 | LV11: 6384 | LW11: 78720 | LX11: 70265 | LY11: 62316 | LZ11: 54746 | MA11: 46072 | MB11: 39285 | MC11: 59890 | MD11: 57497 | ME11: 54718 | MF11: 51314 | MG11: 49041 | MH11: 45454 | MI11: 27410 | MJ11: 22752 | MK11: 19665 | ML11: 18053 | MM11: 17814 | MN11: 16698 | MO11: 20580 | MP11: 21954 | MQ11: 22064 | MR11: 18531 | MS11: 16263 | MT11: 15066 | MU11: 11900 | MV11: 12791 | MW11: 12989 | MX11: 14730 | MY11: 14964 | MZ11: 13690 | NA11: 夕張市、岩見沢市、美唄市、三笠市、空知郡南幌町、夕張郡由仁町、夕張郡長沼町、夕張郡栗山町、樺戸郡月形町 | ND11: 岩見沢市立総合病院（標準群）
A12: 7 | B12: 中空知 | C12: 過疎地域型 | D12: 砂川市,空知郡奈井江町,滝川市,芦別市,歌志内市,樺戸郡新十津川町,雨竜郡雨竜町,空知郡上砂川町,赤平市,樺戸郡浦臼町 | F12: 北海道 | G12: 北海道 | H12: 0107 | I12: 滝川（北海道） | J12: ナカソラチ | K12: 滝川市、赤平市及び周辺部 | L12: 1.475958232 | M12: 2.766176683 | N12: 0.2456760536 | O12: 0.3163526108 | P12: 0.9229246486 | Q12: 1.784036669 | R12: 0.2374746226 | S12: 0.1616778251 | T12: 0.3089196149 | U12: 253.5846566 | V12: 1513.715208 | X12: 301.6 | Y12: 1626 | Z12: 125.6 | AB12: 20 | AC12: 6 | AD12: 45 | AE12: 8 | AF12: 0 | AG12: 0 | AH12: 0 | AI12: 0 | AK12: 0 | AL12: 0 | AM12: 1 | AN12: 4 | AO12: 0 | AQ12: 1795 | AR12: 34 | AS12: 669 | AT12: 168 | AU12: 924 | AV12: 0 | AX12: 1311 | AY12: 124 | AZ12: 424 | BA12: 397 | BB12: 366 | BC12: 1546 | BD12: 124 | BE12: 424 | BF12: 397 | BG12: 601 | BH12: 0 | BM12: 0 | BT12: 1415 | BU12: 139 | BV12: 460 | BW12: 433 | BX12: 383 | BY12: 1658 | BZ12: 139 | CA12: 460 | CB12: 433 | CC12: 626 | CD12: 0 | CI12: 0 | CP12: 54 | CQ12: 2268 | CR12: 1810.997771 | CS12: 1991.015165 | CT12: 1641.315915 | CV12: 178.8 | CW12: 1521.18 | CY12: 527973.9199 | CZ12: 264445.9736 | DA12: 233355.5198 | DB12: 30172.42649 | DC12: 1.213023814 | DD12: 1.552062225 | DE12: 0.9916681655 | DF12: 1.020903799 | DG12: 0.2161089324 | DH12: -0.004504527015 | DI12: 0.001419408827 | DJ12: 235125.1687 | DK12: 9364437.673 | DL12: 39864 | DU12: 16 | DV12: 2 | DW12: 0 | DX12: 0 | DY12: 2 | DZ12: 632 | EA12: 0 | EB12: 1 | EC12: 0 | ED12: 1 | EE12: 2 | EF12: 0 | EG12: 3004 | EH12: 948 | EI12: 821 | EJ12: 1225 | EK12: 6 | EL12: 60 | EM12: 4 | EN12: 93 | EO12: 242 | EP12: 197 | EQ12: 45 | ER12: 1479.3 | ES12: 1246 | ET12: 233.3 | EU12: 63.6 | EV12: 52 | EW12: 10 | EX12: 1849 | EY12: 276 | EZ12: 276 | FA12: 0 | FB12: 109.1425961 | FC12: 105.2060555 | FD12: 117.5861155 | FE12: 119.548352 | FF12: 102.9592951 | FG12: 110.4958457 | FH12: 127.3861463 | FI12: 130.4987399 | FJ12: 107.9847915 | FK12: 114.9581036 | FL12: 127.8276845 | FM12: 141.0596099 | FN12: 115.1825454 | FO12: 118.5940326 | FP12: 145.5679873 | FQ12: 184.3160715 | FR12: 127.1062363 | FS12: 118.8382764 | FT12: 107.9010609 | FU12: 104.7670948 | FV12: 108.5846785 | FW12: 114.8668063 | FX12: 108.3775848 | FY12: 105.6995251 | FZ12: 98.64898098 | GA12: 110.756132 | GB12: 113.4016927 | GC12: 129.559204 | GD12: 133.5740219 | GE12: 130.5044655 | GF12: 46.85201066 | GG12: 59.71879454 | GH12: 100.2307052 | GI12: 84.73613872 | GJ12: 108.1888351 | GK12: 115.8 | GL12: 11.6 | GM12: 12.3 | GN12: 0.7 | GO12: 9.7 | GP12: 24.3 | GQ12: 14.6 | GR12: 6.7 | GS12: 8.9 | GT12: 2.2 | GU12: 6.7 | GV12: 8.3 | GW12: 0 | GX12: 100 | GY12: 16.1 | GZ12: 4.9 | HB12: 53 | HC12: 6 | HD12: 47 | HE12: 77 | HF12: 77 | HG12: 0 | HH12: 59.6 | HI12: 37 | HJ12: 22.6 | HK12: 146.7 | HL12: 79.6 | HM12: 67.1 | HO12: 237 | HQ12: 16 | HR12: 3 | HS12: 11 | HT12: 14 | HU12: 1 | HV12: 6 | HW12: 4 | HX12: 5 | HY12: 2 | HZ12: 2 | IA12: 4 | IB12: 1 | IC12: 1 | ID12: 1 | IE12: 8 | IF12: 0 | IG12: 12 | IH12: 8 | II12: 1 | IJ12: 3 | IK12: 2 | IL12: 0 | IM12: 2 | IN12: 6 | IO12: 7 | IP12: 10 | IQ12: 2 | IR12: 5 | IS12: 5 | IT12: 0 | IU12: 5 | IV12: 1 | IW12: 2 | IX12: 8 | IY12: 1 | IZ12: 3 | JA12: 0 | JB12: 1 | JC12: 0 | JD12: 1 | JE12: 8 | JF12: 1 | JG12: 1 | JH12: 0 | JI12: 1 | JJ12: 0 | JK12: 0 | JL12: 0 | JM12: 3 | JN12: 0 | JO12: 1 | JP12: 0 | JQ12: 1 | JR12: 1 | JS12: 1 | JT12: 0 | JV12: 5 | JW12: 0 | JX12: 16 | JY12: 452 | JZ12: 1 | KA12: 2 | KC12: 0 | KD12: 0 | KE12: 7 | KF12: 534 | KG12: 14 | KH12: 804 | KI12: 0 | KJ12: 0 | KK12: 4 | KL12: 170 | KM12: 4 | KN12: 236 | KO12: 4 | KP12: 182 | KQ12: 21 | KR12: 342 | KS12: 9 | KT12: 221 | KU12: 13 | KV12: 401 | KX12: 14 | KZ12: 433 | LA12: 594 | LC12: 140.2 | LD12: 38.6 | LE12: 1431.98 | LF12: 89.2 | LH12: 99784 | LI12: 46.15206723 | LJ12: 2162.07 | LK12: 99784 | LL12: 89725 | LM12: 81282 | LN12: 73211 | LO12: 65625 | LP12: 58587 | LQ12: 8742 | LR12: 7086 | LS12: 5832 | LT12: 4975 | LU12: 4442 | LV12: 3944 | LW12: 50071 | LX12: 44646 | LY12: 39873 | LZ12: 35376 | MA12: 30112 | MB12: 25751 | MC12: 40971 | MD12: 37993 | ME12: 35577 | MF12: 32860 | MG12: 31071 | MH12: 28892 | MI12: 18443 | MJ12: 14426 | MK12: 12137 | ML12: 11388 | MM12: 11315 | MN12: 10912 | MO12: 14627 | MP12: 14859 | MQ12: 14577 | MR12: 11709 | MS12: 10018 | MT12: 9476 | MU12: 7901 | MV12: 8708 | MW12: 8863 | MX12: 9763 | MY12: 9738 | MZ12: 8504 | NA12: 芦別市、赤平市、滝川市、砂川市、歌志内市、空知郡奈井江町、空知郡上砂川町、樺戸郡浦臼町、樺戸郡新十津川町、雨竜郡雨竜町 | NC12: 砂川市立病院（標準群・救命）
A13: 8 | B13: 北空知 | C13: 過疎地域型 | D13: 雨竜郡北竜町,深川市,雨竜郡沼田町,雨竜郡秩父別町,雨竜郡妹背牛町 | F13: 北海道 | G13: 北海道 | H13: 0108 | I13: 深川（北海道） | J13: キタソラチ | K13: 深川市及び周辺部 | L13: 1.338761633 | M13: 4.146892861 | N13: 0.2460455546 | O13: 0.3245993475 | P13: 0.8555599356 | Q13: 1.676856491 | R13: 0.2461013474 | S13: 0.1736266649 | T13: 0.3246493273 | U13: 227.0019248 | V13: 1554.184107 | X13: 83.2 | Y13: 454.8 | Z13: 31 | AB13: 0 | AC13: 0 | AD13: 0 | AE13: 0 | AF13: 0 | AG13: 0 | AH13: 0 | AI13: 0 | AK13: 0 | AL13: 0 | AM13: 1 | AN13: 4 | AO13: 0 | AQ13: 598 | AR13: 0 | AS13: 149 | AT13: 42 | AU13: 407 | AV13: 0 | AX13: 323 | AY13: 17 | AZ13: 100 | BA13: 113 | BB13: 93 | BC13: 498 | BD13: 17 | BE13: 100 | BF13: 113 | BG13: 268 | BH13: 0 | BM13: 0 | BT13: 432 | BU13: 41 | BV13: 155 | BW13: 152 | BX13: 84 | BY13: 600 | BZ13: 41 | CA13: 155 | CB13: 152 | CC13: 252 | CD13: 0 | CI13: 0 | CP13: 19 | CQ13: 766 | CR13: 606.1345167 | CS13: 664.4041614 | CT13: 542.9819409 | CV13: 62.6 | CW13: 530.84 | CY13: 470881.482 | CZ13: 216117.7435 | DA13: 224672.3754 | DB13: 30091.36307 | DC13: 1.129147686 | DD13: 1.32786535 | DE13: 0.9959813751 | DF13: 1.048875659 | DG13: 0.1279590611 | DH13: -0.002173777377 | DI13: 0.003362401827 | DJ13: 235298.018 | DK13: 2858458.329 | DL13: 12777 | DU13: 5 | DV13: 1 | DW13: 0 | DX13: 0 | DY13: 1 | DZ13: 153 | EA13: 0 | EB13: 0 | EC13: 0 | ED13: 0 | EE13: 1 | EF13: 0 | EG13: 1039 | EH13: 199 | EI13: 407 | EJ13: 429 | EK13: 0 | EL13: 0 | EM13: 4 | EN13: 42 | EO13: 61.2 | EP13: 38 | EQ13: 23.2 | ER13: 394 | ES13: 280.7 | ET13: 113.3 | EU13: 15 | EV13: 13 | EW13: 3 | EX13: 332 | EY13: 0 | EZ13: 0 | FA13: 0 | FB13: 98.38540379 | FC13: 95.04511682 | FD13: 109.0320176 | FE13: 107.2924064 | FF13: 107.1 | FG13: 106.5 | FH13: 110.3282084 | FI13: 118.149618 | FJ13: 85.6 | FK13: 91.92268245 | FL13: 128.7056401 | FM13: 111.233121 | FN13: 92.10838158 | FO13: 100.4579171 | FP13: 134.3594945 | FQ13: 149.4 | FR13: 101.9364657 | FS13: 107.8771579 | FT13: 92.18747649 | FU13: 97.59379186 | FV13: 93.8 | FW13: 114.9140363 | FX13: 91.37067764 | FY13: 91.90158313 | FZ13: 136.6955272 | GA13: 144.6748377 | GB13: 99.88700565 | GC13: 116.9 | GD13: 130 | GE13: 98 | GF13: 60.69468933 | GG13: 46.44554487 | GH13: 104.8178694 | GI13: 97.29412971 | GJ13: 120.4 | GK13: 154.6 | GL13: 17.1 | GM13: 23.3 | GN13: 6.2 | GO13: 6.1 | GP13: 44.4 | GQ13: 38.3 | GR13: 11.8 | GS13: 9.3 | GT13: -2.5 | GU13: 11.8 | GV13: 8.7 | GW13: 0 | GX13: 100 | GY13: 29 | GZ13: 22.3 | HB13: 21 | HC13: 0 | HD13: 21 | HE13: 0 | HF13: 0 | HG13: 0 | HH13: 22 | HI13: 18 | HJ13: 4 | HK13: 60.8 | HL13: 29.9 | HM13: 30.9 | HO13: 43 | HQ13: 4 | HR13: 3 | HS13: 3 | HT13: 10 | HU13: 0 | HV13: 2 | HW13: 0 | HX13: 1 | HY13: 0 | HZ13: 1 | IA13: 0 | IB13: 0 | IC13: 1 | ID13: 1 | IE13: 2 | IF13: 0 | IG13: 4 | IH13: 4 | II13: 0 | IJ13: 0 | IK13: 0 | IL13: 0 | IM13: 1 | IN13: 3 | IO13: 2 | IP13: 2 | IQ13: 0 | IR13: 2 | IS13: 1 | IT13: 0 | IU13: 0 | IV13: 0 | IW13: 1 | IX13: 1 | IY13: 0 | IZ13: 1 | JA13: 0 | JB13: 0 | JC13: 0 | JD13: 1 | JE13: 7 | JF13: 0 | JG13: 1 | JH13: 0 | JI13: 0 | JJ13: 0 | JK13: 0 | JL13: 0 | JM13: 1 | JN13: 0 | JO13: 0 | JP13: 0 | JQ13: 0 | JR13: 0 | JS13: 0 | JT13: 0 | JV13: 0 | JW13: 0 | JX13: 4 | JY13: 88 | JZ13: 0 | KA13: 0 | KC13: 0 | KD13: 0 | KE13: 1 | KF13: 80 | KG13: 5 | KH13: 390 | KI13: 1 | KJ13: 55 | KK13: 2 | KL13: 79 | KM13: 2 | KN13: 45 | KO13: 0 | KP13: 0 | KQ13: 8 | KR13: 117 | KS13: 1 | KT13: 100 | KU13: 1 | KV13: 100 | KX13: 4 | KZ13: 110 | LA13: 179 | LC13: 44.1 | LD13: 18.5 | LE13: 494.84 | LF13: 36 | LH13: 29694 | LI13: 27.8218666 | LJ13: 1067.29 | LK13: 29694 | LL13: 26397 | LM13: 23588 | LN13: 20950 | LO13: 18518 | LP13: 16298 | LQ13: 2500 | LR13: 2081 | LS13: 1667 | LT13: 1379 | LU13: 1228 | LV13: 1111 | LW13: 14366 | LX13: 12306 | LY13: 10881 | LZ13: 9390 | MA13: 7990 | MB13: 6674 | MC13: 12828 | MD13: 12010 | ME13: 11040 | MF13: 10181 | MG13: 9300 | MH13: 8513 | MI13: 5455 | MJ13: 4357 | MK13: 3672 | ML13: 3415 | MM13: 3196 | MN13: 2934 | MO13: 4578 | MP13: 4696 | MQ13: 4388 | MR13: 3556 | MS13: 3030 | MT13: 2852 | MU13: 2795 | MV13: 2957 | MW13: 2980 | MX13: 3210 | MY13: 3074 | MZ13: 2727 | NA13: 深川市、雨竜郡妹背牛町、雨竜郡秩父別町、雨竜郡北竜町、雨竜郡沼田町
A14: 9 | B14: 西胆振 | C14: 過疎地域型 | D14: 有珠郡壮瞥町,虻田郡洞爺湖町,北海道伊達市,室蘭市,虻田郡豊浦町,登別市 | F14: 北海道 | G14: 北海道 | H14: 0109 | I14: 室蘭（北海道） | J14: ニシイブリ | K14: 室蘭市、登別市及び周辺部 | L14: 1.813486774 | M14: 2.91454814 | N14: 0.120699124 | O14: 0.1174308414 | P14: 0.6985085525 | Q14: 1.321244752 | R14: 0.14341626 | S14: -0.03656158191 | T14: 0.140232415 | U14: 242.4458321 | V14: 1421.61896 | X14: 404 | Y14: 2131.3 | Z14: 408.4 | AB14: 0 | AC14: 14 | AD14: 18 | AE14: 4 | AF14: 6 | AG14: 0 | AH14: 0 | AI14: 0 | AK14: 0 | AL14: 0 | AM14: 1 | AN14: 4 | AO14: 24 | AQ14: 3056 | AR14: 42 | AS14: 1208 | AT14: 355 | AU14: 1312 | AV14: 139 | AX14: 2348 | AY14: 279 | AZ14: 800 | BA14: 615 | BB14: 654 | BC14: 2881 | BD14: 279 | BE14: 800 | BF14: 615 | BG14: 1187 | BH14: 0 | BM14: 0 | BT14: 2311 | BU14: 287 | BV14: 811 | BW14: 616 | BX14: 597 | BY14: 2841 | BZ14: 287 | CA14: 811 | CB14: 616 | CC14: 1127 | CD14: 0 | CI14: 0 | CP14: 70 | CQ14: 3216 | CR14: 2693.099279 | CS14: 3258.949614 | CT14: 2703.109287 | CV14: 303.895 | CW14: 2455.3 | CY14: 469329.973 | CZ14: 219259.0196 | DA14: 223601.3856 | DB14: 26469.56782 | DC14: 1.084864797 | DD14: 1.295967655 | DE14: 0.9555808429 | DF14: 0.89924654 | DG14: 0.1157457045 | DH14: -0.02402562505 | DI14: -0.00685528272 | DJ14: 222105.0923 | DK14: 12412724.53 | DL14: 63095 | DU14: 21 | DV14: 4 | DW14: 0 | DX14: 1 | DY14: 3 | DZ14: 1073 | EA14: 0 | EB14: 0 | EC14: 0 | ED14: 1 | EE14: 1 | EF14: 1 | EG14: 4560 | EH14: 1780 | EI14: 1288 | EJ14: 1464 | EK14: 24 | EL14: 130 | EM14: 4 | EN14: 127 | EO14: 300.1 | EP14: 231 | EQ14: 69.1 | ER14: 1860.7 | ES14: 1678.3 | ET14: 182.4 | EU14: 225.4 | EV14: 147.3 | EW14: 35.7 | EX14: 3867 | EY14: 804 | EZ14: 804 | FA14: 0 | FB14: 105.5407009 | FC14: 104.7915929 | FD14: 115.7440453 | FE14: 117.4362121 | FF14: 104.1008109 | FG14: 109.1721195 | FH14: 112.5525012 | FI14: 110.7396227 | FJ14: 108.2224884 | FK14: 98.71629124 | FL14: 130.2784077 | FM14: 141.7742797 | FN14: 109.0380013 | FO14: 109.795957 | FP14: 108.4571853 | FQ14: 121.4255614 | FR14: 113.665634 | FS14: 110.1374785 | FT14: 106.1589298 | FU14: 106.6015969 | FV14: 115.5845559 | FW14: 112.794032 | FX14: 100.4335252 | FY14: 102.7736872 | FZ14: 94.7356351 | GA14: 92.39601754 | GB14: 101.6322593 | GC14: 108.5207067 | GD14: 120.5601848 | GE14: 140.3439722 | GF14: 62.94634511 | GG14: 75.10987699 | GH14: 94.49153408 | GI14: 92.72867663 | GJ14: 95.07968179 | GK14: 92.53944196 | GL14: 9.8 | GM14: 5.4 | GN14: -4.4 | GO14: 8.2 | GP14: 8.5 | GQ14: 0.3 | GR14: 6.7 | GS14: 3.9 | GT14: -2.8 | GU14: 6.7 | GV14: 3.9 | GW14: 0 | GX14: 0 | GY14: 14.1 | GZ14: 2.6 | HB14: 108 | HC14: 6 | HD14: 102 | HE14: 86 | HF14: 72 | HG14: 14 | HH14: 103.9 | HI14: 83 | HJ14: 20.9 | HK14: 270.6 | HL14: 204.6 | HM14: 66 | HO14: 336 | HQ14: 24 | HR14: 5 | HS14: 13 | HT14: 32 | HU14: 2 | HV14: 5 | HW14: 3 | HX14: 5 | HY14: 5 | HZ14: 5 | IA14: 6 | IB14: 1 | IC14: 2 | ID14: 2 | IE14: 12 | IF14: 0 | IG14: 14 | IH14: 27 | II14: 2 | IJ14: 4 | IK14: 1 | IL14: 1 | IM14: 9 | IN14: 11 | IO14: 12 | IP14: 16 | IQ14: 1 | IR14: 10 | IS14: 9 | IT14: 0 | IU14: 8 | IV14: 4 | IW14: 5 | IX14: 11 | IY14: 3 | IZ14: 4 | JA14: 1 | JB14: 2 | JC14: 3 | JD14: 1 | JE14: 17 | JF14: 1 | JG14: 1 | JH14: 0 | JI14: 0 | JJ14: 0 | JK14: 2 | JL14: 0 | JM14: 1 | JN14: 0 | JO14: 6 | JP14: 1 | JQ14: 0 | JR14: 0 | JS14: 0 | JT14: 0 | JV14: 5 | JW14: 0 | JX14: 14 | JY14: 631 | JZ14: 5 | KA14: 14 | KC14: 0 | KD14: 0 | KE14: 8 | KF14: 708 | KG14: 17 | KH14: 1134 | KI14: 2 | KJ14: 176 | KK14: 6 | KL14: 299 | KM14: 5 | KN14: 291 | KO14: 2 | KP14: 80 | KQ14: 30 | KR14: 528 | KS14: 6 | KT14: 133 | KU14: 8 | KV14: 211 | KX14: 21 | KZ14: 1016 | LA14: 1155 | LC14: 229.895 | LD14: 74 | LE14: 2290.68 | LF14: 164.62 | LH14: 176606 | LI14: 130.155946 | LJ14: 1356.88 | LK14: 176606 | LL14: 160582 | LM14: 148109 | LN14: 135544 | LO14: 123291 | LP14: 111798 | LQ14: 17220 | LR14: 13982 | LS14: 11656 | LT14: 10116 | LU14: 9283 | LV14: 8533 | LW14: 92455 | LX14: 83055 | LY14: 76920 | LZ14: 69609 | MA14: 59908 | MB14: 52390 | MC14: 66931 | MD14: 63545 | ME14: 59533 | MF14: 55819 | MG14: 54100 | MH14: 50875 | MI14: 30951 | MJ14: 23724 | MK14: 19534 | ML14: 19305 | MM14: 21083 | MN14: 20385 | MO14: 24191 | MP14: 26340 | MQ14: 25046 | MR14: 19319 | MS14: 16173 | MT14: 16139 | MU14: 11789 | MV14: 13481 | MW14: 14953 | MX14: 17195 | MY14: 16844 | MZ14: 14351 | NA14: 室蘭市、登別市、伊達市、虻田郡豊浦町、有珠郡壮瞥町、虻田郡洞爺湖町 | NC14: 製鉄記念室蘭病院（特定群） | ND14: 市立室蘭総合病院（標準群）、日鋼記念病院（標準群）
A15: 10 | B15: 東胆振 | C15: 地方都市型 | D15: 勇払郡安平町,勇払郡厚真町,苫小牧市,勇払郡むかわ町,白老郡白老町 | F15: 北海道 | G15: 北海道 | H15: 0110 | I15: 苫小牧（北海道） | J15: ヒガシイブリ | K15: 苫小牧市及び周辺部 | L15: 1.132040575 | M15: 1.340744376 | N15: 0.1408884413 | O15: -0.1671752457 | P15: 2.112601901 | Q15: 1.056042774 | R15: 0.2260296703 | S15: -0.04587862173 | T15: -0.05150373152 | U15: 191.7441139 | V15: 997.8742443 | X15: 1423.5 | Y15: 1984.6 | Z15: 258.4 | AB15: 0 | AC15: 8 | AD15: 10 | AE15: 0 | AF15: 9 | AG15: 6 | AH15: 0 | AI15: 0 | AK15: 0 | AL15: 0 | AM15: 1 | AN15: 4 | AO15: 0 | AQ15: 1969 | AR15: 33 | AS15: 1226 | AT15: 279 | AU15: 393 | AV15: 38 | AX15: 2287 | AY15: 233 | AZ15: 752 | BA15: 773 | BB15: 529 | BC15: 2331 | BD15: 233 | BE15: 752 | BF15: 773 | BG15: 573 | BH15: 0 | BM15: 0 | BT15: 2480 | BU15: 252 | BV15: 805 | BW15: 796 | BX15: 627 | BY15: 2530 | BZ15: 252 | CA15: 805 | CB15: 796 | CC15: 677 | CD15: 0 | CI15: 0 | CP15: 84 | CQ15: 3533 | CR15: 2250.705719 | CS15: 3041.415032 | CT15: 3057.772851 | CV15: 325.33 | CW15: 2884.6 | CY15: 414195.8224 | CZ15: 171140.0375 | DA15: 218437.434 | DB15: 24618.35089 | DC15: 0.9894182488 | DD15: 1.050014501 | DE15: 0.9630906081 | DF15: 0.8539574746 | DG15: 0.01947271325 | DH15: -0.01999728382 | DI15: -0.01005718061 | DJ15: 244090.8543 | DK15: 12921600.66 | DL15: 55791 | DU15: 15 | DV15: 3 | DW15: 0 | DX15: 0 | DY15: 3 | DZ15: 1151 | EA15: 0 | EB15: 0 | EC15: 1 | ED15: 1 | EE15: 2 | EF15: 2 | EG15: 2518 | EH15: 1381 | EI15: 399 | EJ15: 734 | EK15: 0 | EL15: 144 | EM15: 4 | EN15: 103 | EO15: 1260.7 | EP15: 233 | EQ15: 1027.7 | ER15: 1578.1 | ES15: 1390.7 | ET15: 187.4 | EU15: 120 | EV15: 102.7 | EW15: 35.7 | EX15: 3388 | EY15: 1188 | EZ15: 1188 | FA15: 0 | FB15: 106.0157705 | FC15: 105.2862715 | FD15: 116.1877182 | FE15: 117.8912417 | FF15: 102.4444881 | FG15: 111.0921428 | FH15: 117.5663182 | FI15: 114.8866084 | FJ15: 114.8856917 | FK15: 109.1042995 | FL15: 129.0423398 | FM15: 151.3463929 | FN15: 109.0762135 | FO15: 124.2910086 | FP15: 79.94816597 | FQ15: 92.02632395 | FR15: 159.1843713 | FS15: 153.0812208 | FT15: 98.9962602 | FU15: 105.454989 | FV15: 101.1880912 | FW15: 119.7943192 | FX15: 103.2610509 | FY15: 102.3455822 | FZ15: 109.6640629 | GA15: 104.4190848 | GB15: 99.80504565 | GC15: 119.8534703 | GD15: 157.6550389 | GE15: 170.6216815 | GF15: 55.24766515 | GG15: 62.84707476 | GH15: 112.3625794 | GI15: 126.4037506 | GJ15: 115.2700647 | GK15: 98.79825073 | GL15: 11.1 | GM15: 22.3 | GN15: 11.2 | GO15: 12.4 | GP15: 21.7 | GQ15: 9.3 | GR15: 5.9 | GS15: 18.3 | GT15: 12.4 | GU15: 5.9 | GV15: 18.3 | GW15: 0 | GX15: 0 | GY15: 12.2 | GZ15: 25.4 | HB15: 109 | HC15: 16 | HD15: 93 | HE15: 263 | HF15: 263 | HG15: 0 | HH15: 162.8 | HI15: 115 | HJ15: 47.8 | HK15: 406.5 | HL15: 266.2 | HM15: 140.3 | HO15: 324 | HQ15: 35 | HR15: 7 | HS15: 20 | HT15: 23 | HU15: 4 | HV15: 5 | HW15: 4 | HX15: 3 | HY15: 1 | HZ15: 2 | IA15: 5 | IB15: 0 | IC15: 6 | ID15: 2 | IE15: 11 | IF15: 0 | IG15: 9 | IH15: 22 | II15: 0 | IJ15: 2 | IK15: 0 | IL15: 1 | IM15: 11 | IN15: 14 | IO15: 8 | IP15: 15 | IQ15: 3 | IR15: 8 | IS15: 13 | IT15: 0 | IU15: 12 | IV15: 2 | IW15: 2 | IX15: 7 | IY15: 1 | IZ15: 4 | JA15: 0 | JB15: 4 | JC15: 7 | JD15: 2 | JE15: 16 | JF15: 0 | JG15: 3 | JH15: 0 | JI15: 1 | JJ15: 2 | JK15: 1 | JL15: 2 | JM15: 3 | JN15: 0 | JO15: 3 | JP15: 0 | JQ15: 3 | JR15: 2 | JS15: 1 | JT15: 0 | JV15: 6 | JW15: 3 | JX15: 12 | JY15: 648 | JZ15: 3 | KA15: 9 | KC15: 0 | KD15: 0 | KE15: 8 | KF15: 670 | KG15: 21 | KH15: 1273 | KI15: 3 | KJ15: 208 | KK15: 4 | KL15: 259 | KM15: 4 | KN15: 272 | KO15: 3 | KP15: 176 | KQ15: 41 | KR15: 675 | KS15: 9 | KT15: 287 | KU15: 12 | KV15: 453 | KX15: 22 | KZ15: 919 | LA15: 2112 | LC15: 235.6 | LD15: 89.73 | LE15: 2473.87 | LF15: 410.73 | LH15: 205748 | LI15: 87.91372194 | LJ15: 2340.34 | LK15: 205748 | LL15: 197079 | LM15: 188536 | LN15: 179321 | LO15: 169602 | LP15: 159541 | LQ15: 23654 | LR15: 20409 | LS15: 17622 | LT15: 15842 | LU15: 14960 | LV15: 14114 | LW15: 116609 | LX15: 110218 | LY15: 104559 | LZ15: 97812 | MA15: 87796 | MB15: 79376 | MC15: 65485 | MD15: 66452 | ME15: 66355 | MF15: 65667 | MG15: 66846 | MH15: 66051 | MI15: 33659 | MJ15: 28479 | MK15: 24520 | ML15: 24323 | MM15: 26854 | MN15: 27359 | MO15: 21614 | MP15: 25916 | MQ15: 27939 | MR15: 23786 | MS15: 20858 | MT15: 20938 | MU15: 10212 | MV15: 12057 | MW15: 13896 | MX15: 17558 | MY15: 19134 | MZ15: 17754 | NA15: 苫小牧市、白老郡白老町、勇払郡厚真町、勇払郡安平町、勇払郡むかわ町 | NB15: 王子総合病院（標準群） | NC15: 苫小牧市立病院（標準群）
A16: 11 | B16: 日高 | C16: 過疎地域型 | D16: 浦河郡浦河町,様似郡様似町,幌泉郡えりも町,新冠郡新冠町,沙流郡平取町,沙流郡日高町,日高郡新ひだか町 | F16: 北海道 | G16: 北海道 | H16: 0111 | I16: 日高（北海道） | J16: ヒダカ | K16: 日高町及び周辺部 | L16: 0.5589617541 | M16: 1.519320471 | N16: -0.243304858 | O16: -0.2818912993 | P16: 0.5367642641 | Q16: 0.7774263292 | R16: -0.06743361279 | S16: -0.1924299682 | T16: -0.1005618228 | U16: 157.2039943 | V16: 626.2482168 | X16: 111.4 | Y16: 450 | Z16: 34 | AB16: 0 | AC16: 0 | AD16: 0 | AE16: 0 | AF16: 0 | AG16: 0 | AH16: 0 | AI16: 0 | AK16: 0 | AL16: 0 | AM16: 1 | AN16: 4 | AO16: 0 | AQ16: 603 | AR16: 0 | AS16: 287 | AT16: 0 | AU16: 316 | AV16: 0 | AX16: 387 | AY16: 20 | AZ16: 103 | BA16: 121 | BB16: 143 | BC16: 436 | BD16: 20 | BE16: 103 | BF16: 121 | BG16: 192 | BH16: 0 | BM16: 0 | BT16: 788 | BU16: 81 | BV16: 255 | BW16: 258 | BX16: 194 | BY16: 849 | BZ16: 81 | CA16: 255 | CB16: 258 | CC16: 255 | CD16: 0 | CI16: 0 | CP16: 26 | CQ16: 946 | CR16: 936.1392784 | CS16: 1045.761082 | CT16: 965.1927186 | CV16: 84.95 | CW16: 833.48 | CY16: 361174.1616 | CZ16: 154511.322 | DA16: 183711.494 | DB16: 22951.34558 | DC16: 0.9428698309 | DD16: 1.042302419 | DE16: 0.8844728597 | DF16: 0.8465811242 | DG16: 0.01637068421 | DH16: -0.06264276337 | DI16: -0.01085808991 | DJ16: 239516.4817 | DK16: 4781163.189 | DL16: 21328 | DU16: 7 | DV16: 0 | DW16: 0 | DX16: 0 | DY16: 0 | DZ16: 215 | EA16: 0 | EB16: 0 | EC16: 0 | ED16: 0 | EE16: 1 | EF16: 0 | EG16: 789 | EH16: 405 | EI16: 162 | EJ16: 218 | EK16: 0 | EL16: 43 | EM16: 4 | EN16: 67 | EO16: 68.3 | EP16: 38 | EQ16: 30.3 | ER16: 356.1 | ES16: 297.7 | ET16: 58.4 | EU16: 18 | EV16: 13 | EW16: 3 | EX16: 236 | EY16: 132 | EZ16: 132 | FA16: 0 | FB16: 103.1879263 | FC16: 102.7254214 | FD16: 112.8307162 | FE16: 116.2246557 | FF16: 101.1568791 | FG16: 96.22854235 | FH16: 107.3659745 | FI16: 120.8032471 | FJ16: 107.9090939 | FK16: 94.4 | FL16: 125.5867971 | FM16: 137.6411471 | FN16: 102.6116836 | FO16: 99.54207373 | FP16: 82.68119058 | FQ16: 78.41623992 | FR16: 136.3525808 | FS16: 109.0468666 | FT16: 96.2102018 | FU16: 97.01512817 | FV16: 94.99715939 | FW16: 113.64325 | FX16: 99.50607806 | FY16: 90.28395823 | FZ16: 90.56183896 | GA16: 94.36985505 | GB16: 96.31679973 | GC16: 105.6 | GD16: 116.0672357 | GE16: 137.2046308 | GF16: 92.9191533 | GG16: 86.47084074 | GH16: 109.8204862 | GI16: 116.0180924 | GJ16: 122.5016226 | GK16: 99.2 | GL16: 2 | GM16: 36.5 | GN16: 34.5 | GO16: 2.3 | GP16: 45.3 | GQ16: 43 | GR16: 0 | GS16: 24.9 | GT16: 24.9 | GU16: 0 | GV16: 24.9 | GW16: 0 | GX16: 0 | GY16: 2.3 | GZ16: 22.6 | HB16: 41 | HC16: 5 | HD16: 36 | HE16: 47 | HF16: 38 | HG16: 9 | HH16: 43.1 | HI16: 31 | HJ16: 12.1 | HK16: 93.9 | HL16: 62.8 | HM16: 31.1 | HO16: 105 | HQ16: 3 | HR16: 0 | HS16: 2 | HT16: 4 | HU16: 2 | HV16: 0 | HW16: 0 | HX16: 0 | HY16: 0 | HZ16: 0 | IA16: 1 | IB16: 1 | IC16: 1 | ID16: 0 | IE16: 3 | IF16: 0 | IG16: 2 | IH16: 5 | II16: 0 | IJ16: 0 | IK16: 0 | IL16: 0 | IM16: 0 | IN16: 0 | IO16: 0 | IP16: 1 | IQ16: 0 | IR16: 1 | IS16: 1 | IT16: 0 | IU16: 1 | IV16: 0 | IW16: 0 | IX16: 0 | IY16: 0 | IZ16: 0 | JA16: 0 | JB16: 1 | JC16: 0 | JD16: 0 | JE16: 3 | JF16: 0 | JG16: 1 | JH16: 0 | JI16: 0 | JJ16: 0 | JK16: 0 | JL16: 0 | JM16: 0 | JN16: 0 | JO16: 0 | JP16: 0 | JQ16: 0 | JR16: 0 | JS16: 0 | JT16: 0 | JV16: 4 | JW16: 1 | JX16: 14 | JY16: 888 | JZ16: 1 | KA16: 3 | KC16: 0 | KD16: 0 | KE16: 3 | KF16: 205 | KG16: 10 | KH16: 566 | KI16: 0 | KJ16: 0 | KK16: 0 | KL16: 0 | KM16: 0 | KN16: 0 | KO16: 0 | KP16: 0 | KQ16: 13 | KR16: 175 | KS16: 2 | KT16: 103 | KU16: 2 | KV16: 103 | KX16: 12 | KZ16: 416 | LA16: 723 | LC16: 48.7 | LD16: 36.25 | LE16: 722.75 | LF16: 110.73 | LH16: 63372 | LI16: 13.17190277 | LJ16: 4811.15 | LK16: 63372 | LL16: 57869 | LM16: 52731 | LN16: 47851 | LO16: 43179 | LP16: 38682 | LQ16: 6984 | LR16: 5626 | LS16: 4488 | LT16: 3844 | LU16: 3418 | LV16: 3046 | LW16: 34018 | LX16: 30866 | LY16: 27816 | LZ16: 24715 | MA16: 21156 | MB16: 18034 | MC16: 22370 | MD16: 21377 | ME16: 20427 | MF16: 19292 | MG16: 18605 | MH16: 17602 | MI16: 10677 | MJ16: 8875 | MK16: 7446 | ML16: 6985 | MM16: 7062 | MN16: 6902 | MO16: 7464 | MP16: 8044 | MQ16: 8392 | MR16: 7045 | MS16: 6013 | MT16: 5691 | MU16: 4229 | MV16: 4458 | MW16: 4589 | MX16: 5262 | MY16: 5530 | MZ16: 5009 | NA16: 沙流郡日高町、沙流郡平取町、新冠郡新冠町、浦河郡浦河町、様似郡様似町、幌泉郡えりも町、日高郡新ひだか町
A17: 12 | B17: 上川中部 | C17: 地方都市型 | D17: 上川郡東川町,上川郡上川町,上川郡鷹栖町,上川郡東神楽町,上川郡愛別町,上川郡美瑛町,雨竜郡幌加内町,旭川市,上川郡比布町,上川郡当麻町 | F17: 北海道 | G17: 北海道 | H17: 0112 | I17: 旭川（北海道） | J17: カミカワチュウブ | K17: 旭川市及び周辺部 | L17: 1.901298158 | M17: 1.612877857 | N17: 0.06201098712 | O17: -0.1663003439 | P17: 1.133156795 | Q17: 1.298785071 | R17: 0.1139701579 | S17: -0.1520533298 | T17: -0.1016940447 | U17: 329.590226 | V17: 1353.422056 | X17: 1415 | Y17: 4523.3 | Z17: 587.4 | AB17: 60 | AC17: 26 | AD17: 34 | AE17: 0 | AF17: 21 | AG17: 12 | AH17: 0 | AI17: 0 | AK17: 0 | AL17: 0 | AM17: 2 | AN17: 6 | AO17: 20 | AQ17: 6040 | AR17: 1305 | AS17: 2322 | AT17: 815 | AU17: 1444 | AV17: 154 | AX17: 5762 | AY17: 689 | AZ17: 1795 | BA17: 1828 | BB17: 1450 | BC17: 5903 | BD17: 689 | BE17: 1795 | BF17: 1828 | BG17: 1591 | BH17: 0 | BM17: 0 | BT17: 5064 | BU17: 544 | BV17: 1526 | BW17: 1601 | BX17: 1393 | BY17: 5199 | BZ17: 544 | CA17: 1526 | CB17: 1601 | CC17: 1528 | CD17: 0 | CI17: 0 | CP17: 176 | CQ17: 6142 | CR17: 5108.848069 | CS17: 6642.739499 | CT17: 6352.367862 | CV17: 739.475 | CW17: 6724.465 | CY17: 446037.4838 | CZ17: 192504.8528 | DA17: 226479.3409 | DB17: 27053.29008 | DC17: 1.068071762 | DD17: 1.18231774 | DE17: 1.001902113 | DF17: 0.9412863201 | DG17: 0.07108295608 | DH17: 0.001029600172 | DI17: -0.004040794079 | DJ17: 287314.9989 | DK17: 32344446.1 | DL17: 117869 | DU17: 38 | DV17: 6 | DW17: 1 | DX17: 1 | DY17: 4 | DZ17: 3133 | EA17: 1 | EB17: 2 | EC17: 3 | ED17: 3 | EE17: 3 | EF17: 0 | EG17: 6980 | EH17: 4359 | EI17: 1536 | EJ17: 1056 | EK17: 20 | EL17: 366 | EM17: 9 | EN17: 600 | EO17: 1063.7 | EP17: 862 | EQ17: 201.7 | ER17: 3678.1 | ES17: 3258.3 | ET17: 419.8 | EU17: 314.8 | EV17: 202.1 | EW17: 70.5 | EX17: 12453 | EY17: 1644 | EZ17: 1416 | FA17: 228 | FB17: 102.6515548 | FC17: 102.9897455 | FD17: 110.5955539 | FE17: 116.6063064 | FF17: 103.6283911 | FG17: 105.4843233 | FH17: 114.9057514 | FI17: 126.8605844 | FJ17: 102.7872966 | FK17: 110.6064238 | FL17: 121.7715084 | FM17: 137.8589443 | FN17: 117.4033876 | FO17: 111.5826096 | FP17: 105.0862829 | FQ17: 106.9716197 | FR17: 100.0539872 | FS17: 106.3047669 | FT17: 109.9144718 | FU17: 101.1405967 | FV17: 99.27492936 | FW17: 95.42508731 | FX17: 115.3235074 | FY17: 109.4920242 | FZ17: 88.75144864 | GA17: 93.97813739 | GB17: 77.9735912 | GC17: 96.36094687 | GD17: 92.3654767 | GE17: 114.7768401 | GF17: 72.23159437 | GG17: 78.86626151 | GH17: 102.0097244 | GI17: 110.8579962 | GJ17: 101.8104114 | GK17: 109.1 | GL17: 13.5 | GM17: 4.1 | GN17: -9.4 | GO17: 16.5 | GP17: 3.2 | GQ17: -13.3 | GR17: 7.5 | GS17: 2.6 | GT17: -4.9 | GU17: 7.2 | GV17: 2.7 | GW17: 13.4 | GX17: 0 | GY17: 8.3 | GZ17: 9.1 | HB17: 253 | HC17: 28 | HD17: 225 | HE17: 394 | HF17: 378 | HG17: 16 | HH17: 351.3 | HI17: 250 | HJ17: 101.3 | HK17: 845.2 | HL17: 522.1 | HM17: 323.1 | HO17: 895 | HQ17: 101 | HR17: 29 | HS17: 50 | HT17: 108 | HU17: 14 | HV17: 32 | HW17: 16 | HX17: 23 | HY17: 8 | HZ17: 21 | IA17: 26 | IB17: 9 | IC17: 16 | ID17: 3 | IE17: 70 | IF17: 1 | IG17: 26 | IH17: 83 | II17: 6 | IJ17: 16 | IK17: 4 | IL17: 4 | IM17: 33 | IN17: 33 | IO17: 30 | IP17: 72 | IQ17: 9 | IR17: 34 | IS17: 35 | IT17: 3 | IU17: 40 | IV17: 12 | IW17: 21 | IX17: 44 | IY17: 10 | IZ17: 16 | JA17: 9 | JB17: 14 | JC17: 14 | JD17: 4 | JE17: 59 | JF17: 6 | JG17: 7 | JH17: 1 | JI17: 6 | JJ17: 2 | JK17: 6 | JL17: 6 | JM17: 12 | JN17: 2 | JO17: 2 | JP17: 3 | JQ17: 11 | JR17: 3 | JS17: 7 | JT17: 0 | JV17: 30 | JW17: 8 | JX17: 47 | JY17: 4336 | JZ17: 18 | KA17: 53 | KC17: 0 | KD17: 0 | KE17: 15 | KF17: 1211 | KG17: 32 | KH17: 1822 | KI17: 5 | KJ17: 235 | KK17: 3 | KL17: 160 | KM17: 22 | KN17: 877 | KO17: 4 | KP17: 302 | KQ17: 95 | KR17: 1535 | KS17: 24 | KT17: 849 | KU17: 26 | KV17: 995 | KX17: 65 | KZ17: 1751 | LA17: 6815 | LC17: 405.915 | LD17: 333.56 | LE17: 4667.58 | LF17: 2056.885 | LH17: 381296 | LI17: 89.96861801 | LJ17: 4238.1 | LK17: 381296 | LL17: 362128 | LM17: 344317 | LN17: 326061 | LO17: 307281 | LP17: 288311 | LQ17: 40725 | LR17: 36406 | LS17: 31309 | LT17: 27918 | LU17: 26334 | LV17: 24979 | LW17: 207527 | LX17: 195320 | LY17: 184194 | LZ17: 171041 | MA17: 152615 | MB17: 136894 | MC17: 133044 | MD17: 130402 | ME17: 128814 | MF17: 127102 | MG17: 128332 | MH17: 126438 | MI17: 63689 | MJ17: 52342 | MK17: 46626 | ML17: 46825 | MM17: 50855 | MN17: 51054 | MO17: 45383 | MP17: 51327 | MQ17: 52527 | MR17: 44413 | MS17: 40131 | MT17: 40709 | MU17: 23972 | MV17: 26733 | MW17: 29661 | MX17: 35864 | MY17: 37346 | MZ17: 34675 | NA17: 旭川市、上川郡鷹栖町、上川郡東神楽町、上川郡当麻町、上川郡比布町、上川郡愛別町、上川郡上川町、上川郡東川町、上川郡美瑛町、雨竜郡幌加内町 | NB17: 旭川厚生病院（標準群）、旭川赤十字病院（特定群・救命）、旭川医科大学病院（大学本院群・救命） | ND17: 市立旭川病院（標準群）
A18: 13 | B18: 上川北部 | C18: 過疎地域型 | D18: 中川郡美深町,士別市,中川郡音威子府村,中川郡中川町,上川郡下川町,上川郡剣淵町,名寄市,上川郡和寒町 | F18: 北海道 | G18: 北海道 | H18: 0113 | I18: 名寄（北海道） | J18: カミカワホクブ | K18: 士別市、名寄市及び周辺部 | L18: 1.407152639 | M18: 1.816545241 | N18: 0.07372123703 | O18: 0.1367501158 | P18: 1.025651015 | Q18: 1.076211062 | R18: 0.1191615662 | S18: 0.04286576739 | T18: 0.179098446 | U18: 203.8605914 | V18: 1063.962373 | X18: 204.1 | Y18: 597.3 | Z18: 50.9 | AB18: 8 | AC18: 0 | AD18: 0 | AE18: 0 | AF18: 0 | AG18: 0 | AH18: 0 | AI18: 0 | AK18: 0 | AL18: 0 | AM18: 1 | AN18: 4 | AO18: 0 | AQ18: 821 | AR18: 11 | AS18: 315 | AT18: 230 | AU18: 265 | AV18: 0 | AX18: 656 | AY18: 63 | AZ18: 229 | BA18: 206 | BB18: 158 | BC18: 716 | BD18: 63 | BE18: 229 | BF18: 206 | BG18: 218 | BH18: 0 | BM18: 0 | BT18: 772 | BU18: 82 | BV18: 257 | BW18: 250 | BX18: 183 | BY18: 838 | BZ18: 82 | CA18: 257 | CB18: 250 | CC18: 249 | CD18: 0 | CI18: 0 | CP18: 30 | CQ18: 1146 | CR18: 1042.912706 | CS18: 1133.246931 | CT18: 971.94744 | CV18: 84.976 | CW18: 1013.86 | CY18: 420473.8879 | CZ18: 170971.1225 | DA18: 222286.4197 | DB18: 27216.34575 | DC18: 1.008509782 | DD18: 1.051014895 | DE18: 0.9853430463 | DF18: 0.9496081262 | DG18: 0.01990453217 | DH18: -0.007930677255 | DI18: -0.003464072585 | DJ18: 270289.215 | DK18: 5311206.563 | DL18: 22783 | DU18: 7 | DV18: 1 | DW18: 0 | DX18: 0 | DY18: 1 | DZ18: 305 | EA18: 0 | EB18: 1 | EC18: 0 | ED18: 0 | EE18: 1 | EF18: 1 | EG18: 916 | EH18: 556 | EI18: 301 | EJ18: 55 | EK18: 0 | EL18: 0 | EM18: 4 | EN18: 120 | EO18: 170.2 | EP18: 91 | EQ18: 79.2 | ER18: 509.7 | ES18: 450.1 | ET18: 59.6 | EU18: 30 | EV18: 14 | EW18: 6.9 | EX18: 898 | EY18: 276 | EZ18: 276 | FA18: 0 | FB18: 93.72132415 | FC18: 91.18485559 | FD18: 105.235246 | FE18: 110.5830621 | FF18: 98.21531991 | FG18: 103.0208483 | FH18: 113.6673498 | FI18: 103.5892819 | FJ18: 81.24091614 | FK18: 100.366978 | FL18: 123.203302 | FM18: 131.0106083 | FN18: 93.156105 | FO18: 89.68655372 | FP18: 93.89240806 | FQ18: 57.03455497 | FR18: 127.1268841 | FS18: 112.5998547 | FT18: 86.03057741 | FU18: 87.94543209 | FV18: 91.27093386 | FW18: 96.9928015 | FX18: 85.25088103 | FY18: 87.67125603 | FZ18: 85.90788875 | GA18: 91.65246375 | GB18: 87.9638404 | GC18: 106.5138052 | GD18: 126.1599805 | GE18: 131.3983362 | GF18: 100.7066433 | GG18: 93.98658692 | GH18: 110.3514186 | GI18: 90.16289004 | GJ18: 98.48954325 | GK18: 132.2947375 | GL18: 12.2 | GM18: 26.1 | GN18: 13.9 | GO18: 16.8 | GP18: 27.3 | GQ18: 10.5 | GR18: 4.3 | GS18: 14.1 | GT18: 9.8 | GU18: 4.3 | GV18: 13.4 | GW18: 0 | GX18: 100 | GY18: 15.7 | GZ18: 59.2 | HB18: 35 | HC18: 3 | HD18: 32 | HE18: 48 | HF18: 40 | HG18: 8 | HH18: 33.9 | HI18: 25 | HJ18: 8.9 | HK18: 87.6 | HL18: 51.6 | HM18: 36 | HO18: 95 | HQ18: 8 | HR18: 3 | HS18: 4 | HT18: 8 | HU18: 0 | HV18: 3 | HW18: 0 | HX18: 1 | HY18: 0 | HZ18: 0 | IA18: 1 | IB18: 0 | IC18: 1 | ID18: 2 | IE18: 4 | IF18: 0 | IG18: 2 | IH18: 8 | II18: 0 | IJ18: 4 | IK18: 0 | IL18: 0 | IM18: 1 | IN18: 1 | IO18: 4 | IP18: 3 | IQ18: 1 | IR18: 3 | IS18: 5 | IT18: 0 | IU18: 2 | IV18: 0 | IW18: 0 | IX18: 2 | IY18: 1 | IZ18: 2 | JA18: 1 | JB18: 0 | JC18: 0 | JD18: 0 | JE18: 3 | JF18: 0 | JG18: 0 | JH18: 0 | JI18: 0 | JJ18: 0 | JK18: 0 | JL18: 0 | JM18: 0 | JN18: 0 | JO18: 0 | JP18: 0 | JQ18: 0 | JR18: 0 | JS18: 0 | JT18: 0 | JV18: 3 | JW18: 1 | JX18: 8 | JY18: 142 | JZ18: 1 | KA18: 1 | KC18: 0 | KD18: 0 | KE18: 3 | KF18: 249 | KG18: 10 | KH18: 606 | KI18: 0 | KJ18: 0 | KK18: 1 | KL18: 29 | KM18: 2 | KN18: 52 | KO18: 1 | KP18: 30 | KQ18: 13 | KR18: 180 | KS18: 1 | KT18: 31 | KU18: 2 | KV18: 61 | KX18: 6 | KZ18: 203 | LA18: 389 | LC18: 66.86 | LD18: 18.116 | LE18: 933.51 | LF18: 80.35 | LH18: 60763 | LI18: 14.47710129 | LJ18: 4197.18 | LK18: 60763 | LL18: 54824 | LM18: 49943 | LN18: 45301 | LO18: 40976 | LP18: 36906 | LQ18: 6140 | LR18: 5014 | LS18: 4196 | LT18: 3630 | LU18: 3353 | LV18: 3076 | LW18: 32098 | LX18: 28625 | LY18: 26064 | LZ18: 23501 | MA18: 20494 | MB18: 17800 | MC18: 22525 | MD18: 21185 | ME18: 19683 | MF18: 18170 | MG18: 17129 | MH18: 16030 | MI18: 9958 | MJ18: 8186 | MK18: 6949 | ML18: 6426 | MM18: 6422 | MN18: 6245 | MO18: 7989 | MP18: 8212 | MQ18: 7942 | MR18: 6514 | MS18: 5595 | MT18: 5225 | MU18: 4578 | MV18: 4787 | MW18: 4792 | MX18: 5230 | MY18: 5112 | MZ18: 4560 | NA18: 名寄市、士別市、上川郡和寒町、上川郡剣淵町、上川郡下川町、中川郡美深町、中川郡中川町、中川郡音威子府村 | ND18: 名寄市立総合病院（標準群・救命）
A19: 14 | B19: 富良野 | C19: 過疎地域型 | D19: 空知郡南富良野町,勇払郡占冠村,富良野市,空知郡上富良野町,空知郡中富良野町 | F19: 北海道 | G19: 北海道 | H19: 0114 | I19: 富良野（北海道） | J19: フラノ | K19: 富良野市及び周辺部 | L19: 0.8313058462 | M19: 1.272028152 | N19: 0.1197158627 | O19: 0.06890915197 | P19: 0.4898557471 | Q19: 0.6956880204 | R19: 0.1197810039 | S19: 0.02256096812 | T19: 0.06897805289 | U19: 162.4689769 | V19: 792.1224377 | X19: 64 | Y19: 253.5 | Z19: 30.1 | AB19: 0 | AC19: 0 | AD19: 0 | AE19: 0 | AF19: 0 | AG19: 0 | AH19: 0 | AI19: 0 | AK19: 0 | AL19: 0 | AM19: 1 | AN19: 4 | AO19: 0 | AQ19: 325 | AR19: 0 | AS19: 145 | AT19: 89 | AU19: 91 | AV19: 0 | AX19: 394 | AY19: 25 | AZ19: 120 | BA19: 132 | BB19: 117 | BC19: 401 | BD19: 25 | BE19: 120 | BF19: 132 | BG19: 124 | BH19: 0 | BM19: 0 | BT19: 553 | BU19: 52 | BV19: 169 | BW19: 176 | BX19: 156 | BY19: 562 | BZ19: 52 | CA19: 169 | CB19: 176 | CC19: 165 | CD19: 0 | CI19: 0 | CP19: 18 | CQ19: 776 | CR19: 587.9862894 | CS19: 652.9292733 | CT19: 621.9226607 | CV19: 88.15 | CW19: 715.4 | CY19: 374204.9066 | CZ19: 172645.7711 | DA19: 178589.1062 | DB19: 22970.02937 | DC19: 0.9599503197 | DD19: 1.142256085 | DE19: 0.8450647622 | DF19: 0.840145029 | DG19: 0.05515724901 | DH19: -0.08399519716 | DI19: -0.01121173216 | DJ19: 271164.7217 | DK19: 2956976.204 | DL19: 12798 | DU19: 5 | DV19: 1 | DW19: 0 | DX19: 0 | DY19: 1 | DZ19: 246 | EA19: 0 | EB19: 0 | EC19: 0 | ED19: 0 | EE19: 1 | EF19: 0 | EG19: 598 | EH19: 327 | EI19: 97 | EJ19: 170 | EK19: 0 | EL19: 0 | EM19: 4 | EN19: 50 | EO19: 34.3 | EP19: 32 | EQ19: 2.3 | ER19: 194.6 | ES19: 168.6 | ET19: 26 | EU19: 15 | EV19: 12.2 | EW19: 2.9 | EX19: 326 | EY19: 120 | EZ19: 120 | FA19: 0 | FB19: 98.88379357 | FC19: 97.11439628 | FD19: 110.9362185 | FE19: 113.1143382 | FF19: 98.24310983 | FG19: 97.31923758 | FH19: 104.546909 | FI19: 111.6174304 | FJ19: 94.90663252 | FK19: 128.5 | FL19: 125.4299961 | FM19: 129.4977386 | FN19: 82.27515314 | FO19: 91.91404013 | FP19: 95.09383851 | FQ19: 105.3872029 | FR19: 103.6516063 | FS19: 106.8415952 | FT19: 92.76149861 | FU19: 92.45337577 | FV19: 89.67215875 | FW19: 87.1588494 | FX19: 93.40729297 | FY19: 95.11236451 | FZ19: 123.8482631 | GA19: 134.1740023 | GB19: 86.8 | GC19: 93.3 | GD19: 130.9622985 | GE19: 111.2947515 | GF19: 87.4880209 | GG19: 68.68185931 | GH19: 111.1125414 | GI19: 107.2751239 | GJ19: 127.8860087 | GK19: 98.7 | GL19: 6.7 | GM19: 27.8 | GN19: 21.1 | GO19: 3.7 | GP19: 34.1 | GQ19: 30.4 | GR19: 6.5 | GS19: 40.6 | GT19: 34.1 | GU19: 6.5 | GV19: 40.6 | GW19: 0 | GX19: 0 | GY19: 9.3 | GZ19: 16.2 | HB19: 24 | HC19: 2 | HD19: 22 | HE19: 29 | HF19: 29 | HG19: 0 | HH19: 29.7 | HI19: 18 | HJ19: 11.7 | HK19: 58.9 | HL19: 42.9 | HM19: 16 | HO19: 72 | HQ19: 1 | HR19: 0 | HS19: 1 | HT19: 2 | HU19: 0 | HV19: 0 | HW19: 0 | HX19: 0 | HY19: 0 | HZ19: 0 | IA19: 1 | IB19: 0 | IC19: 1 | ID19: 0 | IE19: 3 | IF19: 0 | IG19: 2 | IH19: 3 | II19: 0 | IJ19: 0 | IK19: 0 | IL19: 0 | IM19: 1 | IN19: 1 | IO19: 0 | IP19: 5 | IQ19: 0 | IR19: 2 | IS19: 1 | IT19: 0 | IU19: 2 | IV19: 2 | IW19: 0 | IX19: 0 | IY19: 0 | IZ19: 1 | JA19: 0 | JB19: 1 | JC19: 0 | JD19: 0 | JE19: 2 | JF19: 0 | JG19: 1 | JH19: 0 | JI19: 0 | JJ19: 0 | JK19: 0 | JL19: 0 | JM19: 0 | JN19: 0 | JO19: 0 | JP19: 0 | JQ19: 0 | JR19: 0 | JS19: 0 | JT19: 0 | JV19: 1 | JW19: 0 | JX19: 3 | JY19: 757 | JZ19: 0 | KA19: 0 | KC19: 0 | KD19: 0 | KE19: 2 | KF19: 129 | KG19: 7 | KH19: 440 | KI19: 2 | KJ19: 72 | KK19: 0 | KL19: 0 | KM19: 0 | KN19: 0 | KO19: 2 | KP19: 54 | KQ19: 5 | KR19: 81 | KS19: 0 | KT19: 0 | KU19: 2 | KV19: 54 | KX19: 4 | KZ19: 114 | LA19: 293 | LC19: 72.65 | LD19: 15.5 | LE19: 667.38 | LF19: 48.02 | LH19: 39894 | LI19: 18.27141948 | LJ19: 2183.41 | LK19: 39894 | LL19: 36047 | LM19: 33078 | LN19: 30239 | LO19: 27540 | LP19: 24968 | LQ19: 4361 | LR19: 3537 | LS19: 2871 | LT19: 2420 | LU19: 2181 | LV19: 1984 | LW19: 22127 | LX19: 19502 | LY19: 17681 | LZ19: 15770 | MA19: 13662 | MB19: 11827 | MC19: 13406 | MD19: 13008 | ME19: 12526 | MF19: 12049 | MG19: 11697 | MH19: 11157 | MI19: 6152 | MJ19: 5203 | MK19: 4643 | ML19: 4475 | MM19: 4498 | MN19: 4297 | MO19: 4668 | MP19: 4939 | MQ19: 5005 | MR19: 4296 | MS19: 3892 | MT19: 3778 | MU19: 2586 | MV19: 2866 | MW19: 2878 | MX19: 3278 | MY19: 3307 | MZ19: 3082 | NA19: 富良野市、空知郡上富良野町、空知郡中富良野町、空知郡南富良野町、勇払郡占冠村
A20: 15 | B20: 留萌 | C20: 過疎地域型 | D20: 留萌市,苫前郡苫前町,苫前郡羽幌町,増毛郡増毛町,苫前郡初山別村,天塩郡天塩町,天塩郡遠別町,留萌郡小平町 | F20: 北海道 | G20: 北海道 | H20: 0115 | I20: 留萌（北海道） | J20: ルモイ | K20: 留萌市及び周辺部 | L20: 0.8628285022 | M20: 2.005621146 | N20: 0.003513507935 | O20: 0.08157974838 | P20: 0.6880094374 | Q20: 1.056422108 | R20: 0.09117130283 | S20: 0.005765728507 | T20: 0.1513392556 | U20: 162.5617696 | V20: 884.9713703 | X20: 97 | Y20: 415.4 | Z20: 30 | AB20: 0 | AC20: 0 | AD20: 0 | AE20: 0 | AF20: 0 | AG20: 0 | AH20: 0 | AI20: 0 | AK20: 0 | AL20: 0 | AM20: 1 | AN20: 4 | AO20: 0 | AQ20: 561 | AR20: 0 | AS20: 281 | AT20: 92 | AU20: 188 | AV20: 0 | AX20: 364 | AY20: 35 | AZ20: 142 | BA20: 130 | BB20: 57 | BC20: 425 | BD20: 35 | BE20: 142 | BF20: 130 | BG20: 118 | BH20: 0 | BM20: 0 | BT20: 582 | BU20: 67 | BV20: 218 | BW20: 190 | BX20: 107 | BY20: 670 | BZ20: 67 | CA20: 218 | CB20: 190 | CC20: 195 | CD20: 0 | CI20: 0 | CP20: 28 | CQ20: 708 | CR20: 808.8575405 | CS20: 884.8685016 | CT20: 755.3080625 | CV20: 48.9 | CW20: 632.05 | CY20: 456040.5794 | CZ20: 210467.4012 | DA20: 226042.0047 | DB20: 19531.17349 | DC20: 1.082987302 | DD20: 1.280390019 | DE20: 0.991996704 | DF20: 0.6769485069 | DG20: 0.1094523234 | DH20: -0.004330795505 | DI20: -0.02213422558 | DJ20: 254634.8396 | DK20: 4324839.241 | DL20: 18059 | DU20: 7 | DV20: 1 | DW20: 0 | DX20: 0 | DY20: 1 | DZ20: 232 | EA20: 0 | EB20: 0 | EC20: 0 | ED20: 0 | EE20: 1 | EF20: 0 | EG20: 755 | EH20: 430 | EI20: 222 | EJ20: 99 | EK20: 0 | EL20: 0 | EM20: 4 | EN20: 15 | EO20: 57.5 | EP20: 32 | EQ20: 25.5 | ER20: 330 | ES20: 262.6 | ET20: 67.4 | EU20: 19 | EV20: 9 | EW20: 2 | EX20: 215 | EY20: 24 | EZ20: 24 | FA20: 0 | FB20: 105.3908798 | FC20: 102.1684064 | FD20: 119.4391879 | FE20: 115.6887131 | FF20: 118.3548357 | FG20: 96.89105806 | FH20: 122.7895967 | FI20: 118.7661987 | FJ20: 124.7 | FK20: 104.5 | FL20: 134.012237 | FM20: 157.1267033 | FN20: 106.9972206 | FO20: 107.2759309 | FP20: 98.37825003 | FQ20: 80.46258254 | FR20: 103.6192458 | FS20: 109.7198073 | FT20: 107.0039978 | FU20: 107.8907565 | FV20: 101.8100551 | FW20: 124.6920676 | FX20: 116.2554799 | FY20: 107.0041076 | FZ20: 111.9009869 | GA20: 129.818039 | GB20: 96.1 | GC20: 105 | GD20: 142.1983883 | GE20: 131.6380922 | GF20: 70.42753637 | GG20: 70.70393025 | GH20: 108.5310004 | GI20: 96.80510595 | GJ20: 85.3 | GK20: 136.2714505 | GL20: 3.3 | GM20: 44 | GN20: 40.7 | GO20: 2.7 | GP20: 53.5 | GQ20: 50.8 | GR20: 4.3 | GS20: 29.4 | GT20: 25.1 | GU20: 4.3 | GV20: 29.4 | GW20: 0 | GX20: 0 | GY20: 2.9 | GZ20: 40.6 | HB20: 36 | HC20: 3 | HD20: 33 | HE20: 43 | HF20: 43 | HG20: 0 | HH20: 39.5 | HI20: 27 | HJ20: 12.5 | HK20: 85.4 | HL20: 49.9 | HM20: 35.5 | HO20: 67 | HQ20: 7 | HR20: 1 | HS20: 5 | HT20: 8 | HU20: 0 | HV20: 2 | HW20: 0 | HX20: 0 | HY20: 0 | HZ20: 0 | IA20: 0 | IB20: 0 | IC20: 0 | ID20: 0 | IE20: 1 | IF20: 0 | IG20: 2 | IH20: 3 | II20: 0 | IJ20: 0 | IK20: 0 | IL20: 0 | IM20: 0 | IN20: 1 | IO20: 2 | IP20: 6 | IQ20: 0 | IR20: 3 | IS20: 1 | IT20: 0 | IU20: 0 | IV20: 0 | IW20: 0 | IX20: 1 | IY20: 0 | IZ20: 1 | JA20: 0 | JB20: 0 | JC20: 0 | JD20: 0 | JE20: 7 | JF20: 0 | JG20: 0 | JH20: 0 | JI20: 0 | JJ20: 0 | JK20: 0 | JL20: 0 | JM20: 0 | JN20: 0 | JO20: 0 | JP20: 1 | JQ20: 1 | JR20: 0 | JS20: 0 | JT20: 0 | JV20: 1 | JW20: 0 | JX20: 9 | JY20: 463 | JZ20: 1 | KA20: 1 | KC20: 0 | KD20: 0 | KE20: 1 | KF20: 29 | KG20: 8 | KH20: 380 | KI20: 0 | KJ20: 0 | KK20: 0 | KL20: 0 | KM20: 4 | KN20: 86 | KO20: 0 | KP20: 0 | KQ20: 15 | KR20: 213 | KS20: 2 | KT20: 48 | KU20: 2 | KV20: 48 | KX20: 3 | KZ20: 206 | LA20: 573 | LC20: 33 | LD20: 15.9 | LE20: 500.25 | LF20: 131.8 | LH20: 43050 | LI20: 12.49310775 | LJ20: 3445.9 | LK20: 43050 | LL20: 37968 | LM20: 33790 | LN20: 29856 | LO20: 26215 | LP20: 22826 | LQ20: 3915 | LR20: 3062 | LS20: 2373 | LT20: 1993 | LU20: 1736 | LV20: 1513 | LW20: 21895 | LX20: 18954 | LY20: 16658 | LZ20: 14390 | MA20: 12026 | MB20: 10095 | MC20: 17240 | MD20: 15952 | ME20: 14759 | MF20: 13473 | MG20: 12453 | MH20: 11218 | MI20: 7789 | MJ20: 6297 | MK20: 5090 | ML20: 4628 | MM20: 4480 | MN20: 4083 | MO20: 6152 | MP20: 6201 | MQ20: 6090 | MR20: 4943 | MS20: 4052 | MT20: 3718 | MU20: 3299 | MV20: 3454 | MW20: 3579 | MX20: 3902 | MY20: 3921 | MZ20: 3417 | NA20: 留萌市、増毛郡増毛町、留萌郡小平町、苫前郡苫前町、苫前郡羽幌町、苫前郡初山別村、天塩郡遠別町、天塩郡天塩町
A21: 16 | B21: 宗谷 | C21: 過疎地域型 | D21: 利尻郡利尻富士町,枝幸郡浜頓別町,天塩郡豊富町,稚内市,枝幸郡枝幸町,枝幸郡中頓別町,礼文郡礼文町,利尻郡利尻町,宗谷郡猿払村,天塩郡幌延町 | F21: 北海道 | G21: 北海道 | H21: 0116 | I21: 稚内（北海道） | J21: ソウヤ | K21: 稚内市及び周辺部 | L21: 1.250869424 | M21: 1.207910396 | N21: 0.09032248125 | O21: 0.00800749229 | P21: 0.5139918735 | Q21: 0.8493956395 | R21: 0.09945660052 | S21: -0.0390222927 | T21: 0.02341377545 | U21: 123.0480855 | V21: 779.5564827 | X21: 104.6 | Y21: 482.1 | Z21: 35.3 | AB21: 0 | AC21: 0 | AD21: 0 | AE21: 0 | AF21: 0 | AG21: 0 | AH21: 0 | AI21: 0 | AK21: 0 | AL21: 0 | AM21: 1 | AN21: 4 | AO21: 0 | AQ21: 618 | AR21: 0 | AS21: 358 | AT21: 144 | AU21: 116 | AV21: 0 | AX21: 441 | AY21: 28 | AZ21: 127 | BA21: 185 | BB21: 101 | BC21: 444 | BD21: 28 | BE21: 127 | BF21: 185 | BG21: 104 | BH21: 0 | BM21: 0 | BT21: 741 | BU21: 78 | BV21: 241 | BW21: 270 | BX21: 152 | BY21: 745 | BZ21: 78 | CA21: 241 | CB21: 270 | CC21: 156 | CD21: 0 | CI21: 0 | CP21: 28 | CQ21: 1063 | CR21: 851.0135125 | CS21: 981.8760666 | CT21: 922.8739822 | CV21: 92.03 | CW21: 902.75 | CY21: 364070.5149 | CZ21: 155244.9572 | DA21: 188647.3975 | DB21: 20178.16019 | DC21: 0.9414148803 | DD21: 1.037280583 | DE21: 0.8988815316 | DF21: 0.7420465072 | DG21: 0.01442777948 | DH21: -0.05487498245 | DI21: -0.01813791672 | DJ21: 241282.3672 | DK21: 4471056.06 | DL21: 19371 | DU21: 8 | DV21: 1 | DW21: 0 | DX21: 0 | DY21: 1 | DZ21: 240 | EA21: 0 | EB21: 0 | EC21: 0 | ED21: 0 | EE21: 1 | EF21: 0 | EG21: 700 | EH21: 494 | EI21: 132 | EJ21: 70 | EK21: 0 | EL21: 0 | EM21: 4 | EN21: 0 | EO21: 66.7 | EP21: 53 | EQ21: 13.7 | ER21: 378.6 | ES21: 346.8 | ET21: 31.8 | EU21: 19 | EV21: 13 | EW21: 3.3 | EX21: 565 | EY21: 192 | EZ21: 192 | FA21: 0 | FB21: 103.7527988 | FC21: 107.7795375 | FD21: 112.9435884 | FE21: 116.6436879 | FF21: 104.2188849 | FG21: 103.1053054 | FH21: 114.8998537 | FI21: 124.7950173 | FJ21: 103.018358 | FK21: 93.60737101 | FL21: 127.3304508 | FM21: 134.6886369 | FN21: 104.7491103 | FO21: 108.041108 | FP21: 108.4 | FQ21: 146.5851462 | FR21: 108.5015207 | FS21: 101.7532934 | FT21: 117.3339664 | FU21: 101.9137975 | FV21: 129.4933077 | FW21: 113.6042751 | FX21: 115.6783997 | FY21: 108.9437878 | FZ21: 84.40549696 | GA21: 105.4511618 | GB21: 119.6511848 | GC21: 90.5 | GD21: 136.8680851 | GE21: 115.8938406 | GF21: 106.1475525 | GG21: 109.228179 | GH21: 108.1505282 | GI21: 97.02457007 | GJ21: 116.7279995 | GK21: 106.3 | GL21: 4.2 | GM21: 42.6 | GN21: 38.4 | GO21: 4.4 | GP21: 43.5 | GQ21: 39.1 | GR21: 5.3 | GS21: 31.8 | GT21: 26.5 | GU21: 5.3 | GV21: 31.8 | GW21: 0 | GX21: 0 | GY21: 0 | GZ21: 56.2 | HB21: 42 | HC21: 4 | HD21: 38 | HE21: 76 | HF21: 61 | HG21: 15 | HH21: 37.9 | HI21: 22 | HJ21: 15.9 | HK21: 103.5 | HL21: 82.4 | HM21: 21.1 | HO21: 81 | HQ21: 5 | HR21: 0 | HS21: 1 | HT21: 5 | HU21: 0 | HV21: 3 | HW21: 1 | HX21: 0 | HY21: 1 | HZ21: 0 | IA21: 2 | IB21: 0 | IC21: 0 | ID21: 0 | IE21: 2 | IF21: 0 | IG21: 2 | IH21: 5 | II21: 0 | IJ21: 0 | IK21: 0 | IL21: 0 | IM21: 2 | IN21: 0 | IO21: 2 | IP21: 4 | IQ21: 0 | IR21: 0 | IS21: 1 | IT21: 0 | IU21: 3 | IV21: 0 | IW21: 0 | IX21: 0 | IY21: 0 | IZ21: 2 | JA21: 0 | JB21: 2 | JC21: 0 | JD21: 0 | JE21: 3 | JF21: 0 | JG21: 0 | JH21: 0 | JI21: 0 | JJ21: 0 | JK21: 0 | JL21: 1 | JM21: 0 | JN21: 0 | JO21: 0 | JP21: 1 | JQ21: 1 | JR21: 0 | JS21: 0 | JT21: 0 | JV21: 2 | JW21: 0 | JX21: 10 | JY21: 316 | JZ21: 1 | KA21: 5 | KC21: 0 | KD21: 0 | KE21: 2 | KF21: 140 | KG21: 14 | KH21: 719 | KI21: 1 | KJ21: 16 | KK21: 0 | KL21: 0 | KM21: 0 | KN21: 0 | KO21: 1 | KP21: 36 | KQ21: 10 | KR21: 152 | KS21: 1 | KT21: 51 | KU21: 2 | KV21: 87 | KX21: 8 | KZ21: 228 | LA21: 388 | LC21: 69.4 | LD21: 22.63 | LE21: 838.485 | LF21: 64.265 | LH21: 62140 | LI21: 13.43250996 | LJ21: 4626.09 | LK21: 62140 | LL21: 56334 | LM21: 51488 | LN21: 46788 | LO21: 42225 | LP21: 37847 | LQ21: 6474 | LR21: 5158 | LS21: 4221 | LT21: 3631 | LU21: 3284 | LV21: 2944 | LW21: 34641 | LX21: 30751 | LY21: 27809 | LZ21: 24949 | MA21: 21476 | MB21: 18490 | MC21: 21025 | MD21: 20425 | ME21: 19458 | MF21: 18208 | MG21: 17465 | MH21: 16413 | MI21: 10381 | MJ21: 8792 | MK21: 7336 | ML21: 6621 | MM21: 6678 | MN21: 6575 | MO21: 7007 | MP21: 7630 | MQ21: 7955 | MR21: 6787 | MS21: 5739 | MT21: 5219 | MU21: 3637 | MV21: 4003 | MW21: 4167 | MX21: 4800 | MY21: 5048 | MZ21: 4619 | NA21: 稚内市、枝幸郡浜頓別町、枝幸郡中頓別町、枝幸郡枝幸町、天塩郡豊富町、礼文郡礼文町、利尻郡利尻町、利尻郡利尻富士町、天塩郡幌延町、宗谷郡猿払村 | ND21: 市立稚内病院（標準群）
A22: 17 | B22: 北網 | C22: 地方都市型 | D22: 斜里郡小清水町,北見市,網走郡大空町,網走郡美幌町,斜里郡清里町,網走市,常呂郡訓子府町,常呂郡置戸町,斜里郡斜里町,網走郡津別町 | F22: 北海道 | G22: 北海道 | H22: 0117 | I22: 北見（北海道） | J22: ホクモウ | K22: 北見市、網走市及び周辺部 | L22: 1.50847338 | M22: 1.451367514 | N22: -0.07660261752 | O22: -0.3302700271 | P22: 0.6160874356 | Q22: 1.068248667 | R22: 0.09231061934 | S22: -0.1247169663 | T22: -0.12155772 | U22: 186.1748436 | V22: 1028.649496 | X22: 420.6 | Y22: 2034 | Z22: 247.6 | AB22: 32 | AC22: 0 | AD22: 0 | AE22: 0 | AF22: 6 | AG22: 12 | AH22: 0 | AI22: 0 | AK22: 0 | AL22: 0 | AM22: 2 | AN22: 4 | AO22: 0 | AQ22: 2643 | AR22: 408 | AS22: 1127 | AT22: 198 | AU22: 805 | AV22: 105 | AX22: 2309 | AY22: 275 | AZ22: 790 | BA22: 732 | BB22: 512 | BC22: 2446 | BD22: 275 | BE22: 790 | BF22: 732 | BG22: 649 | BH22: 0 | BM22: 0 | BT22: 2347 | BU22: 291 | BV22: 815 | BW22: 740 | BX22: 501 | BY22: 2487 | BZ22: 291 | CA22: 815 | CB22: 740 | CC22: 641 | CD22: 0 | CI22: 0 | CP22: 101 | CQ22: 3221 | CR22: 2922.759806 | CS22: 3621.588632 | CT22: 3611.415858 | CV22: 328.315 | CW22: 3141.235 | CY22: 376344.0669 | CZ22: 145755.6584 | DA22: 206382.8606 | DB22: 24205.54789 | DC22: 0.9445129872 | DD22: 0.9426258886 | DE22: 0.955409973 | DF22: 0.8703649897 | DG22: -0.02226511247 | DH22: -0.02417377373 | DI22: -0.009048126648 | DJ22: 265952.7479 | DK22: 15741661.18 | DL22: 65762 | DU22: 25 | DV22: 3 | DW22: 0 | DX22: 0 | DY22: 3 | DZ22: 1419 | EA22: 0 | EB22: 1 | EC22: 1 | ED22: 1 | EE22: 2 | EF22: 0 | EG22: 3028 | EH22: 1959 | EI22: 610 | EJ22: 455 | EK22: 0 | EL22: 50 | EM22: 4 | EN22: 277 | EO22: 291.3 | EP22: 213 | EQ22: 78.3 | ER22: 1643.2 | ES22: 1438.6 | ET22: 204.6 | EU22: 135.5 | EV22: 77.5 | EW22: 34.6 | EX22: 3805 | EY22: 1116 | EZ22: 1116 | FA22: 0 | FB22: 99.13832321 | FC22: 99.89129853 | FD22: 110.0289189 | FE22: 112.8103445 | FF22: 96.80988224 | FG22: 108.1386864 | FH22: 122.2596388 | FI22: 115.4830975 | FJ22: 108.7998646 | FK22: 76.41055327 | FL22: 106.6889444 | FM22: 129.9099435 | FN22: 102.1399254 | FO22: 102.5565929 | FP22: 98.81690532 | FQ22: 112.5383973 | FR22: 110.221172 | FS22: 107.3582131 | FT22: 100.5631257 | FU22: 94.59379019 | FV22: 98.76312561 | FW22: 93.78206251 | FX22: 89.1537525 | FY22: 91.98802529 | FZ22: 90.06813571 | GA22: 83.96733215 | GB22: 77.89877891 | GC22: 104.0596502 | GD22: 132.9836713 | GE22: 132.1247636 | GF22: 101.6978651 | GG22: 101.1832215 | GH22: 98.07652446 | GI22: 108.7230535 | GJ22: 105.9162178 | GK22: 106.1281723 | GL22: 7.3 | GM22: 8.5 | GN22: 1.2 | GO22: 9.2 | GP22: 9 | GQ22: -0.2 | GR22: 2.5 | GS22: 10.1 | GT22: 7.6 | GU22: 2.5 | GV22: 10.1 | GW22: 0 | GX22: 0 | GY22: 5.6 | GZ22: 3.7 | HB22: 104 | HC22: 15 | HD22: 89 | HE22: 230 | HF22: 195 | HG22: 35 | HH22: 129.3 | HI22: 89 | HJ22: 40.3 | HK22: 390.8 | HL22: 156.2 | HM22: 234.6 | HO22: 321 | HQ22: 21 | HR22: 2 | HS22: 17 | HT22: 17 | HU22: 0 | HV22: 7 | HW22: 0 | HX22: 1 | HY22: 1 | HZ22: 4 | IA22: 7 | IB22: 0 | IC22: 5 | ID22: 0 | IE22: 9 | IF22: 0 | IG22: 8 | IH22: 24 | II22: 2 | IJ22: 2 | IK22: 0 | IL22: 0 | IM22: 5 | IN22: 7 | IO22: 10 | IP22: 13 | IQ22: 2 | IR22: 9 | IS22: 6 | IT22: 0 | IU22: 10 | IV22: 4 | IW22: 5 | IX22: 6 | IY22: 0 | IZ22: 2 | JA22: 2 | JB22: 2 | JC22: 1 | JD22: 0 | JE22: 8 | JF22: 0 | JG22: 0 | JH22: 0 | JI22: 1 | JJ22: 2 | JK22: 1 | JL22: 0 | JM22: 1 | JN22: 0 | JO22: 0 | JP22: 1 | JQ22: 0 | JR22: 0 | JS22: 1 | JT22: 0 | JV22: 7 | JW22: 4 | JX22: 18 | JY22: 1448 | JZ22: 7 | KA22: 27 | KC22: 0 | KD22: 0 | KE22: 7 | KF22: 619 | KG22: 28 | KH22: 1314 | KI22: 2 | KJ22: 52 | KK22: 5 | KL22: 192 | KM22: 2 | KN22: 101 | KO22: 2 | KP22: 97 | KQ22: 55 | KR22: 846 | KS22: 13 | KT22: 304 | KU22: 16 | KV22: 411 | KX22: 25 | KZ22: 1304 | LA22: 2727 | LC22: 223.93 | LD22: 104.385 | LE22: 2735.155 | LF22: 406.08 | LH22: 208460 | LI22: 37.61267926 | LJ22: 5542.28 | LK22: 208460 | LL22: 193299 | LM22: 180197 | LN22: 166942 | LO22: 153668 | LP22: 140420 | LQ22: 21985 | LR22: 18372 | LS22: 15379 | LT22: 13544 | LU22: 12433 | LV22: 11394 | LW22: 114630 | LX22: 103998 | LY22: 95034 | LZ22: 86149 | MA22: 74959 | MB22: 65453 | MC22: 71845 | MD22: 70929 | ME22: 69784 | MF22: 67249 | MG22: 66276 | MH22: 63573 | MI22: 34621 | MJ22: 29066 | MK22: 25628 | ML22: 24122 | MM22: 24651 | MN22: 24394 | MO22: 23917 | MP22: 27127 | MQ22: 28410 | MR22: 24129 | MS22: 21591 | MT22: 20503 | MU22: 13307 | MV22: 14736 | MW22: 15746 | MX22: 18998 | MY22: 20034 | MZ22: 18676 | NA22: 北見市、網走市、網走郡美幌町、網走郡津別町、斜里郡斜里町、斜里郡清里町、斜里郡小清水町、常呂郡訓子府町、常呂郡置戸町、網走郡大空町 | NB22: 北見赤十字病院（標準群・救命） | ND22: 網走厚生病院（標準群）
A23: 18 | B23: 遠紋 | C23: 過疎地域型 | D23: 紋別郡湧別町,紋別市,紋別郡滝上町,常呂郡佐呂間町,紋別郡西興部村,紋別郡遠軽町,紋別郡雄武町,紋別郡興部町 | F23: 北海道 | G23: 北海道 | H23: 0118 | I23: 紋別（北海道） | J23: エンモン | K23: 紋別市及び周辺部 | L23: 1.342364336 | M23: 2.218733963 | N23: -0.1629625542 | O23: -0.1099817934 | P23: 0.5603372552 | Q23: 0.965236904 | R23: -0.09048860047 | S23: -0.1896833525 | T23: -0.04080951542 | U23: 191.7158427 | V23: 996.1318011 | X23: 119.1 | Y23: 572.2 | Z23: 24 | AB23: 0 | AC23: 0 | AD23: 0 | AE23: 0 | AF23: 0 | AG23: 0 | AH23: 0 | AI23: 0 | AK23: 0 | AL23: 0 | AM23: 2 | AN23: 4 | AO23: 0 | AQ23: 691 | AR23: 92 | AS23: 302 | AT23: 189 | AU23: 108 | AV23: 0 | AX23: 533 | AY23: 46 | AZ23: 186 | BA23: 202 | BB23: 99 | BC23: 651 | BD23: 46 | BE23: 186 | BF23: 202 | BG23: 217 | BH23: 0 | BM23: 0 | BT23: 790 | BU23: 90 | BV23: 286 | BW23: 284 | BX23: 130 | BY23: 921 | BZ23: 90 | CA23: 286 | CB23: 284 | CC23: 261 | CD23: 0 | CI23: 0 | CP23: 29 | CQ23: 1040 | CR23: 1086.126646 | CS23: 1184.924619 | CT23: 1036.646277 | CV23: 112.77 | CW23: 1088.63 | CY23: 373255.3004 | CZ23: 157012.7907 | DA23: 192654.9644 | DB23: 23587.54532 | DC23: 0.9513620363 | DD23: 1.032694635 | DE23: 0.9052056404 | DF23: 0.8587931551 | DG23: 0.01267008238 | DH23: -0.05142274828 | DI23: -0.009885297776 | DJ23: 246193.0409 | DK23: 4796761.014 | DL23: 24166 | DU23: 9 | DV23: 1 | DW23: 0 | DX23: 0 | DY23: 1 | DZ23: 339 | EA23: 0 | EB23: 0 | EC23: 0 | ED23: 0 | EE23: 2 | EF23: 0 | EG23: 923 | EH23: 626 | EI23: 158 | EJ23: 135 | EK23: 0 | EL23: 0 | EM23: 4 | EN23: 66 | EO23: 77.5 | EP23: 56 | EQ23: 21.5 | ER23: 456.5 | ES23: 362.8 | ET23: 93.7 | EU23: 16 | EV23: 8 | EW23: 0 | EX23: 508 | EY23: 84 | EZ23: 84 | FA23: 0 | FB23: 104.3974194 | FC23: 102.4326635 | FD23: 113.6985708 | FE23: 118.3185308 | FF23: 102.0370802 | FG23: 109.3700339 | FH23: 118.9651976 | FI23: 112.3556845 | FJ23: 105.0363474 | FK23: 91.4739689 | FL23: 121.3739152 | FM23: 140.4461971 | FN23: 112.4504044 | FO23: 108.2978328 | FP23: 148.0825771 | FQ23: 144.1084352 | FR23: 151.1129903 | FS23: 121.549087 | FT23: 112.4964825 | FU23: 117.3522412 | FV23: 109.1707149 | FW23: 119.4257656 | FX23: 112.9856434 | FY23: 121.1172828 | FZ23: 94.07135208 | GA23: 95.34927607 | GB23: 98.79702739 | GC23: 98.73417722 | GD23: 145.1204498 | GE23: 134.2184214 | GF23: 74.92473536 | GG23: 66.99990459 | GH23: 113.6578764 | GI23: 122.3646379 | GJ23: 109.5899368 | GK23: 106.7 | GL23: 0.7 | GM23: 32.7 | GN23: 32 | GO23: 0 | GP23: 39.9 | GQ23: 39.9 | GR23: 0 | GS23: 15 | GT23: 15 | GU23: 0 | GV23: 15 | GW23: 0 | GX23: 0 | GY23: 3.3 | GZ23: 19.2 | HB23: 35 | HC23: 5 | HD23: 30 | HE23: 81 | HF23: 51 | HG23: 30 | HH23: 41.6 | HI23: 26 | HJ23: 15.6 | HK23: 115.7 | HL23: 55.9 | HM23: 59.8 | HO23: 86 | HQ23: 3 | HR23: 0 | HS23: 5 | HT23: 10 | HU23: 0 | HV23: 1 | HW23: 0 | HX23: 2 | HY23: 2 | HZ23: 0 | IA23: 2 | IB23: 0 | IC23: 1 | ID23: 0 | IE23: 5 | IF23: 0 | IG23: 1 | IH23: 11 | II23: 0 | IJ23: 1 | IK23: 0 | IL23: 0 | IM23: 2 | IN23: 1 | IO23: 0 | IP23: 6 | IQ23: 0 | IR23: 2 | IS23: 0 | IT23: 0 | IU23: 2 | IV23: 2 | IW23: 0 | IX23: 3 | IY23: 0 | IZ23: 3 | JA23: 1 | JB23: 0 | JC23: 0 | JD23: 0 | JE23: 3 | JF23: 1 | JG23: 0 | JH23: 0 | JI23: 0 | JJ23: 0 | JK23: 1 | JL23: 0 | JM23: 1 | JN23: 0 | JO23: 0 | JP23: 0 | JQ23: 1 | JR23: 0 | JS23: 0 | JT23: 0 | JV23: 2 | JW23: 2 | JX23: 7 | JY23: 147 | JZ23: 3 | KA23: 4 | KC23: 0 | KD23: 0 | KE23: 3 | KF23: 226 | KG23: 12 | KH23: 528 | KI23: 1 | KJ23: 56 | KK23: 1 | KL23: 50 | KM23: 0 | KN23: 0 | KO23: 0 | KP23: 0 | KQ23: 12 | KR23: 180 | KS23: 2 | KT23: 62 | KU23: 2 | KV23: 62 | KX23: 6 | KZ23: 309 | LA23: 837 | LC23: 84.53 | LD23: 28.24 | LE23: 973.93 | LF23: 114.7 | LH23: 64902 | LI23: 12.6066139 | LJ23: 5148.25 | LK23: 64902 | LL23: 59280 | LM23: 53978 | LN23: 48929 | LO23: 44092 | LP23: 39493 | LQ23: 6444 | LR23: 5384 | LS23: 4467 | LT23: 3893 | LU23: 3478 | LV23: 3101 | LW23: 34114 | LX23: 30841 | LY23: 27676 | LZ23: 24673 | MA23: 21380 | MB23: 18513 | MC23: 24344 | MD23: 23055 | ME23: 21835 | MF23: 20363 | MG23: 19234 | MH23: 17879 | MI23: 11081 | MJ23: 9193 | MK23: 8011 | ML23: 7377 | MM23: 7102 | MN23: 6738 | MO23: 8410 | MP23: 8777 | MQ23: 8751 | MR23: 7325 | MS23: 6462 | MT23: 6002 | MU23: 4853 | MV23: 5085 | MW23: 5073 | MX23: 5661 | MY23: 5670 | MZ23: 5139 | NA23: 紋別市、常呂郡佐呂間町、紋別郡遠軽町、紋別郡湧別町、紋別郡滝上町、紋別郡興部町、紋別郡雄武町、紋別郡西興部村
A24: 19 | B24: 十勝 | C24: 地方都市型 | D24: 広尾郡広尾町,広尾郡大樹町,帯広市,河東郡音更町,河東郡士幌町,河東郡上士幌町,河東郡鹿追町,上川郡新得町,上川郡清水町,河西郡更別村,中川郡幕別町,中川郡池田町,中川郡豊頃町,中川郡本別町,足寄郡足寄町,足寄郡陸別町,十勝郡浦幌町,河西郡中札内村,河西郡芽室町 | F24: 北海道 | G24: 北海道 | H24: 0119 | I24: 帯広（北海道） | J24: トカチ | K24: 帯広市及び周辺部 | L24: 1.577795474 | M24: 1.160937588 | N24: 0.1151760898 | O24: -0.1758846349 | P24: 0.6621049467 | Q24: 1.103156999 | R24: 0.1803204263 | S24: -0.03623867635 | T24: -0.08931122359 | U24: 194.9257062 | V24: 958.2134257 | X24: 721.3 | Y24: 3351.8 | Z24: 489.2 | AB24: 18 | AC24: 10 | AD24: 0 | AE24: 12 | AF24: 0 | AG24: 0 | AH24: 9 | AI24: 0 | AK24: 0 | AL24: 0 | AM24: 2 | AN24: 6 | AO24: 0 | AQ24: 4281 | AR24: 429 | AS24: 1459 | AT24: 1108 | AU24: 1247 | AV24: 38 | AX24: 3903 | AY24: 363 | AZ24: 1141 | BA24: 1168 | BB24: 1231 | BC24: 4029 | BD24: 363 | BE24: 1141 | BF24: 1168 | BG24: 1357 | BH24: 0 | BM24: 0 | BT24: 3989 | BU24: 383 | BV24: 1176 | BW24: 1200 | BX24: 1230 | BY24: 4115 | BZ24: 383 | CA24: 1176 | CB24: 1200 | CC24: 1356 | CD24: 0 | CI24: 0 | CP24: 154 | CQ24: 5695 | CR24: 4156.595118 | CS24: 5254.766328 | CT24: 5523.897215 | CV24: 471.485 | CW24: 5401.145 | CY24: 369666.0703 | CZ24: 134792.9175 | DA24: 205553.488 | DB24: 29319.66484 | DC24: 0.9499581923 | DD24: 0.8949000521 | DE24: 0.9735260216 | DF24: 1.071132625 | DG24: -0.04068084284 | DH24: -0.01436452924 | DI24: 0.005003564393 | DJ24: 268485.3666 | DK24: 22878434.15 | DL24: 94298 | DU24: 32 | DV24: 8 | DW24: 0 | DX24: 1 | DY24: 7 | DZ24: 1934 | EA24: 0 | EB24: 1 | EC24: 2 | ED24: 1 | EE24: 2 | EF24: 1 | EG24: 4562 | EH24: 3201 | EI24: 888 | EJ24: 467 | EK24: 0 | EL24: 350 | EM24: 6 | EN24: 337 | EO24: 507.5 | EP24: 408 | EQ24: 99.5 | ER24: 2763.1 | ES24: 2404 | ET24: 359.1 | EU24: 299.1 | EV24: 163.3 | EW24: 26.8 | EX24: 6562 | EY24: 1500 | EZ24: 1500 | FA24: 0 | FB24: 98.4435589 | FC24: 97.87008603 | FD24: 109.957771 | FE24: 115.7148029 | FF24: 96.41146211 | FG24: 98.11709841 | FH24: 112.9639964 | FI24: 120.1288557 | FJ24: 108.2458898 | FK24: 105.5071477 | FL24: 116.4823884 | FM24: 134.9695501 | FN24: 96.9169961 | FO24: 95.30133728 | FP24: 87.47679427 | FQ24: 90.45700427 | FR24: 114.9110107 | FS24: 103.8195808 | FT24: 87.11755855 | FU24: 89.6649262 | FV24: 91.06752465 | FW24: 97.36444429 | FX24: 87.61556518 | FY24: 87.76021384 | FZ24: 86.67471412 | GA24: 83.74792441 | GB24: 79.79181058 | GC24: 101.1584798 | GD24: 133.9944797 | GE24: 121.8094927 | GF24: 90.44243129 | GG24: 83.55783006 | GH24: 97.58659909 | GI24: 102.5660068 | GJ24: 112.4676108 | GK24: 114.9033995 | GL24: 2.2 | GM24: 4.4 | GN24: 2.2 | GO24: 2.1 | GP24: 4.1 | GQ24: 2 | GR24: 1.2 | GS24: 3.7 | GT24: 2.5 | GU24: 1.2 | GV24: 3.7 | GW24: 0 | GX24: 0 | GY24: 5 | GZ24: 8 | HB24: 201 | HC24: 21 | HD24: 180 | HE24: 255 | HF24: 245 | HG24: 10 | HH24: 213.8 | HI24: 147 | HJ24: 66.8 | HK24: 588.7 | HL24: 370.1 | HM24: 218.6 | HO24: 622 | HQ24: 41 | HR24: 9 | HS24: 31 | HT24: 39 | HU24: 2 | HV24: 10 | HW24: 3 | HX24: 7 | HY24: 2 | HZ24: 2 | IA24: 8 | IB24: 4 | IC24: 12 | ID24: 2 | IE24: 22 | IF24: 0 | IG24: 19 | IH24: 40 | II24: 3 | IJ24: 4 | IK24: 3 | IL24: 0 | IM24: 13 | IN24: 15 | IO24: 25 | IP24: 34 | IQ24: 8 | IR24: 14 | IS24: 11 | IT24: 1 | IU24: 13 | IV24: 1 | IW24: 5 | IX24: 22 | IY24: 3 | IZ24: 15 | JA24: 0 | JB24: 1 | JC24: 4 | JD24: 4 | JE24: 23 | JF24: 0 | JG24: 5 | JH24: 0 | JI24: 6 | JJ24: 3 | JK24: 1 | JL24: 1 | JM24: 3 | JN24: 0 | JO24: 3 | JP24: 1 | JQ24: 1 | JR24: 1 | JS24: 1 | JT24: 0 | JV24: 22 | JW24: 11 | JX24: 47 | JY24: 3278 | JZ24: 16 | KA24: 38 | KC24: 0 | KD24: 0 | KE24: 14 | KF24: 1309 | KG24: 42 | KH24: 2059 | KI24: 2 | KJ24: 75 | KK24: 0 | KL24: 0 | KM24: 11 | KN24: 777 | KO24: 4 | KP24: 251 | KQ24: 81 | KR24: 1224 | KS24: 20 | KT24: 720 | KU24: 25 | KV24: 994 | KX24: 37 | KZ24: 1646 | LA24: 3422 | LC24: 348.34 | LD24: 123.145 | LE24: 4933.56 | LF24: 467.585 | LH24: 332648 | LI24: 30.72097997 | LJ24: 10828.04 | LK24: 332648 | LL24: 317042 | LM24: 303303 | LN24: 289113 | LO24: 274399 | LP24: 258925 | LQ24: 38774 | LR24: 33369 | LS24: 28981 | LT24: 26709 | LU24: 25343 | LV24: 23853 | LW24: 187792 | LX24: 177086 | LY24: 166879 | LZ24: 155495 | MA24: 140607 | MB24: 127843 | MC24: 106082 | MD24: 106587 | ME24: 107443 | MF24: 106909 | MG24: 108449 | MH24: 107229 | MI24: 50600 | MJ24: 44224 | MK24: 40635 | ML24: 40218 | MM24: 42041 | MN24: 41913 | MO24: 35686 | MP24: 39995 | MQ24: 42362 | MR24: 37435 | MS24: 34942 | MT24: 34957 | MU24: 19796 | MV24: 22368 | MW24: 24446 | MX24: 29256 | MY24: 31466 | MZ24: 30359 | NA24: 帯広市、河東郡音更町、河東郡士幌町、河東郡上士幌町、河東郡鹿追町、上川郡新得町、上川郡清水町、河西郡芽室町、河西郡中札内村、河西郡更別村、広尾郡大樹町、広尾郡広尾町、中川郡幕別町、中川郡池田町、中川郡豊頃町、中川郡本別町、足寄郡足寄町、足寄郡陸別町、十勝郡浦幌町 | NB24: 帯広厚生病院（特定群・救命） | NC24: 帯広協会病院（標準群）、北斗病院（標準群）
A25: 20 | B25: 釧路 | C25: 地方都市型 | D25: 白糠郡白糠町,阿寒郡鶴居村,厚岸郡浜中町,釧路市,川上郡弟子屈町,川上郡標茶町,厚岸郡厚岸町,釧路郡釧路町 | F25: 北海道 | G25: 北海道 | H25: 0120 | I25: 釧路（北海道） | J25: クシロ | K25: 釧路市及び周辺部 | L25: 1.886517977 | M25: 1.212722746 | N25: -0.01524318794 | O25: -0.2035376493 | P25: 0.6881599532 | Q25: 1.323252613 | R25: 0.06617984439 | S25: -0.1532017355 | T25: -0.1070133031 | U25: 187.2336042 | V25: 1186.75715 | X25: 501.7 | Y25: 2690.6 | Z25: 280.9 | AB25: 16 | AC25: 18 | AD25: 3 | AE25: 0 | AF25: 15 | AG25: 0 | AH25: 0 | AI25: 0 | AK25: 0 | AL25: 0 | AM25: 1 | AN25: 4 | AO25: 10 | AQ25: 3413 | AR25: 373 | AS25: 1550 | AT25: 479 | AU25: 1011 | AV25: 0 | AX25: 2866 | AY25: 355 | AZ25: 1139 | BA25: 852 | BB25: 520 | BC25: 3113 | BD25: 355 | BE25: 1139 | BF25: 852 | BG25: 767 | BH25: 0 | BM25: 0 | BT25: 2606 | BU25: 312 | BV25: 1022 | BW25: 764 | BX25: 508 | BY25: 2848 | BZ25: 312 | CA25: 1022 | CB25: 764 | CC25: 750 | CD25: 0 | CI25: 0 | CP25: 92 | CQ25: 3475 | CR25: 2820.13687 | CS25: 3482.669241 | CT25: 3343.180175 | CV25: 316.725 | CW25: 3625.53 | CY25: 418727.7937 | CZ25: 173656.5889 | DA25: 216942.6871 | DB25: 28128.51773 | DC25: 1.011795971 | DD25: 1.077295104 | DE25: 0.968074194 | DF25: 0.9851664166 | DG25: 0.03010715528 | DH25: -0.01728778681 | DI25: -0.001023397806 | DJ25: 252161.8482 | DK25: 15921506.31 | DL25: 68603 | DU25: 22 | DV25: 4 | DW25: 0 | DX25: 0 | DY25: 4 | DZ25: 1760 | EA25: 0 | EB25: 1 | EC25: 2 | ED25: 2 | EE25: 2 | EF25: 0 | EG25: 3823 | EH25: 2420 | EI25: 914 | EJ25: 475 | EK25: 10 | EL25: 93 | EM25: 4 | EN25: 320 | EO25: 361.1 | EP25: 295 | EQ25: 66.1 | ER25: 2324.1 | ES25: 2088.8 | ET25: 235.3 | EU25: 171.7 | EV25: 82.7 | EW25: 26.5 | EX25: 7616 | EY25: 420 | EZ25: 420 | FA25: 0 | FB25: 110.5226799 | FC25: 106.4671728 | FD25: 121.3171679 | FE25: 121.1035246 | FF25: 115.3239918 | FG25: 108.8129546 | FH25: 139.3235813 | FI25: 118.9278163 | FJ25: 122.5219973 | FK25: 110.8571512 | FL25: 124.1371275 | FM25: 150.0006823 | FN25: 110.2945963 | FO25: 105.8835816 | FP25: 74.42159413 | FQ25: 83.14542097 | FR25: 104.7158103 | FS25: 109.9205147 | FT25: 100.691487 | FU25: 90.72042018 | FV25: 107.1240258 | FW25: 91.28468176 | FX25: 99.72210218 | FY25: 97.19755079 | FZ25: 105.8847963 | GA25: 102.4824222 | GB25: 99.91965664 | GC25: 134 | GD25: 171.919333 | GE25: 155.6975321 | GF25: 100.9254447 | GG25: 98.72568604 | GH25: 113.5500645 | GI25: 105.3412589 | GJ25: 108.5106211 | GK25: 102.9284673 | GL25: 11 | GM25: 3.9 | GN25: -7.1 | GO25: 11.8 | GP25: 3.6 | GQ25: -8.2 | GR25: 11.1 | GS25: 1.1 | GT25: -10 | GU25: 11.1 | GV25: 1.1 | GW25: 0 | GX25: 0 | GY25: 5.8 | GZ25: 10.5 | HB25: 105 | HC25: 12 | HD25: 93 | HE25: 170 | HF25: 156 | HG25: 14 | HH25: 140.6 | HI25: 100 | HJ25: 40.6 | HK25: 366.5 | HL25: 221.9 | HM25: 144.6 | HO25: 429 | HQ25: 22 | HR25: 4 | HS25: 8 | HT25: 24 | HU25: 3 | HV25: 6 | HW25: 2 | HX25: 3 | HY25: 4 | HZ25: 3 | IA25: 5 | IB25: 2 | IC25: 1 | ID25: 0 | IE25: 15 | IF25: 0 | IG25: 9 | IH25: 27 | II25: 2 | IJ25: 3 | IK25: 2 | IL25: 0 | IM25: 7 | IN25: 14 | IO25: 15 | IP25: 18 | IQ25: 3 | IR25: 5 | IS25: 9 | IT25: 0 | IU25: 10 | IV25: 0 | IW25: 5 | IX25: 7 | IY25: 2 | IZ25: 5 | JA25: 0 | JB25: 1 | JC25: 1 | JD25: 0 | JE25: 10 | JF25: 1 | JG25: 2 | JH25: 0 | JI25: 0 | JJ25: 3 | JK25: 0 | JL25: 0 | JM25: 0 | JN25: 2 | JO25: 3 | JP25: 1 | JQ25: 0 | JR25: 4 | JS25: 0 | JT25: 0 | JV25: 7 | JW25: 3 | JX25: 19 | JY25: 2119 | JZ25: 5 | KA25: 20 | KC25: 0 | KD25: 0 | KE25: 7 | KF25: 607 | KG25: 18 | KH25: 1231 | KI25: 0 | KJ25: 0 | KK25: 2 | KL25: 100 | KM25: 15 | KN25: 757 | KO25: 0 | KP25: 0 | KQ25: 50 | KR25: 780 | KS25: 10 | KT25: 295 | KU25: 10 | KV25: 295 | KX25: 18 | KZ25: 1130 | LA25: 3578 | LC25: 185.355 | LD25: 131.37 | LE25: 3060.93 | LF25: 564.6 | LH25: 222613 | LI25: 37.11775612 | LJ25: 5997.48 | LK25: 222613 | LL25: 205090 | LM25: 189619 | LN25: 174115 | LO25: 158591 | LP25: 143327 | LQ25: 22660 | LR25: 18405 | LS25: 15002 | LT25: 12747 | LU25: 11516 | LV25: 10343 | LW25: 123180 | LX25: 110755 | LY25: 100736 | LZ25: 90463 | MA25: 77916 | MB25: 67334 | MC25: 76773 | MD25: 75930 | ME25: 73881 | MF25: 70905 | MG25: 69159 | MH25: 65650 | MI25: 38209 | MJ25: 32464 | MK25: 27440 | ML25: 25812 | MM25: 26386 | MN25: 25644 | MO25: 25774 | MP25: 28813 | MQ25: 30591 | MR25: 26128 | MS25: 22417 | MT25: 21300 | MU25: 12790 | MV25: 14653 | MW25: 15850 | MX25: 18965 | MY25: 20356 | MZ25: 18706 | NA25: 釧路市、釧路郡釧路町、厚岸郡厚岸町、厚岸郡浜中町、川上郡標茶町、川上郡弟子屈町、白糠郡白糠町、阿寒郡鶴居村 | NB25: 市立釧路総合病院（標準群・救命） | NC25: 釧路労災病院（標準群）、釧路赤十字病院（標準群） | ND25: 釧路孝仁会記念病院（標準群）
A26: 21 | B26: 根室 | C26: 過疎地域型 | D26: 根室市,野付郡別海町,標津郡中標津町,標津郡標津町,目梨郡羅臼町 | F26: 北海道 | G26: 北海道 | H26: 0121 | I26: 根室（北海道） | J26: ネムロ | K26: 根室市及び周辺部 | L26: 0.4569711261 | M26: 1.298076737 | N26: -0.2519276787 | O26: -0.6257970759 | P26: 0.4318300513 | Q26: 0.6936175951 | R26: -0.1430548879 | S26: -0.4108864663 | T26: -0.4844110613 | U26: 106.5772264 | V26: 623.4055503 | X26: 101.5 | Y26: 454.7 | Z26: 28 | AB26: 0 | AC26: 0 | AD26: 0 | AE26: 0 | AF26: 0 | AG26: 0 | AH26: 0 | AI26: 0 | AK26: 0 | AL26: 0 | AM26: 1 | AN26: 4 | AO26: 0 | AQ26: 497 | AR26: 0 | AS26: 387 | AT26: 0 | AU26: 110 | AV26: 0 | AX26: 323 | AY26: 20 | AZ26: 97 | BA26: 122 | BB26: 84 | BC26: 337 | BD26: 20 | BE26: 97 | BF26: 122 | BG26: 98 | BH26: 0 | BM26: 0 | BT26: 696 | BU26: 83 | BV26: 253 | BW26: 235 | BX26: 125 | BY26: 715 | BZ26: 83 | CA26: 253 | CB26: 235 | CC26: 144 | CD26: 0 | CI26: 0 | CP26: 26 | CQ26: 899 | CR26: 828.7147937 | CS26: 1022.892688 | CT26: 1076.198019 | CV26: 83.7 | CW26: 895.68 | CY26: 335928.0476 | CZ26: 147604.2113 | DA26: 165815.2869 | DB26: 22508.5494 | DC26: 0.9189538687 | DD26: 1.04885286 | DE26: 0.8348899375 | DF26: 0.8585051105 | DG26: 0.01880709062 | DH26: -0.08970493303 | DI26: -0.01014828888 | DJ26: 209248.6813 | DK26: 3936075.337 | DL26: 19817 | DU26: 7 | DV26: 0 | DW26: 0 | DX26: 0 | DY26: 0 | DZ26: 306 | EA26: 0 | EB26: 0 | EC26: 0 | ED26: 0 | EE26: 1 | EF26: 0 | EG26: 702 | EH26: 423 | EI26: 60 | EJ26: 215 | EK26: 0 | EL26: 0 | EM26: 4 | EN26: 28 | EO26: 76.1 | EP26: 54 | EQ26: 22.1 | ER26: 404.6 | ES26: 331.6 | ET26: 73 | EU26: 13 | EV26: 13 | EW26: 2 | EX26: 406 | EY26: 252 | EZ26: 252 | FA26: 0 | FB26: 106.9046461 | FC26: 108.6492919 | FD26: 114.0105406 | FE26: 118.5227405 | FF26: 103.2011828 | FG26: 106.5710612 | FH26: 116.3583055 | FI26: 120.8138515 | FJ26: 97.32577932 | FK26: 94.36931006 | FL26: 129.0647305 | FM26: 137.5279526 | FN26: 116.3758591 | FO26: 119.3519091 | FP26: 100.8267499 | FQ26: 107.8440172 | FR26: 143.089439 | FS26: 133.5382781 | FT26: 108.2407825 | FU26: 104.0360096 | FV26: 91.82950131 | FW26: 107.8780175 | FX26: 117.9293507 | FY26: 99.91848381 | FZ26: 99.07310618 | GA26: 98.46969828 | GB26: 89.83415786 | GC26: 117.5950937 | GD26: 141.0723604 | GE26: 168.2346607 | GF26: 81.05649213 | GG26: 76.6879412 | GH26: 124.0019231 | GI26: 112.1159322 | GJ26: 122.6377707 | GK26: 120.2403252 | GL26: 2.6 | GM26: 37.7 | GN26: 35.1 | GO26: 0.9 | GP26: 46.2 | GQ26: 45.3 | GR26: 0 | GS26: 49.7 | GT26: 49.7 | GU26: 0 | GV26: 49.7 | GW26: 0 | GX26: 0 | GY26: 4.5 | GZ26: 10.8 | HB26: 22 | HC26: 2 | HD26: 20 | HE26: 17 | HF26: 17 | HG26: 0 | HH26: 25.4 | HI26: 14 | HJ26: 11.4 | HK26: 50.1 | HL26: 31.4 | HM26: 18.7 | HO26: 77 | HQ26: 1 | HR26: 0 | HS26: 1 | HT26: 9 | HU26: 1 | HV26: 4 | HW26: 1 | HX26: 1 | HY26: 0 | HZ26: 2 | IA26: 2 | IB26: 3 | IC26: 1 | ID26: 2 | IE26: 6 | IF26: 0 | IG26: 3 | IH26: 9 | II26: 0 | IJ26: 0 | IK26: 0 | IL26: 0 | IM26: 6 | IN26: 2 | IO26: 1 | IP26: 3 | IQ26: 0 | IR26: 0 | IS26: 0 | IT26: 0 | IU26: 5 | IV26: 1 | IW26: 0 | IX26: 3 | IY26: 0 | IZ26: 1 | JA26: 0 | JB26: 1 | JC26: 0 | JD26: 0 | JE26: 6 | JF26: 0 | JG26: 2 | JH26: 0 | JI26: 0 | JJ26: 0 | JK26: 1 | JL26: 0 | JM26: 1 | JN26: 0 | JO26: 0 | JP26: 0 | JQ26: 0 | JR26: 0 | JS26: 0 | JT26: 0 | JV26: 0 | JW26: 2 | JX26: 8 | JY26: 98 | JZ26: 0 | KA26: 0 | KC26: 0 | KD26: 0 | KE26: 2 | KF26: 146 | KG26: 7 | KH26: 352 | KI26: 1 | KJ26: 60 | KK26: 0 | KL26: 0 | KM26: 1 | KN26: 42 | KO26: 2 | KP26: 74 | KQ26: 13 | KR26: 225 | KS26: 1 | KT26: 20 | KU26: 3 | KV26: 94 | KX26: 6 | KZ26: 126 | LA26: 337 | LC26: 67.6 | LD26: 16.1 | LE26: 835.33 | LF26: 60.35 | LH26: 71771 | LI26: 20.31354368 | LJ26: 3533.16 | LK26: 71771 | LL26: 66566 | LM26: 61885 | LN26: 57217 | LO26: 52607 | LP26: 47992 | LQ26: 8486 | LR26: 6900 | LS26: 5616 | LT26: 4844 | LU26: 4401 | LV26: 3975 | LW26: 41252 | LX26: 37692 | LY26: 34378 | LZ26: 30995 | MA26: 27062 | MB26: 23632 | MC26: 22033 | MD26: 21974 | ME26: 21891 | MF26: 21378 | MG26: 21144 | MH26: 20385 | MI26: 11063 | MJ26: 9815 | MK26: 8686 | ML26: 8278 | MM26: 8324 | MN26: 8082 | MO26: 7408 | MP26: 8089 | MQ26: 8678 | MR26: 7838 | MS26: 7035 | MT26: 6762 | MU26: 3562 | MV26: 4070 | MW26: 4527 | MX26: 5262 | MY26: 5785 | MZ26: 5541 | NA26: 根室市、野付郡別海町、標津郡中標津町、標津郡標津町、目梨郡羅臼町
A27: 22 | B27: 津軽地域 | C27: 地方都市型 | D27: 南津軽郡藤崎町,南津軽郡大鰐町,弘前市,平川市,南津軽郡田舎館村,北津軽郡板柳町,中津軽郡西目屋村,黒石市 | F27: 青森県 | G27: 東北 | H27: 0201 | I27: 弘前（青森） | J27: ツガルチイキ | K27: 弘前市、黒石市及び周辺部 | L27: 1.315450235 | M27: 0.6603187379 | N27: 0.06956902464 | O27: -0.04414169564 | P27: 1.131807087 | Q27: 1.313074601 | R27: 0.1064039944 | S27: -0.01337489438 | T27: -0.002805015359 | U27: 310.3137222 | V27: 1099.267339 | X27: 1021.2 | Y27: 3304.3 | Z27: 456.5 | AB27: 10 | AC27: 16 | AD27: 17 | AE27: 0 | AF27: 9 | AG27: 0 | AH27: 0 | AI27: 0 | AK27: 0 | AL27: 0 | AM27: 1 | AN27: 4 | AO27: 0 | AQ27: 3518 | AR27: 444 | AS27: 1909 | AT27: 529 | AU27: 636 | AV27: 0 | AX27: 0 | BC27: 3139 | BD27: 318 | BE27: 1110 | BF27: 1244 | BG27: 467 | BH27: 0 | BM27: 0 | BT27: 0 | BY27: 0 | CD27: 0 | CI27: 0 | CP27: 121 | CQ27: 4227 | CR27: 3708.423423 | CS27: 4205.505812 | CT27: 4161.640814 | CV27: 499.95 | CW27: 4852.535 | CY27: 375453.9547 | CZ27: 142577.7927 | DA27: 211410.9307 | DB27: 21465.23128 | DC27: 0.9244635116 | DD27: 0.8998445551 | DE27: 0.9630312685 | DF27: 0.7623128632 | DG27: -0.03907437583 | DH27: -0.01998272398 | DI27: -0.01647938859 | DJ27: 302709.7808 | DK27: 26410213.58 | DL27: 85264 | DU27: 19 | DV27: 6 | DW27: 1 | DX27: 0 | DY27: 5 | DZ27: 2115 | EA27: 1 | EB27: 1 | EC27: 1 | ED27: 1 | EE27: 2 | EF27: 1 | EG27: 4004 | EH27: 2544 | EI27: 605 | EJ27: 851 | EK27: 0 | EL27: 271 | EM27: 4 | EN27: 159 | EO27: 746.6 | EP27: 658 | EQ27: 88.6 | ER27: 2508.1 | ES27: 2240.8 | ET27: 267.3 | EU27: 217.3 | EV27: 196 | EW27: 43.2 | EX27: 5949 | EY27: 828 | EZ27: 624 | FA27: 204 | FB27: 120.8805151 | FC27: 113.1785592 | FD27: 128.6183542 | FE27: 114.7389017 | FF27: 149.501025 | FG27: 135.0721742 | FH27: 161.8165593 | FI27: 127.8925799 | FJ27: 135.400309 | FK27: 137.4425905 | FL27: 118.0650461 | FM27: 102.1170475 | FN27: 122.8964518 | FO27: 118.3881122 | FP27: 104.3231267 | FQ27: 102.780528 | FR27: 143.4138429 | FS27: 138.504434 | FT27: 129.0552604 | FU27: 116.8306738 | FV27: 119.6914727 | FW27: 98.8146686 | FX27: 143.5372672 | FY27: 123.1490165 | FZ27: 144.1705963 | GA27: 128.8876431 | GB27: 127.9765934 | GC27: 94.50768781 | GD27: 136.960879 | GE27: 130.2007954 | GF27: 108.145558 | GG27: 109.1706544 | GH27: 143.2162092 | GI27: 128.9372715 | GJ27: 117.5435347 | GK27: 100.5498169 | GL27: 18.8 | GM27: 3.5 | GN27: -15.3 | GO27: 20.7 | GP27: 4.4 | GQ27: -16.3 | GR27: 13.5 | GS27: 1.4 | GT27: -12.1 | GU27: 13.5 | GV27: 1.4 | GW27: 0 | GX27: 0 | GY27: 16.4 | GZ27: 2 | HB27: 209 | HC27: 36 | HD27: 173 | HE27: 457 | HF27: 433 | HG27: 24 | HH27: 274.6 | HI27: 203 | HJ27: 71.6 | HK27: 796.2 | HL27: 412.2 | HM27: 384 | HO27: 578 | HQ27: 84 | HR27: 17 | HS27: 31 | HT27: 50 | HU27: 16 | HV27: 11 | HW27: 8 | HX27: 19 | HY27: 13 | HZ27: 13 | IA27: 18 | IB27: 9 | IC27: 11 | ID27: 3 | IE27: 35 | IF27: 3 | IG27: 26 | IH27: 70 | II27: 4 | IJ27: 10 | IK27: 2 | IL27: 0 | IM27: 23 | IN27: 20 | IO27: 21 | IP27: 53 | IQ27: 7 | IR27: 22 | IS27: 20 | IT27: 2 | IU27: 28 | IV27: 8 | IW27: 23 | IX27: 30 | IY27: 7 | IZ27: 9 | JA27: 2 | JB27: 9 | JC27: 15 | JD27: 1 | JE27: 47 | JF27: 5 | JG27: 3 | JH27: 0 | JI27: 7 | JJ27: 3 | JK27: 5 | JL27: 1 | JM27: 5 | JN27: 5 | JO27: 2 | JP27: 3 | JQ27: 5 | JR27: 3 | JS27: 3 | JT27: 1 | JV27: 22 | JW27: 3 | JX27: 34 | JY27: 2764 | JZ27: 22 | KA27: 68 | KC27: 0 | KD27: 0 | KE27: 15 | KF27: 1407 | KG27: 24 | KH27: 1356 | KI27: 4 | KJ27: 143 | KK27: 1 | KL27: 30 | KM27: 0 | KN27: 0 | KO27: 0 | KP27: 0 | KQ27: 77 | KR27: 1291 | KS27: 37 | KT27: 779 | KU27: 40 | KV27: 834 | KX27: 35 | KZ27: 1032 | LA27: 4644 | LC27: 316.6 | LD27: 183.35 | LE27: 3520.255 | LF27: 1332.28 | LH27: 275508 | LI27: 172.3831989 | LJ27: 1598.23 | LK27: 275508 | LL27: 256198 | LM27: 238728 | LN27: 220999 | LO27: 203204 | LP27: 185451 | LQ27: 28434 | LR27: 24819 | LS27: 21347 | LT27: 18103 | LU27: 16224 | LV27: 14560 | LW27: 154404 | LX27: 139026 | LY27: 125758 | LZ27: 113637 | MA27: 99623 | MB27: 86329 | MC27: 92670 | MD27: 92353 | ME27: 91623 | MF27: 89259 | MG27: 87357 | MH27: 84562 | MI27: 44619 | MJ27: 39753 | MK27: 36557 | ML27: 34257 | MM27: 33091 | MN27: 32434 | MO27: 30855 | MP27: 34322 | MQ27: 36385 | MR27: 33010 | MS27: 30852 | MT27: 29149 | MU27: 17196 | MV27: 18278 | MW27: 18681 | MX27: 21992 | MY27: 23414 | MZ27: 22979 | NA27: 弘前市、黒石市、平川市、南津軽郡藤崎町、南津軽郡大鰐町、南津軽郡田舎館村、北津軽郡板柳町、中津軽郡西目屋村 | NB27: 弘前大学医学部附属病院（大学本院群・救命） | NC27: NHO弘前総合医療センター（標準群） | ND27: 健生病院（標準群）
A28: 23 | B28: 八戸地域 | C28: 地方都市型 | D28: 八戸市,上北郡おいらせ町,三戸郡三戸町,三戸郡五戸町,三戸郡田子町,三戸郡南部町,三戸郡階上町,三戸郡新郷村 | F28: 青森県 | G28: 東北 | H28: 0202 | I28: 八戸（青森） | J28: ハチノヘチイキ | K28: 八戸市及び周辺部 | L28: 1.163402167 | M28: 0.5457612527 | N28: -0.07861964293 | O28: -0.4205983905 | P28: 0.8760458262 | Q28: 1.209139255 | R28: -0.03891154502 | S28: -0.3054621906 | T28: -0.3683007521 | U28: 207.7569216 | V28: 970.1436858 | X28: 890.2 | Y28: 3426.8 | Z28: 420.5 | AB28: 30 | AC28: 6 | AD28: 12 | AE28: 0 | AF28: 6 | AG28: 8 | AH28: 0 | AI28: 0 | AK28: 0 | AL28: 0 | AM28: 1 | AN28: 6 | AO28: 0 | AQ28: 3133 | AR28: 116 | AS28: 1709 | AT28: 616 | AU28: 692 | AV28: 0 | AX28: 0 | BC28: 3231 | BD28: 323 | BE28: 1122 | BF28: 1082 | BG28: 704 | BH28: 0 | BM28: 0 | BT28: 0 | BY28: 0 | CD28: 0 | CI28: 0 | CP28: 105 | CQ28: 3545 | CR28: 3788.910405 | CS28: 4761.020609 | CT28: 4990.192843 | CV28: 535 | CW28: 4385.1275 | CY28: 393028.5611 | CZ28: 152514.6565 | DA28: 214364.5139 | DB28: 26149.39058 | DC28: 0.9411631267 | DD28: 0.9357563246 | DE28: 0.9490541028 | DF28: 0.9098106827 | DG28: -0.02507378987 | DH28: -0.02755573061 | DI28: -0.006207352837 | DJ28: 279316.5314 | DK28: 25947196.2 | DL28: 89969 | DU28: 27 | DV28: 4 | DW28: 0 | DX28: 1 | DY28: 3 | DZ28: 1582 | EA28: 0 | EB28: 1 | EC28: 3 | ED28: 1 | EE28: 1 | EF28: 0 | EG28: 4299 | EH28: 2440 | EI28: 566 | EJ28: 1287 | EK28: 0 | EL28: 164 | EM28: 6 | EN28: 227 | EO28: 599 | EP28: 378 | EQ28: 221 | ER28: 2571.9 | ES28: 2320.7 | ET28: 251.2 | EU28: 209.7 | EV28: 177.8 | EW28: 33 | EX28: 5628 | EY28: 1644 | EZ28: 1332 | FA28: 312 | FB28: 116.5027076 | FC28: 111.7107998 | FD28: 113.3972578 | FE28: 109.2022093 | FF28: 107.5165286 | FG28: 101.3759185 | FH28: 123.5349462 | FI28: 130.3350265 | FJ28: 100.2687527 | FK28: 93.12333721 | FL28: 117.6826432 | FM28: 104.7540938 | FN28: 113.3876519 | FO28: 110.0990371 | FP28: 75.75167723 | FQ28: 71.35718067 | FR28: 153.3322913 | FS28: 134.6511222 | FT28: 136.6898271 | FU28: 135.3914455 | FV28: 133.6412446 | FW28: 110.8521065 | FX28: 144.2464604 | FY28: 151.1389474 | FZ28: 133.5720118 | GA28: 133.8195793 | GB28: 107.9068925 | GC28: 79.58771043 | GD28: 133.2563354 | GE28: 136.0170931 | GF28: 93.50151106 | GG28: 91.66563206 | GH28: 116.1512609 | GI28: 113.4910222 | GJ28: 124.431118 | GK28: 105.3758616 | GL28: 13.5 | GM28: 8.4 | GN28: -5.1 | GO28: 15.5 | GP28: 9.6 | GQ28: -5.9 | GR28: 8.7 | GS28: 3.8 | GT28: -4.9 | GU28: 7.5 | GV28: 4.6 | GW28: 13.9 | GX28: 0 | GY28: 12.8 | GZ28: 8.6 | HB28: 203 | HC28: 22 | HD28: 181 | HE28: 301 | HF28: 301 | HG28: 0 | HH28: 291.2 | HI28: 215 | HJ28: 76.2 | HK28: 854.9 | HL28: 457.4 | HM28: 397.5 | HO28: 572 | HQ28: 25 | HR28: 7 | HS28: 18 | HT28: 24 | HU28: 1 | HV28: 5 | HW28: 7 | HX28: 10 | HY28: 4 | HZ28: 1 | IA28: 13 | IB28: 6 | IC28: 9 | ID28: 1 | IE28: 17 | IF28: 2 | IG28: 23 | IH28: 47 | II28: 3 | IJ28: 6 | IK28: 0 | IL28: 2 | IM28: 14 | IN28: 15 | IO28: 16 | IP28: 47 | IQ28: 1 | IR28: 18 | IS28: 13 | IT28: 4 | IU28: 22 | IV28: 9 | IW28: 5 | IX28: 13 | IY28: 4 | IZ28: 16 | JA28: 0 | JB28: 6 | JC28: 6 | JD28: 1 | JE28: 21 | JF28: 0 | JG28: 6 | JH28: 0 | JI28: 1 | JJ28: 0 | JK28: 0 | JL28: 2 | JM28: 3 | JN28: 1 | JO28: 4 | JP28: 0 | JQ28: 0 | JR28: 0 | JS28: 0 | JT28: 0 | JV28: 16 | JW28: 6 | JX28: 34 | JY28: 2870 | JZ28: 15 | KA28: 54 | KC28: 0 | KD28: 0 | KE28: 13 | KF28: 1080 | KG28: 25 | KH28: 1210 | KI28: 3 | KJ28: 188 | KK28: 0 | KL28: 0 | KM28: 4 | KN28: 152 | KO28: 1 | KP28: 15 | KQ28: 59 | KR28: 900 | KS28: 25 | KT28: 588 | KU28: 26 | KV28: 603 | KX28: 49 | KZ28: 1817 | LA28: 3802 | LC28: 283.85 | LD28: 251.15 | LE28: 3480.5675 | LF28: 904.56 | LH28: 310282 | LI28: 230.3760627 | LJ28: 1346.85 | LK28: 310282 | LL28: 294091 | LM28: 276628 | LN28: 258333 | LO28: 239434 | LP28: 220502 | LQ28: 34681 | LR28: 30315 | LS28: 26057 | LT28: 22555 | LU28: 20272 | LV28: 18154 | LW28: 174526 | LX28: 160918 | LY28: 147789 | LZ28: 133379 | MA28: 116855 | MB28: 102972 | MC28: 101075 | MD28: 102858 | ME28: 102782 | MF28: 102399 | MG28: 102307 | MH28: 99376 | MI28: 50632 | MJ28: 45309 | MK28: 40705 | ML28: 40029 | MM28: 40932 | MN28: 38833 | MO28: 33439 | MP28: 38613 | MQ28: 41461 | MR28: 37456 | MS28: 34236 | MT28: 34084 | MU28: 17004 | MV28: 18936 | MW28: 20616 | MX28: 24914 | MY28: 27139 | MZ28: 26459 | NA28: 八戸市、上北郡おいらせ町、三戸郡三戸町、三戸郡五戸町、三戸郡田子町、三戸郡南部町、三戸郡階上町、三戸郡新郷村 | NB28: 八戸市立市民病院（特定群・救命） | NC28: 八戸赤十字病院（標準群） | ND28: 青森労災病院（標準群）
A29: 24 | B29: 青森地域 | C29: 地方都市型 | D29: 青森市,東津軽郡外ヶ浜町,東津軽郡蓬田村,東津軽郡今別町,東津軽郡平内町 | F29: 青森県 | G29: 東北 | H29: 0203 | I29: 青森（青森） | J29: アオモリチイキ | K29: 青森市及び周辺部 | L29: 1.221027861 | M29: 1.036222788 | N29: -0.02503707634 | O29: -0.2689003488 | P29: 0.8785692316 | Q29: 1.311560083 | R29: -0.01742687455 | S29: -0.248964599 | T29: -0.2594796284 | U29: 225.4572022 | V29: 1201.059073 | X29: 850.5 | Y29: 3541.1 | Z29: 517.2 | AB29: 6 | AC29: 12 | AD29: 40 | AE29: 0 | AF29: 0 | AG29: 9 | AH29: 24 | AI29: 0 | AK29: 0 | AL29: 1 | AM29: 2 | AN29: 5 | AO29: 33 | AQ29: 3322 | AR29: 595 | AS29: 1241 | AT29: 764 | AU29: 722 | AV29: 0 | AX29: 0 | BC29: 3024 | BD29: 338 | BE29: 900 | BF29: 1127 | BG29: 659 | BH29: 0 | BM29: 0 | BT29: 0 | BY29: 0 | CD29: 0 | CI29: 0 | CP29: 110 | CQ29: 3597 | CR29: 3598.638855 | CS29: 4417.587787 | CT29: 4454.779445 | CV29: 425.5 | CW29: 4683.13 | CY29: 386371.0002 | CZ29: 145107.7021 | DA29: 218588.332 | DB29: 22674.96612 | DC29: 0.9273839004 | DD29: 0.8923651187 | DE29: 0.9700952753 | DF29: 0.7904056394 | DG29: -0.04201031566 | DH29: -0.01617362707 | DI29: -0.01443215684 | DJ29: 309234.4239 | DK29: 25052376.86 | DL29: 86477 | DU29: 21 | DV29: 5 | DW29: 0 | DX29: 1 | DY29: 4 | DZ29: 1699 | EA29: 0 | EB29: 1 | EC29: 2 | ED29: 1 | EE29: 1 | EF29: 1 | EG29: 4371 | EH29: 2549 | EI29: 620 | EJ29: 1164 | EK29: 33 | EL29: 281 | EM29: 5 | EN29: 229 | EO29: 546.6 | EP29: 427 | EQ29: 119.6 | ER29: 2750.2 | ES29: 2532 | ET29: 218.2 | EU29: 237.8 | EV29: 223.4 | EW29: 56 | EX29: 3887 | EY29: 1752 | EZ29: 516 | FA29: 1236 | FB29: 115.4274374 | FC29: 116.6077214 | FD29: 121.9670156 | FE29: 121.024689 | FF29: 134.7826716 | FG29: 130.6753928 | FH29: 132.4822678 | FI29: 131.9490869 | FJ29: 124.5063177 | FK29: 124.4041488 | FL29: 114.9320265 | FM29: 109.9179701 | FN29: 119.3289275 | FO29: 116.3631031 | FP29: 166.3148114 | FQ29: 126.5964621 | FR29: 121.9675045 | FS29: 120.2997687 | FT29: 125.7159859 | FU29: 125.1657631 | FV29: 112.6076171 | FW29: 100.0134778 | FX29: 142.7198449 | FY29: 136.8907653 | FZ29: 103.4093152 | GA29: 105.2746749 | GB29: 109.6164113 | GC29: 92.7 | GD29: 135.2809125 | GE29: 120.8953878 | GF29: 109.9273982 | GG29: 121.6834284 | GH29: 111.6468622 | GI29: 119.1878952 | GJ29: 127.1062593 | GK29: 94.71135587 | GL29: 14 | GM29: 7 | GN29: -7 | GO29: 16.3 | GP29: 7 | GQ29: -9.3 | GR29: 9.6 | GS29: 9.8 | GT29: 0.2 | GU29: 9.6 | GV29: 9.8 | GW29: 0 | GX29: 0 | GY29: 10.9 | GZ29: 5.6 | HB29: 224 | HC29: 27 | HD29: 197 | HE29: 408 | HF29: 387 | HG29: 21 | HH29: 303.9 | HI29: 222 | HJ29: 81.9 | HK29: 790.9 | HL29: 383.7 | HM29: 407.2 | HO29: 728 | HQ29: 43 | HR29: 8 | HS29: 21 | HT29: 35 | HU29: 4 | HV29: 6 | HW29: 13 | HX29: 17 | HY29: 5 | HZ29: 8 | IA29: 13 | IB29: 5 | IC29: 7 | ID29: 3 | IE29: 29 | IF29: 1 | IG29: 24 | IH29: 46 | II29: 3 | IJ29: 8 | IK29: 3 | IL29: 1 | IM29: 19 | IN29: 19 | IO29: 17 | IP29: 43 | IQ29: 3 | IR29: 17 | IS29: 16 | IT29: 0 | IU29: 14 | IV29: 3 | IW29: 11 | IX29: 12 | IY29: 3 | IZ29: 4 | JA29: 2 | JB29: 4 | JC29: 6 | JD29: 1 | JE29: 28 | JF29: 2 | JG29: 7 | JH29: 0 | JI29: 6 | JJ29: 0 | JK29: 6 | JL29: 1 | JM29: 2 | JN29: 1 | JO29: 3 | JP29: 0 | JQ29: 5 | JR29: 1 | JS29: 2 | JT29: 1 | JV29: 26 | JW29: 6 | JX29: 40 | JY29: 2614 | JZ29: 12 | KA29: 50 | KC29: 0 | KD29: 0 | KE29: 11 | KF29: 1036 | KG29: 26 | KH29: 1219 | KI29: 3 | KJ29: 97 | KK29: 2 | KL29: 59 | KM29: 0 | KN29: 0 | KO29: 0 | KP29: 0 | KQ29: 68 | KR29: 1186 | KS29: 17 | KT29: 544 | KU29: 17 | KV29: 542 | KX29: 37 | KZ29: 1767 | LA29: 6042 | LC29: 242.2 | LD29: 183.3 | LE29: 3312.83 | LF29: 1370.3 | LH29: 295593 | LI29: 199.9803804 | LJ29: 1478.11 | LK29: 295593 | LL29: 277968 | LM29: 259065 | LN29: 239809 | LO29: 220327 | LP29: 201002 | LQ29: 30609 | LR29: 25711 | LS29: 21541 | LT29: 18426 | LU29: 16628 | LV29: 14938 | LW29: 167763 | LX29: 153163 | LY29: 138949 | LZ29: 124443 | MA29: 107462 | MB29: 92727 | MC29: 97221 | MD29: 99094 | ME29: 98575 | MF29: 96940 | MG29: 96237 | MH29: 93337 | MI29: 48921 | MJ29: 43401 | MK29: 39505 | ML29: 37588 | MM29: 38147 | MN29: 37061 | MO29: 32093 | MP29: 37762 | MQ29: 39783 | MR29: 35677 | MS29: 32951 | MT29: 31759 | MU29: 16207 | MV29: 17931 | MW29: 19287 | MX29: 23675 | MY29: 25139 | MZ29: 24517 | NA29: 青森市、東津軽郡平内町、東津軽郡今別町、東津軽郡外ヶ浜町、東津軽郡蓬田村 | NB29: 青森県立中央病院（特定群・救命） | NC29: 青森市民病院（標準群） | ND29: 青森新都市病院（標準群）
A30: 25 | B30: 西北五地域 | C30: 過疎地域型 | D30: 五所川原市,つがる市,西津軽郡鰺ヶ沢町,西津軽郡深浦町,北津軽郡鶴田町,北津軽郡中泊町 | F30: 青森県 | G30: 東北 | H30: 0204 | I30: 五所川原（青森） | J30: セイホクゴチイキ | K30: 五所川原市、つがる市及び周辺部 | L30: 0.6235660386 | M30: 1.48166423 | N30: 0.2273004742 | O30: 0.2408855277 | P30: 0.4716971799 | Q30: 0.803918771 | R30: 0.2506858879 | S30: 0.223479548 | T30: 0.2638597957 | U30: 137.462985 | V30: 658.4544621 | X30: 186.1 | Y30: 884.6 | Z30: 77 | AB30: 0 | AC30: 0 | AD30: 0 | AE30: 0 | AF30: 0 | AG30: 0 | AH30: 0 | AI30: 0 | AK30: 0 | AL30: 0 | AM30: 1 | AN30: 4 | AO30: 0 | AQ30: 864 | AR30: 0 | AS30: 448 | AT30: 129 | AU30: 188 | AV30: 99 | AX30: 0 | BH30: 804 | BI30: 43 | BJ30: 270 | BK30: 246 | BL30: 245 | BM30: 0 | BT30: 0 | BY30: 0 | CD30: 0 | CI30: 0 | CP30: 90 | CQ30: 2677 | CR30: 2059.864494 | CS30: 2134.654722 | CT30: 2023.649422 | CV30: 231.395 | CW30: 2509.475 | CY30: 353887.1984 | CZ30: 126992.1531 | DA30: 207032.7212 | DB30: 19862.32417 | DC30: 0.8699108934 | DD30: 0.7994309377 | DE30: 0.9420166432 | DF30: 0.7048552107 | DG30: -0.07831948009 | DH30: -0.03132518796 | DI30: -0.02044443853 | DJ30: 319740.9521 | DK30: 13657216.6 | DL30: 44970 | DU30: 8 | DV30: 1 | DW30: 0 | DX30: 0 | DY30: 1 | DZ30: 474 | EA30: 0 | EB30: 0 | EC30: 0 | ED30: 0 | EE30: 0 | EF30: 1 | EG30: 980 | EH30: 560 | EI30: 252 | EJ30: 164 | EK30: 0 | EL30: 0 | EM30: 4 | EN30: 74 | EO30: 115.9 | EP30: 90 | EQ30: 25.9 | ER30: 637.5 | ES30: 559.1 | ET30: 78.4 | EU30: 37 | EV30: 30 | EW30: 10 | EX30: 629 | EY30: 468 | EZ30: 228 | FA30: 240 | FB30: 119.6376494 | FC30: 109.9202716 | FD30: 129.2357282 | FE30: 114.9738713 | FF30: 127.3860145 | FG30: 127.6805299 | FH30: 146.9677901 | FI30: 140.278345 | FJ30: 113.0868249 | FK30: 116.2324797 | FL30: 136.0985312 | FM30: 103.1914495 | FN30: 116.125146 | FO30: 100.1134563 | FP30: 83.54324767 | FQ30: 59.05088163 | FR30: 123.6952636 | FS30: 110.1561041 | FT30: 115.2107293 | FU30: 113.7660337 | FV30: 123.5000171 | FW30: 100.2116417 | FX30: 114.9098323 | FY30: 120.1267667 | FZ30: 151.844553 | GA30: 136.0825843 | GB30: 123.6134741 | GC30: 116.8622786 | GD30: 148.857098 | GE30: 113.5847743 | GF30: 123.691689 | GG30: 123.0609814 | GH30: 157.9486317 | GI30: 133.4099648 | GJ30: 152.139769 | GK30: 80.03759791 | GL30: 1.4 | GM30: 34.1 | GN30: 32.7 | GO30: 1.5 | GP30: 39.3 | GQ30: 37.8 | GR30: 1.1 | GS30: 18.6 | GT30: 17.5 | GU30: 1.1 | GV30: 18.6 | GW30: 0 | GX30: 0 | GY30: 1.4 | GZ30: 29.4 | HB30: 75 | HC30: 4 | HD30: 71 | HE30: 60 | HF30: 60 | HG30: 0 | HH30: 70.2 | HI30: 50 | HJ30: 20.2 | HK30: 247.1 | HL30: 119.6 | HM30: 127.5 | HO30: 177 | HQ30: 12 | HR30: 1 | HS30: 7 | HT30: 7 | HU30: 2 | HV30: 2 | HW30: 0 | HX30: 4 | HY30: 2 | HZ30: 1 | IA30: 2 | IB30: 1 | IC30: 1 | ID30: 0 | IE30: 4 | IF30: 0 | IG30: 4 | IH30: 13 | II30: 0 | IJ30: 1 | IK30: 1 | IL30: 0 | IM30: 3 | IN30: 4 | IO30: 2 | IP30: 8 | IQ30: 0 | IR30: 6 | IS30: 5 | IT30: 0 | IU30: 4 | IV30: 0 | IW30: 1 | IX30: 2 | IY30: 0 | IZ30: 1 | JA30: 0 | JB30: 1 | JC30: 0 | JD30: 0 | JE30: 9 | JF30: 0 | JG30: 1 | JH30: 0 | JI30: 0 | JJ30: 0 | JK30: 0 | JL30: 0 | JM30: 0 | JN30: 0 | JO30: 1 | JP30: 0 | JQ30: 0 | JR30: 0 | JS30: 0 | JT30: 0 | JV30: 1 | JW30: 2 | JX30: 14 | JY30: 240 | JZ30: 6 | KA30: 10 | KC30: 0 | KD30: 0 | KE30: 6 | KF30: 600 | KG30: 19 | KH30: 835 | KI30: 2 | KJ30: 295 | KK30: 1 | KL30: 30 | KM30: 0 | KN30: 0 | KO30: 0 | KP30: 0 | KQ30: 62 | KR30: 917 | KS30: 6 | KT30: 136 | KU30: 6 | KV30: 136 | KX30: 10 | KZ30: 125 | LA30: 1788 | LC30: 196.37 | LD30: 35.025 | LE30: 2096.505 | LF30: 412.97 | LH30: 120470 | LI30: 68.74179743 | LJ30: 1752.5 | LK30: 120470 | LL30: 108846 | LM30: 97813 | LN30: 87268 | LO30: 77286 | LP30: 67843 | LQ30: 10964 | LR30: 9035 | LS30: 7313 | LT30: 5832 | LU30: 4929 | LV30: 4179 | LW30: 62391 | LX30: 53468 | LY30: 45890 | LZ30: 39149 | MA30: 32508 | MB30: 26740 | MC30: 47115 | MD30: 46343 | ME30: 44610 | MF30: 42287 | MG30: 39849 | MH30: 36924 | MI30: 21506 | MJ30: 19597 | MK30: 17273 | ML30: 15348 | MM30: 13930 | MN30: 12656 | MO30: 16090 | MP30: 16534 | MQ30: 17515 | MR30: 16207 | MS30: 14511 | MT30: 13024 | MU30: 9519 | MV30: 10212 | MW30: 9822 | MX30: 10732 | MY30: 11408 | MZ30: 11244 | NA30: 五所川原市、つがる市、西津軽郡鰺ヶ沢町、西津軽郡深浦町、北津軽郡鶴田町、北津軽郡中泊町 | ND30: つがる総合病院（標準群）
A31: 26 | B31: 上十三地域 | C31: 過疎地域型 | D31: 十和田市,上北郡七戸町,三沢市,上北郡野辺地町,上北郡横浜町,上北郡六ヶ所村,上北郡東北町,上北郡六戸町 | F31: 青森県 | G31: 東北 | H31: 0205 | I31: 十和田（青森） | J31: カミトウサンチイキ | K31: 十和田市、三沢市及び周辺部 | L31: 0.7432248996 | M31: 0.416131129 | N31: 0.02103772307 | O31: -0.2177274182 | P31: 0.5018501115 | Q31: 0.8971462896 | R31: 0.06534209731 | S31: -0.1180771271 | T31: -0.1626173772 | U31: 145.916057 | V31: 747.1015894 | X31: 276 | Y31: 1376.1 | Z31: 86.8 | AB31: 0 | AC31: 0 | AD31: 0 | AE31: 0 | AF31: 0 | AG31: 0 | AH31: 0 | AI31: 0 | AK31: 0 | AL31: 0 | AM31: 1 | AN31: 4 | AO31: 0 | AQ31: 1252 | AR31: 87 | AS31: 848 | AT31: 87 | AU31: 174 | AV31: 56 | AX31: 0 | BC31: 1176 | BD31: 96 | BE31: 506 | BF31: 371 | BG31: 203 | BH31: 0 | BM31: 0 | BT31: 0 | BY31: 0 | CD31: 0 | CI31: 0 | CP31: 69 | CQ31: 2570 | CR31: 2213.269914 | CS31: 2647.606637 | CT31: 2753.077949 | CV31: 291.62 | CW31: 2654.38 | CY31: 375517.5412 | CZ31: 139248.8949 | DA31: 214331.7618 | DB31: 21936.88453 | DC31: 0.9066457774 | DD31: 0.8623526024 | DE31: 0.956284407 | DF31: 0.7676147804 | DG31: -0.05366390823 | DH31: -0.02365610551 | DI31: -0.0160342089 | DJ31: 324856.4997 | DK31: 16095974.94 | DL31: 49841 | DU31: 11 | DV31: 1 | DW31: 0 | DX31: 0 | DY31: 1 | DZ31: 762 | EA31: 0 | EB31: 0 | EC31: 1 | ED31: 1 | EE31: 0 | EF31: 0 | EG31: 1793 | EH31: 938 | EI31: 172 | EJ31: 679 | EK31: 0 | EL31: 0 | EM31: 4 | EN31: 148 | EO31: 170 | EP31: 120 | EQ31: 50 | ER31: 1001.9 | ES31: 843.9 | ET31: 158 | EU31: 42 | EV31: 35.8 | EW31: 9 | EX31: 1674 | EY31: 504 | EZ31: 264 | FA31: 240 | FB31: 116.5213767 | FC31: 107.7671772 | FD31: 111.3196631 | FE31: 104.081762 | FF31: 112.9993172 | FG31: 106.568775 | FH31: 119.5926476 | FI31: 116.2372773 | FJ31: 104.6831563 | FK31: 95.34029675 | FL31: 112.7704555 | FM31: 99.30549432 | FN31: 117.481235 | FO31: 103.7527125 | FP31: 106.403337 | FQ31: 97.40839532 | FR31: 113.8665857 | FS31: 96.99946325 | FT31: 138.7028517 | FU31: 130.6158468 | FV31: 130.7163652 | FW31: 120.6213326 | FX31: 148.8162301 | FY31: 133.8045051 | FZ31: 140.481294 | GA31: 130.6951654 | GB31: 103.4109789 | GC31: 101.0856008 | GD31: 141.4421759 | GE31: 130.2692892 | GF31: 100.8096182 | GG31: 96.20627782 | GH31: 148.114582 | GI31: 114.6489926 | GJ31: 155.093607 | GK31: 111.352778 | GL31: 13.3 | GM31: 26.8 | GN31: 13.5 | GO31: 8.3 | GP31: 28.3 | GQ31: 20 | GR31: 14 | GS31: 21.4 | GT31: 7.4 | GU31: 14 | GV31: 17.5 | GW31: 0 | GX31: 100 | GY31: 19.8 | GZ31: 25.2 | HB31: 89 | HC31: 14 | HD31: 75 | HE31: 169 | HF31: 166 | HG31: 3 | HH31: 106 | HI31: 79 | HJ31: 27 | HK31: 374.2 | HL31: 179.7 | HM31: 194.5 | HO31: 221 | HQ31: 10 | HR31: 1 | HS31: 8 | HT31: 16 | HU31: 0 | HV31: 2 | HW31: 0 | HX31: 3 | HY31: 1 | HZ31: 0 | IA31: 4 | IB31: 1 | IC31: 1 | ID31: 1 | IE31: 6 | IF31: 0 | IG31: 10 | IH31: 18 | II31: 0 | IJ31: 1 | IK31: 0 | IL31: 0 | IM31: 8 | IN31: 7 | IO31: 2 | IP31: 14 | IQ31: 0 | IR31: 2 | IS31: 6 | IT31: 1 | IU31: 6 | IV31: 0 | IW31: 2 | IX31: 3 | IY31: 0 | IZ31: 1 | JA31: 1 | JB31: 1 | JC31: 1 | JD31: 0 | JE31: 10 | JF31: 0 | JG31: 0 | JH31: 0 | JI31: 0 | JJ31: 1 | JK31: 0 | JL31: 1 | JM31: 1 | JN31: 0 | JO31: 0 | JP31: 1 | JQ31: 0 | JR31: 0 | JS31: 0 | JT31: 0 | JV31: 6 | JW31: 3 | JX31: 22 | JY31: 1609 | JZ31: 10 | KA31: 29 | KC31: 0 | KD31: 0 | KE31: 9 | KF31: 769 | KG31: 20 | KH31: 1101 | KI31: 0 | KJ31: 0 | KK31: 0 | KL31: 0 | KM31: 2 | KN31: 54 | KO31: 2 | KP31: 70 | KQ31: 36 | KR31: 576 | KS31: 16 | KT31: 484 | KU31: 19 | KV31: 564 | KX31: 21 | KZ31: 1129 | LA31: 2343 | LC31: 172.07 | LD31: 119.55 | LE31: 2117.74 | LF31: 536.64 | LH31: 167931 | LI31: 81.7628099 | LJ31: 2053.88 | LK31: 167931 | LL31: 157872 | LM31: 147865 | LN31: 137721 | LO31: 127435 | LP31: 116947 | LQ31: 18465 | LR31: 15648 | LS31: 13276 | LT31: 11546 | LU31: 10509 | LV31: 9462 | LW31: 93641 | LX31: 85828 | LY31: 79061 | LZ31: 71696 | MA31: 62834 | MB31: 55170 | MC31: 55825 | MD31: 56396 | ME31: 55528 | MF31: 54479 | MG31: 54092 | MH31: 52315 | MI31: 27641 | MJ31: 24834 | MK31: 21223 | ML31: 19894 | MM31: 20634 | MN31: 20074 | MO31: 17851 | MP31: 20547 | MQ31: 22832 | MR31: 20693 | MS31: 17984 | MT31: 17107 | MU31: 10333 | MV31: 11015 | MW31: 11473 | MX31: 13892 | MY31: 15474 | MZ31: 15134 | NA31: 十和田市、三沢市、上北郡野辺地町、上北郡七戸町、上北郡六戸町、上北郡横浜町、上北郡東北町、上北郡六ヶ所村 | ND31: 十和田市立中央病院（標準群）
A32: 27 | B32: 下北地域 | C32: 過疎地域型 | D32: むつ市,下北郡大間町,下北郡東通村,下北郡風間浦村,下北郡佐井村 | F32: 青森県 | G32: 東北 | H32: 0206 | I32: むつ（青森） | J32: シモキタチイキ | K32: むつ市及び周辺部 | L32: 0.5577390278 | M32: 0.9101985681 | N32: -0.2440310603 | O32: -0.5111897251 | P32: 0.5945789331 | Q32: 0.8999385658 | R32: 0.02408496873 | S32: -0.1639330492 | T32: -0.1854951334 | U32: 142.5133939 | V32: 699.6716343 | X32: 132.8 | Y32: 560.6 | Z32: 56.6 | AB32: 0 | AC32: 4 | AD32: 0 | AE32: 0 | AF32: 0 | AG32: 0 | AH32: 0 | AI32: 0 | AK32: 0 | AL32: 0 | AM32: 1 | AN32: 4 | AO32: 0 | AQ32: 582 | AR32: 6 | AS32: 378 | AT32: 78 | AU32: 120 | AV32: 0 | AX32: 0 | BC32: 453 | BD32: 39 | BE32: 162 | BF32: 168 | BG32: 84 | BH32: 0 | BM32: 0 | BT32: 0 | BY32: 0 | CD32: 0 | CI32: 0 | CP32: 27 | CQ32: 943 | CR32: 946.6375803 | CS32: 1129.015058 | CT32: 1149.930279 | CV32: 95.38 | CW32: 1030.6 | CY32: 365746.0736 | CZ32: 123230.3982 | DA32: 223683.3023 | DB32: 18832.37307 | DC32: 0.8725008768 | DD32: 0.75282912 | DE32: 0.9867015437 | DF32: 0.653787968 | DG32: -0.0965172514 | DH32: -0.007191760047 | DI32: -0.02379011173 | DJ32: 301618.7665 | DK32: 6488542.637 | DL32: 22038 | DU32: 3 | DV32: 1 | DW32: 0 | DX32: 0 | DY32: 1 | DZ32: 375 | EA32: 0 | EB32: 0 | EC32: 0 | ED32: 1 | EE32: 1 | EF32: 0 | EG32: 622 | EH32: 444 | EI32: 120 | EJ32: 54 | EK32: 0 | EL32: 0 | EM32: 4 | EN32: 54 | EO32: 69.2 | EP32: 64 | EQ32: 5.2 | ER32: 368.3 | ES32: 334 | ET32: 34.3 | EU32: 28.6 | EV32: 22 | EW32: 6 | EX32: 581 | EY32: 288 | EZ32: 288 | FA32: 0 | FB32: 126.3529049 | FC32: 118.9548317 | FD32: 131.1097272 | FE32: 117.5400472 | FF32: 139.1155373 | FG32: 138.2145163 | FH32: 142.2717131 | FI32: 130.9939699 | FJ32: 116.5709171 | FK32: 76.7 | FL32: 135.0514011 | FM32: 96.77757079 | FN32: 127.1335892 | FO32: 110.1116458 | FP32: 140.1400799 | FQ32: 90.75291468 | FR32: 186.1815662 | FS32: 128.6298953 | FT32: 142.0362181 | FU32: 120.8518528 | FV32: 141.8606197 | FW32: 114.497863 | FX32: 149.8301183 | FY32: 124.6961314 | FZ32: 160.1775274 | GA32: 152.7774313 | GB32: 128.2 | GC32: 71.2 | GD32: 153.5375317 | GE32: 173.7260398 | GF32: 105.1390165 | GG32: 121.1406301 | GH32: 134.1253597 | GI32: 120.8515083 | GJ32: 132.4863665 | GK32: 132.1 | GL32: 4.5 | GM32: 34.5 | GN32: 30 | GO32: 4 | GP32: 29.6 | GQ32: 25.6 | GR32: 0 | GS32: 21.7 | GT32: 21.7 | GU32: 0 | GV32: 21.7 | GW32: 0 | GX32: 0 | GY32: 17.7 | GZ32: 69.3 | HB32: 50 | HC32: 6 | HD32: 44 | HE32: 86 | HF32: 86 | HG32: 0 | HH32: 63.6 | HI32: 46 | HJ32: 17.6 | HK32: 192.3 | HL32: 102.3 | HM32: 90 | HO32: 97 | HQ32: 7 | HR32: 0 | HS32: 4 | HT32: 8 | HU32: 2 | HV32: 4 | HW32: 0 | HX32: 1 | HY32: 0 | HZ32: 0 | IA32: 2 | IB32: 2 | IC32: 0 | ID32: 0 | IE32: 6 | IF32: 2 | IG32: 1 | IH32: 6 | II32: 0 | IJ32: 0 | IK32: 0 | IL32: 0 | IM32: 3 | IN32: 4 | IO32: 2 | IP32: 4 | IQ32: 0 | IR32: 2 | IS32: 4 | IT32: 0 | IU32: 6 | IV32: 0 | IW32: 0 | IX32: 4 | IY32: 0 | IZ32: 4 | JA32: 0 | JB32: 0 | JC32: 1 | JD32: 0 | JE32: 6 | JF32: 0 | JG32: 0 | JH32: 0 | JI32: 0 | JJ32: 0 | JK32: 1 | JL32: 0 | JM32: 1 | JN32: 0 | JO32: 0 | JP32: 0 | JQ32: 0 | JR32: 0 | JS32: 0 | JT32: 0 | JV32: 3 | JW32: 1 | JX32: 8 | JY32: 186 | JZ32: 1 | KA32: 1 | KC32: 0 | KD32: 0 | KE32: 4 | KF32: 259 | KG32: 11 | KH32: 504 | KI32: 0 | KJ32: 0 | KK32: 0 | KL32: 0 | KM32: 0 | KN32: 0 | KO32: 0 | KP32: 0 | KQ32: 12 | KR32: 180 | KS32: 5 | KT32: 102 | KU32: 5 | KV32: 102 | KX32: 7 | KZ32: 231 | LA32: 1077 | LC32: 73.73 | LD32: 21.65 | LE32: 833.65 | LF32: 196.95 | LH32: 68200 | LI32: 48.16112084 | LJ32: 1416.08 | LK32: 68200 | LL32: 61935 | LM32: 56779 | LN32: 51641 | LO32: 46589 | LP32: 41642 | LQ32: 7106 | LR32: 5671 | LS32: 4445 | LT32: 3655 | LU32: 3167 | LV32: 2728 | LW32: 37185 | LX32: 32779 | LY32: 29464 | LZ32: 25983 | MA32: 22065 | MB32: 18569 | MC32: 23909 | MD32: 23485 | ME32: 22870 | MF32: 22003 | MG32: 21357 | MH32: 20345 | MI32: 12066 | MJ32: 10516 | MK32: 8764 | ML32: 8092 | MM32: 8143 | MN32: 7918 | MO32: 7820 | MP32: 8721 | MQ32: 9590 | MR32: 8484 | MS32: 7179 | MT32: 6702 | MU32: 4023 | MV32: 4248 | MW32: 4516 | MX32: 5427 | MY32: 6035 | MZ32: 5725 | NA32: むつ市、下北郡大間町、下北郡東通村、下北郡風間浦村、下北郡佐井村 | ND32: むつ総合病院（標準群）
A33: 28 | B33: 盛岡 | C33: 地方都市型 | D33: 八幡平市,盛岡市,岩手郡雫石町,岩手郡葛巻町,岩手郡岩手町,岩手郡滝沢村,紫波郡矢巾町,紫波郡紫波町 | F33: 岩手県 | G33: 東北 | H33: 0301 | I33: 盛岡（岩手） | J33: モリオカ | K33: 盛岡市、八幡平市及び周辺部 | L33: 1.825075204 | M33: 1.187605216 | N33: 0.01104688503 | O33: -0.3552309038 | P33: 1.153529764 | Q33: 1.343326741 | R33: -0.03827473084 | S33: -0.2859033108 | T33: -0.4228197278 | U33: 311.6922706 | V33: 1103.539668 | X33: 1749.8 | Y33: 5683.2 | Z33: 776.5 | AB33: 30 | AC33: 30 | AD33: 43 | AE33: 9 | AF33: 0 | AG33: 14 | AH33: 33 | AI33: 0 | AK33: 0 | AL33: 1 | AM33: 3 | AN33: 12 | AO33: 12 | AQ33: 6044 | AR33: 1232 | AS33: 2081 | AT33: 1145 | AU33: 1528 | AV33: 58 | AX33: 0 | BC33: 4353.7 | BD33: 410.2 | BE33: 1215.3 | BF33: 1687.6 | BG33: 1040.6 | BH33: 0 | BM33: 0 | BT33: 0 | BY33: 3512.5 | BZ33: 301.1 | CA33: 986.8 | CB33: 1340.5 | CC33: 884.1 | CD33: 0 | CI33: 0 | CP33: 133 | CQ33: 6163 | CR33: 5217.330522 | CS33: 6461.664137 | CT33: 7149.669132 | CV33: 934.5 | CW33: 6826.35 | CY33: 411177.225 | CZ33: 157535.2675 | DA33: 224507.1347 | DB33: 29134.82275 | DC33: 0.9861529633 | DD33: 0.9694447659 | DE33: 0.9947168677 | DF33: 1.013359986 | DG33: -0.01190845921 | DH33: -0.002859811325 | DI33: 0.0009212338053 | DJ33: 295086.2271 | DK33: 32224869.8 | DL33: 117658 | DU33: 38 | DV33: 5 | DW33: 1 | DX33: 1 | DY33: 3 | DZ33: 2788 | EA33: 2 | EB33: 2 | EC33: 2 | ED33: 2 | EE33: 3 | EF33: 1 | EG33: 6896 | EH33: 4237 | EI33: 1116 | EJ33: 1523 | EK33: 12 | EL33: 661 | EM33: 8 | EN33: 464 | EO33: 1232.8 | EP33: 758 | EQ33: 474.8 | ER33: 4538.1 | ES33: 4313.1 | ET33: 225 | EU33: 408.3 | EV33: 287.4 | EW33: 80.8 | EX33: 11656 | EY33: 2724 | EZ33: 1164 | FA33: 1560 | FB33: 101.385535 | FC33: 101.406596 | FD33: 102.81071 | FE33: 104.6884156 | FF33: 92.93811198 | FG33: 94.02023123 | FH33: 119.2558351 | FI33: 125.1155671 | FJ33: 98.36145675 | FK33: 78.59618033 | FL33: 94.02039363 | FM33: 93.98777347 | FN33: 102.4462047 | FO33: 106.4230003 | FP33: 62.71612684 | FQ33: 64.13650395 | FR33: 90.52114018 | FS33: 107.6637019 | FT33: 140.489785 | FU33: 134.4647822 | FV33: 177.8745696 | FW33: 158.5079752 | FX33: 119.3883548 | FY33: 124.8438476 | FZ33: 94.27382035 | GA33: 88.59376578 | GB33: 94.6774511 | GC33: 91.06550162 | GD33: 104.2260115 | GE33: 95.77806385 | GF33: 84.82260207 | GG33: 93.65258574 | GH33: 104.2791407 | GI33: 99.05951218 | GJ33: 109.6969574 | GK33: 104.4664185 | GL33: 22.1 | GM33: 3.8 | GN33: -18.3 | GO33: 24.6 | GP33: 4.1 | GQ33: -20.5 | GR33: 27.3 | GS33: 2.2 | GT33: -25.1 | GU33: 28.1 | GV33: 2.3 | GW33: 11.4 | GX33: 0 | GY33: 11 | GZ33: 4.1 | HB33: 357 | HC33: 32 | HD33: 325 | HE33: 367 | HF33: 352 | HG33: 15 | HH33: 517 | HI33: 390 | HJ33: 127 | HK33: 1145.1 | HL33: 865.3 | HM33: 279.8 | HO33: 1252 | HQ33: 84 | HR33: 30 | HS33: 64 | HT33: 75 | HU33: 15 | HV33: 31 | HW33: 38 | HX33: 27 | HY33: 8 | HZ33: 15 | IA33: 27 | IB33: 21 | IC33: 20 | ID33: 2 | IE33: 64 | IF33: 3 | IG33: 40 | IH33: 103 | II33: 8 | IJ33: 14 | IK33: 4 | IL33: 2 | IM33: 34 | IN33: 31 | IO33: 43 | IP33: 67 | IQ33: 11 | IR33: 55 | IS33: 27 | IT33: 6 | IU33: 54 | IV33: 16 | IW33: 26 | IX33: 29 | IY33: 16 | IZ33: 25 | JA33: 13 | JB33: 24 | JC33: 16 | JD33: 3 | JE33: 53 | JF33: 5 | JG33: 10 | JH33: 0 | JI33: 5 | JJ33: 4 | JK33: 2 | JL33: 8 | JM33: 6 | JN33: 1 | JO33: 8 | JP33: 4 | JQ33: 8 | JR33: 2 | JS33: 5 | JT33: 2 | JV33: 37 | JW33: 13 | JX33: 54 | JY33: 4521 | JZ33: 15 | KA33: 75 | KC33: 0 | KD33: 0 | KE33: 21 | KF33: 1913 | KG33: 42 | KH33: 2434 | KI33: 6 | KJ33: 296 | KK33: 5 | KL33: 260 | KM33: 8 | KN33: 459 | KO33: 1 | KP33: 60 | KQ33: 50 | KR33: 741 | KS33: 42 | KT33: 954 | KU33: 45 | KV33: 1041 | KX33: 71 | KZ33: 3356 | LA33: 4727 | LC33: 546.3 | LD33: 388.2 | LE33: 5577.15 | LF33: 1249.2 | LH33: 463186 | LI33: 127.1870546 | LJ33: 3641.77 | LK33: 463186 | LL33: 447538 | LM33: 429219 | LN33: 409415 | LO33: 387992 | LP33: 365479 | LQ33: 53961 | LR33: 47728 | LS33: 41861 | LT33: 37787 | LU33: 35493 | LV33: 33295 | LW33: 272396 | LX33: 257432 | LY33: 242160 | LZ33: 225547 | MA33: 203508 | MB33: 183806 | MC33: 136829 | MD33: 142378 | ME33: 145198 | MF33: 146081 | MG33: 148991 | MH33: 148378 | MI33: 67768 | MJ33: 63011 | MK33: 58461 | ML33: 56294 | MM33: 58588 | MN33: 58982 | MO33: 44334 | MP33: 51959 | MQ33: 57163 | MR33: 53508 | MS33: 50308 | MT33: 49071 | MU33: 24727 | MV33: 27408 | MW33: 29574 | MX33: 36279 | MY33: 40095 | MZ33: 40325 | NA33: 盛岡市、八幡平市、滝沢市、岩手郡雫石町、岩手郡葛巻町、岩手郡岩手町、紫波郡紫波町、紫波郡矢巾町 | NB33: 岩手県立中央病院（特定群・救命）、岩手医科大学附属病院（大学本院群・救命） | NC33: 盛岡赤十字病院（標準群） | ND33: 盛岡市立病院（標準群）
A34: 29 | B34: 岩手中部 | C34: 地方都市型 | D34: 花巻市,遠野市,北上市,和賀郡西和賀町 | F34: 岩手県 | G34: 東北 | H34: 0302 | I34: 花巻（岩手） | J34: イワテチュウブ | K34: 花巻市、北上市及び周辺部 | L34: 0.8553901646 | M34: 0.4937854788 | N34: -0.04770002823 | O34: -0.09688915019 | P34: 0.5724104818 | Q34: 0.8141796337 | R34: 0.03050299828 | S34: -0.05072223013 | T34: -0.01501452102 | U34: 181.1270627 | V34: 697.4917761 | X34: 406.3 | Y34: 1611.8 | Z34: 162 | AB34: 0 | AC34: 0 | AD34: 0 | AE34: 0 | AF34: 0 | AG34: 0 | AH34: 0 | AI34: 0 | AK34: 0 | AL34: 0 | AM34: 3 | AN34: 6 | AO34: 20 | AQ34: 1506 | AR34: 50 | AS34: 807 | AT34: 380 | AU34: 215 | AV34: 54 | AX34: 0 | BC34: 1172.7 | BD34: 101.1 | BE34: 343.3 | BF34: 501.5 | BG34: 226.8 | BH34: 0 | BM34: 0 | BT34: 0 | BY34: 1429.8 | BZ34: 128.7 | CA34: 400.6 | CB34: 588.1 | CC34: 312.4 | CD34: 0 | CI34: 0 | CP34: 86 | CQ34: 3230 | CR34: 3016.105172 | CS34: 3268.796858 | CT34: 3157.710175 | CV34: 333.4 | CW34: 3458 | CY34: 402281.6178 | CZ34: 146308.5021 | DA34: 230227.3754 | DB34: 25745.74031 | DC34: 0.9402917485 | DD34: 0.8753835316 | DE34: 0.9948286116 | DF34: 0.8797220615 | DG34: -0.04868319453 | DH34: -0.002797359555 | DI34: -0.008227697461 | DJ34: 292612.9871 | DK34: 17443893.26 | DL34: 65987 | DU34: 12 | DV34: 2 | DW34: 0 | DX34: 0 | DY34: 2 | DZ34: 861 | EA34: 0 | EB34: 0 | EC34: 1 | ED34: 1 | EE34: 2 | EF34: 0 | EG34: 1931 | EH34: 1282 | EI34: 95 | EJ34: 528 | EK34: 20 | EL34: 74 | EM34: 6 | EN34: 84 | EO34: 220.1 | EP34: 181 | EQ34: 39.1 | ER34: 1130.3 | ES34: 1069.4 | ET34: 60.9 | EU34: 94 | EV34: 55 | EW34: 13 | EX34: 2852 | EY34: 1056 | EZ34: 924 | FA34: 132 | FB34: 107.8340759 | FC34: 107.1211324 | FD34: 102.8884691 | FE34: 102.0315704 | FF34: 111.4824562 | FG34: 108.7006012 | FH34: 107.3514227 | FI34: 118.0837815 | FJ34: 102.2874062 | FK34: 75.79452589 | FL34: 99.04279054 | FM34: 91.63657886 | FN34: 112.2058626 | FO34: 106.2039636 | FP34: 61.7583443 | FQ34: 83.60051958 | FR34: 85.04707165 | FS34: 86.61077312 | FT34: 153.3930838 | FU34: 173.6870157 | FV34: 127.6599829 | FW34: 147.60826 | FX34: 162.338803 | FY34: 187.0873381 | FZ34: 80.39377805 | GA34: 76.66275398 | GB34: 103.1756574 | GC34: 76.6837735 | GD34: 124.0282349 | GE34: 109.0653276 | GF34: 114.3652527 | GG34: 113.1767068 | GH34: 118.3316988 | GI34: 107.6380198 | GJ34: 136.6310792 | GK34: 140.8770327 | GL34: 16.3 | GM34: 27.9 | GN34: 11.6 | GO34: 10.4 | GP34: 24.1 | GQ34: 13.7 | GR34: 21.2 | GS34: 79.4 | GT34: 58.2 | GU34: 21.2 | GV34: 78.9 | GW34: 0 | GX34: 100 | GY34: 28.5 | GZ34: 16.9 | HB34: 152 | HC34: 10 | HD34: 142 | HE34: 125 | HF34: 119 | HG34: 6 | HH34: 186.2 | HI34: 148 | HJ34: 38.2 | HK34: 481.5 | HL34: 382.6 | HM34: 98.9 | HO34: 430 | HQ34: 25 | HR34: 5 | HS34: 15 | HT34: 16 | HU34: 3 | HV34: 9 | HW34: 9 | HX34: 7 | HY34: 1 | HZ34: 5 | IA34: 8 | IB34: 4 | IC34: 5 | ID34: 1 | IE34: 14 | IF34: 0 | IG34: 9 | IH34: 25 | II34: 0 | IJ34: 2 | IK34: 1 | IL34: 1 | IM34: 8 | IN34: 6 | IO34: 12 | IP34: 23 | IQ34: 1 | IR34: 11 | IS34: 5 | IT34: 0 | IU34: 10 | IV34: 2 | IW34: 3 | IX34: 8 | IY34: 0 | IZ34: 5 | JA34: 1 | JB34: 0 | JC34: 2 | JD34: 1 | JE34: 14 | JF34: 0 | JG34: 1 | JH34: 0 | JI34: 2 | JJ34: 1 | JK34: 1 | JL34: 0 | JM34: 2 | JN34: 0 | JO34: 0 | JP34: 0 | JQ34: 3 | JR34: 0 | JS34: 0 | JT34: 0 | JV34: 19 | JW34: 4 | JX34: 31 | JY34: 1285 | JZ34: 15 | KA34: 36 | KC34: 0 | KD34: 0 | KE34: 13 | KF34: 1125 | KG34: 27 | KH34: 1472 | KI34: 1 | KJ34: 50 | KK34: 3 | KL34: 97 | KM34: 1 | KN34: 9 | KO34: 0 | KP34: 0 | KQ34: 41 | KR34: 477 | KS34: 15 | KT34: 288 | KU34: 15 | KV34: 288 | KX34: 19 | KZ34: 820 | LA34: 1248 | LC34: 243.4 | LD34: 90 | LE34: 3162.9 | LF34: 295.1 | LH34: 216738 | LI34: 78.45293468 | LJ34: 2762.65 | LK34: 216738 | LL34: 206546 | LM34: 195089 | LN34: 183768 | LO34: 172526 | LP34: 161263 | LQ34: 24549 | LR34: 20911 | LS34: 17746 | LT34: 15437 | LU34: 14329 | LV34: 13284 | LW34: 121411 | LX34: 114960 | LY34: 108151 | LZ34: 100394 | MA34: 89843 | MB34: 79826 | MC34: 70778 | MD34: 70675 | ME34: 69192 | MF34: 67937 | MG34: 68354 | MH34: 68153 | MI34: 32860 | MJ34: 29915 | MK34: 26681 | ML34: 25735 | MM34: 27433 | MN34: 28231 | MO34: 23783 | MP34: 25683 | MQ34: 27350 | MR34: 25120 | MS34: 22672 | MT34: 22094 | MU34: 14135 | MV34: 15077 | MW34: 15161 | MX34: 17082 | MY34: 18249 | MZ34: 17828 | NA34: 花巻市、北上市、遠野市、和賀郡西和賀町 | NB34: 岩手県立中部病院（標準群）
A35: 30 | B35: 胆江 | C35: 過疎地域型 | D35: 奥州市,胆沢郡金ケ崎町 | F35: 岩手県 | G35: 東北 | H35: 0303 | I35: 奥州（岩手） | J35: タンコウ | K35: 奥州市、金ヶ崎町 | L35: 1.081121085 | M35: 1.066169454 | N35: -0.3524705294 | O35: -0.4001262118 | P35: 0.7467814346 | Q35: 0.9570076641 | R35: -0.1163655005 | S35: -0.1829849014 | T35: -0.1557017807 | U35: 203.2161028 | V35: 757.9752665 | X35: 314.2 | Y35: 1123 | Z35: 92.4 | AB35: 0 | AC35: 0 | AD35: 0 | AE35: 0 | AF35: 0 | AG35: 0 | AH35: 0 | AI35: 0 | AK35: 0 | AL35: 0 | AM35: 3 | AN35: 4 | AO35: 19 | AQ35: 1391 | AR35: 0 | AS35: 396 | AT35: 512 | AU35: 483 | AV35: 0 | AX35: 0 | BC35: 999.7 | BD35: 63.1 | BE35: 274.6 | BF35: 280.9 | BG35: 381.1 | BH35: 0 | BM35: 0 | BT35: 0 | BY35: 961 | BZ35: 76.4 | CA35: 292.6 | CB35: 305.7 | CC35: 286.3 | CD35: 0 | CI35: 0 | CP35: 53 | CQ35: 1870 | CR35: 1944.708702 | CS35: 2060.759698 | CT35: 2013.232502 | CV35: 188.7 | CW35: 2034 | CY35: 381673.3785 | CZ35: 143476.8268 | DA35: 211618.2271 | DB35: 26578.3246 | DC35: 0.8873371538 | DD35: 0.8532140547 | DE35: 0.909827145 | DF35: 0.9045987719 | DG35: -0.05738587834 | DH35: -0.0487603483 | DI35: -0.006516619595 | DJ35: 273667.9179 | DK35: 9994185.524 | DL35: 41707 | DU35: 9 | DV35: 1 | DW35: 0 | DX35: 0 | DY35: 1 | DZ35: 613 | EA35: 0 | EB35: 0 | EC35: 1 | ED35: 1 | EE35: 0 | EF35: 0 | EG35: 1559 | EH35: 967 | EI35: 290 | EJ35: 274 | EK35: 24 | EL35: 58 | EM35: 4 | EN35: 111 | EO35: 196.4 | EP35: 156 | EQ35: 40.4 | ER35: 814.9 | ES35: 744.1 | ET35: 70.8 | EU35: 51.8 | EV35: 32.6 | EW35: 8 | EX35: 1834 | EY35: 0 | EZ35: 0 | FA35: 0 | FB35: 100.5744842 | FC35: 103.6417492 | FD35: 99.44426464 | FE35: 103.8579645 | FF35: 119.9834933 | FG35: 124.7938574 | FH35: 123.884642 | FI35: 131.0700396 | FJ35: 94.88101641 | FK35: 76.7 | FL35: 85.91334192 | FM35: 84.07686692 | FN35: 111.7735251 | FO35: 101.7386937 | FP35: 78.16477369 | FQ35: 92.44039997 | FR35: 83.59678814 | FS35: 84.70191256 | FT35: 150.229553 | FU35: 149.588623 | FV35: 128.3781029 | FW35: 136.4692817 | FX35: 174.631756 | FY35: 170.5557766 | FZ35: 97.10017159 | GA35: 99.12691936 | GB35: 100.4 | GC35: 79.55412775 | GD35: 91.19293191 | GE35: 87.36081994 | GF35: 118.8148882 | GG35: 113.6530455 | GH35: 134.9995634 | GI35: 126.5053967 | GJ35: 111.8099878 | GK35: 93.4 | GL35: 15.1 | GM35: 20.4 | GN35: 5.3 | GO35: 13.3 | GP35: 22.3 | GQ35: 9 | GR35: 26.8 | GS35: 0 | GT35: -26.8 | GU35: 26.8 | GV35: 0 | GW35: 0 | GX35: 0 | GY35: 12.9 | GZ35: 23 | HB35: 101 | HC35: 7 | HD35: 94 | HE35: 98 | HF35: 86 | HG35: 12 | HH35: 117.8 | HI35: 93 | HJ35: 24.8 | HK35: 308.1 | HL35: 215.2 | HM35: 92.9 | HO35: 220 | HQ35: 15 | HR35: 8 | HS35: 9 | HT35: 9 | HU35: 2 | HV35: 1 | HW35: 1 | HX35: 2 | HY35: 1 | HZ35: 1 | IA35: 4 | IB35: 1 | IC35: 1 | ID35: 0 | IE35: 6 | IF35: 1 | IG35: 3 | IH35: 25 | II35: 3 | IJ35: 3 | IK35: 0 | IL35: 1 | IM35: 7 | IN35: 10 | IO35: 5 | IP35: 10 | IQ35: 0 | IR35: 4 | IS35: 7 | IT35: 0 | IU35: 4 | IV35: 2 | IW35: 2 | IX35: 5 | IY35: 0 | IZ35: 4 | JA35: 1 | JB35: 1 | JC35: 5 | JD35: 1 | JE35: 8 | JF35: 0 | JG35: 1 | JH35: 0 | JI35: 4 | JJ35: 0 | JK35: 1 | JL35: 1 | JM35: 4 | JN35: 0 | JO35: 1 | JP35: 1 | JQ35: 0 | JR35: 0 | JS35: 0 | JT35: 0 | JV35: 4 | JW35: 2 | JX35: 12 | JY35: 285 | JZ35: 3 | KA35: 7 | KC35: 0 | KD35: 0 | KE35: 6 | KF35: 528 | KG35: 23 | KH35: 1052 | KI35: 0 | KJ35: 0 | KK35: 0 | KL35: 0 | KM35: 0 | KN35: 0 | KO35: 2 | KP35: 38 | KQ35: 22 | KR35: 252 | KS35: 11 | KT35: 224 | KU35: 13 | KV35: 282 | KX35: 11 | KZ35: 505 | LA35: 887 | LC35: 147.1 | LD35: 41.6 | LE35: 1864.2 | LF35: 169.8 | LH35: 128472 | LI35: 109.5186947 | LJ35: 1173.06 | LK35: 128472 | LL35: 120346 | LM35: 112031 | LN35: 104013 | LO35: 96260 | LP35: 88562 | LQ35: 14361 | LR35: 12158 | LS35: 10103 | LT35: 8674 | LU35: 7844 | LV35: 7095 | LW35: 69211 | LX35: 63589 | LY35: 58749 | LZ35: 54012 | MA35: 47739 | MB35: 41778 | MC35: 44900 | MD35: 44599 | ME35: 43179 | MF35: 41327 | MG35: 40677 | MH35: 39689 | MI35: 20554 | MJ35: 18918 | MK35: 16614 | ML35: 14929 | MM35: 15193 | MN35: 15694 | MO35: 14874 | MP35: 15707 | MQ35: 17100 | MR35: 15844 | MS35: 14104 | MT35: 12801 | MU35: 9472 | MV35: 9974 | MW35: 9465 | MX35: 10554 | MY35: 11380 | MZ35: 11194 | NA35: 奥州市、胆沢郡金ケ崎町 | NC35: 岩手県立胆沢病院（標準群）
A36: 31 | B36: 両磐 | C36: 過疎地域型 | D36: 一関市,西磐井郡平泉町,東磐井郡藤沢町 | F36: 岩手県 | G36: 東北 | H36: 0304 | I36: 一関（岩手） | J36: リョウバン | K36: 一関市及び周辺部 | L36: 1.065755553 | M36: 0.5438692414 | N36: -0.0007529059467 | O36: 0.03546822625 | P36: 0.703266951 | Q36: 0.9464330278 | R36: 0.08513193122 | S36: 0.08934824811 | T36: 0.1182445578 | U36: 178.421625 | V36: 942.5198074 | X36: 274.5 | Y36: 1030.3 | Z36: 70.5 | AB36: 0 | AC36: 0 | AD36: 0 | AE36: 0 | AF36: 0 | AG36: 0 | AH36: 0 | AI36: 0 | AK36: 0 | AL36: 0 | AM36: 2 | AN36: 4 | AO36: 10 | AQ36: 1227 | AR36: 0 | AS36: 593 | AT36: 314 | AU36: 200 | AV36: 120 | AX36: 0 | BC36: 754.6 | BD36: 57.3 | BE36: 217.2 | BF36: 262.4 | BG36: 217.7 | BH36: 0 | BM36: 0 | BT36: 0 | BY36: 871.1 | BZ36: 77.4 | CA36: 259 | CB36: 297.7 | CC36: 237 | CD36: 0 | CI36: 0 | CP36: 60 | CQ36: 2309 | CR36: 2048.389606 | CS36: 2038.949272 | CT36: 1974.250435 | CV36: 245.9 | CW36: 2292 | CY36: 408410.351 | CZ36: 161332.4256 | DA36: 224187.4625 | DB36: 22890.46293 | DC36: 0.9389368449 | DD36: 0.9475363532 | DE36: 0.9535194582 | DF36: 0.7735844371 | DG36: -0.02053638033 | DH36: -0.02512421981 | DI36: -0.01540255499 | DJ36: 313485.0524 | DK36: 11646211.17 | DL36: 42174 | DU36: 10 | DV36: 1 | DW36: 0 | DX36: 0 | DY36: 1 | DZ36: 444 | EA36: 0 | EB36: 0 | EC36: 1 | ED36: 1 | EE36: 1 | EF36: 1 | EG36: 1517 | EH36: 1084 | EI36: 60 | EJ36: 359 | EK36: 10 | EL36: 0 | EM36: 4 | EN36: 187 | EO36: 175.5 | EP36: 127 | EQ36: 48.5 | ER36: 727.4 | ES36: 675.8 | ET36: 51.6 | EU36: 39.5 | EV36: 25 | EW36: 6 | EX36: 1561 | EY36: 684 | EZ36: 492 | FA36: 192 | FB36: 109.174748 | FC36: 103.9355047 | FD36: 103.5188448 | FE36: 105.1482081 | FF36: 111.7948718 | FG36: 111.049298 | FH36: 122.8625624 | FI36: 127.1928519 | FJ36: 93.52231977 | FK36: 104.5377419 | FL36: 93.73531358 | FM36: 89.35963412 | FN36: 124.8429464 | FO36: 105.755149 | FP36: 82.5629771 | FQ36: 87.9 | FR36: 95.93936839 | FS36: 93.59476864 | FT36: 158.0228122 | FU36: 141.6155067 | FV36: 220.0092907 | FW36: 192.3606863 | FX36: 132.9681065 | FY36: 117.2959365 | FZ36: 102.7055173 | GA36: 100.5689255 | GB36: 94.5 | GC36: 109.3 | GD36: 88.96118194 | GE36: 92.15321688 | GF36: 127.1236024 | GG36: 109.7282702 | GH36: 125.1179741 | GI36: 107.5971088 | GJ36: 130.3062462 | GK36: 142.7 | GL36: 18 | GM36: 30.3 | GN36: 12.3 | GO36: 16.1 | GP36: 22.9 | GQ36: 6.8 | GR36: 0 | GS36: 100 | GT36: 100 | GU36: 0 | GV36: 100 | GW36: 0 | GX36: 0 | GY36: 26 | GZ36: 44.7 | HB36: 86 | HC36: 6 | HD36: 80 | HE36: 79 | HF36: 79 | HG36: 0 | HH36: 99 | HI36: 74 | HJ36: 25 | HK36: 302.9 | HL36: 208 | HM36: 94.9 | HO36: 220 | HQ36: 13 | HR36: 0 | HS36: 7 | HT36: 9 | HU36: 1 | HV36: 3 | HW36: 7 | HX36: 1 | HY36: 0 | HZ36: 0 | IA36: 6 | IB36: 1 | IC36: 3 | ID36: 0 | IE36: 8 | IF36: 1 | IG36: 8 | IH36: 16 | II36: 0 | IJ36: 2 | IK36: 0 | IL36: 1 | IM36: 4 | IN36: 8 | IO36: 5 | IP36: 12 | IQ36: 3 | IR36: 3 | IS36: 4 | IT36: 0 | IU36: 9 | IV36: 2 | IW36: 5 | IX36: 5 | IY36: 0 | IZ36: 8 | JA36: 0 | JB36: 5 | JC36: 0 | JD36: 0 | JE36: 6 | JF36: 0 | JG36: 0 | JH36: 0 | JI36: 0 | JJ36: 0 | JK36: 1 | JL36: 1 | JM36: 1 | JN36: 0 | JO36: 0 | JP36: 0 | JQ36: 0 | JR36: 4 | JS36: 1 | JT36: 0 | JV36: 5 | JW36: 5 | JX36: 13 | JY36: 632 | JZ36: 11 | KA36: 37 | KC36: 0 | KD36: 0 | KE36: 8 | KF36: 672 | KG36: 21 | KH36: 1075 | KI36: 0 | KJ36: 0 | KK36: 3 | KL36: 76 | KM36: 1 | KN36: 90 | KO36: 0 | KP36: 0 | KQ36: 27 | KR36: 396 | KS36: 12 | KT36: 272 | KU36: 12 | KV36: 272 | KX36: 15 | KZ36: 666 | LA36: 1288 | LC36: 164.5 | LD36: 81.4 | LE36: 2056.8 | LF36: 235.2 | LH36: 119184 | LI36: 90.30390738 | LJ36: 1319.81 | LK36: 119184 | LL36: 107784 | LM36: 98312 | LN36: 89450 | LO36: 81037 | LP36: 72914 | LQ36: 12391 | LR36: 9755 | LS36: 7608 | LT36: 6233 | LU36: 5587 | LV36: 5004 | LW36: 62486 | LX36: 54538 | LY36: 48882 | LZ36: 43778 | MA36: 37610 | MB36: 31815 | MC36: 44307 | MD36: 43491 | ME36: 41822 | MF36: 39439 | MG36: 37840 | MH36: 36095 | MI36: 20553 | MJ36: 18829 | MK36: 16034 | ML36: 13820 | MM36: 13324 | MN36: 13500 | MO36: 14181 | MP36: 15033 | MQ36: 16734 | MR36: 15613 | MS36: 13492 | MT36: 11750 | MU36: 9573 | MV36: 9629 | MW36: 9054 | MX36: 10006 | MY36: 11024 | MZ36: 10845 | NA36: 一関市、西磐井郡平泉町 | NC36: 岩手県立磐井病院（標準群）
A37: 32 | B37: 気仙 | C37: 過疎地域型 | D37: 大船渡市,陸前高田市,気仙郡住田町 | F37: 岩手県 | G37: 東北 | H37: 0305 | I37: 大船渡（岩手） | J37: ケセン | K37: 大船渡市、陸前高田市、住田町 | L37: 1.03344866 | M37: 0.2284335797 | N37: -0.2721285999 | O37: -0.3021083069 | P37: 0.6618909901 | Q37: 0.9813513035 | R37: -0.1617424567 | S37: -0.3154748162 | T37: -0.1891207411 | U37: 184.9005859 | V37: 672.6859412 | X37: 125.8 | Y37: 520.2 | Z37: 23.6 | AB37: 20 | AC37: 0 | AD37: 0 | AE37: 0 | AF37: 0 | AG37: 0 | AH37: 0 | AI37: 0 | AK37: 0 | AL37: 0 | AM37: 1 | AN37: 4 | AO37: 0 | AQ37: 482 | AR37: 20 | AS37: 244 | AT37: 120 | AU37: 98 | AV37: 0 | AX37: 0 | BC37: 296.1 | BD37: 33.2 | BE37: 125.2 | BF37: 73.3 | BG37: 64.4 | BH37: 0 | BM37: 0 | BT37: 0 | BY37: 432.6 | BZ37: 42.3 | CA37: 150.4 | CB37: 123.3 | CC37: 116.6 | CD37: 0 | CI37: 0 | CP37: 23 | CQ37: 910 | CR37: 1004.907225 | CS37: 1137.885716 | CT37: 1028.589441 | CV37: 90.9 | CW37: 961.5 | CY37: 426660.5503 | CZ37: 181048.5348 | DA37: 222802.0364 | DB37: 22809.97903 | DC37: 0.9974256848 | DD37: 1.0807986 | DE37: 0.96429219 | DF37: 0.7812796101 | DG37: 0.03164114104 | DH37: -0.0192873153 | DI37: -0.01492814091 | DJ37: 283517.9046 | DK37: 5896034.742 | DL37: 22248 | DU37: 3 | DV37: 1 | DW37: 0 | DX37: 0 | DY37: 1 | DZ37: 319 | EA37: 0 | EB37: 1 | EC37: 0 | ED37: 1 | EE37: 1 | EF37: 0 | EG37: 702 | EH37: 430 | EI37: 60 | EJ37: 198 | EK37: 10 | EL37: 0 | EM37: 4 | EN37: 43 | EO37: 78.8 | EP37: 60 | EQ37: 18.8 | ER37: 362.8 | ES37: 340.1 | ET37: 22.7 | EU37: 11.6 | EV37: 9 | EW37: 3 | EX37: 821 | EY37: 372 | EZ37: 372 | FA37: 0 | FB37: 106.7355363 | FC37: 104.9309405 | FD37: 108.7277793 | FE37: 108.3458526 | FF37: 109.3208398 | FG37: 96.55367463 | FH37: 116.2976245 | FI37: 118.4087358 | FJ37: 103.3464107 | FK37: 72.2 | FL37: 111.5236675 | FM37: 96.25096614 | FN37: 118.2852582 | FO37: 109.4138843 | FP37: 72.54685598 | FQ37: 73.41007413 | FR37: 89.89636395 | FS37: 92.63912951 | FT37: 139.0505839 | FU37: 169.5840726 | FV37: 157.2122608 | FW37: 177.003285 | FX37: 131.0161984 | FY37: 176.0100552 | FZ37: 98.92618776 | GA37: 79.81094259 | GB37: 92.80410483 | GC37: 87.45702128 | GD37: 116.9605024 | GE37: 128.6278481 | GF37: 83.03814703 | GG37: 88.0990207 | GH37: 117.2267795 | GI37: 106.9345944 | GJ37: 119.0242234 | GK37: 128.277939 | GL37: 9.9 | GM37: 42.8 | GN37: 32.9 | GO37: 9.3 | GP37: 38.7 | GQ37: 29.4 | GR37: 17.6 | GS37: 50.2 | GT37: 32.6 | GU37: 17.6 | GV37: 50.2 | GW37: 0 | GX37: 0 | GY37: 7.9 | GZ37: 47.4 | HB37: 43 | HC37: 4 | HD37: 39 | HE37: 59 | HF37: 59 | HG37: 0 | HH37: 47 | HI37: 33 | HJ37: 14 | HK37: 157.4 | HL37: 118.5 | HM37: 38.9 | HO37: 98 | HQ37: 5 | HR37: 1 | HS37: 2 | HT37: 6 | HU37: 0 | HV37: 1 | HW37: 0 | HX37: 1 | HY37: 0 | HZ37: 0 | IA37: 2 | IB37: 0 | IC37: 1 | ID37: 0 | IE37: 5 | IF37: 0 | IG37: 2 | IH37: 7 | II37: 0 | IJ37: 0 | IK37: 0 | IL37: 0 | IM37: 5 | IN37: 4 | IO37: 4 | IP37: 3 | IQ37: 0 | IR37: 2 | IS37: 1 | IT37: 0 | IU37: 2 | IV37: 0 | IW37: 0 | IX37: 0 | IY37: 1 | IZ37: 2 | JA37: 1 | JB37: 1 | JC37: 1 | JD37: 0 | JE37: 4 | JF37: 1 | JG37: 0 | JH37: 0 | JI37: 0 | JJ37: 0 | JK37: 0 | JL37: 0 | JM37: 0 | JN37: 0 | JO37: 1 | JP37: 0 | JQ37: 1 | JR37: 1 | JS37: 1 | JT37: 1 | JV37: 3 | JW37: 1 | JX37: 10 | JY37: 158 | JZ37: 0 | KA37: 0 | KC37: 0 | KD37: 0 | KE37: 2 | KF37: 342 | KG37: 10 | KH37: 442 | KI37: 0 | KJ37: 0 | KK37: 0 | KL37: 0 | KM37: 0 | KN37: 0 | KO37: 0 | KP37: 0 | KQ37: 11 | KR37: 126 | KS37: 1 | KT37: 19 | KU37: 1 | KV37: 19 | KX37: 5 | KZ37: 238 | LA37: 465 | LC37: 67.7 | LD37: 23.2 | LE37: 878.3 | LF37: 83.2 | LH37: 58035 | LI37: 65.25992646 | LJ37: 889.29 | LK37: 58035 | LL37: 52999 | LM37: 48271 | LN37: 43729 | LO37: 39380 | LP37: 35279 | LQ37: 5411 | LR37: 4581 | LS37: 3830 | LT37: 3247 | LU37: 2843 | LV37: 2472 | LW37: 29836 | LX37: 26478 | LY37: 23353 | LZ37: 20466 | MA37: 17476 | MB37: 14982 | MC37: 22788 | MD37: 21940 | ME37: 21088 | MF37: 20016 | MG37: 19061 | MH37: 17825 | MI37: 9947 | MJ37: 8724 | MK37: 7882 | ML37: 7454 | MM37: 6996 | MN37: 6415 | MO37: 8044 | MP37: 8143 | MQ37: 8096 | MR37: 7161 | MS37: 6568 | MT37: 6247 | MU37: 4797 | MV37: 5073 | MW37: 5110 | MX37: 5401 | MY37: 5497 | MZ37: 5163 | NA37: 大船渡市、陸前高田市、気仙郡住田町 | ND37: 岩手県立大船渡病院（標準群・救命）
A38: 33 | B38: 釜石 | C38: 過疎地域型 | D38: 釜石市,上閉伊郡大槌町 | F38: 岩手県 | G38: 東北 | H38: 0306 | I38: 釜石（岩手） | J38: カマイシ | K38: 釜石市、大槌町 | L38: 1.734262286 | M38: 0.7544094514 | N38: -0.05054444061 | O38: 0.04391589591 | P38: 0.6981298236 | Q38: 1.337970887 | R38: 0.04186731557 | S38: -0.04096627184 | T38: 0.1280183933 | U38: 207.9843959 | V38: 1038.649904 | X38: 98.5 | Y38: 526.5 | Z38: 44 | AB38: 0 | AC38: 0 | AD38: 0 | AE38: 0 | AF38: 0 | AG38: 0 | AH38: 0 | AI38: 0 | AK38: 0 | AL38: 0 | AM38: 0 | AN38: 0 | AO38: 0 | AQ38: 791 | AR38: 0 | AS38: 240 | AT38: 217 | AU38: 334 | AV38: 0 | AX38: 0 | BC38: 480.2 | BD38: 23.6 | BE38: 101.7 | BF38: 149.7 | BG38: 205.2 | BH38: 0 | BM38: 0 | BT38: 0 | BY38: 467.2 | BZ38: 33.2 | CA38: 116.7 | CB38: 179.1 | CC38: 138.2 | CD38: 0 | CI38: 0 | CP38: 20 | CQ38: 788 | CR38: 752.1341573 | CS38: 817.1585234 | CT38: 684.5055612 | CV38: 58.2 | CW38: 819.6 | CY38: 495683.4212 | CZ38: 228537.0443 | DA38: 243823.2422 | DB38: 23323.13475 | DC38: 1.136650593 | DD38: 1.337359758 | DE38: 1.034869982 | DF38: 0.7880251333 | DG38: 0.1321977979 | DH38: 0.01883925079 | DI38: -0.01438645569 | DJ38: 282620.2973 | DK38: 4597251.052 | DL38: 17069 | DU38: 6 | DV38: 1 | DW38: 0 | DX38: 0 | DY38: 1 | DZ38: 233 | EA38: 0 | EB38: 0 | EC38: 0 | ED38: 1 | EE38: 0 | EF38: 0 | EG38: 887 | EH38: 581 | EI38: 102 | EJ38: 204 | EK38: 0 | EL38: 0 | EM38: 0 | EN38: 30 | EO38: 66.7 | EP38: 40 | EQ38: 26.7 | ER38: 458.8 | ES38: 419.3 | ET38: 39.5 | EU38: 28 | EV38: 14 | EW38: 2 | EX38: 495 | EY38: 0 | EZ38: 0 | FA38: 0 | FB38: 118.5510557 | FC38: 120.1068694 | FD38: 112.1954342 | FE38: 111.7191748 | FF38: 109.53741 | FG38: 82.9147651 | FH38: 117.8443146 | FI38: 137.1612498 | FJ38: 104.6073253 | FK38: 103.0094183 | FL38: 114.7854703 | FM38: 89.94419682 | FN38: 119.4248876 | FO38: 112.1311362 | FP38: 79.38374917 | FQ38: 87.23481528 | FR38: 120.1406375 | FS38: 106.5411036 | FT38: 176.7498263 | FU38: 185.007704 | FV38: 197.6236969 | FW38: 196.9207805 | FX38: 173.7090105 | FY38: 180.3567333 | FZ38: 114.9028738 | GA38: 104.4051274 | GB38: 90.23748986 | GC38: 99.17526753 | GD38: 118.6892321 | GE38: 114.2611987 | GF38: 118.4407209 | GG38: 136.173878 | GH38: 111.9188498 | GI38: 95.54643924 | GJ38: 138.9 | GK38: 96.4 | GL38: 20.3 | GM38: 20.5 | GN38: 0.2 | GO38: 18.7 | GP38: 19.5 | GQ38: 0.8 | GR38: 39 | GS38: 29.5 | GT38: -9.5 | GU38: 39 | GV38: 29.5 | GW38: 0 | GX38: 0 | GY38: 13.2 | GZ38: 18.5 | HB38: 26 | HC38: 2 | HD38: 24 | HE38: 21 | HF38: 21 | HG38: 0 | HH38: 31.8 | HI38: 24 | HJ38: 7.8 | HK38: 67.7 | HL38: 44.8 | HM38: 22.9 | HO38: 84 | HQ38: 0 | HR38: 2 | HS38: 0 | HT38: 1 | HU38: 1 | HV38: 0 | HW38: 1 | HX38: 0 | HY38: 1 | HZ38: 0 | IA38: 0 | IB38: 0 | IC38: 0 | ID38: 0 | IE38: 2 | IF38: 0 | IG38: 3 | IH38: 4 | II38: 0 | IJ38: 0 | IK38: 0 | IL38: 0 | IM38: 0 | IN38: 3 | IO38: 3 | IP38: 3 | IQ38: 1 | IR38: 3 | IS38: 2 | IT38: 0 | IU38: 1 | IV38: 0 | IW38: 0 | IX38: 2 | IY38: 0 | IZ38: 0 | JA38: 0 | JB38: 0 | JC38: 1 | JD38: 0 | JE38: 1 | JF38: 0 | JG38: 0 | JH38: 0 | JI38: 0 | JJ38: 0 | JK38: 0 | JL38: 0 | JM38: 0 | JN38: 0 | JO38: 0 | JP38: 0 | JQ38: 0 | JR38: 0 | JS38: 0 | JT38: 0 | JV38: 3 | JW38: 2 | JX38: 5 | JY38: 553 | JZ38: 2 | KA38: 6 | KC38: 0 | KD38: 0 | KE38: 3 | KF38: 288 | KG38: 7 | KH38: 365 | KI38: 0 | KJ38: 0 | KK38: 0 | KL38: 0 | KM38: 0 | KN38: 0 | KO38: 0 | KP38: 0 | KQ38: 10 | KR38: 135 | KS38: 0 | KT38: 0 | KU38: 0 | KV38: 0 | KX38: 4 | KZ38: 166 | LA38: 306 | LC38: 49.2 | LD38: 9 | LE38: 749.1 | LF38: 70.5 | LH38: 43082 | LI38: 67.23473321 | LJ38: 640.77 | LK38: 43082 | LL38: 38904 | LM38: 35053 | LN38: 31375 | LO38: 27943 | LP38: 24733 | LQ38: 4082 | LR38: 3381 | LS38: 2767 | LT38: 2387 | LU38: 2102 | LV38: 1797 | LW38: 21958 | LX38: 19717 | LY38: 17451 | LZ38: 15135 | MA38: 12919 | MB38: 11032 | MC38: 17042 | MD38: 15806 | ME38: 14835 | MF38: 13853 | MG38: 12922 | MH38: 11904 | MI38: 7633 | MJ38: 6386 | MK38: 5396 | ML38: 5157 | MM38: 4871 | MN38: 4397 | MO38: 6144 | MP38: 6000 | MQ38: 5961 | MR38: 5042 | MS38: 4334 | MT38: 4176 | MU38: 3265 | MV38: 3420 | MW38: 3478 | MX38: 3654 | MY38: 3717 | MZ38: 3331 | NA38: 釜石市、上閉伊郡大槌町 | ND38: 岩手県立釜石病院（標準群）
A39: 34 | B39: 宮古 | C39: 過疎地域型 | D39: 下閉伊郡田野畑村,下閉伊郡山田町,下閉伊郡岩泉町,宮古市 | F39: 岩手県 | G39: 東北 | H39: 0307 | I39: 宮古（岩手） | J39: ミヤコ | K39: 宮古市及び周辺部 | L39: 0.8590553456 | M39: 1.035229061 | N39: -0.2365781574 | O39: -0.1716366694 | P39: 0.499105118 | Q39: 1.001567304 | R39: -0.07950483327 | S39: -0.1896022498 | T39: -0.02281237931 | U39: 149.9718728 | V39: 899.5918563 | X39: 125 | Y39: 699.6 | Z39: 94.9 | AB39: 0 | AC39: 0 | AD39: 0 | AE39: 0 | AF39: 0 | AG39: 0 | AH39: 0 | AI39: 0 | AK39: 0 | AL39: 0 | AM39: 1 | AN39: 4 | AO39: 5 | AQ39: 669 | AR39: 0 | AS39: 289 | AT39: 256 | AU39: 70 | AV39: 54 | AX39: 0 | BC39: 393.5 | BD39: 29.3 | BE39: 107.3 | BF39: 170.7 | BG39: 86.2 | BH39: 0 | BM39: 0 | BT39: 0 | BY39: 578.3 | BZ39: 51.8 | CA39: 158.6 | CB39: 225.1 | CC39: 142.8 | CD39: 0 | CI39: 0 | CP39: 44 | CQ39: 1358 | CR39: 1309.439363 | CS39: 1442.987529 | CT39: 1240.671416 | CV39: 115 | CW39: 1439.3 | CY39: 414748.6147 | CZ39: 175427.1015 | DA39: 218905.4356 | DB39: 20416.07753 | DC39: 0.9644671641 | DD39: 1.040841974 | DE39: 0.9427606263 | DF39: 0.6970537451 | DG39: 0.01600741172 | DH39: -0.0309066892 | DI39: -0.02063355841 | DJ39: 291851.9979 | DK39: 8310643.842 | DL39: 29696 | DU39: 6 | DV39: 1 | DW39: 0 | DX39: 0 | DY39: 1 | DZ39: 319 | EA39: 0 | EB39: 0 | EC39: 1 | ED39: 1 | EE39: 1 | EF39: 0 | EG39: 1142 | EH39: 462 | EI39: 148 | EJ39: 518 | EK39: 10 | EL39: 78 | EM39: 4 | EN39: 22 | EO39: 70.4 | EP39: 58 | EQ39: 12.4 | ER39: 521.4 | ES39: 454.4 | ET39: 67 | EU39: 49 | EV39: 38.9 | EW39: 7 | EX39: 414 | EY39: 372 | EZ39: 288 | FA39: 84 | FB39: 116.312521 | FC39: 110.3821274 | FD39: 104.6863922 | FE39: 104.5114576 | FF39: 101.2991433 | FG39: 78.2 | FH39: 121.6818934 | FI39: 121.0936405 | FJ39: 103.4019484 | FK39: 85.4 | FL39: 101.8069672 | FM39: 99.82164002 | FN39: 138.9380678 | FO39: 128.1258238 | FP39: 80.30228907 | FQ39: 92.76598309 | FR39: 101.5375843 | FS39: 87.8717992 | FT39: 152.4228814 | FU39: 141.7606751 | FV39: 185.9689107 | FW39: 159.917756 | FX39: 144.240482 | FY39: 129.0798012 | FZ39: 112.2854147 | GA39: 107.6657929 | GB39: 108.843206 | GC39: 97.4 | GD39: 106.6095805 | GE39: 104.6269202 | GF39: 110.0088221 | GG39: 101.1678431 | GH39: 127.3658331 | GI39: 111.5421671 | GJ39: 117.2631621 | GK39: 100.351427 | GL39: 6.9 | GM39: 28.3 | GN39: 21.4 | GO39: 3.4 | GP39: 45.1 | GQ39: 41.7 | GR39: 16.8 | GS39: 26.1 | GT39: 9.3 | GU39: 16.8 | GV39: 25.1 | GW39: 0 | GX39: 100 | GY39: 5.6 | GZ39: 14.4 | HB39: 47 | HC39: 5 | HD39: 42 | HE39: 59 | HF39: 53 | HG39: 6 | HH39: 54.6 | HI39: 41 | HJ39: 13.6 | HK39: 178.2 | HL39: 129.3 | HM39: 48.9 | HO39: 113 | HQ39: 7 | HR39: 1 | HS39: 3 | HT39: 3 | HU39: 1 | HV39: 1 | HW39: 1 | HX39: 1 | HY39: 0 | HZ39: 0 | IA39: 0 | IB39: 0 | IC39: 2 | ID39: 0 | IE39: 3 | IF39: 0 | IG39: 6 | IH39: 4 | II39: 0 | IJ39: 0 | IK39: 0 | IL39: 0 | IM39: 4 | IN39: 3 | IO39: 1 | IP39: 5 | IQ39: 1 | IR39: 2 | IS39: 1 | IT39: 0 | IU39: 3 | IV39: 2 | IW39: 2 | IX39: 1 | IY39: 0 | IZ39: 1 | JA39: 0 | JB39: 0 | JC39: 0 | JD39: 0 | JE39: 3 | JF39: 0 | JG39: 0 | JH39: 0 | JI39: 1 | JJ39: 0 | JK39: 0 | JL39: 0 | JM39: 0 | JN39: 1 | JO39: 0 | JP39: 0 | JQ39: 0 | JR39: 0 | JS39: 0 | JT39: 0 | JV39: 4 | JW39: 1 | JX39: 8 | JY39: 87 | JZ39: 1 | KA39: 1 | KC39: 0 | KD39: 0 | KE39: 4 | KF39: 360 | KG39: 11 | KH39: 707 | KI39: 0 | KJ39: 0 | KK39: 0 | KL39: 0 | KM39: 1 | KN39: 21 | KO39: 0 | KP39: 0 | KQ39: 28 | KR39: 270 | KS39: 1 | KT39: 20 | KU39: 1 | KV39: 20 | KX39: 10 | KZ39: 263 | LA39: 669 | LC39: 77.9 | LD39: 37.1 | LE39: 1310 | LF39: 129.3 | LH39: 76474 | LI39: 28.63647768 | LJ39: 2670.51 | LK39: 76474 | LL39: 69507 | LM39: 62730 | LN39: 56194 | LO39: 49996 | LP39: 44212 | LQ39: 7436 | LR39: 6122 | LS39: 5066 | LT39: 4230 | LU39: 3666 | LV39: 3148 | LW39: 39000 | LX39: 34659 | LY39: 30658 | LZ39: 26764 | MA39: 22701 | MB39: 19388 | MC39: 30038 | MD39: 28726 | ME39: 27006 | MF39: 25200 | MG39: 23629 | MH39: 21676 | MI39: 13705 | MJ39: 11538 | MK39: 9825 | ML39: 9020 | MM39: 8711 | MN39: 7904 | MO39: 10616 | MP39: 10986 | MQ39: 10847 | MR39: 9271 | MS39: 7988 | MT39: 7391 | MU39: 5717 | MV39: 6202 | MW39: 6334 | MX39: 6909 | MY39: 6930 | MZ39: 6381 | NA39: 宮古市、下閉伊郡山田町、下閉伊郡岩泉町、下閉伊郡田野畑村 | ND39: 岩手県立宮古病院（標準群）
A40: 35 | B40: 久慈 | C40: 過疎地域型 | D40: 久慈市,下閉伊郡普代村,九戸郡野田村,九戸郡洋野町 | F40: 岩手県 | G40: 東北 | H40: 0308 | I40: 久慈（岩手） | J40: クジ | K40: 久慈市及び周辺部 | L40: 0.5797281421 | M40: 0.4078178788 | N40: 0.02571019309 | O40: -0.05927842471 | P40: 0.5121137422 | Q40: 0.8743417638 | R40: 0.1116210061 | S40: 0.04198826574 | T40: 0.03412650473 | U40: 168.4438263 | V40: 702.7936606 | X40: 91.5 | Y40: 435.7 | Z40: 32.8 | AB40: 20 | AC40: 0 | AD40: 0 | AE40: 0 | AF40: 0 | AG40: 0 | AH40: 0 | AI40: 0 | AK40: 0 | AL40: 0 | AM40: 1 | AN40: 4 | AO40: 0 | AQ40: 488 | AR40: 20 | AS40: 166 | AT40: 156 | AU40: 42 | AV40: 104 | AX40: 0 | BC40: 300 | BD40: 32.4 | BE40: 110.4 | BF40: 118.9 | BG40: 38.3 | BH40: 0 | BM40: 0 | BT40: 0 | BY40: 371.5 | BZ40: 39.8 | CA40: 129.1 | CB40: 142 | CC40: 60.6 | CD40: 0 | CI40: 0 | CP40: 25 | CQ40: 958 | CR40: 836.8530123 | CS40: 902.4470537 | CT40: 909.8528325 | CV40: 104.3 | CW40: 968.8 | CY40: 404165.0782 | CZ40: 178334.7629 | DA40: 203625.562 | DB40: 22204.7533 | DC40: 0.9730273723 | DD40: 1.099677587 | DE40: 0.9067077351 | DF40: 0.7757993403 | DG40: 0.03891655827 | DH40: -0.05044020979 | DI40: -0.01544897621 | DJ40: 292159.4627 | DK40: 4972231.079 | DL40: 18650 | DU40: 4 | DV40: 1 | DW40: 0 | DX40: 0 | DY40: 1 | DZ40: 228 | EA40: 0 | EB40: 1 | EC40: 0 | ED40: 1 | EE40: 1 | EF40: 0 | EG40: 666 | EH40: 367 | EI40: 85 | EJ40: 210 | EK40: 0 | EL40: 0 | EM40: 4 | EN40: 59 | EO40: 64.1 | EP40: 45 | EQ40: 19.1 | ER40: 357.9 | ES40: 324.8 | ET40: 33.1 | EU40: 14.8 | EV40: 16 | EW40: 2 | EX40: 432 | EY40: 96 | EZ40: 96 | FA40: 0 | FB40: 111.3689861 | FC40: 103.0416752 | FD40: 105.566132 | FE40: 105.2435837 | FF40: 108.4426017 | FG40: 92.76313706 | FH40: 118.8079214 | FI40: 125.5607298 | FJ40: 103.9266515 | FK40: 71.8 | FL40: 100.5021181 | FM40: 104.1332556 | FN40: 138.1956941 | FO40: 128.0751866 | FP40: 156.1457637 | FQ40: 139.7546793 | FR40: 113.8876109 | FS40: 113.0397857 | FT40: 169.9488061 | FU40: 177.7486135 | FV40: 165.2737361 | FW40: 177.4770691 | FX40: 175.480022 | FY40: 181.592416 | FZ40: 87.32740269 | GA40: 76.6811302 | GB40: 115.8069007 | GC40: 92.48500547 | GD40: 102.5413408 | GE40: 105.3366673 | GF40: 73.56894723 | GG40: 62.3869718 | GH40: 137.7892369 | GI40: 108.1298403 | GJ40: 148.9289763 | GK40: 127.7 | GL40: 9.9 | GM40: 29.8 | GN40: 19.9 | GO40: 9.6 | GP40: 25.5 | GQ40: 15.9 | GR40: 0 | GS40: 73 | GT40: 73 | GU40: 0 | GV40: 69.6 | GW40: 0 | GX40: 100 | GY40: 11 | GZ40: 26 | HB40: 30 | HC40: 4 | HD40: 26 | HE40: 55 | HF40: 55 | HG40: 0 | HH40: 27.4 | HI40: 20 | HJ40: 7.4 | HK40: 77.8 | HL40: 47.1 | HM40: 30.7 | HO40: 52 | HQ40: 3 | HR40: 1 | HS40: 3 | HT40: 6 | HU40: 0 | HV40: 0 | HW40: 1 | HX40: 0 | HY40: 0 | HZ40: 0 | IA40: 1 | IB40: 1 | IC40: 0 | ID40: 0 | IE40: 2 | IF40: 0 | IG40: 2 | IH40: 8 | II40: 0 | IJ40: 0 | IK40: 0 | IL40: 0 | IM40: 1 | IN40: 2 | IO40: 2 | IP40: 3 | IQ40: 1 | IR40: 2 | IS40: 1 | IT40: 0 | IU40: 2 | IV40: 0 | IW40: 0 | IX40: 0 | IY40: 0 | IZ40: 1 | JA40: 0 | JB40: 0 | JC40: 0 | JD40: 0 | JE40: 4 | JF40: 0 | JG40: 0 | JH40: 0 | JI40: 0 | JJ40: 0 | JK40: 0 | JL40: 0 | JM40: 0 | JN40: 0 | JO40: 0 | JP40: 0 | JQ40: 0 | JR40: 0 | JS40: 0 | JT40: 0 | JV40: 2 | JW40: 0 | JX40: 4 | JY40: 44 | JZ40: 1 | KA40: 1 | KC40: 0 | KD40: 0 | KE40: 5 | KF40: 352 | KG40: 9 | KH40: 453 | KI40: 0 | KJ40: 0 | KK40: 0 | KL40: 0 | KM40: 0 | KN40: 0 | KO40: 0 | KP40: 0 | KQ40: 11 | KR40: 153 | KS40: 4 | KT40: 85 | KU40: 3 | KV40: 65 | KX40: 4 | KZ40: 207 | LA40: 263 | LC40: 88.2 | LD40: 16.1 | LE40: 919.8 | LF40: 49 | LH40: 54557 | LI40: 50.66209791 | LJ40: 1076.88 | LK40: 54557 | LL40: 48979 | LM40: 44366 | LN40: 39955 | LO40: 35811 | LP40: 31771 | LQ40: 5739 | LR40: 4369 | LS40: 3266 | LT40: 2595 | LU40: 2180 | LV40: 1840 | LW40: 28788 | LX40: 24331 | LY40: 21331 | LZ40: 18323 | MA40: 15370 | MB40: 12767 | MC40: 20030 | MD40: 20279 | ME40: 19769 | MF40: 19037 | MG40: 18261 | MH40: 17164 | MI40: 9379 | MJ40: 8850 | MK40: 7738 | ML40: 6961 | MM40: 6529 | MN40: 6023 | MO40: 6677 | MP40: 7014 | MQ40: 7795 | MR40: 7375 | MS40: 6541 | MT40: 5956 | MU40: 3974 | MV40: 4415 | MW40: 4236 | MX40: 4701 | MY40: 5191 | MZ40: 5185 | NA40: 久慈市、九戸郡洋野町、九戸郡野田村、下閉伊郡普代村
A41: 36 | B41: 二戸 | C41: 過疎地域型 | D41: 二戸市,二戸郡一戸町,九戸郡軽米町,九戸郡九戸村 | F41: 岩手県 | G41: 東北 | H41: 0309 | I41: 二戸（岩手） | J41: ニノヘ | K41: 二戸市及び周辺部 | L41: 0.9361022788 | M41: 0.3908584588 | N41: -0.1117303293 | O41: -0.02027644177 | P41: 0.684548995 | Q41: 1.025521679 | R41: 0.04763955213 | S41: 0.0573298628 | T41: 0.1259832503 | U41: 197.069675 | V41: 835.4618987 | X41: 113.9 | Y41: 475.9 | Z41: 25.8 | AB41: 0 | AC41: 0 | AD41: 0 | AE41: 0 | AF41: 0 | AG41: 0 | AH41: 0 | AI41: 0 | AK41: 0 | AL41: 0 | AM41: 2 | AN41: 4 | AO41: 5 | AQ41: 432 | AR41: 0 | AS41: 283 | AT41: 50 | AU41: 45 | AV41: 54 | AX41: 0 | BC41: 238.9 | BD41: 23.4 | BE41: 104.2 | BF41: 81 | BG41: 30.3 | BH41: 0 | BM41: 0 | BT41: 0 | BY41: 382.2 | BZ41: 31.1 | CA41: 121.6 | CB41: 136.6 | CC41: 92.9 | CD41: 0 | CI41: 0 | CP41: 27 | CQ41: 975 | CR41: 943.7892038 | CS41: 934.186106 | CT41: 866.150599 | CV41: 75.2 | CW41: 989.9 | CY41: 401531.8361 | CZ41: 145917.1552 | DA41: 232861.563 | DB41: 22753.11793 | DC41: 0.9440959458 | DD41: 0.877471176 | DE41: 1.01277028 | DF41: 0.7821595541 | DG41: -0.04790798533 | DH41: 0.006903723897 | DI41: -0.01489979278 | DJ41: 319487.1164 | DK41: 6051435.388 | DL41: 19885 | DU41: 3 | DV41: 1 | DW41: 0 | DX41: 0 | DY41: 1 | DZ41: 243 | EA41: 0 | EB41: 0 | EC41: 0 | ED41: 1 | EE41: 1 | EF41: 0 | EG41: 550 | EH41: 349 | EI41: 45 | EJ41: 147 | EK41: 5 | EL41: 0 | EM41: 4 | EN41: 83 | EO41: 73.2 | EP41: 51 | EQ41: 22.2 | ER41: 345.8 | ES41: 333 | ET41: 12.8 | EU41: 11.8 | EV41: 10 | EW41: 4 | EX41: 330 | EY41: 300 | EZ41: 300 | FA41: 0 | FB41: 112.7609845 | FC41: 107.2779583 | FD41: 105.0911683 | FE41: 104.8069284 | FF41: 104.6766208 | FG41: 83.8329799 | FH41: 127.9133645 | FI41: 131.0764419 | FJ41: 94.01308215 | FK41: 82.2438162 | FL41: 104.5245593 | FM41: 89.75283108 | FN41: 114.4419577 | FO41: 117.0479934 | FP41: 56.47766143 | FQ41: 90.92608106 | FR41: 99.18506768 | FS41: 97.9436352 | FT41: 156.4152631 | FU41: 168.9559984 | FV41: 169.0124248 | FW41: 167.6507892 | FX41: 149.4350255 | FY41: 165.8997505 | FZ41: 106.5591448 | GA41: 102.9411417 | GB41: 102.537494 | GC41: 71.5 | GD41: 116.3378458 | GE41: 89.55525703 | GF41: 110.1762706 | GG41: 100.1332961 | GH41: 139.6761359 | GI41: 115.0193314 | GJ41: 146.5009423 | GK41: 143.4 | GL41: 14.9 | GM41: 46.9 | GN41: 32 | GO41: 10.1 | GP41: 33.1 | GQ41: 23 | GR41: 20 | GS41: 85.2 | GT41: 65.2 | GU41: 20 | GV41: 85.2 | GW41: 0 | GX41: 0 | GY41: 23.8 | GZ41: 35.8 | HB41: 37 | HC41: 5 | HD41: 32 | HE41: 76 | HF41: 60 | HG41: 16 | HH41: 40.7 | HI41: 29 | HJ41: 11.7 | HK41: 130.1 | HL41: 84.4 | HM41: 45.7 | HO41: 103 | HQ41: 3 | HR41: 2 | HS41: 3 | HT41: 8 | HU41: 0 | HV41: 1 | HW41: 0 | HX41: 1 | HY41: 0 | HZ41: 0 | IA41: 1 | IB41: 1 | IC41: 1 | ID41: 0 | IE41: 1 | IF41: 0 | IG41: 4 | IH41: 5 | II41: 0 | IJ41: 0 | IK41: 1 | IL41: 0 | IM41: 4 | IN41: 3 | IO41: 4 | IP41: 2 | IQ41: 0 | IR41: 2 | IS41: 1 | IT41: 0 | IU41: 4 | IV41: 0 | IW41: 2 | IX41: 1 | IY41: 0 | IZ41: 0 | JA41: 2 | JB41: 1 | JC41: 0 | JD41: 0 | JE41: 6 | JF41: 0 | JG41: 1 | JH41: 0 | JI41: 0 | JJ41: 0 | JK41: 0 | JL41: 1 | JM41: 0 | JN41: 0 | JO41: 0 | JP41: 2 | JQ41: 0 | JR41: 0 | JS41: 0 | JT41: 0 | JV41: 0 | JW41: 2 | JX41: 6 | JY41: 449 | JZ41: 1 | KA41: 1 | KC41: 0 | KD41: 0 | KE41: 3 | KF41: 300 | KG41: 15 | KH41: 532 | KI41: 0 | KJ41: 0 | KK41: 2 | KL41: 80 | KM41: 0 | KN41: 0 | KO41: 0 | KP41: 0 | KQ41: 7 | KR41: 63 | KS41: 0 | KT41: 0 | KU41: 0 | KV41: 0 | KX41: 3 | KZ41: 150 | LA41: 489 | LC41: 67.3 | LD41: 7.9 | LE41: 901.2 | LF41: 88.7 | LH41: 50806 | LI41: 46.17509929 | LJ41: 1100.29 | LK41: 50806 | LL41: 45557 | LM41: 41017 | LN41: 36746 | LO41: 32739 | LP41: 28907 | LQ41: 4805 | LR41: 3676 | LS41: 2876 | LT41: 2397 | LU41: 2127 | LV41: 1870 | LW41: 25698 | LX41: 21916 | LY41: 19212 | LZ41: 16448 | MA41: 13887 | MB41: 11599 | MC41: 20303 | MD41: 19965 | ME41: 18929 | MF41: 17901 | MG41: 16725 | MH41: 15438 | MI41: 9291 | MJ41: 8634 | MK41: 7106 | ML41: 6324 | MM41: 5853 | MN41: 5285 | MO41: 6766 | MP41: 6835 | MQ41: 7544 | MR41: 7037 | MS41: 5878 | MT41: 5298 | MU41: 4246 | MV41: 4496 | MW41: 4279 | MX41: 4540 | MY41: 4994 | MZ41: 4855 | NA41: 二戸市、九戸郡軽米町、九戸郡九戸村、二戸郡一戸町
A42: 37 | B42: 仙南 | C42: 過疎地域型 | D42: 角田市,柴田郡村田町,刈田郡七ヶ宿町,白石市,刈田郡蔵王町,柴田郡川崎町,伊具郡丸森町,柴田郡大河原町,柴田郡柴田町 | F42: 宮城県 | G42: 東北 | H42: 0401 | I42: 白石（宮城） | J42: センナン | K42: 白石市、角田市及び周辺部 | L42: 0.8100577661 | M42: 0.5197460381 | N42: -0.1202710554 | O42: -0.3273493466 | P42: 0.6199420765 | Q42: 0.7140425367 | R42: -0.0009176956485 | S42: -0.1465945803 | T42: -0.1859339246 | U42: 171.8250158 | V42: 590.0234668 | X42: 338.1 | Y42: 1086.1 | Z42: 133.9 | AB42: 0 | AC42: 0 | AD42: 15 | AE42: 0 | AF42: 0 | AG42: 0 | AH42: 0 | AI42: 0 | AK42: 0 | AL42: 0 | AM42: 1 | AN42: 4 | AO42: 0 | AQ42: 1168 | AR42: 26 | AS42: 418 | AT42: 392 | AU42: 332 | AV42: 0 | AX42: 0 | BC42: 1240 | BD42: 93 | BE42: 357 | BF42: 456 | BG42: 334 | BH42: 0 | BM42: 0 | BT42: 0 | BY42: 0 | CD42: 0 | CI42: 0 | CP42: 60 | CQ42: 2300 | CR42: 2350.154749 | CS42: 2692.204075 | CT42: 2784.572855 | CV42: 208.03 | CW42: 2245.68 | CY42: 429747.1271 | CZ42: 173755.7263 | DA42: 231585.0285 | DB42: 24406.37224 | DC42: 1.002772951 | DD42: 1.039081315 | DE42: 0.9982128769 | DF42: 0.8318864473 | DG42: 0.01524924662 | DH42: -0.0009674564334 | DI42: -0.01150883957 | DJ42: 248180.3443 | DK42: 12318987.97 | DL42: 51107 | DU42: 13 | DV42: 2 | DW42: 0 | DX42: 0 | DY42: 2 | DZ42: 454 | EA42: 0 | EB42: 1 | EC42: 1 | ED42: 1 | EE42: 0 | EF42: 1 | EG42: 1779 | EH42: 842 | EI42: 332 | EJ42: 601 | EK42: 0 | EL42: 34 | EM42: 4 | EN42: 204 | EO42: 221.2 | EP42: 169 | EQ42: 52.2 | ER42: 837.7 | ES42: 715.1 | ET42: 122.6 | EU42: 62 | EV42: 53.9 | EW42: 18 | EX42: 1276 | EY42: 180 | EZ42: 0 | FA42: 180 | FB42: 102.5599858 | FC42: 104.8284356 | FD42: 100.3246244 | FE42: 102.4367133 | FF42: 103.2315062 | FG42: 99.26179013 | FH42: 99.53922788 | FI42: 100.3634663 | FJ42: 87.04675076 | FK42: 103.8611578 | FL42: 103.9289643 | FM42: 106.2795573 | FN42: 96.94032737 | FO42: 99.97127068 | FP42: 87.54320272 | FQ42: 91.10939333 | FR42: 93.06599758 | FS42: 97.61252556 | FT42: 126.8769813 | FU42: 136.3532034 | FV42: 134.925352 | FW42: 139.2002945 | FX42: 113.4869986 | FY42: 131.1018384 | FZ42: 78.10050112 | GA42: 66.4171883 | GB42: 88.33844916 | GC42: 86.31850064 | GD42: 91.60137556 | GE42: 84.60247263 | GF42: 130.5788611 | GG42: 118.9768015 | GH42: 112.0541506 | GI42: 113.6855397 | GJ42: 115.6200806 | GK42: 102.265773 | GL42: 11.9 | GM42: 37 | GN42: 25.1 | GO42: 7.6 | GP42: 47.7 | GQ42: 40.1 | GR42: 5.2 | GS42: 6.7 | GT42: 1.5 | GU42: 5.2 | GV42: 5.6 | GW42: 0 | GX42: 100 | GY42: 19.6 | GZ42: 29.8 | HB42: 103 | HC42: 6 | HD42: 97 | HE42: 42 | HF42: 42 | HG42: 0 | HH42: 116.9 | HI42: 84 | HJ42: 32.9 | HK42: 248.4 | HL42: 144 | HM42: 104.4 | HO42: 297 | HQ42: 27 | HR42: 8 | HS42: 6 | HT42: 23 | HU42: 1 | HV42: 2 | HW42: 5 | HX42: 6 | HY42: 0 | HZ42: 2 | IA42: 6 | IB42: 2 | IC42: 1 | ID42: 1 | IE42: 9 | IF42: 0 | IG42: 6 | IH42: 20 | II42: 1 | IJ42: 0 | IK42: 0 | IL42: 0 | IM42: 9 | IN42: 4 | IO42: 2 | IP42: 9 | IQ42: 1 | IR42: 4 | IS42: 6 | IT42: 0 | IU42: 4 | IV42: 0 | IW42: 0 | IX42: 2 | IY42: 2 | IZ42: 4 | JA42: 0 | JB42: 2 | JC42: 0 | JD42: 0 | JE42: 13 | JF42: 0 | JG42: 2 | JH42: 0 | JI42: 1 | JJ42: 0 | JK42: 1 | JL42: 0 | JM42: 1 | JN42: 1 | JO42: 0 | JP42: 0 | JQ42: 0 | JR42: 0 | JS42: 0 | JT42: 0 | JV42: 4 | JW42: 6 | JX42: 16 | JY42: 768 | JZ42: 4 | KA42: 12 | KC42: 0 | KD42: 0 | KE42: 10 | KF42: 905 | KG42: 23 | KH42: 1011 | KI42: 0 | KJ42: 0 | KK42: 0 | KL42: 0 | KM42: 0 | KN42: 0 | KO42: 2 | KP42: 33 | KQ42: 25 | KR42: 351 | KS42: 3 | KT42: 76 | KU42: 6 | KV42: 139 | KX42: 10 | KZ42: 348 | LA42: 954 | LC42: 166.53 | LD42: 41.5 | LE42: 2056.96 | LF42: 188.72 | LH42: 166529 | LI42: 107.3411113 | LJ42: 1551.4 | LK42: 166529 | LL42: 155883 | LM42: 146402 | LN42: 136731 | LO42: 126858 | LP42: 116796 | LQ42: 17762 | LR42: 14501 | LS42: 12005 | LT42: 10371 | LU42: 9515 | LV42: 8734 | LW42: 92109 | LX42: 84144 | LY42: 78118 | LZ42: 71871 | MA42: 63563 | MB42: 55755 | MC42: 56658 | MD42: 57238 | ME42: 56279 | MF42: 54489 | MG42: 53780 | MH42: 52307 | MI42: 28322 | MJ42: 25619 | MK42: 21259 | ML42: 18787 | MM42: 19578 | MN42: 20314 | MO42: 17555 | MP42: 20794 | MQ42: 23724 | MR42: 21674 | MS42: 18260 | MT42: 16359 | MU42: 10781 | MV42: 10825 | MW42: 11296 | MX42: 14028 | MY42: 15942 | MZ42: 15634 | NA42: 白石市、角田市、刈田郡蔵王町、刈田郡七ヶ宿町、柴田郡大河原町、柴田郡村田町、柴田郡柴田町、柴田郡川崎町、伊具郡丸森町 | NC42: みやぎ県南中核病院（標準群・救命）
A43: 38 | B43: 仙台 | C43: 大都市型 | D43: 塩竈市,黒川郡大和町,亘理郡山元町,仙台市若林区,仙台市太白区,仙台市宮城野区,仙台市泉区,名取市,宮城郡七ヶ浜町,岩沼市,亘理郡亘理町,宮城郡松島町,宮城郡利府町,黒川郡大郷町,黒川郡富谷町,黒川郡大衡村,多賀城市,仙台市青葉区 | F43: 宮城県 | G43: 東北 | H43: 0403 | I43: 仙台（宮城） | J43: センダイ | K43: 仙台市、塩竈市及び周辺部 | L43: 1.226410998 | M43: 0.4261395017 | N43: -0.03445109654 | O43: -0.7746008247 | P43: 0.9693358332 | Q43: 1.006841188 | R43: -0.05780143259 | S43: -0.5282600808 | T43: -0.8146583255 | U43: 246.3080802 | V43: 799.7692133 | X43: 4890 | Y43: 14166 | Z43: 1436.9 | AB43: 64 | AC43: 78 | AD43: 63 | AE43: 12 | AF43: 9 | AG43: 69 | AH43: 57 | AI43: 8 | AK43: 0 | AL43: 1 | AM43: 6 | AN43: 10 | AO43: 0 | AQ43: 13023 | AR43: 1901 | AS43: 7310 | AT43: 1548 | AU43: 2080 | AV43: 184 | AX43: 0 | BC43: 13201 | BD43: 1798 | BE43: 4999 | BF43: 3899 | BG43: 2505 | BH43: 0 | BM43: 0 | BT43: 0 | BY43: 0 | CD43: 0 | CI43: 0 | CP43: 372 | CQ43: 18075 | CR43: 13404.45975 | CS43: 19366.11174 | CT43: 22995.3503 | CV43: 2164.3475 | CW43: 17276.45 | CY43: 398481.7277 | CZ43: 147211.4132 | DA43: 223978.8464 | DB43: 27291.46817 | DC43: 1.006984959 | DD43: 0.9595480124 | DE43: 1.043966376 | DF43: 0.9833286571 | DG43: -0.01568300239 | DH43: 0.02383722718 | DI43: -0.001169266103 | DJ43: 258063.1997 | DK43: 77956760.27 | DL43: 317205 | DU43: 77 | DV43: 23 | DW43: 2 | DX43: 1 | DY43: 20 | DZ43: 8228 | EA43: 4 | EB43: 3 | EC43: 10 | ED43: 5 | EE43: 6 | EF43: 1 | EG43: 16098 | EH43: 11003 | EI43: 1262 | EJ43: 3823 | EK43: 0 | EL43: 586 | EM43: 10 | EN43: 784 | EO43: 3253.9 | EP43: 2680 | EQ43: 573.9 | ER43: 10755.2 | ES43: 10284.1 | ET43: 471.1 | EU43: 779.1 | EV43: 490.2 | EW43: 167.6 | EX43: 34947 | EY43: 8628 | EZ43: 6156 | FA43: 2472 | FB43: 93.18037967 | FC43: 96.86991212 | FD43: 98.52275338 | FE43: 99.92157673 | FF43: 89.21307468 | FG43: 92.31998814 | FH43: 94.42128711 | FI43: 103.0451266 | FJ43: 93.78016685 | FK43: 86.56146585 | FL43: 103.2491875 | FM43: 99.33879981 | FN43: 91.26787961 | FO43: 90.16639181 | FP43: 62.86884145 | FQ43: 64.769256 | FR43: 76.12759829 | FS43: 80.10976048 | FT43: 111.6035849 | FU43: 116.5170653 | FV43: 139.9634874 | FW43: 146.2976135 | FX43: 98.2966551 | FY43: 107.6171443 | FZ43: 69.86601119 | GA43: 65.03158891 | GB43: 86.50032273 | GC43: 78.47292183 | GD43: 86.1976761 | GE43: 85.32112431 | GF43: 110.2062664 | GG43: 108.5003458 | GH43: 88.44788802 | GI43: 92.63798174 | GJ43: 102.6940189 | GK43: 100.2813756 | GL43: 16.2 | GM43: 3.7 | GN43: -12.5 | GO43: 17.7 | GP43: 1.9 | GQ43: -15.8 | GR43: 3.8 | GS43: 5.6 | GT43: 1.8 | GU43: 3.4 | GV43: 5.6 | GW43: 100 | GX43: 0 | GY43: 14.4 | GZ43: 8.8 | HB43: 1237 | HC43: 65 | HD43: 1172 | HE43: 793 | HF43: 751 | HG43: 42 | HH43: 1636.1 | HI43: 1200 | HJ43: 436.1 | HK43: 3410.8 | HL43: 2440.5 | HM43: 970.3 | HO43: 4243 | HQ43: 428 | HR43: 104 | HS43: 151 | HT43: 343 | HU43: 78 | HV43: 64 | HW43: 87 | HX43: 71 | HY43: 35 | HZ43: 52 | IA43: 79 | IB43: 52 | IC43: 59 | ID43: 22 | IE43: 213 | IF43: 11 | IG43: 141 | IH43: 375 | II43: 29 | IJ43: 39 | IK43: 28 | IL43: 10 | IM43: 133 | IN43: 81 | IO43: 73 | IP43: 222 | IQ43: 39 | IR43: 143 | IS43: 118 | IT43: 16 | IU43: 194 | IV43: 53 | IW43: 95 | IX43: 139 | IY43: 27 | IZ43: 54 | JA43: 28 | JB43: 46 | JC43: 56 | JD43: 18 | JE43: 223 | JF43: 30 | JG43: 19 | JH43: 2 | JI43: 44 | JJ43: 19 | JK43: 18 | JL43: 11 | JM43: 15 | JN43: 4 | JO43: 13 | JP43: 31 | JQ43: 33 | JR43: 18 | JS43: 26 | JT43: 6 | JV43: 100 | JW43: 15 | JX43: 120 | JY43: 14516 | JZ43: 51 | KA43: 276 | KC43: 0 | KD43: 0 | KE43: 49 | KF43: 4793 | KG43: 103 | KH43: 6951 | KI43: 3 | KJ43: 87 | KK43: 7 | KL43: 252 | KM43: 44 | KN43: 2829 | KO43: 7 | KP43: 314 | KQ43: 159 | KR43: 2849 | KS43: 84 | KT43: 2571 | KU43: 89 | KV43: 2781 | KX43: 150 | KZ43: 7096 | LA43: 9377 | LC43: 1249.3075 | LD43: 915.04 | LE43: 14663.7 | LF43: 2612.75 | LH43: 1540389 | LI43: 934.2145482 | LJ43: 1648.86 | LK43: 1540389 | LL43: 1532487 | LM43: 1515159 | LN43: 1489050 | LO43: 1453953 | LP43: 1411373 | LQ43: 187798 | LR43: 174116 | LS43: 158165 | LT43: 148873 | LU43: 144390 | LV43: 139339 | LW43: 967944 | LX43: 955479 | LY43: 935447 | LZ43: 897010 | MA43: 832630 | MB43: 776508 | MC43: 384647 | MD43: 402892 | ME43: 421547 | MF43: 443167 | MG43: 476933 | MH43: 495526 | MI43: 196522 | MJ43: 179444 | MK43: 171446 | ML43: 182584 | MM43: 209302 | MN43: 216575 | MO43: 125957 | MP43: 151046 | MQ43: 166705 | MR43: 154570 | MS43: 149484 | MT43: 160509 | MU43: 62168 | MV43: 72402 | MW43: 83396 | MX43: 106013 | MY43: 118147 | MZ43: 118442 | NA43: 仙台市青葉区、仙台市宮城野区、仙台市若林区、仙台市太白区、仙台市泉区、塩竈市、名取市、多賀城市、岩沼市、富谷市、亘理郡亘理町、亘理郡山元町、宮城郡松島町、宮城郡七ヶ浜町、宮城郡利府町、黒川郡大和町、黒川郡大郷町、黒川郡大衡村 | NB43: 仙台市立病院（標準群・救命）、東北公済病院（標準群）、仙台厚生病院（標準群）、NHO仙台医療センター（特定群・救命）、東北大学病院（大学本院群・救命）、東北医科薬科大学病院（大学本院群） | NC43: JCHO仙台病院（標準群）、仙台赤十字病院（標準群）、仙台オープン病院（標準群）、宮城県立こども病院（標準群）、東北労災病院（標準群）、宮城県立がんセンター（標準群） | ND43: 仙台徳洲会病院（標準群）、中嶋病院（標準群）、坂総合病院（標準群）
A44: 39 | B44: 大崎・栗原 | C44: 地方都市型 | D44: 加美郡色麻町,加美郡加美町,遠田郡涌谷町,遠田郡美里町,大崎市,栗原市 | F44: 宮城県 | G44: 東北 | H44: 0406 | I44: 大崎（宮城） | J44: オオサキクリハラ | K44: 大崎市及び周辺部 | L44: 0.5403952988 | M44: 0.9039642243 | N44: -0.1675964133 | O44: -0.1948486847 | P44: 1.052435891 | Q44: 0.9179185549 | R44: -0.1433451083 | S44: -0.1538367206 | T44: -0.1700313423 | U44: 190.5197993 | V44: 696.1793472 | X44: 896.1 | Y44: 2179.8 | Z44: 175 | AB44: 26 | AC44: 8 | AD44: 0 | AE44: 0 | AF44: 6 | AG44: 0 | AH44: 0 | AI44: 0 | AK44: 0 | AL44: 0 | AM44: 2 | AN44: 7 | AO44: 28 | AQ44: 2429 | AR44: 44 | AS44: 1028 | AT44: 435 | AU44: 869 | AV44: 53 | AX44: 0 | BC44: 1902 | BD44: 182 | BE44: 567 | BF44: 669 | BG44: 484 | BH44: 0 | BM44: 0 | BT44: 0 | BY44: 0 | CD44: 0 | CI44: 0 | CP44: 98 | CQ44: 3829 | CR44: 3866.793156 | CS44: 3902.275789 | CT44: 3957.046 | CV44: 401.87 | CW44: 4093.39 | CY44: 426994.6107 | CZ44: 165026.7825 | DA44: 240223.6137 | DB44: 21744.21456 | DC44: 1.010238444 | DD44: 1.001984066 | DE44: 1.04944601 | DF44: 0.7482013329 | DG44: 0.0007731276491 | DH44: 0.02677862929 | DI44: -0.01731331266 | DJ44: 296019.3086 | DK44: 23029122.11 | DL44: 81764 | DU44: 25 | DV44: 2 | DW44: 0 | DX44: 1 | DY44: 1 | DZ44: 1000 | EA44: 0 | EB44: 1 | EC44: 1 | ED44: 1 | EE44: 1 | EF44: 0 | EG44: 3025 | EH44: 1419 | EI44: 879 | EJ44: 692 | EK44: 28 | EL44: 0 | EM44: 7 | EN44: 326 | EO44: 671.8 | EP44: 349 | EQ44: 322.8 | ER44: 1674.5 | ES44: 1399.4 | ET44: 275.1 | EU44: 101 | EV44: 56 | EW44: 18 | EX44: 3336 | EY44: 1524 | EZ44: 540 | FA44: 984 | FB44: 104.2296687 | FC44: 108.1363877 | FD44: 101.3339683 | FE44: 102.8541044 | FF44: 109.038842 | FG44: 115.3625087 | FH44: 103.2844398 | FI44: 107.5029571 | FJ44: 88.05717201 | FK44: 98.53723994 | FL44: 104.7597918 | FM44: 94.91972333 | FN44: 120.7748648 | FO44: 123.752687 | FP44: 84.96852039 | FQ44: 73.74790391 | FR44: 144.8931044 | FS44: 153.6000671 | FT44: 134.0220313 | FU44: 146.9235692 | FV44: 141.9397813 | FW44: 151.8332206 | FX44: 116.8934112 | FY44: 141.0829188 | FZ44: 92.38626122 | GA44: 94.68391237 | GB44: 88.44628712 | GC44: 84.89476912 | GD44: 107.6716502 | GE44: 106.4124686 | GF44: 114.75955 | GG44: 100.1464185 | GH44: 106.8141194 | GI44: 111.7027771 | GJ44: 115.3121051 | GK44: 93.08947755 | GL44: 16.9 | GM44: 23.9 | GN44: 7 | GO44: 6.4 | GP44: 24.7 | GQ44: 18.3 | GR44: 22.7 | GS44: 2.1 | GT44: -20.6 | GU44: 22.7 | GV44: 2.1 | GW44: 0 | GX44: 0 | GY44: 29.4 | GZ44: 37.7 | HB44: 167 | HC44: 14 | HD44: 153 | HE44: 203 | HF44: 193 | HG44: 10 | HH44: 224.3 | HI44: 153 | HJ44: 71.3 | HK44: 505.3 | HL44: 242.3 | HM44: 263 | HO44: 455 | HQ44: 36 | HR44: 7 | HS44: 16 | HT44: 26 | HU44: 4 | HV44: 5 | HW44: 3 | HX44: 9 | HY44: 2 | HZ44: 4 | IA44: 7 | IB44: 2 | IC44: 8 | ID44: 3 | IE44: 12 | IF44: 0 | IG44: 13 | IH44: 35 | II44: 2 | IJ44: 4 | IK44: 2 | IL44: 0 | IM44: 11 | IN44: 6 | IO44: 6 | IP44: 28 | IQ44: 2 | IR44: 15 | IS44: 7 | IT44: 0 | IU44: 11 | IV44: 1 | IW44: 8 | IX44: 7 | IY44: 3 | IZ44: 7 | JA44: 1 | JB44: 4 | JC44: 4 | JD44: 1 | JE44: 23 | JF44: 1 | JG44: 1 | JH44: 0 | JI44: 3 | JJ44: 1 | JK44: 0 | JL44: 0 | JM44: 2 | JN44: 0 | JO44: 2 | JP44: 3 | JQ44: 1 | JR44: 0 | JS44: 0 | JT44: 0 | JV44: 17 | JW44: 8 | JX44: 35 | JY44: 2518 | JZ44: 13 | KA44: 55 | KC44: 0 | KD44: 0 | KE44: 15 | KF44: 1306 | KG44: 28 | KH44: 1561 | KI44: 1 | KJ44: 44 | KK44: 3 | KL44: 75 | KM44: 1 | KN44: 30 | KO44: 1 | KP44: 29 | KQ44: 49 | KR44: 784 | KS44: 21 | KT44: 446 | KU44: 23 | KV44: 535 | KX44: 26 | KZ44: 1471 | LA44: 1737 | LC44: 254.54 | LD44: 147.33 | LE44: 3759.17 | LF44: 334.22 | LH44: 259990 | LI44: 111.6373536 | LJ44: 2328.88 | LK44: 259990 | LL44: 240532 | LM44: 224133 | LN44: 208147 | LO44: 192389 | LP44: 176452 | LQ44: 28506 | LR44: 23404 | LS44: 18984 | LT44: 16112 | LU44: 14671 | LV44: 13442 | LW44: 141459 | LX44: 126748 | LY44: 117459 | LZ44: 108920 | MA44: 96946 | MB44: 84509 | MC44: 90025 | MD44: 90380 | ME44: 87690 | MF44: 83115 | MG44: 80772 | MH44: 78501 | MI44: 44139 | MJ44: 41131 | MK44: 33793 | ML44: 28510 | MM44: 28563 | MN44: 30861 | MO44: 27310 | MP44: 30679 | MQ44: 36695 | MR44: 34396 | MS44: 28651 | MT44: 24427 | MU44: 18576 | MV44: 18570 | MW44: 17202 | MX44: 20209 | MY44: 23558 | MZ44: 23213 | NA44: 栗原市、大崎市、加美郡色麻町、加美郡加美町、遠田郡涌谷町、遠田郡美里町 | NB44: 大崎市民病院（特定群・救命）
A45: 40 | B45: 石巻・登米・気仙沼 | C45: 地方都市型 | D45: 登米市,牡鹿郡女川町,東松島市,石巻市,本吉郡南三陸町,気仙沼市 | F45: 宮城県 | G45: 東北 | H45: 0409 | I45: 石巻（宮城） | J45: イシノマキトメケセンヌマ | K45: 石巻市、登米市、気仙沼市及び周辺部 | L45: 0.5823646095 | M45: 0.5612770954 | N45: -0.1785214743 | O45: -0.2940623988 | P45: 0.6513606006 | Q45: 0.9244418934 | R45: -0.1173611096 | S45: -0.2602640095 | T45: -0.2269059406 | U45: 160.2238545 | V45: 707.5480937 | X45: 714.8 | Y45: 2829.4 | Z45: 434.6 | AB45: 24 | AC45: 0 | AD45: 6 | AE45: 0 | AF45: 0 | AG45: 0 | AH45: 0 | AI45: 0 | AK45: 0 | AL45: 0 | AM45: 3 | AN45: 8 | AO45: 0 | AQ45: 2634 | AR45: 46 | AS45: 1302 | AT45: 517 | AU45: 735 | AV45: 34 | AX45: 0 | BC45: 2438 | BD45: 192 | BE45: 681 | BF45: 981 | BG45: 584 | BH45: 0 | BM45: 0 | BT45: 0 | BY45: 0 | CD45: 0 | CI45: 0 | CP45: 134 | CQ45: 4751 | CR45: 4743.19791 | CS45: 5349.82072 | CT45: 5208.215718 | CV45: 487.58 | CW45: 4963.74 | CY45: 421045.5317 | CZ45: 165953.8279 | DA45: 232483.0801 | DB45: 22608.62377 | DC45: 1.013836415 | DD45: 1.025161322 | DE45: 1.034276618 | DF45: 0.789403192 | DG45: 0.009807703799 | DH45: 0.01855202954 | DI45: -0.01452331832 | DJ45: 274771.532 | DK45: 27086667.51 | DL45: 106654 | DU45: 20 | DV45: 2 | DW45: 0 | DX45: 1 | DY45: 1 | DZ45: 1214 | EA45: 0 | EB45: 1 | EC45: 1 | ED45: 1 | EE45: 2 | EF45: 0 | EG45: 3568 | EH45: 1897 | EI45: 640 | EJ45: 1023 | EK45: 0 | EL45: 182 | EM45: 8 | EN45: 328 | EO45: 443.5 | EP45: 369 | EQ45: 74.5 | ER45: 2056.7 | ES45: 1872.1 | ET45: 184.6 | EU45: 237.4 | EV45: 158.1 | EW45: 39.1 | EX45: 4845 | EY45: 1332 | EZ45: 1008 | FA45: 324 | FB45: 105.2127708 | FC45: 104.8809416 | FD45: 103.2594302 | FE45: 104.2527495 | FF45: 96.5533089 | FG45: 101.8411654 | FH45: 102.6516559 | FI45: 106.5076815 | FJ45: 88.81497614 | FK45: 92.79325 | FL45: 104.8215216 | FM45: 102.1887466 | FN45: 126.9697071 | FO45: 120.1522562 | FP45: 88.14816541 | FQ45: 84.82572403 | FR45: 127.5166938 | FS45: 124.9412943 | FT45: 139.6216392 | FU45: 134.0757001 | FV45: 176.3137855 | FW45: 156.9580532 | FX45: 124.3449318 | FY45: 129.6770976 | FZ45: 84.92783003 | GA45: 75.93611768 | GB45: 87.69247567 | GC45: 78.27257775 | GD45: 121.0509634 | GE45: 110.8406514 | GF45: 110.1713803 | GG45: 103.5187918 | GH45: 107.5263343 | GI45: 105.5101791 | GJ45: 118.2138151 | GK45: 99.01478967 | GL45: 12.2 | GM45: 21 | GN45: 8.8 | GO45: 4.7 | GP45: 22.6 | GQ45: 17.9 | GR45: 2.1 | GS45: 18.5 | GT45: 16.4 | GU45: 2.1 | GV45: 18.5 | GW45: 0 | GX45: 0 | GY45: 30 | GZ45: 20 | HB45: 217 | HC45: 11 | HD45: 206 | HE45: 141 | HF45: 127 | HG45: 14 | HH45: 271.3 | HI45: 202 | HJ45: 69.3 | HK45: 772.7 | HL45: 393 | HM45: 379.7 | HO45: 575 | HQ45: 39 | HR45: 9 | HS45: 23 | HT45: 32 | HU45: 3 | HV45: 6 | HW45: 11 | HX45: 2 | HY45: 1 | HZ45: 4 | IA45: 12 | IB45: 1 | IC45: 3 | ID45: 2 | IE45: 13 | IF45: 0 | IG45: 19 | IH45: 48 | II45: 5 | IJ45: 3 | IK45: 1 | IL45: 0 | IM45: 15 | IN45: 14 | IO45: 9 | IP45: 22 | IQ45: 1 | IR45: 14 | IS45: 9 | IT45: 1 | IU45: 12 | IV45: 1 | IW45: 5 | IX45: 9 | IY45: 2 | IZ45: 3 | JA45: 1 | JB45: 3 | JC45: 6 | JD45: 2 | JE45: 25 | JF45: 1 | JG45: 4 | JH45: 0 | JI45: 0 | JJ45: 0 | JK45: 0 | JL45: 0 | JM45: 2 | JN45: 0 | JO45: 1 | JP45: 1 | JQ45: 2 | JR45: 1 | JS45: 0 | JT45: 0 | JV45: 18 | JW45: 3 | JX45: 37 | JY45: 2430 | JZ45: 12 | KA45: 43 | KC45: 0 | KD45: 0 | KE45: 18 | KF45: 1764 | KG45: 44 | KH45: 1925 | KI45: 0 | KJ45: 0 | KK45: 3 | KL45: 118 | KM45: 0 | KN45: 0 | KO45: 1 | KP45: 48 | KQ45: 68 | KR45: 896 | KS45: 19 | KT45: 404 | KU45: 20 | KV45: 463 | KX45: 24 | KZ45: 2026 | LA45: 2169 | LC45: 346.88 | LD45: 140.7 | LE45: 4532.14 | LF45: 431.6 | LH45: 335088 | LI45: 191.1337242 | LJ45: 1753.16 | LK45: 335088 | LL45: 309821 | LM45: 286353 | LN45: 263475 | LO45: 241139 | LP45: 219225 | LQ45: 34865 | LR45: 28950 | LS45: 23795 | LT45: 20362 | LU45: 18346 | LV45: 16361 | LW45: 183913 | LX45: 165562 | LY45: 151047 | LZ45: 136936 | MA45: 120343 | MB45: 104590 | MC45: 116310 | MD45: 115309 | ME45: 111511 | MF45: 106177 | MG45: 102450 | MH45: 98274 | MI45: 55588 | MJ45: 49703 | MK45: 42979 | ML45: 38732 | MM45: 38094 | MN45: 38246 | MO45: 38560 | MP45: 41823 | MQ45: 44829 | MR45: 40580 | MS45: 35543 | MT45: 32276 | MU45: 22162 | MV45: 23783 | MW45: 23703 | MX45: 26865 | MY45: 28813 | MZ45: 27752 | NA45: 石巻市、登米市、気仙沼市、東松島市、牡鹿郡女川町、本吉郡南三陸町 | NB45: 石巻赤十字病院（特定群・救命） | ND45: 気仙沼市立病院（標準群）
A46: 41 | B46: 県北 | C46: 地方都市型 | D46: 大館市,能代市,鹿角市,北秋田市,鹿角郡小坂町,北秋田郡上小阿仁村,山本郡藤里町,山本郡三種町,山本郡八峰町 | F46: 秋田県 | G46: 東北 | H46: 0501 | I46: 大館（秋田） | J46: ケンホク | K46: 大館市、能代市及び周辺部 | L46: 0.70194604 | M46: 0.689011597 | N46: -0.08339295509 | O46: 0.1119896916 | P46: 0.7087842939 | Q46: 1.060575982 | R46: 0.009675438003 | S46: 0.03156363665 | T46: 0.1882738248 | U46: 135.1733499 | V46: 724.223743 | X46: 487.6 | Y46: 2034.9 | Z46: 191.8 | AB46: 0 | AC46: 0 | AD46: 0 | AE46: 0 | AF46: 0 | AG46: 0 | AH46: 0 | AI46: 0 | AK46: 0 | AL46: 0 | AM46: 4 | AN46: 12 | AO46: 10 | AQ46: 2303 | AR46: 0 | AS46: 1390 | AT46: 420 | AU46: 493 | AV46: 0 | AX46: 0 | BM46: 0 | BT46: 0 | BY46: 0 | CD46: 0 | CI46: 0 | CP46: 121 | CQ46: 4608 | CR46: 692.2368688 | CS46: 676.937018 | CT46: 567.3965965 | CV46: 414.425 | CW46: 4686.2 | DJ46: 337867.1326 | DK46: 4652451.609 | DL46: 14591 | DU46: 17 | DV46: 6 | DW46: 0 | DX46: 0 | DY46: 6 | DZ46: 1299 | EA46: 0 | EB46: 0 | EC46: 1 | ED46: 3 | EE46: 1 | EF46: 0 | EG46: 3076 | EH46: 1726 | EI46: 550 | EJ46: 778 | EK46: 10 | EL46: 151 | EM46: 12 | EN46: 336 | EO46: 314.8 | EP46: 226 | EQ46: 88.8 | ER46: 1618.2 | ES46: 1425.7 | ET46: 192.5 | EU46: 101.3 | EV46: 74.5 | EW46: 16 | EX46: 3734 | EY46: 133 | EZ46: 133 | FA46: 0 | FB46: 116.3873403 | FC46: 105.3536269 | FD46: 115.3149883 | FE46: 107.7032053 | FF46: 146.1602744 | FG46: 137.4445026 | FH46: 123.7269761 | FI46: 118.3491305 | FJ46: 81.82942536 | FK46: 69.80412134 | FL46: 109.8211195 | FM46: 91.74827338 | FN46: 95.29211006 | FO46: 93.71096246 | FP46: 80.80553387 | FQ46: 64.06187481 | FR46: 129.2531157 | FS46: 109.7587372 | FT46: 149.6965823 | FU46: 153.592018 | FV46: 149.7443886 | FW46: 149.019356 | FX46: 154.5895431 | FY46: 156.5758768 | FZ46: 144.9311532 | GA46: 124.0267299 | GB46: 100.0559931 | GC46: 99.63770461 | GD46: 120.3838455 | GE46: 108.0851292 | GF46: 95.20208946 | GG46: 87.02895474 | GH46: 134.5211799 | GI46: 110.8259756 | GJ46: 141.9675574 | GK46: 113.1539806 | HB46: 165 | HC46: 9 | HD46: 156 | HE46: 119 | HF46: 98 | HG46: 21 | HH46: 172.8 | HI46: 127 | HJ46: 45.8 | HK46: 416.7 | HL46: 217.8 | HM46: 198.9 | HO46: 406 | HQ46: 9 | HR46: 2 | HS46: 11 | HT46: 22 | HU46: 3 | HV46: 5 | HW46: 1 | HX46: 0 | HY46: 0 | HZ46: 1 | IA46: 2 | IB46: 1 | IC46: 4 | ID46: 0 | IE46: 9 | IF46: 1 | IG46: 10 | IH46: 27 | II46: 4 | IJ46: 0 | IK46: 0 | IL46: 1 | IM46: 7 | IN46: 10 | IO46: 10 | IP46: 23 | IQ46: 2 | IR46: 8 | IS46: 9 | IT46: 0 | IU46: 14 | IV46: 1 | IW46: 4 | IX46: 1 | IY46: 1 | IZ46: 2 | JA46: 0 | JB46: 1 | JC46: 2 | JD46: 0 | JE46: 10 | JF46: 0 | JG46: 5 | JH46: 0 | JI46: 0 | JJ46: 3 | JK46: 0 | JL46: 0 | JM46: 0 | JN46: 0 | JO46: 0 | JP46: 0 | JQ46: 0 | JR46: 1 | JS46: 0 | JT46: 1 | JV46: 11 | JW46: 3 | JX46: 9 | JY46: 16 | JZ46: 29 | KA46: 633 | KC46: 0 | KD46: 0 | KE46: 10 | KF46: 954 | KG46: 31 | KH46: 2032 | KI46: 4 | KJ46: 357 | KK46: 5 | KL46: 129 | KM46: 4 | KN46: 128 | KO46: 2 | KP46: 70 | KQ46: 65 | KR46: 938 | KS46: 18 | KT46: 376 | KU46: 0 | KV46: 0 | KX46: 19 | KZ46: 938 | LA46: 2113 | LC46: 337.925 | LD46: 76.5 | LE46: 4257.1 | LF46: 429.1 | LH46: 210061 | LI46: 47.49158965 | LJ46: 4423.12 | LK46: 210061 | LL46: 189205 | LM46: 170323 | LN46: 152699 | LO46: 136121 | LP46: 120497 | LQ46: 18317 | LR46: 14229 | LS46: 11318 | LT46: 9298 | LU46: 8190 | LV46: 7148 | LW46: 103849 | LX46: 90760 | LY46: 79614 | LZ46: 69928 | MA46: 59286 | MB46: 49563 | MC46: 87895 | MD46: 84216 | ME46: 79391 | MF46: 73473 | MG46: 68645 | MH46: 63786 | MI46: 39220 | MJ46: 33666 | MK46: 28698 | ML46: 25096 | MM46: 23538 | MN46: 22861 | MO46: 29911 | MP46: 30921 | MQ46: 31804 | MR46: 27724 | MS46: 23925 | MT46: 21082 | MU46: 18764 | MV46: 19629 | MW46: 18889 | MX46: 20653 | MY46: 21182 | MZ46: 19843 | NA46: 大館市、能代市、鹿角市、北秋田市、鹿角郡小坂町、北秋田郡上小阿仁村、山本郡藤里町、山本郡三種町、山本郡八峰町 | ND46: 大館市立総合病院（標準群）、能代厚生医療センター（標準群）
A47: 42 | B47: 県央 | C47: 地方都市型 | D47: 秋田市,男鹿市,潟上市,由利本荘市,にかほ市,南秋田郡五城目町,南秋田郡八郎潟町,南秋田郡井川町,南秋田郡大潟村 | F47: 秋田県 | G47: 東北 | H47: 0502 | I47: 秋田（秋田） | J47: ケンオウ | K47: 秋田市及び周辺部 | L47: 1.440926472 | M47: 1.292831249 | N47: 0.07457036173 | O47: 0.1506517855 | P47: 1.141685973 | Q47: 1.321737078 | R47: 0.1265177141 | S47: 0.08530589449 | T47: 0.198328442 | U47: 210.8618512 | V47: 1001.864437 | X47: 1811.1 | Y47: 5847.8 | Z47: 488.6 | AB47: 30 | AC47: 14 | AD47: 34 | AE47: 8 | AF47: 6 | AG47: 30 | AH47: 12 | AI47: 0 | AK47: 0 | AL47: 1 | AM47: 3 | AN47: 12 | AO47: 14 | AQ47: 5690 | AR47: 620 | AS47: 2671 | AT47: 731 | AU47: 1378 | AV47: 290 | AX47: 0 | BM47: 0 | BT47: 0 | BY47: 0 | CD47: 0 | CI47: 0 | CP47: 173 | CQ47: 7693 | CR47: 1433.384431 | CS47: 1501.013027 | CT47: 1315.543027 | CV47: 889.4 | CW47: 8438 | DJ47: 293351.3287 | DK47: 9802161.242 | DL47: 31434 | DU47: 32 | DV47: 8 | DW47: 1 | DX47: 0 | DY47: 7 | DZ47: 2946 | EA47: 1 | EB47: 2 | EC47: 1 | ED47: 4 | EE47: 2 | EF47: 1 | EG47: 7537 | EH47: 4472 | EI47: 884 | EJ47: 2149 | EK47: 20 | EL47: 200 | EM47: 12 | EN47: 449 | EO47: 1251.9 | EP47: 977 | EQ47: 274.9 | ER47: 4669.7 | ES47: 4403.4 | ET47: 266.3 | EU47: 233.6 | EV47: 200.1 | EW47: 54.9 | EX47: 10577 | EY47: 210 | EZ47: 142 | FA47: 68 | FB47: 104.0109306 | FC47: 102.73675 | FD47: 112.0858804 | FE47: 105.2831284 | FF47: 136.8450149 | FG47: 129.0424938 | FH47: 121.4525555 | FI47: 113.2119669 | FJ47: 90.10503731 | FK47: 79.85775121 | FL47: 101.6312945 | FM47: 89.98281073 | FN47: 83.07565497 | FO47: 88.46882925 | FP47: 49.65565464 | FQ47: 58.27556997 | FR47: 118.4399423 | FS47: 98.77845712 | FT47: 128.6001401 | FU47: 127.9956397 | FV47: 119.0650894 | FW47: 115.7046111 | FX47: 117.0716325 | FY47: 124.2126551 | FZ47: 83.87867356 | GA47: 74.72002483 | GB47: 80.64159917 | GC47: 90.46621398 | GD47: 116.6803381 | GE47: 102.827183 | GF47: 84.09536787 | GG47: 84.13757443 | GH47: 112.9070781 | GI47: 113.2800013 | GJ47: 111.9308681 | GK47: 91.80319434 | HB47: 423 | HC47: 26 | HD47: 397 | HE47: 358 | HF47: 358 | HG47: 0 | HH47: 559.2 | HI47: 406 | HJ47: 153.2 | HK47: 1178.1 | HL47: 849.3 | HM47: 328.8 | HO47: 1182 | HQ47: 133 | HR47: 27 | HS47: 61 | HT47: 107 | HU47: 28 | HV47: 29 | HW47: 19 | HX47: 37 | HY47: 9 | HZ47: 36 | IA47: 31 | IB47: 24 | IC47: 22 | ID47: 9 | IE47: 73 | IF47: 1 | IG47: 67 | IH47: 112 | II47: 10 | IJ47: 8 | IK47: 10 | IL47: 3 | IM47: 37 | IN47: 43 | IO47: 40 | IP47: 76 | IQ47: 7 | IR47: 44 | IS47: 30 | IT47: 6 | IU47: 59 | IV47: 14 | IW47: 26 | IX47: 37 | IY47: 16 | IZ47: 15 | JA47: 18 | JB47: 19 | JC47: 23 | JD47: 12 | JE47: 74 | JF47: 10 | JG47: 9 | JH47: 0 | JI47: 7 | JJ47: 9 | JK47: 3 | JL47: 6 | JM47: 6 | JN47: 1 | JO47: 8 | JP47: 8 | JQ47: 17 | JR47: 7 | JS47: 4 | JT47: 0 | JV47: 31 | JW47: 10 | JX47: 20 | JY47: 38 | JZ47: 87 | KA47: 2647 | KC47: 0 | KD47: 0 | KE47: 25 | KF47: 2518 | KG47: 52 | KH47: 2991 | KI47: 1 | KJ47: 50 | KK47: 2 | KL47: 110 | KM47: 11 | KN47: 528 | KO47: 19 | KP47: 650 | KQ47: 63 | KR47: 846 | KS47: 18 | KT47: 292 | KU47: 12 | KV47: 280 | KX47: 61 | KZ47: 2053 | LA47: 3986 | LC47: 603.8 | LD47: 285.6 | LE47: 7591.2 | LF47: 846.8 | LH47: 484386 | LI47: 153.9894074 | LJ47: 3145.58 | LK47: 484386 | LL47: 457443 | LM47: 429131 | LN47: 400501 | LO47: 371634 | LP47: 342556 | LQ47: 49343 | LR47: 42208 | LS47: 35643 | LT47: 31047 | LU47: 28523 | LV47: 26119 | LW47: 267998 | LX47: 246772 | LY47: 227456 | LZ47: 207939 | MA47: 183419 | MB47: 161284 | MC47: 167045 | MD47: 168463 | ME47: 166032 | MF47: 161515 | MG47: 159692 | MH47: 155153 | MI47: 81324 | MJ47: 71980 | MK47: 62998 | ML47: 58389 | MM47: 59646 | MN47: 59907 | MO47: 54172 | MP47: 62141 | MQ47: 67779 | MR47: 60549 | MS47: 53778 | MT47: 50388 | MU47: 31549 | MV47: 34342 | MW47: 35255 | MX47: 42577 | MY47: 46268 | MZ47: 44858 | NA47: 秋田市、男鹿市、潟上市、由利本荘市、にかほ市、南秋田郡五城目町、南秋田郡八郎潟町、南秋田郡井川町、南秋田郡大潟村 | NB47: 秋田大学医学部附属病院（大学本院群・救命） | NC47: 市立秋田総合病院（標準群）、秋田厚生医療センター（標準群）、秋田赤十字病院（標準群・救命）、中通総合病院（標準群） | ND47: 由利組合総合病院（標準群）
A48: 43 | B48: 県南 | C48: 地方都市型 | D48: 大仙市,横手市,仙北市,湯沢市,仙北郡美郷町,雄勝郡羽後町,雄勝郡東成瀬村 | F48: 秋田県 | G48: 東北 | H48: 0503 | I48: 大仙（秋田） | J48: ケンナン | K48: 大仙市、横手市及び周辺部 | L48: 1.579373308 | M48: 1.013752475 | N48: 0.02512799582 | O48: -0.2452016411 | P48: 0.6764658278 | Q48: 0.9794779074 | R48: 0.02840857753 | S48: -0.1993670027 | T48: -0.241011362 | U48: 320.9111288 | V48: 1153.354296 | X48: 587.2 | Y48: 2371.3 | Z48: 240.4 | AB48: 0 | AC48: 0 | AD48: 10 | AE48: 0 | AF48: 0 | AG48: 0 | AH48: 0 | AI48: 0 | AK48: 0 | AL48: 0 | AM48: 4 | AN48: 12 | AO48: 6 | AQ48: 2446 | AR48: 10 | AS48: 1391 | AT48: 540 | AU48: 383 | AV48: 122 | AX48: 0 | BM48: 0 | BT48: 0 | BY48: 0 | CD48: 0 | CI48: 0 | CP48: 139 | CQ48: 5048 | CR48: 5018.269697 | CS48: 6194.730569 | CT48: 6409.823685 | CV48: 488.5 | CW48: 5782.6 | DJ48: 301652.4723 | DK48: 33620911.17 | DL48: 114419 | DU48: 15 | DV48: 4 | DW48: 0 | DX48: 0 | DY48: 4 | DZ48: 1177 | EA48: 0 | EB48: 0 | EC48: 0 | ED48: 3 | EE48: 1 | EF48: 0 | EG48: 3294 | EH48: 2076 | EI48: 308 | EJ48: 892 | EK48: 6 | EL48: 78 | EM48: 12 | EN48: 492 | EO48: 356.2 | EP48: 292 | EQ48: 64.2 | ER48: 1841.9 | ES48: 1742.4 | ET48: 99.5 | EU48: 129.4 | EV48: 89 | EW48: 22 | EX48: 4351 | EY48: 94 | EZ48: 62 | FA48: 32 | FB48: 109.4837175 | FC48: 109.3247796 | FD48: 109.7652766 | FE48: 106.7454341 | FF48: 138.9332635 | FG48: 156.0130637 | FH48: 115.3507991 | FI48: 118.2965134 | FJ48: 80.75583532 | FK48: 62.68117196 | FL48: 98.20947609 | FM48: 86.43959501 | FN48: 95.34389403 | FO48: 93.90965529 | FP48: 48.74170165 | FQ48: 60.10943246 | FR48: 155.5136163 | FS48: 117.1653721 | FT48: 139.0057058 | FU48: 146.8931754 | FV48: 165.9407527 | FW48: 151.5136438 | FX48: 123.4012299 | FY48: 145.4882629 | FZ48: 117.7932404 | GA48: 101.036983 | GB48: 106.9629535 | GC48: 97.13452688 | GD48: 110.1419113 | GE48: 101.4173818 | GF48: 148.1643324 | GG48: 121.108558 | GH48: 127.5797658 | GI48: 125.5048163 | GJ48: 137.1228991 | GK48: 118.0090161 | HB48: 218 | HC48: 11 | HD48: 207 | HE48: 106 | HF48: 96 | HG48: 10 | HH48: 231 | HI48: 178 | HJ48: 53 | HK48: 529.4 | HL48: 349.7 | HM48: 179.7 | HO48: 467 | HQ48: 37 | HR48: 1 | HS48: 19 | HT48: 35 | HU48: 2 | HV48: 8 | HW48: 5 | HX48: 6 | HY48: 0 | HZ48: 3 | IA48: 6 | IB48: 2 | IC48: 6 | ID48: 2 | IE48: 11 | IF48: 0 | IG48: 25 | IH48: 35 | II48: 4 | IJ48: 2 | IK48: 2 | IL48: 1 | IM48: 10 | IN48: 11 | IO48: 13 | IP48: 34 | IQ48: 1 | IR48: 14 | IS48: 13 | IT48: 0 | IU48: 19 | IV48: 9 | IW48: 3 | IX48: 6 | IY48: 4 | IZ48: 0 | JA48: 5 | JB48: 4 | JC48: 4 | JD48: 1 | JE48: 28 | JF48: 1 | JG48: 2 | JH48: 0 | JI48: 0 | JJ48: 1 | JK48: 1 | JL48: 1 | JM48: 4 | JN48: 0 | JO48: 1 | JP48: 0 | JQ48: 2 | JR48: 0 | JS48: 0 | JT48: 0 | JV48: 22 | JW48: 2 | JX48: 14 | JY48: 38 | JZ48: 63 | KA48: 1640 | KC48: 0 | KD48: 0 | KE48: 15 | KF48: 1510 | KG48: 39 | KH48: 2110 | KI48: 2 | KJ48: 33 | KK48: 3 | KL48: 95 | KM48: 5 | KN48: 206 | KO48: 3 | KP48: 125 | KQ48: 72 | KR48: 969 | KS48: 15 | KT48: 392 | KU48: 30 | KV48: 798 | KX48: 23 | KZ48: 564 | LA48: 2356 | LC48: 399.6 | LD48: 88.9 | LE48: 5237.3 | LF48: 545.3 | LH48: 265055 | LI48: 65.49662083 | LJ48: 4046.85 | LK48: 265055 | LL48: 241415 | LM48: 219257 | LN48: 198371 | LO48: 178445 | LP48: 158996 | LQ48: 25195 | LR48: 20421 | LS48: 16458 | LT48: 13602 | LU48: 11905 | LV48: 10487 | LW48: 135113 | LX48: 117601 | LY48: 104067 | LZ48: 92776 | MA48: 79875 | MB48: 67254 | MC48: 104747 | MD48: 103393 | ME48: 98732 | MF48: 91993 | MG48: 86665 | MH48: 81255 | MI48: 48566 | MJ48: 44980 | MK48: 37636 | ML48: 30923 | MM48: 28843 | MN48: 29158 | MO48: 33474 | MP48: 35639 | MQ48: 40059 | MR48: 37474 | MS48: 31698 | MT48: 26310 | MU48: 22707 | MV48: 22774 | MW48: 21037 | MX48: 23596 | MY48: 26124 | MZ48: 25787 | NA48: 大仙市、横手市、仙北市、湯沢市、仙北郡美郷町、雄勝郡羽後町、雄勝郡東成瀬村 | NC48: 大曲厚生医療センター（標準群） | ND48: 平鹿総合病院（標準群）、市立横手病院（標準群）
A49: 44 | B49: 村山 | C49: 地方都市型 | D49: 村山市,北村山郡大石田町,尾花沢市,山形市,西村山郡大江町,寒河江市,上山市,東根市,東村山郡山辺町,東村山郡中山町,西村山郡西川町,西村山郡朝日町,西村山郡河北町,天童市 | F49: 山形県 | G49: 東北 | H49: 0601 | I49: 山形（山形) | J49: ムラヤマ | K49: 山形市、寒河江市及び周辺部 | L49: 1.388353103 | M49: 0.6620995747 | N49: -0.0888912813 | O49: -0.2925963142 | P49: 0.9950071301 | Q49: 1.2088542 | R49: 0.005455357204 | S49: -0.132079296 | T49: -0.1805997179 | U49: 288.0980292 | V49: 966.0414682 | X49: 1733.1 | Y49: 5872.5 | Z49: 675.3 | AB49: 26 | AC49: 14 | AD49: 33 | AE49: 0 | AF49: 14 | AG49: 21 | AH49: 15 | AI49: 0 | AK49: 0 | AL49: 1 | AM49: 2 | AN49: 8 | AO49: 0 | AQ49: 5410 | AR49: 612 | AS49: 2616 | AT49: 922 | AU49: 1260 | AV49: 0 | AX49: 0 | BC49: 4873 | BD49: 523 | BE49: 1687 | BF49: 1431 | BG49: 1232 | BH49: 0 | BM49: 0 | BT49: 0 | BY49: 0 | CD49: 0 | CI49: 0 | CP49: 162 | CQ49: 7740 | CR49: 7179.617776 | CS49: 8172.480438 | CT49: 8522.749364 | CV49: 802.6 | CW49: 7050.665 | CY49: 429552.7047 | CZ49: 168908.3881 | DA49: 231172.923 | DB49: 29471.39355 | DC49: 1.011650545 | DD49: 1.019577417 | DE49: 1.005851495 | DF49: 1.012323056 | DG49: 0.007638365904 | DH49: 0.00316726202 | DI49: 0.0008449169334 | DJ49: 272877.8618 | DK49: 39780246.11 | DL49: 155045 | DU49: 33 | DV49: 6 | DW49: 1 | DX49: 1 | DY49: 4 | DZ49: 3066 | EA49: 1 | EB49: 1 | EC49: 3 | ED49: 3 | EE49: 3 | EF49: 2 | EG49: 7550 | EH49: 4463 | EI49: 907 | EJ49: 2172 | EK49: 0 | EL49: 355 | EM49: 8 | EN49: 403 | EO49: 1095.9 | EP49: 972 | EQ49: 123.9 | ER49: 4561.5 | ES49: 4393.7 | ET49: 167.8 | EU49: 299.2 | EV49: 299.5 | EW49: 76.6 | EX49: 8678 | EY49: 3120 | EZ49: 2076 | FA49: 1044 | FB49: 95.54509732 | FC49: 99.43970263 | FD49: 95.90119737 | FE49: 98.70515189 | FF49: 112.3424015 | FG49: 130.956281 | FH49: 90.00464826 | FI49: 99.75953091 | FJ49: 82.87889072 | FK49: 83.12043889 | FL49: 93.39723521 | FM49: 79.01857068 | FN49: 104.8644483 | FO49: 97.07316835 | FP49: 214.0105859 | FQ49: 183.6772561 | FR49: 91.42192535 | FS49: 89.01050216 | FT49: 109.0363398 | FU49: 113.5697763 | FV49: 102.2947333 | FW49: 102.649672 | FX49: 118.4642454 | FY49: 128.7234173 | FZ49: 92.14000082 | GA49: 85.03385943 | GB49: 63.74003538 | GC49: 92.09549285 | GD49: 124.4481382 | GE49: 98.26474272 | GF49: 117.7356486 | GG49: 123.7665817 | GH49: 92.66643016 | GI49: 102.6206725 | GJ49: 106.552994 | GK49: 79.79840603 | GL49: 9.2 | GM49: 2.3 | GN49: -6.9 | GO49: 11.3 | GP49: 2.4 | GQ49: -8.9 | GR49: 4.5 | GS49: 2.3 | GT49: -2.2 | GU49: 4.5 | GV49: 2.3 | GW49: 0 | GX49: 0 | GY49: 6.5 | GZ49: 1.9 | HB49: 478 | HC49: 23 | HD49: 455 | HE49: 231 | HF49: 216 | HG49: 15 | HH49: 637.2 | HI49: 493 | HJ49: 144.2 | HK49: 1311 | HL49: 968.2 | HM49: 342.8 | HO49: 1218 | HQ49: 130 | HR49: 33 | HS49: 65 | HT49: 83 | HU49: 27 | HV49: 15 | HW49: 27 | HX49: 24 | HY49: 13 | HZ49: 19 | IA49: 33 | IB49: 9 | IC49: 12 | ID49: 5 | IE49: 63 | IF49: 0 | IG49: 50 | IH49: 93 | II49: 6 | IJ49: 14 | IK49: 7 | IL49: 4 | IM49: 36 | IN49: 42 | IO49: 38 | IP49: 112 | IQ49: 6 | IR49: 52 | IS49: 43 | IT49: 2 | IU49: 56 | IV49: 18 | IW49: 36 | IX49: 35 | IY49: 6 | IZ49: 17 | JA49: 8 | JB49: 8 | JC49: 19 | JD49: 2 | JE49: 71 | JF49: 8 | JG49: 12 | JH49: 0 | JI49: 10 | JJ49: 3 | JK49: 1 | JL49: 3 | JM49: 5 | JN49: 2 | JO49: 6 | JP49: 4 | JQ49: 15 | JR49: 3 | JS49: 3 | JT49: 1 | JV49: 36 | JW49: 6 | JX49: 101 | JY49: 6762 | JZ49: 33 | KA49: 114 | KC49: 0 | KD49: 0 | KE49: 16 | KF49: 1490 | KG49: 66 | KH49: 4134 | KI49: 2 | KJ49: 78 | KK49: 1 | KL49: 50 | KM49: 19 | KN49: 872 | KO49: 2 | KP49: 36 | KQ49: 56 | KR49: 1080 | KS49: 34 | KT49: 724 | KU49: 37 | KV49: 797 | KX49: 50 | KZ49: 3169 | LA49: 2372 | LC49: 507.3 | LD49: 295.3 | LE49: 6560.305 | LF49: 490.36 | LH49: 531855 | LI49: 203.0453655 | LJ49: 2619.39 | LK49: 531855 | LL49: 509061 | LM49: 485814 | LN49: 462645 | LO49: 439053 | LP49: 414790 | LQ49: 62302 | LR49: 54818 | LS49: 48047 | LT49: 43511 | LU49: 41188 | LV49: 38850 | LW49: 298608 | LX49: 281232 | LY49: 266225 | LZ49: 250498 | MA49: 229263 | MB49: 208759 | MC49: 170945 | MD49: 173011 | ME49: 171542 | MF49: 168636 | MG49: 168602 | MH49: 167181 | MI49: 80624 | MJ49: 73849 | MK49: 65822 | ML49: 61464 | MM49: 63358 | MN49: 65441 | MO49: 55046 | MP49: 62884 | MQ49: 68784 | MR49: 63453 | MS49: 57334 | MT49: 54194 | MU49: 35275 | MV49: 36278 | MW49: 36936 | MX49: 43719 | MY49: 47910 | MZ49: 47546 | NA49: 山形市、寒河江市、上山市、村山市、天童市、東根市、尾花沢市、東村山郡山辺町、東村山郡中山町、西村山郡河北町、西村山郡西川町、西村山郡朝日町、西村山郡大江町、北村山郡大石田町 | NB49: 山形県立中央病院（特定群・救命）、山形大学医学部附属病院（大学本院群） | NC49: 山形市立病院済生館（標準群） | ND49: 山形済生病院（標準群）
A50: 45 | B50: 最上 | C50: 過疎地域型 | D50: 最上郡真室川町,最上郡舟形町,最上郡最上町,最上郡大蔵村,最上郡鮭川村,最上郡戸沢村,最上郡金山町,新庄市 | F50: 山形県 | G50: 東北 | H50: 0602 | I50: 新庄（山形) | J50: モガミ | K50: 新庄市及び周辺部 | L50: 1.225444117 | M50: 0.5472989495 | N50: 0.1495135287 | O50: 0.1282238121 | P50: 0.371126622 | Q50: 0.5407584415 | R50: 0.209838265 | S50: 0.2106466973 | T50: 0.1900586213 | U50: 174.2769294 | V50: 820.224289 | X50: 86.2 | Y50: 350.3 | Z50: 40 | AB50: 0 | AC50: 4 | AD50: 0 | AE50: 0 | AF50: 0 | AG50: 0 | AH50: 0 | AI50: 0 | AK50: 0 | AL50: 0 | AM50: 1 | AN50: 4 | AO50: 0 | AQ50: 751 | AR50: 5 | AS50: 420 | AT50: 218 | AU50: 108 | AV50: 0 | AX50: 0 | BH50: 574 | BI50: 43 | BJ50: 210 | BK50: 236 | BL50: 85 | BM50: 0 | BT50: 0 | BY50: 0 | CD50: 0 | CI50: 0 | CP50: 27 | CQ50: 1459 | CR50: 1193.14422 | CS50: 1191.923487 | CT50: 1223.011482 | CV50: 114.81 | CW50: 1172.2 | CY50: 401492.4392 | CZ50: 169717.7265 | DA50: 208185.0418 | DB50: 23589.67088 | DC50: 0.9510728834 | DD50: 1.029729303 | DE50: 0.9117026602 | DF50: 0.8139550548 | DG50: 0.0116071418 | DH50: -0.04776176283 | DI50: -0.01277249556 | DJ50: 310168.9734 | DK50: 7117497.288 | DL50: 24755 | DU50: 4 | DV50: 1 | DW50: 0 | DX50: 0 | DY50: 1 | DZ50: 440 | EA50: 0 | EB50: 1 | EC50: 0 | ED50: 1 | EE50: 0 | EF50: 0 | EG50: 565 | EH50: 293 | EI50: 92 | EJ50: 180 | EK50: 0 | EL50: 44 | EM50: 0 | EN50: 50 | EO50: 31.4 | EP50: 17 | EQ50: 14.4 | ER50: 205.5 | ES50: 167.2 | ET50: 38.3 | EU50: 19 | EV50: 18 | EW50: 3 | EX50: 288 | EY50: 0 | EZ50: 0 | FA50: 0 | FB50: 111.5103068 | FC50: 109.3628212 | FD50: 108.0263991 | FE50: 105.2283683 | FF50: 143.5176545 | FG50: 144.3194512 | FH50: 107.3260072 | FI50: 109.7493783 | FJ50: 81.70616172 | FK50: 69.7 | FL50: 102.229503 | FM50: 92.90108267 | FN50: 119.0683381 | FO50: 101.8632959 | FP50: 229.6843918 | FQ50: 184.06074 | FR50: 126.9890861 | FS50: 91.72109495 | FT50: 134.8060515 | FU50: 152.0467707 | FV50: 120.3650715 | FW50: 127.6472878 | FX50: 151.2783786 | FY50: 167.9964702 | FZ50: 89.3393865 | GA50: 84.2511153 | GB50: 80.30571691 | GC50: 92.4 | GD50: 123.3214979 | GE50: 103.202154 | GF50: 169.3851981 | GG50: 144.2465035 | GH50: 126.7372983 | GI50: 111.2638402 | GJ50: 135.3708817 | GK50: 119.4319161 | GL50: 7.5 | GM50: 28.4 | GN50: 20.9 | GO50: 1.6 | GP50: 44.7 | GQ50: 43.1 | GR50: 8.4 | GS50: 5.8 | GT50: -2.6 | GU50: 8.4 | GV50: 5.8 | GW50: 0 | GX50: 0 | GY50: 11.9 | GZ50: 24.7 | HB50: 51 | HC50: 1 | HD50: 50 | HE50: 19 | HF50: 19 | HG50: 0 | HH50: 54.8 | HI50: 36 | HJ50: 18.8 | HK50: 144.8 | HL50: 68.8 | HM50: 76 | HO50: 114 | HQ50: 12 | HR50: 1 | HS50: 5 | HT50: 10 | HU50: 0 | HV50: 2 | HW50: 0 | HX50: 2 | HY50: 1 | HZ50: 2 | IA50: 1 | IB50: 0 | IC50: 3 | ID50: 0 | IE50: 4 | IF50: 0 | IG50: 0 | IH50: 9 | II50: 1 | IJ50: 0 | IK50: 1 | IL50: 0 | IM50: 3 | IN50: 4 | IO50: 2 | IP50: 6 | IQ50: 1 | IR50: 1 | IS50: 4 | IT50: 0 | IU50: 3 | IV50: 0 | IW50: 2 | IX50: 1 | IY50: 0 | IZ50: 1 | JA50: 2 | JB50: 0 | JC50: 1 | JD50: 0 | JE50: 9 | JF50: 0 | JG50: 1 | JH50: 0 | JI50: 0 | JJ50: 0 | JK50: 0 | JL50: 0 | JM50: 0 | JN50: 0 | JO50: 0 | JP50: 1 | JQ50: 0 | JR50: 0 | JS50: 0 | JT50: 0 | JV50: 4 | JW50: 0 | JX50: 9 | JY50: 186 | JZ50: 3 | KA50: 11 | KC50: 0 | KD50: 0 | KE50: 5 | KF50: 390 | KG50: 15 | KH50: 929 | KI50: 0 | KJ50: 0 | KK50: 0 | KL50: 0 | KM50: 1 | KN50: 40 | KO50: 1 | KP50: 37 | KQ50: 5 | KR50: 63 | KS50: 1 | KT50: 26 | KU50: 2 | KV50: 63 | KX50: 8 | KZ50: 286 | LA50: 429 | LC50: 92.81 | LD50: 22 | LE50: 1087.69 | LF50: 84.51 | LH50: 70922 | LI50: 39.33053465 | LJ50: 1803.23 | LK50: 70922 | LL50: 63554 | LM50: 57624 | LN50: 51956 | LO50: 46601 | LP50: 41426 | LQ50: 7507 | LR50: 6019 | LS50: 4597 | LT50: 3613 | LU50: 3135 | LV50: 2758 | LW50: 37296 | LX50: 31512 | LY50: 27686 | LZ50: 24567 | MA50: 21016 | MB50: 17601 | MC50: 26119 | MD50: 26023 | ME50: 25341 | MF50: 23776 | MG50: 22450 | MH50: 21067 | MI50: 12378 | MJ50: 11798 | MK50: 10086 | ML50: 8167 | MM50: 7352 | MN50: 7382 | MO50: 8184 | MP50: 8727 | MQ50: 10075 | MR50: 9766 | MS50: 8445 | MT50: 6906 | MU50: 5557 | MV50: 5498 | MW50: 5180 | MX50: 5843 | MY50: 6653 | MZ50: 6779 | NA50: 新庄市、最上郡金山町、最上郡最上町、最上郡舟形町、最上郡真室川町、最上郡大蔵村、最上郡鮭川村、最上郡戸沢村
A51: 46 | B51: 置賜 | C51: 地方都市型 | D51: 東置賜郡高畠町,東置賜郡川西町,西置賜郡白鷹町,西置賜郡飯豊町,西置賜郡小国町,南陽市,長井市,米沢市 | F51: 山形県 | G51: 東北 | H51: 0603 | I51: 米沢（山形) | J51: オキタマ | K51: 米沢市、長井市及び周辺部 | L51: 1.213711754 | M51: 0.6690345682 | N51: 0.08444420444 | O51: 0.05327739516 | P51: 0.7093423712 | Q51: 0.9807774277 | R51: 0.06787697128 | S51: 0.03446691489 | T51: 0.03614619004 | U51: 198.2070971 | V51: 826.7015804 | X51: 468.9 | Y51: 1808.2 | Z51: 234.3 | AB51: 12 | AC51: 5 | AD51: 8 | AE51: 0 | AF51: 0 | AG51: 0 | AH51: 0 | AI51: 0 | AK51: 0 | AL51: 0 | AM51: 1 | AN51: 4 | AO51: 0 | AQ51: 1863 | AR51: 76 | AS51: 713 | AT51: 528 | AU51: 492 | AV51: 54 | AX51: 0 | BH51: 1749 | BI51: 159 | BJ51: 610 | BK51: 573 | BL51: 407 | BM51: 0 | BT51: 0 | BY51: 0 | CD51: 0 | CI51: 0 | CP51: 75 | CQ51: 3524 | CR51: 3026.603474 | CS51: 3135.085927 | CT51: 3129.633321 | CV51: 332.62 | CW51: 3055.195 | CY51: 440140.9322 | CZ51: 170829.3255 | DA51: 241582.0626 | DB51: 27729.54406 | DC51: 1.023516548 | DD51: 1.016317881 | DE51: 1.038676581 | DF51: 0.9446202537 | DG51: 0.006378223351 | DH51: 0.02091874033 | DI51: -0.003780415603 | DJ51: 306884.5088 | DK51: 18330273.02 | DL51: 64285 | DU51: 15 | DV51: 2 | DW51: 0 | DX51: 0 | DY51: 2 | DZ51: 821 | EA51: 0 | EB51: 1 | EC51: 2 | ED51: 1 | EE51: 0 | EF51: 2 | EG51: 2383 | EH51: 1587 | EI51: 374 | EJ51: 418 | EK51: 0 | EL51: 90 | EM51: 4 | EN51: 339 | EO51: 308.3 | EP51: 218 | EQ51: 90.3 | ER51: 1435.3 | ES51: 1371.1 | ET51: 64.2 | EU51: 115.9 | EV51: 94.3 | EW51: 24.1 | EX51: 1748 | EY51: 744 | EZ51: 456 | FA51: 288 | FB51: 102.5729996 | FC51: 102.601418 | FD51: 99.39697446 | FE51: 97.6648581 | FF51: 122.338669 | FG51: 135.4191774 | FH51: 96.12006597 | FI51: 109.2950286 | FJ51: 81.11507513 | FK51: 85.54627059 | FL51: 96.92222178 | FM51: 86.84992297 | FN51: 111.597317 | FO51: 104.3933391 | FP51: 177.1514808 | FQ51: 166.4112522 | FR51: 96.85802953 | FS51: 97.44011394 | FT51: 135.3452951 | FU51: 141.8298144 | FV51: 110.6774127 | FW51: 116.4924224 | FX51: 148.3821273 | FY51: 156.6110652 | FZ51: 94.07126988 | GA51: 82.68465478 | GB51: 85.87139893 | GC51: 91.8878151 | GD51: 120.8872233 | GE51: 94.22931475 | GF51: 92.41758965 | GG51: 96.59506606 | GH51: 117.812956 | GI51: 108.2255269 | GJ51: 119.752618 | GK51: 94.61203412 | GL51: 5.5 | GM51: 14.6 | GN51: 9.1 | GO51: 6.2 | GP51: 16.4 | GQ51: 10.2 | GR51: 0.7 | GS51: 7 | GT51: 6.3 | GU51: 0.8 | GV51: 7.5 | GW51: 0 | GX51: 0 | GY51: 6.7 | GZ51: 14.1 | HB51: 142 | HC51: 7 | HD51: 135 | HE51: 59 | HF51: 59 | HG51: 0 | HH51: 160.6 | HI51: 114 | HJ51: 46.6 | HK51: 372.9 | HL51: 282.3 | HM51: 90.6 | HO51: 358 | HQ51: 30 | HR51: 8 | HS51: 20 | HT51: 31 | HU51: 2 | HV51: 9 | HW51: 5 | HX51: 4 | HY51: 1 | HZ51: 3 | IA51: 2 | IB51: 4 | IC51: 8 | ID51: 0 | IE51: 14 | IF51: 0 | IG51: 20 | IH51: 22 | II51: 2 | IJ51: 2 | IK51: 2 | IL51: 2 | IM51: 8 | IN51: 8 | IO51: 9 | IP51: 27 | IQ51: 1 | IR51: 9 | IS51: 8 | IT51: 0 | IU51: 13 | IV51: 3 | IW51: 7 | IX51: 7 | IY51: 2 | IZ51: 9 | JA51: 1 | JB51: 2 | JC51: 3 | JD51: 1 | JE51: 15 | JF51: 0 | JG51: 1 | JH51: 0 | JI51: 2 | JJ51: 0 | JK51: 0 | JL51: 1 | JM51: 2 | JN51: 1 | JO51: 2 | JP51: 0 | JQ51: 0 | JR51: 1 | JS51: 1 | JT51: 1 | JV51: 17 | JW51: 6 | JX51: 42 | JY51: 1254 | JZ51: 17 | KA51: 30 | KC51: 0 | KD51: 0 | KE51: 10 | KF51: 1097 | KG51: 21 | KH51: 1543 | KI51: 4 | KJ51: 117 | KK51: 1 | KL51: 20 | KM51: 5 | KN51: 216 | KO51: 0 | KP51: 0 | KQ51: 34 | KR51: 531 | KS51: 5 | KT51: 141 | KU51: 4 | KV51: 121 | KX51: 19 | KZ51: 847 | LA51: 1294 | LC51: 253.82 | LD51: 78.8 | LE51: 2777.19 | LF51: 278.005 | LH51: 201846 | LI51: 80.89241917 | LJ51: 2495.24 | LK51: 201846 | LL51: 187250 | LM51: 173874 | LN51: 160934 | LO51: 148421 | LP51: 135995 | LQ51: 22337 | LR51: 18604 | LS51: 15542 | LT51: 13476 | LU51: 12353 | LV51: 11251 | LW51: 110594 | LX51: 100226 | LY51: 91830 | LZ51: 83548 | MA51: 73919 | MB51: 65013 | MC51: 68915 | MD51: 68420 | ME51: 66502 | MF51: 63910 | MG51: 62149 | MH51: 59731 | MI51: 32250 | MJ51: 29722 | MK51: 25569 | ML51: 23053 | MM51: 22733 | MN51: 22544 | MO51: 22069 | MP51: 23984 | MQ51: 26618 | MR51: 24712 | MS51: 21535 | MT51: 19612 | MU51: 14596 | MV51: 14714 | MW51: 14315 | MX51: 16145 | MY51: 17881 | MZ51: 17575 | NA51: 米沢市、長井市、南陽市、東置賜郡高畠町、東置賜郡川西町、西置賜郡小国町、西置賜郡白鷹町、西置賜郡飯豊町 | NC51: 公立置賜総合病院（標準群・救命） | ND51: 米沢市立病院（標準群）
A52: 47 | B52: 庄内 | C52: 地方都市型 | D52: 飽海郡遊佐町,東田川郡庄内町,鶴岡市,東田川郡三川町,酒田市 | F52: 山形県 | G52: 東北 | H52: 0604 | I52: 鶴岡（山形) | J52: ショウナイ | K52: 鶴岡市、酒田市及び周辺部 | L52: 1.101001427 | M52: 0.8652683743 | N52: -0.1524533339 | O52: -0.1847223965 | P52: 0.7589545906 | Q52: 1.110435183 | R52: -0.07464949791 | S52: -0.1446885435 | T52: -0.1047400282 | U52: 197.3881149 | V52: 927.432007 | X52: 654.7 | Y52: 2671.6 | Z52: 392.8 | AB52: 16 | AC52: 8 | AD52: 6 | AE52: 0 | AF52: 6 | AG52: 6 | AH52: 0 | AI52: 0 | AK52: 0 | AL52: 0 | AM52: 1 | AN52: 4 | AO52: 0 | AQ52: 2476 | AR52: 233 | AS52: 1302 | AT52: 527 | AU52: 414 | AV52: 0 | AX52: 0 | BC52: 2071 | BD52: 208 | BE52: 614 | BF52: 698 | BG52: 551 | BH52: 0 | BM52: 0 | BT52: 0 | BY52: 0 | CD52: 0 | CI52: 0 | CP52: 100 | CQ52: 4134 | CR52: 4063.249752 | CS52: 4328.067383 | CT52: 4177.022047 | CV52: 425.92 | CW52: 4455.195 | CY52: 404852.3923 | CZ52: 160777.6694 | DA52: 219947.2444 | DB52: 24127.47848 | DC52: 0.9345851817 | DD52: 0.9488348362 | DE52: 0.9390046393 | DF52: 0.8176738261 | DG52: -0.02001389686 | DH52: -0.03298145204 | DI52: -0.01241946936 | DJ52: 316358.9687 | DK52: 27585223.93 | DL52: 88838 | DU52: 14 | DV52: 3 | DW52: 0 | DX52: 1 | DY52: 2 | DZ52: 1393 | EA52: 0 | EB52: 1 | EC52: 2 | ED52: 1 | EE52: 1 | EF52: 1 | EG52: 3095 | EH52: 1697 | EI52: 744 | EJ52: 650 | EK52: 0 | EL52: 223 | EM52: 4 | EN52: 294 | EO52: 348.9 | EP52: 294 | EQ52: 54.9 | ER52: 2001.8 | ES52: 1811.3 | ET52: 190.5 | EU52: 184.8 | EV52: 166 | EW52: 42 | EX52: 3046 | EY52: 1296 | EZ52: 1116 | FA52: 180 | FB52: 104.5106669 | FC52: 105.4091014 | FD52: 108.5249398 | FE52: 100.7320249 | FF52: 132.4053664 | FG52: 135.9353662 | FH52: 102.5172873 | FI52: 101.5946155 | FJ52: 84.23687632 | FK52: 95.50431399 | FL52: 105.8344419 | FM52: 92.41164951 | FN52: 102.6748361 | FO52: 98.14073425 | FP52: 152.3128603 | FQ52: 170.0025699 | FR52: 100.2554216 | FS52: 86.68983618 | FT52: 112.4484293 | FU52: 126.9949033 | FV52: 106.4255856 | FW52: 106.9033674 | FX52: 121.1354632 | FY52: 143.1879146 | FZ52: 102.1182485 | GA52: 90.67849065 | GB52: 79.72231217 | GC52: 81.50765311 | GD52: 102.1034307 | GE52: 85.72120581 | GF52: 124.8429357 | GG52: 122.9379071 | GH52: 111.0506724 | GI52: 111.4218446 | GJ52: 127.7502159 | GK52: 103.0069684 | GL52: 2.5 | GM52: 5.8 | GN52: 3.3 | GO52: 2.2 | GP52: 8.2 | GQ52: 6 | GR52: 0.9 | GS52: 0 | GT52: -0.9 | GU52: 0.9 | GV52: 0 | GW52: 0 | GX52: 0 | GY52: 5.1 | GZ52: 6.1 | HB52: 210 | HC52: 15 | HD52: 195 | HE52: 140 | HF52: 134 | HG52: 6 | HH52: 305.8 | HI52: 203 | HJ52: 102.8 | HK52: 669.8 | HL52: 331.2 | HM52: 338.6 | HO52: 484 | HQ52: 40 | HR52: 7 | HS52: 20 | HT52: 28 | HU52: 6 | HV52: 9 | HW52: 5 | HX52: 4 | HY52: 1 | HZ52: 4 | IA52: 7 | IB52: 3 | IC52: 7 | ID52: 1 | IE52: 18 | IF52: 1 | IG52: 19 | IH52: 35 | II52: 1 | IJ52: 6 | IK52: 3 | IL52: 1 | IM52: 12 | IN52: 10 | IO52: 9 | IP52: 27 | IQ52: 4 | IR52: 18 | IS52: 12 | IT52: 2 | IU52: 17 | IV52: 3 | IW52: 10 | IX52: 9 | IY52: 4 | IZ52: 7 | JA52: 1 | JB52: 3 | JC52: 4 | JD52: 1 | JE52: 23 | JF52: 1 | JG52: 3 | JH52: 0 | JI52: 2 | JJ52: 1 | JK52: 2 | JL52: 1 | JM52: 3 | JN52: 0 | JO52: 2 | JP52: 0 | JQ52: 2 | JR52: 0 | JS52: 2 | JT52: 1 | JV52: 34 | JW52: 2 | JX52: 60 | JY52: 2854 | JZ52: 20 | KA52: 45 | KC52: 0 | KD52: 0 | KE52: 15 | KF52: 1163 | KG52: 33 | KH52: 1947 | KI52: 1 | KJ52: 48 | KK52: 1 | KL52: 50 | KM52: 3 | KN52: 179 | KO52: 0 | KP52: 0 | KQ52: 47 | KR52: 747 | KS52: 20 | KT52: 494 | KU52: 20 | KV52: 494 | KX52: 29 | KZ52: 1146 | LA52: 2218 | LC52: 293.63 | LD52: 132.29 | LE52: 3988.785 | LF52: 466.41 | LH52: 263404 | LI52: 109.510743 | LJ52: 2405.28 | LK52: 263404 | LL52: 245487 | LM52: 227810 | LN52: 210620 | LO52: 193701 | LP52: 176919 | LQ52: 28125 | LR52: 23527 | LS52: 19817 | LT52: 17122 | LU52: 15538 | LV52: 13965 | LW52: 140080 | LX52: 127393 | LY52: 116342 | LZ52: 105689 | MA52: 92810 | MB52: 81244 | MC52: 95199 | MD52: 94567 | ME52: 91651 | MF52: 87809 | MG52: 85353 | MH52: 81710 | MI52: 44679 | MJ52: 40254 | MK52: 34861 | ML52: 31553 | MM52: 31454 | MN52: 31138 | MO52: 30945 | MP52: 34108 | MQ52: 37091 | MR52: 33657 | MS52: 29533 | MT52: 26984 | MU52: 19575 | MV52: 20205 | MW52: 19699 | MX52: 22599 | MY52: 24366 | MZ52: 23588 | NA52: 鶴岡市、酒田市、東田川郡三川町、東田川郡庄内町、飽海郡遊佐町 | NB52: 日本海総合病院（特定群・救命） | ND52: 鶴岡市立荘内病院（標準群）
A53: 48 | B53: 県北 | C53: 地方都市型 | D53: 福島県伊達市,伊達郡桑折町,福島市,本宮市,伊達郡国見町,伊達郡川俣町,安達郡大玉村,二本松市 | F53: 福島県 | G53: 東北 | H53: 0701 | I53: 福島(福島） | J53: ケンホク | K53: 福島市、二本松市及び周辺部 | L53: 1.183255647 | M53: 0.3069749152 | N53: 注）福島県の「介護ベット準備レベル」は分析対象外：国立社会保障・人口問題研究所の市町村別将来推計人口（平成25年3月）において、福島県の市町村別推計が算出されていないため。 | O53: 0 | P53: 1.086003458 | Q53: 1.028357843 | R53: 0.03614281854 | S53: -0.1434406272 | T53: 1 | U53: 268.1057278 | V53: 811.9720556 | X53: 1657 | Y53: 4376.1 | Z53: 482.1 | AB53: 21 | AC53: 14 | AD53: 20 | AE53: 0 | AF53: 6 | AG53: 12 | AH53: 21 | AI53: 0 | AK53: 0 | AL53: 1 | AM53: 2 | AN53: 8 | AO53: 12 | AQ53: 4362 | AR53: 440 | AS53: 2612 | AT53: 859 | AU53: 451 | AV53: 0 | AX53: 0 | BC53: 0 | BH53: 0 | BM53: 0 | BT53: 0 | BY53: 0 | CD53: 0 | CI53: 0 | CP53: 147 | CQ53: 7267 | CR53: 5811.094947 | CS53: 6893.803541 | CT53: 0 | CV53: 779.66 | CW53: 6847.107 | CY53: 383028.7185 | CZ53: 148723.885 | DA53: 209447.6078 | DB53: 24857.22574 | DC53: 0.9030561053 | DD53: 0.8982572899 | DE53: 0.9126355371 | DF53: 0.8547787815 | DG53: -0.03971610666 | DH53: -0.04727115738 | DI53: -0.009956630622 | DJ53: 289793.8196 | DK53: 34109055.43 | DL53: 131267 | DU53: 30 | DV53: 10 | DW53: 1 | DX53: 0 | DY53: 9 | DZ53: 2806 | EA53: 1 | EB53: 1 | EC53: 3 | ED53: 1 | EE53: 2 | EF53: 1 | EG53: 5841 | EH53: 3928 | EI53: 359 | EJ53: 1520 | EK53: 26 | EL53: 323 | EM53: 8 | EN53: 418 | EO53: 1159.3 | EP53: 824 | EQ53: 335.3 | ER53: 3418.4 | ES53: 3124.3 | ET53: 294.1 | EU53: 258.8 | EV53: 164.9 | EW53: 58.4 | EX53: 7792 | EY53: 2184 | EZ53: 1224 | FA53: 960 | FB53: 99.60845666 | FC53: 103.4973377 | FD53: 98.06581355 | FE53: 96.89138386 | FF53: 103.6256544 | FG53: 99.27547957 | FH53: 104.1838507 | FI53: 102.421483 | FJ53: 77.9261216 | FK53: 85.70558667 | FL53: 91.36214498 | FM53: 85.50573447 | FN53: 101.3016817 | FO53: 105.8862201 | FP53: 115.9995867 | FQ53: 125.3066621 | FR53: 84.89518499 | FS53: 96.63786521 | FT53: 106.3107417 | FU53: 116.2888502 | FV53: 92.45241742 | FW53: 105.82091 | FX53: 118.6119545 | FY53: 123.4269231 | FZ53: 92.60176694 | GA53: 98.09566541 | GB53: 90.661836 | GC53: 112.5234477 | GD53: 88.24837274 | GE53: 88.34841574 | GF53: 121.0166492 | GG53: 109.2586893 | GH53: 115.5262864 | GI53: 125.580293 | GJ53: 109.9216208 | GK53: 95.6034187 | GL53: 12.7 | GM53: 8.9 | GN53: -3.8 | GO53: 13.3 | GP53: 8.9 | GQ53: -4.4 | GR53: 5.8 | GS53: 18 | GT53: 12.2 | GU53: 5.8 | GV53: 18 | GW53: 0 | GX53: 0 | GY53: 12 | GZ53: 7.1 | HB53: 368 | HC53: 18 | HD53: 350 | HE53: 233 | HF53: 230 | HG53: 3 | HH53: 497.7 | HI53: 355 | HJ53: 142.7 | HK53: 957.7 | HL53: 589.8 | HM53: 367.9 | HO53: 1059 | HQ53: 109 | HR53: 27 | HS53: 66 | HT53: 83 | HU53: 26 | HV53: 20 | HW53: 22 | HX53: 20 | HY53: 16 | HZ53: 26 | IA53: 19 | IB53: 24 | IC53: 23 | ID53: 6 | IE53: 69 | IF53: 0 | IG53: 49 | IH53: 105 | II53: 10 | IJ53: 11 | IK53: 11 | IL53: 9 | IM53: 39 | IN53: 28 | IO53: 33 | IP53: 60 | IQ53: 6 | IR53: 44 | IS53: 35 | IT53: 3 | IU53: 55 | IV53: 10 | IW53: 27 | IX53: 35 | IY53: 13 | IZ53: 15 | JA53: 12 | JB53: 15 | JC53: 18 | JD53: 6 | JE53: 67 | JF53: 7 | JG53: 10 | JH53: 0 | JI53: 18 | JJ53: 6 | JK53: 5 | JL53: 3 | JM53: 7 | JN53: 0 | JO53: 6 | JP53: 3 | JQ53: 6 | JR53: 6 | JS53: 2 | JT53: 4 | JV53: 56 | JW53: 5 | JX53: 82 | JY53: 5087 | JZ53: 37 | KA53: 122 | KC53: 0 | KD53: 0 | KE53: 21 | KF53: 1953 | KG53: 48 | KH53: 3304 | KI53: 1 | KJ53: 46 | KK53: 3 | KL53: 130 | KM53: 11 | KN53: 753 | KO53: 2 | KP53: 100 | KQ53: 61 | KR53: 981 | KS53: 39 | KT53: 1141 | KU53: 41 | KV53: 1241 | KX53: 53 | KZ53: 3037 | LA53: 4848 | LC53: 492.75 | LD53: 286.91 | LE53: 6018.374 | LF53: 828.733 | LH53: 465894 | LI53: 265.7180011 | LJ53: 1753.34 | LK53: 465894 | LL53: 444907 | LM53: 422278 | LN53: 398489 | LO53: 373392 | LP53: 347404 | LQ53: 51143 | LR53: 44616 | LS53: 38899 | LT53: 34300 | LU53: 31344 | LV53: 28354 | LW53: 265241 | LX53: 248088 | LY53: 231198 | LZ53: 213251 | MA53: 189554 | MB53: 168719 | MC53: 149510 | MD53: 152203 | ME53: 152181 | MF53: 150938 | MG53: 152494 | MH53: 150331 | MI53: 73067 | MJ53: 66695 | MK53: 59528 | ML53: 56928 | MM53: 59835 | MN53: 59914 | MO53: 48214 | MP53: 56221 | MQ53: 61789 | MR53: 56826 | MS53: 51500 | MT53: 49872 | MU53: 28229 | MV53: 29287 | MW53: 30864 | MX53: 37184 | MY53: 41159 | MZ53: 40545 | NA53: 福島市、二本松市、伊達市、本宮市、伊達郡桑折町、伊達郡国見町、伊達郡川俣町、安達郡大玉村 | NB53: 福島県立医科大学附属病院（大学本院群・救命） | NC53: 福島赤十字病院（標準群）、大原綜合病院（標準群）、福島第一病院（標準群） | ND53: 公立藤田総合病院（標準群）
A54: 49 | B54: 県中 | C54: 地方都市型 | D54: 田村郡小野町,岩瀬郡天栄村,石川郡平田村,須賀川市,田村市,岩瀬郡鏡石町,石川郡玉川村,郡山市,石川郡浅川町,田村郡三春町,石川郡石川町,石川郡古殿町 | F54: 福島県 | G54: 東北 | H54: 0702 | I54: 郡山(福島） | J54: ケンチュウ | K54: 郡山市、須賀川市及び周辺部 | L54: 1.325488973 | M54: 0.8062282596 | N54: 0 | O54: 0 | P54: 0.9783221323 | Q54: 1.028349512 | R54: -0.01354754419 | S54: -0.2136096455 | T54: 1 | U54: 210.6436047 | V54: 896.8388798 | X54: 1664.7 | Y54: 4880.3 | Z54: 674.3 | AB54: 30 | AC54: 35 | AD54: 20 | AE54: 0 | AF54: 9 | AG54: 12 | AH54: 3 | AI54: 0 | AK54: 0 | AL54: 0 | AM54: 2 | AN54: 6 | AO54: 0 | AQ54: 5530 | AR54: 99 | AS54: 3261 | AT54: 711 | AU54: 883 | AV54: 576 | AX54: 0 | BC54: 0 | BH54: 0 | BM54: 0 | BT54: 0 | BY54: 0 | CD54: 0 | CI54: 0 | CP54: 168 | CQ54: 6966 | CR54: 5639.378536 | CS54: 6752.524067 | CT54: 0 | CV54: 843.59 | CW54: 6742.635 | CY54: 366180.261 | CZ54: 137778.6577 | DA54: 204631.9022 | DB54: 23769.70109 | DC54: 0.8955791483 | DD54: 0.8658033944 | DE54: 0.9242828087 | DF54: 0.8385511296 | DG54: -0.05222918388 | DH54: -0.04099888111 | DI54: -0.01119278667 | DJ54: 262349.914 | DK54: 31854391.3 | DL54: 128554 | DU54: 32 | DV54: 5 | DW54: 0 | DX54: 1 | DY54: 4 | DZ54: 3099 | EA54: 1 | EB54: 1 | EC54: 3 | ED54: 2 | EE54: 1 | EF54: 1 | EG54: 6987 | EH54: 4526 | EI54: 743 | EJ54: 1712 | EK54: 0 | EL54: 108 | EM54: 6 | EN54: 331 | EO54: 1053.6 | EP54: 712 | EQ54: 341.6 | ER54: 3695.1 | ES54: 3328.8 | ET54: 366.3 | EU54: 384.3 | EV54: 216.8 | EW54: 73.2 | EX54: 10488 | EY54: 3060 | EZ54: 1620 | FA54: 1440 | FB54: 103.3400484 | FC54: 104.6904304 | FD54: 101.2998957 | FE54: 98.55748894 | FF54: 100.9559876 | FG54: 104.6446851 | FH54: 114.0019899 | FI54: 108.7646232 | FJ54: 90.56866324 | FK54: 105.1682535 | FL54: 97.23913723 | FM54: 94.5954943 | FN54: 102.1736906 | FO54: 98.58311616 | FP54: 190.8258051 | FQ54: 179.9163737 | FR54: 73.52445956 | FS54: 81.21700253 | FT54: 118.9675488 | FU54: 123.3109126 | FV54: 113.2268582 | FW54: 108.5619744 | FX54: 123.7806743 | FY54: 132.0808265 | FZ54: 84.42422751 | GA54: 77.96597745 | GB54: 99.10817837 | GC54: 100.9019437 | GD54: 110.0117915 | GE54: 98.89791477 | GF54: 121.4915396 | GG54: 113.82516 | GH54: 119.9610317 | GI54: 122.285079 | GJ54: 117.0964867 | GK54: 99.21701856 | GL54: 16.3 | GM54: 8.6 | GN54: -7.7 | GO54: 16.1 | GP54: 9.5 | GQ54: -6.6 | GR54: 16.8 | GS54: 3.9 | GT54: -12.9 | GU54: 16.8 | GV54: 3.4 | GW54: 0 | GX54: 100 | GY54: 16.4 | GZ54: 8.8 | HB54: 380 | HC54: 20 | HD54: 360 | HE54: 277 | HF54: 262 | HG54: 15 | HH54: 611.1 | HI54: 375 | HJ54: 236.1 | HK54: 1185.2 | HL54: 759.9 | HM54: 425.3 | HO54: 1093 | HQ54: 60 | HR54: 14 | HS54: 58 | HT54: 46 | HU54: 9 | HV54: 18 | HW54: 18 | HX54: 9 | HY54: 4 | HZ54: 7 | IA54: 9 | IB54: 11 | IC54: 11 | ID54: 5 | IE54: 45 | IF54: 1 | IG54: 39 | IH54: 82 | II54: 4 | IJ54: 13 | IK54: 5 | IL54: 1 | IM54: 25 | IN54: 25 | IO54: 27 | IP54: 63 | IQ54: 6 | IR54: 34 | IS54: 20 | IT54: 3 | IU54: 36 | IV54: 5 | IW54: 24 | IX54: 27 | IY54: 5 | IZ54: 11 | JA54: 4 | JB54: 14 | JC54: 7 | JD54: 2 | JE54: 55 | JF54: 2 | JG54: 6 | JH54: 0 | JI54: 5 | JJ54: 5 | JK54: 3 | JL54: 0 | JM54: 4 | JN54: 2 | JO54: 2 | JP54: 1 | JQ54: 7 | JR54: 1 | JS54: 2 | JT54: 3 | JV54: 54 | JW54: 9 | JX54: 94 | JY54: 5208 | JZ54: 36 | KA54: 114 | KC54: 0 | KD54: 0 | KE54: 19 | KF54: 1533 | KG54: 48 | KH54: 3037 | KI54: 3 | KJ54: 150 | KK54: 0 | KL54: 0 | KM54: 12 | KN54: 706 | KO54: 7 | KP54: 390 | KQ54: 79 | KR54: 1150 | KS54: 35 | KT54: 761 | KU54: 41 | KV54: 1102 | KX54: 58 | KZ54: 3182 | LA54: 3529 | LC54: 527.84 | LD54: 315.75 | LE54: 6193.035 | LF54: 549.6 | LH54: 519577 | LI54: 215.9290013 | LJ54: 2406.24 | LK54: 519577 | LL54: 498996 | LM54: 477092 | LN54: 453641 | LO54: 428749 | LP54: 402333 | LQ54: 61555 | LR54: 53924 | LS54: 47042 | LT54: 41890 | LU54: 38699 | LV54: 35428 | LW54: 307637 | LX54: 286987 | LY54: 268598 | LZ54: 249873 | MA54: 225359 | MB54: 202712 | MC54: 150385 | MD54: 158085 | ME54: 161452 | MF54: 161878 | MG54: 164691 | MH54: 164193 | MI54: 76531 | MJ54: 73996 | MK54: 67788 | ML54: 63315 | MM54: 65127 | MN54: 66225 | MO54: 46742 | MP54: 55516 | MQ54: 63851 | MR54: 61908 | MS54: 57481 | MT54: 54515 | MU54: 27112 | MV54: 28573 | MW54: 29813 | MX54: 36655 | MY54: 42083 | MZ54: 43453 | NA54: 郡山市、須賀川市、田村市、岩瀬郡鏡石町、岩瀬郡天栄村、石川郡石川町、石川郡浅川町、石川郡古殿町、石川郡玉川村、石川郡平田村、田村郡三春町、田村郡小野町 | NB54: 星総合病院（標準群）、太田西ノ内病院（標準群・救命）、総合南東北病院（特定群） | NC54: 寿泉堂綜合病院（標準群） | ND54: 公立岩瀬病院（標準群）
A55: 50 | B55: 県南 | C55: 過疎地域型 | D55: 西白河郡西郷村,東白川郡塙町,西白河郡矢吹町,西白河郡泉崎村,東白川郡棚倉町,東白川郡鮫川村,白河市,西白河郡中島村,東白川郡矢祭町 | F55: 福島県 | G55: 東北 | H55: 0703 | I55: 白河(福島） | J55: ケンナン | K55: 白河市及び周辺部 | L55: 0.8472107159 | M55: 0.4645979415 | N55: 0 | O55: 0 | P55: 0.6909233607 | Q55: 0.9124976282 | R55: 0.07824763982 | S55: -0.04242249712 | T55: 1 | U55: 170.7402402 | V55: 790.934098 | X55: 314 | Y55: 1156.6 | Z55: 74.4 | AB55: 0 | AC55: 0 | AD55: 0 | AE55: 0 | AF55: 0 | AG55: 0 | AH55: 0 | AI55: 0 | AK55: 0 | AL55: 0 | AM55: 1 | AN55: 4 | AO55: 10 | AQ55: 1013 | AR55: 0 | AS55: 769 | AT55: 111 | AU55: 133 | AV55: 0 | AX55: 0 | BC55: 0 | BH55: 0 | BM55: 0 | BT55: 0 | BY55: 0 | CD55: 0 | CI55: 0 | CP55: 42 | CQ55: 2263 | CR55: 1684.041562 | CS55: 1904.505902 | CT55: 0 | CV55: 215.825 | CW55: 1923.615 | CY55: 357934.3994 | CZ55: 135104.8057 | DA55: 197276.5488 | DB55: 25553.04491 | DC55: 0.8613087496 | DD55: 0.8349360418 | DE55: 0.8764718209 | DF55: 0.891110462 | DG55: -0.06427251057 | DH55: -0.06690505989 | DI55: -0.007513679944 | DJ55: 256771.9116 | DK55: 9140196.148 | DL55: 36852 | DU55: 7 | DV55: 2 | DW55: 0 | DX55: 0 | DY55: 2 | DZ55: 704 | EA55: 0 | EB55: 0 | EC55: 0 | ED55: 1 | EE55: 0 | EF55: 0 | EG55: 1376 | EH55: 874 | EI55: 125 | EJ55: 361 | EK55: 12 | EL55: 42 | EM55: 4 | EN55: 33 | EO55: 174.8 | EP55: 140 | EQ55: 34.8 | ER55: 875.2 | ES55: 768.6 | ET55: 106.6 | EU55: 40.4 | EV55: 26 | EW55: 8 | EX55: 1182 | EY55: 384 | EZ55: 336 | FA55: 48 | FB55: 103.9526651 | FC55: 104.0757124 | FD55: 101.984157 | FE55: 96.41655766 | FF55: 117.8368533 | FG55: 120.0169642 | FH55: 115.4064089 | FI55: 99.53935811 | FJ55: 91.26889325 | FK55: 115.9 | FL55: 95.2956623 | FM55: 87.54028956 | FN55: 116.0950203 | FO55: 116.2125451 | FP55: 200.5906873 | FQ55: 208.9407877 | FR55: 95.89023326 | FS55: 113.3334554 | FT55: 124.6836226 | FU55: 132.7966397 | FV55: 103.4969173 | FW55: 122.7142878 | FX55: 141.2906697 | FY55: 141.9106989 | FZ55: 115.3192211 | GA55: 112.9422125 | GB55: 100.2126079 | GC55: 124.2 | GD55: 91.04568166 | GE55: 97.89215607 | GF55: 86.42451604 | GG55: 86.11800915 | GH55: 138.106436 | GI55: 130.0553235 | GJ55: 131.7533016 | GK55: 84.6 | GL55: 20.3 | GM55: 34.2 | GN55: 13.9 | GO55: 17.2 | GP55: 32 | GQ55: 14.8 | GR55: 18.5 | GS55: 39.4 | GT55: 20.9 | GU55: 18.5 | GV55: 39.4 | GW55: 0 | GX55: 0 | GY55: 29.8 | GZ55: 38.9 | HB55: 89 | HC55: 6 | HD55: 83 | HE55: 84 | HF55: 84 | HG55: 0 | HH55: 139.2 | HI55: 96 | HJ55: 43.2 | HK55: 281.4 | HL55: 121 | HM55: 160.4 | HO55: 210 | HQ55: 7 | HR55: 1 | HS55: 6 | HT55: 6 | HU55: 3 | HV55: 4 | HW55: 3 | HX55: 1 | HY55: 2 | HZ55: 0 | IA55: 3 | IB55: 0 | IC55: 1 | ID55: 0 | IE55: 8 | IF55: 0 | IG55: 11 | IH55: 8 | II55: 0 | IJ55: 2 | IK55: 0 | IL55: 1 | IM55: 4 | IN55: 4 | IO55: 3 | IP55: 14 | IQ55: 3 | IR55: 5 | IS55: 6 | IT55: 0 | IU55: 4 | IV55: 0 | IW55: 2 | IX55: 3 | IY55: 1 | IZ55: 0 | JA55: 0 | JB55: 4 | JC55: 1 | JD55: 0 | JE55: 6 | JF55: 1 | JG55: 2 | JH55: 0 | JI55: 0 | JJ55: 0 | JK55: 0 | JL55: 0 | JM55: 2 | JN55: 0 | JO55: 0 | JP55: 0 | JQ55: 0 | JR55: 2 | JS55: 0 | JT55: 1 | JV55: 9 | JW55: 0 | JX55: 18 | JY55: 346 | JZ55: 4 | KA55: 7 | KC55: 0 | KD55: 0 | KE55: 8 | KF55: 604 | KG55: 18 | KH55: 1337 | KI55: 0 | KJ55: 0 | KK55: 2 | KL55: 60 | KM55: 1 | KN55: 37 | KO55: 0 | KP55: 0 | KQ55: 13 | KR55: 225 | KS55: 9 | KT55: 200 | KU55: 9 | KV55: 200 | KX55: 9 | KZ55: 406 | LA55: 847 | LC55: 183.125 | LD55: 32.7 | LE55: 1782.865 | LF55: 140.75 | LH55: 138770 | LI55: 112.5393324 | LJ55: 1233.08 | LK55: 138770 | LL55: 131606 | LM55: 124567 | LN55: 117508 | LO55: 110456 | LP55: 103106 | LQ55: 16771 | LR55: 14619 | LS55: 12189 | LT55: 10598 | LU55: 9801 | LV55: 9067 | LW55: 79358 | LX55: 72711 | LY55: 68096 | LZ55: 63564 | MA55: 57481 | MB55: 51477 | MC55: 42641 | MD55: 44276 | ME55: 44282 | MF55: 43346 | MG55: 43174 | MH55: 42562 | MI55: 21482 | MJ55: 21009 | MK55: 18375 | ML55: 15909 | MM55: 15984 | MN55: 16686 | MO55: 12938 | MP55: 14893 | MQ55: 17683 | MR55: 17492 | MS55: 15515 | MT55: 13674 | MU55: 8221 | MV55: 8374 | MW55: 8224 | MX55: 9945 | MY55: 11675 | MZ55: 12202 | NA55: 白河市、西白河郡矢吹町、西白河郡西郷村、西白河郡泉崎村、西白河郡中島村、東白川郡棚倉町、東白川郡矢祭町、東白川郡塙町、東白川郡鮫川村 | NC55: 白河厚生総合病院（標準群）
A56: 51 | B56: 会津・南会津 | C56: 地方都市型 | D56: 耶麻郡西会津町,大沼郡金山町,耶麻郡猪苗代町,会津若松市,耶麻郡北塩原村,耶麻郡磐梯町,河沼郡湯川村,大沼郡三島町,大沼郡昭和村,大沼郡会津美里町,河沼郡柳津町,河沼郡会津坂下町,喜多方市,南会津郡下郷町,南会津郡只見町,南会津郡南会津町,南会津郡檜枝岐村 | F56: 福島県 | G56: 東北 | H56: 0708 | I56: 会津若松(福島） | J56: アイヅミナミアイヅ | K56: 会津若松市、喜多方市及び周辺部 | L56: 1.546419026 | M56: 1.251024119 | N56: 0 | O56: 0 | P56: 0.7328755054 | Q56: 1.106681189 | X56: 615.4 | Y56: 2591.8 | Z56: 307.7 | AB56: 0 | AC56: 48 | AD56: 30 | AE56: 12 | AF56: 6 | AG56: 0 | AH56: 0 | AI56: 0 | AK56: 0 | AL56: 0 | AM56: 2 | AN56: 8 | AO56: 14 | AQ56: 2785 | AR56: 108 | AS56: 1858 | AT56: 289 | AU56: 530 | AV56: 0 | AX56: 0 | BC56: 0 | BH56: 0 | BM56: 0 | BT56: 0 | BY56: 0 | CD56: 0 | CI56: 0 | CP56: 114 | CQ56: 5285 | CV56: 537.13 | CW56: 4160.18 | CY56: 388549.1041 | CZ56: 161444.7359 | DA56: 202891.0215 | DB56: 24213.34674 | DC56: 0.9243910617 | DD56: 0.9850357573 | DE56: 0.8917743991 | DF56: 0.8372927762 | DG56: -0.005834940905 | DH56: -0.05857976965 | DI56: -0.01119422773 | DJ56: 301101.9245 | DU56: 18 | DV56: 4 | DW56: 0 | DX56: 0 | DY56: 4 | DZ56: 1799 | EA56: 1 | EB56: 1 | EC56: 1 | ED56: 1 | EE56: 1 | EF56: 0 | EG56: 3670 | EH56: 2219 | EI56: 495 | EJ56: 934 | EK56: 14 | EL56: 55 | EM56: 8 | EN56: 144 | EO56: 395.6 | EP56: 314 | EQ56: 81.6 | ER56: 2022.3 | ES56: 1700.9 | ET56: 321.4 | EU56: 160 | EV56: 119.7 | EW56: 28 | EX56: 4622 | EY56: 1296 | EZ56: 1296 | FA56: 0 | FB56: 107.0645814 | FC56: 104.0852401 | FD56: 102.2156348 | FE56: 97.15489693 | FF56: 111.6762157 | FG56: 112.1974859 | FH56: 116.6615878 | FI56: 102.4488337 | FJ56: 89.05591065 | FK56: 81.34237924 | FL56: 98.20937122 | FM56: 88.60355567 | FN56: 110.3319493 | FO56: 103.5329373 | FP56: 127.284913 | FQ56: 125.9561035 | FR56: 98.6290948 | FS56: 97.11478673 | FT56: 128.4404947 | FU56: 135.2585268 | FV56: 118.3746989 | FW56: 123.1366392 | FX56: 133.3190262 | FY56: 142.7089824 | FZ56: 106.0090295 | GA56: 108.2204945 | GB56: 97.81843823 | GC56: 106.5295764 | GD56: 113.2640175 | GE56: 95.40280638 | GF56: 108.1269374 | GG56: 100.0541383 | GH56: 131.1007135 | GI56: 121.1035255 | GJ56: 127.2387944 | GK56: 85.93962501 | GL56: 3.8 | GM56: 7.8 | GN56: 4 | GO56: 5.1 | GP56: 11.5 | GQ56: 6.4 | GR56: 0 | GS56: 3.7 | GT56: 3.7 | GU56: 0 | GV56: 4 | GW56: 0 | GX56: 0 | GY56: 3.1 | GZ56: 2.3 | HB56: 202 | HC56: 7 | HD56: 195 | HE56: 86 | HF56: 77 | HG56: 9 | HH56: 219.8 | HI56: 155 | HJ56: 64.8 | HK56: 569.5 | HL56: 352.4 | HM56: 217.1 | HO56: 444 | HQ56: 40 | HR56: 4 | HS56: 12 | HT56: 31 | HU56: 6 | HV56: 6 | HW56: 8 | HX56: 7 | HY56: 2 | HZ56: 5 | IA56: 5 | IB56: 5 | IC56: 6 | ID56: 0 | IE56: 14 | IF56: 0 | IG56: 13 | IH56: 37 | II56: 3 | IJ56: 3 | IK56: 0 | IL56: 4 | IM56: 14 | IN56: 8 | IO56: 12 | IP56: 24 | IQ56: 3 | IR56: 12 | IS56: 13 | IT56: 1 | IU56: 14 | IV56: 5 | IW56: 8 | IX56: 7 | IY56: 3 | IZ56: 9 | JA56: 0 | JB56: 4 | JC56: 6 | JD56: 0 | JE56: 29 | JF56: 1 | JG56: 6 | JH56: 0 | JI56: 1 | JJ56: 3 | JK56: 5 | JL56: 0 | JM56: 2 | JN56: 0 | JO56: 2 | JP56: 0 | JQ56: 1 | JR56: 0 | JS56: 0 | JT56: 0 | JV56: 14 | JW56: 1 | JX56: 41 | JY56: 978 | JZ56: 6 | KA56: 13 | KC56: 0 | KD56: 0 | KE56: 19 | KF56: 1647 | KG56: 35 | KH56: 2507 | KI56: 3 | KJ56: 169 | KK56: 0 | KL56: 0 | KM56: 11 | KN56: 387 | KO56: 2 | KP56: 55 | KQ56: 44 | KR56: 520 | KS56: 7 | KT56: 158 | KU56: 10 | KV56: 231 | KX56: 15 | KZ56: 757 | LA56: 2095 | LC56: 466.63 | LD56: 70.5 | LE56: 3797.72 | LF56: 362.46 | LH56: 256403 | LI56: 47.30412098 | LJ56: 5420.31 | LK56: 256403 | LL56: 234994 | LM56: 216276 | LN56: 198381 | LO56: 181217 | LP56: 164500 | LQ56: 27974 | LR56: 23100 | LS56: 19359 | LT56: 16334 | LU56: 14601 | LV56: 12947 | LW56: 136127 | LX56: 119758 | LY56: 108012 | LZ56: 97963 | MA56: 86466 | MB56: 75572 | MC56: 92302 | MD56: 92136 | ME56: 88905 | MF56: 84084 | MG56: 80150 | MH56: 75981 | MI56: 42384 | MJ56: 39920 | MK56: 34143 | ML56: 29796 | MM56: 27752 | MN56: 27403 | MO56: 29592 | MP56: 31540 | MQ56: 35492 | MR56: 33065 | MS56: 28796 | MT56: 25409 | MU56: 20326 | MV56: 20676 | MW56: 19270 | MX56: 21223 | MY56: 23602 | MZ56: 23169 | NA56: 会津若松市、喜多方市、耶麻郡西会津町、耶麻郡磐梯町、耶麻郡猪苗代町、耶麻郡北塩原村、河沼郡会津坂下町、河沼郡柳津町、河沼郡湯川村、大沼郡三島町、大沼郡金山町、大沼郡会津美里町、大沼郡昭和村、南会津郡下郷町、南会津郡只見町、南会津郡南会津町、南会津郡檜枝岐村 | NB56: 竹田綜合病院（標準群） | NC56: 会津医療センター附属病院（標準群）、会津中央病院（標準群・救命） | ND56: 坂下厚生総合病院（標準群）
A57: 52 | B57: 相双 | C57: 過疎地域型 | D57: 南相馬市,双葉郡川内村,相馬市,双葉郡大熊町,双葉郡楢葉町,双葉郡浪江町,双葉郡広野町,双葉郡葛尾村,相馬郡新地町,双葉郡双葉町,相馬郡飯舘村,双葉郡富岡町 | F57: 福島県 | G57: 東北 | H57: 0706 | I57: 相馬(福島） | J57: ソウソウ | K57: 相馬市、南相馬市及び周辺部 | L57: 0.7004600315 | M57: 0.8908259178 | N57: 0 | O57: 0 | P57: 0.7775627741 | Q57: 0.8643079057 | R57: -0.6790064514 | S57: -0.8927286796 | T57: 1 | U57: 130.8605086 | V57: 435.413487 | X57: 304.5 | Y57: 944 | Z57: 69.9 | AB57: 0 | AC57: 0 | AD57: 0 | AE57: 0 | AF57: 0 | AG57: 0 | AH57: 0 | AI57: 0 | AK57: 0 | AL57: 0 | AM57: 0 | AN57: 0 | AO57: 0 | AQ57: 1054 | AR57: 11 | AS57: 765 | AT57: 50 | AU57: 228 | AV57: 0 | AX57: 0 | BC57: 0 | BH57: 0 | BM57: 0 | BT57: 0 | BY57: 0 | CD57: 0 | CI57: 0 | CP57: 33 | CQ57: 1559 | CR57: 2362.362077 | CS57: 2663.069252 | CT57: 0 | CV57: 167.85 | CW57: 1580.295 | CY57: 439326.5567 | CZ57: 156607.0683 | DA57: 253927.0097 | DB57: 28792.47871 | DC57: 1.064071224 | DD57: 0.9729174317 | DE57: 1.136797442 | DF57: 1.008976899 | DG57: -0.0105586517 | DH57: 0.07400942488 | DI57: 0.0006204509187 | DJ57: 303492.2261 | DK57: 15477221.02 | DL57: 51512 | DU57: 10 | DV57: 0 | DW57: 0 | DX57: 0 | DY57: 0 | DZ57: 604 | EA57: 0 | EB57: 0 | EC57: 0 | ED57: 0 | EE57: 0 | EF57: 0 | EG57: 1485 | EH57: 880 | EI57: 302 | EJ57: 303 | EK57: 0 | EL57: 0 | EM57: 0 | EN57: 171 | EO57: 192.9 | EP57: 141 | EQ57: 51.9 | ER57: 705.6 | ES57: 612.9 | ET57: 92.7 | EU57: 49 | EV57: 16.9 | EW57: 4 | EX57: 648 | EY57: 348 | EZ57: 156 | FA57: 192 | FB57: 157.0202668 | FC57: 168.5891964 | FD57: 159.0555929 | FE57: 162.952297 | FF57: 163.0254655 | FG57: 156.5414099 | FH57: 165.2542392 | FI57: 148.1859517 | FJ57: 131.8327337 | FK57: 163.224082 | FL57: 164.2883821 | FM57: 161.4191048 | FN57: 166.7545863 | FO57: 182.9012461 | FP57: 165.6760075 | FQ57: 203.9056292 | FR57: 211.7937442 | FS57: 199.2652316 | FT57: 167.1619788 | FU57: 190.5544186 | FV57: 153.4399764 | FW57: 171.3254134 | FX57: 174.1560931 | FY57: 203.6248392 | FZ57: 159.2178252 | GA57: 157.4806342 | GB57: 166.6492005 | GC57: 103.8327794 | GD57: 161.8284282 | GE57: 153.9367287 | GF57: 153.2126922 | GG57: 165.0409616 | GH57: 179.5299293 | GI57: 177.5050612 | GJ57: 145.6620358 | GK57: 162.4297392 | GL57: 7.7 | GM57: 54.5 | GN57: 46.8 | GO57: 6.3 | GP57: 48.7 | GQ57: 42.4 | GR57: 11.5 | GS57: 43.4 | GT57: 31.9 | GU57: 12 | GV57: 42.8 | GW57: 0 | GX57: 54.9 | GY57: 11.7 | GZ57: 77 | HB57: 91 | HC57: 7 | HD57: 84 | HE57: 71 | HF57: 71 | HG57: 0 | HH57: 111.6 | HI57: 76 | HJ57: 35.6 | HK57: 238.4 | HL57: 126.5 | HM57: 111.9 | HO57: 190 | HQ57: 10 | HR57: 2 | HS57: 7 | HT57: 11 | HU57: 3 | HV57: 3 | HW57: 1 | HX57: 1 | HY57: 0 | HZ57: 3 | IA57: 1 | IB57: 1 | IC57: 2 | ID57: 0 | IE57: 10 | IF57: 0 | IG57: 8 | IH57: 19 | II57: 0 | IJ57: 0 | IK57: 0 | IL57: 0 | IM57: 5 | IN57: 3 | IO57: 4 | IP57: 9 | IQ57: 1 | IR57: 4 | IS57: 3 | IT57: 0 | IU57: 4 | IV57: 0 | IW57: 0 | IX57: 1 | IY57: 0 | IZ57: 3 | JA57: 1 | JB57: 0 | JC57: 1 | JD57: 0 | JE57: 14 | JF57: 0 | JG57: 0 | JH57: 0 | JI57: 0 | JJ57: 0 | JK57: 0 | JL57: 0 | JM57: 0 | JN57: 0 | JO57: 1 | JP57: 1 | JQ57: 0 | JR57: 0 | JS57: 0 | JT57: 0 | JV57: 5 | JW57: 3 | JX57: 20 | JY57: 243 | JZ57: 5 | KA57: 7 | KC57: 0 | KD57: 0 | KE57: 5 | KF57: 480 | KG57: 12 | KH57: 797 | KI57: 1 | KJ57: 53 | KK57: 0 | KL57: 0 | KM57: 0 | KN57: 0 | KO57: 0 | KP57: 0 | KQ57: 15 | KR57: 229 | KS57: 1 | KT57: 20 | KU57: 1 | KV57: 20 | KX57: 11 | KZ57: 500 | LA57: 887 | LC57: 125.4 | LD57: 42.45 | LE57: 1433.835 | LF57: 146.46 | LH57: 119577 | LI57: 68.76549103 | LJ57: 1738.91 | LK57: 119577 | LQ57: 11290 | LW57: 67281 | MC57: 41006 | MI57: 20773 | MO57: 12655 | MU57: 7578 | NA57: 相馬市、南相馬市、双葉郡大熊町、双葉郡双葉町、双葉郡浪江町、双葉郡広野町、双葉郡楢葉町、双葉郡富岡町、双葉郡川内村、双葉郡葛尾村、相馬郡新地町、相馬郡飯舘村
A58: 53 | B58: いわき | C58: 地方都市型 | D58: いわき市 | F58: 福島県 | G58: 東北 | H58: 0707 | I58: いわき(福島） | J58: イワキ | K58: いわき市 | L58: 1.092598929 | M58: 1.476359909 | N58: 0 | O58: 0 | P58: 0.7438107247 | Q58: 1.093472036 | R58: 0.01042328914 | S58: -0.1739918921 | T58: 1 | U58: 193.5037181 | V58: 1019.041653 | X58: 811 | Y58: 3325.2 | Z58: 344.5 | AB58: 20 | AC58: 10 | AD58: 12 | AE58: 0 | AF58: 6 | AG58: 0 | AH58: 0 | AI58: 0 | AK58: 0 | AL58: 0 | AM58: 1 | AN58: 6 | AO58: 15 | AQ58: 3283 | AR58: 282 | AS58: 1307 | AT58: 614 | AU58: 1080 | AV58: 0 | AX58: 0 | BC58: 0 | BH58: 0 | BM58: 0 | BT58: 0 | BY58: 0 | CD58: 0 | CI58: 0 | CP58: 108 | CQ58: 4693 | CR58: 3887.05732 | CS58: 4611.440152 | CT58: 0 | CV58: 457.94 | CW58: 4447.494 | CY58: 406765.0188 | CZ58: 165353.596 | DA58: 216914.4486 | DB58: 24496.97421 | DC58: 0.9762912662 | DD58: 1.01832236 | DE58: 0.9616592375 | DF58: 0.8534946724 | DG58: 0.007140778656 | DH58: -0.02075696372 | DI58: -0.01009254874 | DJ58: 282267.6747 | DK58: 24291351.02 | DL58: 89213 | DU58: 25 | DV58: 4 | DW58: 0 | DX58: 1 | DY58: 3 | DZ58: 1454 | EA58: 0 | EB58: 1 | EC58: 2 | ED58: 1 | EE58: 1 | EF58: 0 | EG58: 4485 | EH58: 2340 | EI58: 929 | EJ58: 1195 | EK58: 15 | EL58: 218 | EM58: 6 | EN58: 432 | EO58: 448 | EP58: 307 | EQ58: 141 | ER58: 2443.6 | ES58: 2070.6 | ET58: 373 | EU58: 196.7 | EV58: 105.4 | EW58: 42.4 | EX58: 6027 | EY58: 1764 | EZ58: 612 | FA58: 1152 | FB58: 107.5 | FC58: 106.8 | FD58: 102.5 | FE58: 99.8 | FF58: 105.2 | FG58: 97.2 | FH58: 107.4 | FI58: 106.9 | FJ58: 106.7 | FK58: 104.7 | FL58: 106.7 | FM58: 101.9 | FN58: 124.9 | FO58: 122.2 | FP58: 179.5 | FQ58: 179 | FR58: 130.9 | FS58: 129.3 | FT58: 130.2 | FU58: 135.5 | FV58: 111.3 | FW58: 109.5 | FX58: 145 | FY58: 146.6 | FZ58: 107.4 | GA58: 88.1 | GB58: 85.6 | GC58: 104.3 | GD58: 98.5 | GE58: 98.9 | GF58: 99.1 | GG58: 101.4 | GH58: 127.4 | GI58: 110.9 | GJ58: 125.7 | GK58: 73.8 | GL58: 9 | GM58: 7 | GN58: -2 | GO58: 9.4 | GP58: 9.3 | GQ58: -0.1 | GR58: 8.4 | GS58: 4 | GT58: -4.4 | GU58: 8.8 | GV58: 4.6 | GW58: 5.4 | GX58: 0 | GY58: 8.7 | GZ58: 4 | HB58: 242 | HC58: 17 | HD58: 225 | HE58: 211 | HF58: 211 | HG58: 0 | HH58: 363 | HI58: 248 | HJ58: 115 | HK58: 881.6 | HL58: 419.5 | HM58: 462.1 | HO58: 795 | HQ58: 37 | HR58: 6 | HS58: 24 | HT58: 43 | HU58: 15 | HV58: 9 | HW58: 8 | HX58: 9 | HY58: 0 | HZ58: 4 | IA58: 5 | IB58: 3 | IC58: 10 | ID58: 0 | IE58: 22 | IF58: 1 | IG58: 16 | IH58: 45 | II58: 5 | IJ58: 4 | IK58: 2 | IL58: 0 | IM58: 14 | IN58: 15 | IO58: 19 | IP58: 39 | IQ58: 3 | IR58: 19 | IS58: 12 | IT58: 2 | IU58: 23 | IV58: 4 | IW58: 9 | IX58: 11 | IY58: 3 | IZ58: 10 | JA58: 3 | JB58: 4 | JC58: 13 | JD58: 0 | JE58: 33 | JF58: 0 | JG58: 5 | JH58: 0 | JI58: 4 | JJ58: 1 | JK58: 1 | JL58: 2 | JM58: 2 | JN58: 0 | JO58: 2 | JP58: 1 | JQ58: 1 | JR58: 3 | JS58: 0 | JT58: 1 | JV58: 22 | JW58: 5 | JX58: 48 | JY58: 2966 | JZ58: 13 | KA58: 41 | KC58: 0 | KD58: 0 | KE58: 11 | KF58: 1051 | KG58: 24 | KH58: 1616 | KI58: 8 | KJ58: 187 | KK58: 1 | KL58: 80 | KM58: 15 | KN58: 982 | KO58: 2 | KP58: 90 | KQ58: 47 | KR58: 687 | KS58: 18 | KT58: 429 | KU58: 20 | KV58: 519 | KX58: 26 | KZ58: 1447 | LA58: 3877 | LC58: 326.74 | LD58: 131.2 | LE58: 3725.674 | LF58: 721.82 | LH58: 332931 | LI58: 270.179183 | LJ58: 1232.26 | LK58: 332931 | LQ58: 38260 | LW58: 190243 | MC58: 104428 | MI58: 51925 | MO58: 34516 | MU58: 17987 | NA58: いわき市 | NB58: いわき市医療センター（特定群・救命） | NC58: 常磐病院（標準群） | ND58: 福島労災病院（標準群）
A59: 54 | B59: 水戸 | C59: 地方都市型 | D59: 東茨城郡城里町,東茨城郡大洗町,東茨城郡茨城町,小美玉市,水戸市,笠間市 | F59: 茨城県 | G59: 関東 | H59: 0801 | I59: 水戸（茨城） | J59: ミト | K59: 水戸市、笠間市及び周辺部 | L59: 1.132012845 | M59: 0.7449742538 | N59: 0.226436962 | O59: -0.08386339528 | P59: 0.9674393979 | Q59: 1.156048366 | R59: 0.2349555271 | S59: 0.004830149708 | T59: -0.07192776686 | U59: 254.6060156 | V59: 1002.898526 | X59: 1450.9 | Y59: 4835.5 | Z59: 528.5 | AB59: 40 | AC59: 38 | AD59: 46 | AE59: 9 | AF59: 0 | AG59: 18 | AH59: 24 | AI59: 0 | AK59: 0 | AL59: 0 | AM59: 2 | AN59: 9 | AO59: 25 | AQ59: 4791 | AR59: 290 | AS59: 2640 | AT59: 676 | AU59: 1017 | AV59: 168 | AX59: 0 | BC59: 4478 | BD59: 621 | BE59: 1626 | BF59: 1510 | BG59: 721 | BH59: 0 | BM59: 0 | BT59: 0 | BY59: 3560 | BZ59: 423 | CA59: 1219 | CB59: 1253 | CC59: 665 | CD59: 0 | CI59: 0 | CP59: 153 | CQ59: 7572 | CR59: 5035.52272 | CS59: 6550.207955 | CT59: 7055.428561 | CV59: 754.69 | CW59: 6808.51 | CY59: 335395.6736 | CZ59: 114637.9323 | DA59: 196735.9248 | DB59: 24021.81639 | DC59: 0.8519602847 | DD59: 0.7507111915 | DE59: 0.9220462637 | DF59: 0.87033515 | DG59: -0.09669858736 | DH59: -0.04225029918 | DI59: -0.009090828726 | DJ59: 273659.1308 | DK59: 28712912.11 | DL59: 117170 | DU59: 39 | DV59: 8 | DW59: 0 | DX59: 1 | DY59: 7 | DZ59: 2862 | EA59: 0 | EB59: 2 | EC59: 6 | ED59: 2 | EE59: 3 | EF59: 1 | EG59: 6105 | EH59: 4012 | EI59: 830 | EJ59: 1228 | EK59: 25 | EL59: 136 | EM59: 10 | EN59: 393 | EO59: 961.4 | EP59: 736 | EQ59: 225.4 | ER59: 3854.4 | ES59: 3499.5 | ET59: 354.9 | EU59: 305.9 | EV59: 149.1 | EW59: 73.5 | EX59: 13702 | EY59: 2760 | EZ59: 1380 | FA59: 1380 | FB59: 104.1035644 | FC59: 103.1480758 | FD59: 103.1422277 | FE59: 100.8540878 | FF59: 116.1406725 | FG59: 109.7093452 | FH59: 113.4317955 | FI59: 110.4316876 | FJ59: 92.34563856 | FK59: 93.04655861 | FL59: 101.7041236 | FM59: 99.57163922 | FN59: 100.4697315 | FO59: 103.5948655 | FP59: 170.5455956 | FQ59: 155.0010664 | FR59: 110.3119349 | FS59: 118.4671314 | FT59: 137.9512783 | FU59: 134.7108733 | FV59: 149.6844187 | FW59: 127.2923477 | FX59: 121.9695236 | FY59: 136.553074 | FZ59: 125.8121576 | GA59: 132.1105318 | GB59: 91.32726804 | GC59: 106.9414705 | GD59: 103.3743328 | GE59: 91.35742854 | GF59: 99.42741352 | GG59: 97.900659 | GH59: 100.776938 | GI59: 113.6304347 | GJ59: 106.1967176 | GK59: 95.5459977 | GL59: 39.3 | GM59: 21.3 | GN59: -18 | GO59: 37.7 | GP59: 15.6 | GQ59: -22.1 | GR59: 32.4 | GS59: 28.6 | GT59: -3.8 | GU59: 32.4 | GV59: 28.6 | GW59: 0 | GX59: 0 | GY59: 50.7 | GZ59: 36.1 | HB59: 341 | HC59: 17 | HD59: 324 | HE59: 227 | HF59: 212 | HG59: 15 | HH59: 489.5 | HI59: 333 | HJ59: 156.5 | HK59: 981.1 | HL59: 640.8 | HM59: 340.3 | HO59: 1111 | HQ59: 94 | HR59: 26 | HS59: 40 | HT59: 49 | HU59: 19 | HV59: 21 | HW59: 13 | HX59: 13 | HY59: 6 | HZ59: 13 | IA59: 18 | IB59: 10 | IC59: 12 | ID59: 1 | IE59: 47 | IF59: 1 | IG59: 30 | IH59: 92 | II59: 4 | IJ59: 17 | IK59: 6 | IL59: 1 | IM59: 32 | IN59: 22 | IO59: 31 | IP59: 60 | IQ59: 8 | IR59: 32 | IS59: 18 | IT59: 5 | IU59: 42 | IV59: 4 | IW59: 7 | IX59: 34 | IY59: 6 | IZ59: 16 | JA59: 4 | JB59: 9 | JC59: 17 | JD59: 2 | JE59: 45 | JF59: 5 | JG59: 5 | JH59: 2 | JI59: 11 | JJ59: 0 | JK59: 8 | JL59: 2 | JM59: 4 | JN59: 1 | JO59: 4 | JP59: 5 | JQ59: 10 | JR59: 1 | JS59: 2 | JT59: 1 | JV59: 31 | JW59: 9 | JX59: 52 | JY59: 3696 | JZ59: 15 | KA59: 56 | KC59: 0 | KD59: 0 | KE59: 31 | KF59: 2624 | KG59: 54 | KH59: 2992 | KI59: 1 | KJ59: 35 | KK59: 0 | KL59: 0 | KM59: 16 | KN59: 931 | KO59: 0 | KP59: 0 | KQ59: 51 | KR59: 990 | KS59: 45 | KT59: 1117 | KU59: 45 | KV59: 1117 | KX59: 36 | KZ59: 1447 | LA59: 3622 | LC59: 579.19 | LD59: 175.5 | LE59: 6145.94 | LF59: 662.57 | LH59: 457941 | LI59: 503.381223 | LJ59: 909.73 | LK59: 457941 | LL59: 443996 | LM59: 430904 | LN59: 416793 | LO59: 401467 | LP59: 385251 | LQ59: 54139 | LR59: 48630 | LS59: 43921 | LT59: 40539 | LU59: 39145 | LV59: 37569 | LW59: 269414 | LX59: 257426 | LY59: 246849 | LZ59: 233360 | MA59: 214086 | MB59: 199179 | MC59: 134388 | MD59: 137940 | ME59: 140134 | MF59: 142894 | MG59: 148236 | MH59: 148503 | MI59: 66060 | MJ59: 59157 | MK59: 54583 | ML59: 55934 | MM59: 61439 | MN59: 60668 | MO59: 44835 | MP59: 52625 | MQ59: 55655 | MR59: 50453 | MS59: 47294 | MT59: 49116 | MU59: 23493 | MV59: 26158 | MW59: 29896 | MX59: 36507 | MY59: 39503 | MZ59: 38719 | NA59: 水戸市、笠間市、小美玉市、東茨城郡茨城町、東茨城郡大洗町、東茨城郡城里町 | NB59: NHO水戸医療センター（標準群・救命）、茨城県立中央病院（特定群） | NC59: 水戸協同病院（標準群）、水戸済生会総合病院（標準群・救命）、水戸赤十字病院（標準群） | ND59: 茨城県立こども病院（標準群）
A60: 55 | B60: 日立 | C60: 地方都市型 | D60: 北茨城市,高萩市,日立市 | F60: 茨城県 | G60: 関東 | H60: 0802 | I60: 日立（茨城） | J60: ヒタチ | K60: 日立市、高萩市、北茨城市 | L60: 0.8789339925 | M60: 0.9468126893 | N60: -0.1785455896 | O60: -0.4624225926 | P60: 0.7064081449 | Q60: 0.9805528766 | R60: -0.1330482712 | S60: -0.4667669895 | T60: -0.405966307 | U60: 177.1614971 | V60: 811.0392629 | X60: 564.5 | Y60: 2185.4 | Z60: 258.9 | AB60: 10 | AC60: 16 | AD60: 0 | AE60: 0 | AF60: 0 | AG60: 0 | AH60: 0 | AI60: 0 | AK60: 0 | AL60: 0 | AM60: 1 | AN60: 4 | AO60: 0 | AQ60: 2513 | AR60: 26 | AS60: 1083 | AT60: 480 | AU60: 568 | AV60: 356 | AX60: 0 | BC60: 1851 | BD60: 172 | BE60: 619 | BF60: 713 | BG60: 347 | BH60: 0 | BM60: 0 | BT60: 0 | BY60: 2049 | BZ60: 201 | CA60: 678 | CB60: 773 | CC60: 397 | CD60: 0 | CI60: 0 | CP60: 61 | CQ60: 2837 | CR60: 3028.638029 | CS60: 3920.668163 | CT60: 3758.147939 | CV60: 300.925 | CW60: 3019.62 | CY60: 372359.4464 | CZ60: 146199.1156 | DA60: 202625.8722 | DB60: 23534.45861 | DC60: 0.8835893945 | DD60: 0.888022453 | DE60: 0.8891051585 | DF60: 0.8148007798 | DG60: -0.0437461529 | DH60: -0.0599709917 | DI60: -0.01269346087 | DJ60: 246883.869 | DK60: 15560050.37 | DL60: 73795 | DU60: 21 | DV60: 4 | DW60: 0 | DX60: 0 | DY60: 4 | DZ60: 1264 | EA60: 0 | EB60: 1 | EC60: 1 | ED60: 1 | EE60: 1 | EF60: 0 | EG60: 3743 | EH60: 1785 | EI60: 651 | EJ60: 1303 | EK60: 0 | EL60: 87 | EM60: 4 | EN60: 55 | EO60: 345.5 | EP60: 268 | EQ60: 77.5 | ER60: 1770.5 | ES60: 1528.4 | ET60: 242.1 | EU60: 121.6 | EV60: 75 | EW60: 62.3 | EX60: 3986 | EY60: 804 | EZ60: 804 | FA60: 0 | FB60: 100.3541131 | FC60: 104.8637223 | FD60: 99.61051783 | FE60: 102.7336376 | FF60: 110.0215081 | FG60: 102.8903418 | FH60: 110.2017673 | FI60: 107.6224666 | FJ60: 83.21594941 | FK60: 112.9356202 | FL60: 90.35649421 | FM60: 96.59512892 | FN60: 100.3208138 | FO60: 105.6969744 | FP60: 195.3928474 | FQ60: 175.6491913 | FR60: 78.58696575 | FS60: 103.2938235 | FT60: 128.4983305 | FU60: 140.0861863 | FV60: 156.861603 | FW60: 142.4672156 | FX60: 116.4607933 | FY60: 145.2557407 | FZ60: 109.5873962 | GA60: 126.3610764 | GB60: 85.47749557 | GC60: 118.431322 | GD60: 86.24870605 | GE60: 84.76134337 | GF60: 69.18069796 | GG60: 69.46977443 | GH60: 92.05660115 | GI60: 92.93825944 | GJ60: 102.2548368 | GK60: 101.6044955 | GL60: 17.2 | GM60: 15.4 | GN60: -1.8 | GO60: 7.7 | GP60: 21 | GQ60: 13.3 | GR60: 9.7 | GS60: 13.2 | GT60: 3.5 | GU60: 9.7 | GV60: 13.2 | GW60: 0 | GX60: 0 | GY60: 30.8 | GZ60: 6.7 | HB60: 131 | HC60: 6 | HD60: 125 | HE60: 89 | HF60: 89 | HG60: 0 | HH60: 219 | HI60: 153 | HJ60: 66 | HK60: 414.9 | HL60: 244.7 | HM60: 170.2 | HO60: 509 | HQ60: 28 | HR60: 8 | HS60: 10 | HT60: 21 | HU60: 5 | HV60: 9 | HW60: 2 | HX60: 2 | HY60: 3 | HZ60: 4 | IA60: 7 | IB60: 2 | IC60: 4 | ID60: 0 | IE60: 9 | IF60: 1 | IG60: 13 | IH60: 30 | II60: 3 | IJ60: 3 | IK60: 2 | IL60: 0 | IM60: 8 | IN60: 9 | IO60: 13 | IP60: 24 | IQ60: 4 | IR60: 13 | IS60: 1 | IT60: 0 | IU60: 14 | IV60: 1 | IW60: 4 | IX60: 5 | IY60: 2 | IZ60: 10 | JA60: 5 | JB60: 3 | JC60: 7 | JD60: 2 | JE60: 19 | JF60: 0 | JG60: 1 | JH60: 0 | JI60: 6 | JJ60: 2 | JK60: 6 | JL60: 2 | JM60: 0 | JN60: 1 | JO60: 4 | JP60: 1 | JQ60: 1 | JR60: 0 | JS60: 3 | JT60: 0 | JV60: 10 | JW60: 0 | JX60: 20 | JY60: 2640 | JZ60: 5 | KA60: 20 | KC60: 0 | KD60: 0 | KE60: 9 | KF60: 780 | KG60: 21 | KH60: 1328 | KI60: 3 | KJ60: 105 | KK60: 0 | KL60: 0 | KM60: 3 | KN60: 165 | KO60: 0 | KP60: 0 | KQ60: 25 | KR60: 459 | KS60: 26 | KT60: 513 | KU60: 25 | KV60: 493 | KX60: 18 | KZ60: 995 | LA60: 2581 | LC60: 220.125 | LD60: 80.8 | LE60: 2711.57 | LF60: 308.05 | LH60: 244008 | LI60: 402.5007011 | LJ60: 606.23 | LK60: 244008 | LL60: 224921 | LM60: 208322 | LN60: 191373 | LO60: 174687 | LP60: 158626 | LQ60: 24656 | LR60: 19576 | LS60: 15596 | LT60: 13049 | LU60: 11868 | LV60: 10579 | LW60: 137574 | LX60: 123524 | LY60: 112506 | LZ60: 99294 | MA60: 83634 | MB60: 72687 | MC60: 81778 | MD60: 81821 | ME60: 80220 | MF60: 79030 | MG60: 79185 | MH60: 75360 | MI60: 38468 | MJ60: 33224 | MK60: 29743 | ML60: 30415 | MM60: 32545 | MN60: 29305 | MO60: 30511 | MP60: 32424 | MQ60: 31675 | MR60: 27554 | MS60: 25036 | MT60: 25884 | MU60: 12799 | MV60: 16173 | MW60: 18802 | MX60: 21061 | MY60: 21604 | MZ60: 20171 | NA60: 日立市、高萩市、北茨城市 | NB60: 日立総合病院（標準群・救命） | ND60: ひたち医療センター（標準群）
A61: 56 | B61: 常陸太田・ひたちなか | C61: 地方都市型 | D61: ひたちなか市,常陸大宮市,那珂市,那珂郡東海村,久慈郡大子町,常陸太田市 | F61: 茨城県 | G61: 関東 | H61: 0803 | I61: 常陸太田（茨城） | J61: ヒタチオオタヒタチナカ | K61: 常陸太田市及び周辺部 | L61: 0.7515766784 | M61: 0.6990327974 | N61: 0.02745318253 | O61: -0.2986184133 | P61: 0.519279818 | Q61: 0.5612707329 | R61: 0.05648111326 | S61: -0.196407597 | T61: -0.2598581144 | U61: 129.0059601 | V61: 493.714953 | X61: 597.9 | Y61: 1802.4 | Z61: 225.5 | AB61: 0 | AC61: 0 | AD61: 14 | AE61: 0 | AF61: 0 | AG61: 0 | AH61: 0 | AI61: 0 | AK61: 0 | AL61: 0 | AM61: 3 | AN61: 6 | AO61: 10 | AQ61: 2300 | AR61: 20 | AS61: 1412 | AT61: 211 | AU61: 584 | AV61: 73 | AX61: 0 | BC61: 2112 | BD61: 150 | BE61: 673 | BF61: 738 | BG61: 551 | BH61: 0 | BM61: 0 | BT61: 0 | BY61: 2832 | BZ61: 306 | CA61: 1001 | CB61: 942 | CC61: 583 | CD61: 0 | CI61: 0 | CP61: 105 | CQ61: 4619 | CR61: 4119.40346 | CS61: 5223.515569 | CT61: 5500.540528 | CV61: 452.15857 | CW61: 4435.255 | CY61: 359938.2189 | CZ61: 125827.1383 | DA61: 208778.633 | DB61: 25332.44763 | DC61: 0.8692293625 | DD61: 0.7797982509 | DE61: 0.931508244 | DF61: 0.8857301186 | DG61: -0.08580631516 | DH61: -0.0370718341 | DI61: -0.007892488221 | DJ61: 250544.2598 | DK61: 22442775.32 | DL61: 97459 | DU61: 20 | DV61: 4 | DW61: 0 | DX61: 0 | DY61: 4 | DZ61: 1031 | EA61: 0 | EB61: 0 | EC61: 2 | ED61: 1 | EE61: 0 | EF61: 1 | EG61: 2340 | EH61: 1510 | EI61: 491 | EJ61: 323 | EK61: 10 | EL61: 125 | EM61: 6 | EN61: 95 | EO61: 325 | EP61: 222 | EQ61: 103 | ER61: 1209.4 | ES61: 1035 | ET61: 174.4 | EU61: 120.4 | EV61: 82.8 | EW61: 22.3 | EX61: 2497 | EY61: 1668 | EZ61: 1248 | FA61: 420 | FB61: 97.35287563 | FC61: 101.7904762 | FD61: 99.3384735 | FE61: 101.0779543 | FF61: 118.863116 | FG61: 103.8487152 | FH61: 105.9387071 | FI61: 105.6376509 | FJ61: 82.37641888 | FK61: 89.43888246 | FL61: 96.04885125 | FM61: 87.56678576 | FN61: 102.2995894 | FO61: 103.4039506 | FP61: 184.2615711 | FQ61: 179.9918358 | FR61: 92.08730748 | FS61: 101.4369156 | FT61: 116.7941034 | FU61: 118.969522 | FV61: 120.5173495 | FW61: 119.1043019 | FX61: 112.167082 | FY61: 121.3593583 | FZ61: 114.0397801 | GA61: 146.1331886 | GB61: 85.75701703 | GC61: 110.6980177 | GD61: 99.81105679 | GE61: 97.35336669 | GF61: 83.01315681 | GG61: 87.23943292 | GH61: 94.2126735 | GI61: 112.1657987 | GJ61: 111.416634 | GK61: 96.42264498 | GL61: 18.9 | GM61: 49.9 | GN61: 31 | GO61: 15.7 | GP61: 47.3 | GQ61: 31.6 | GR61: 15.5 | GS61: 34.9 | GT61: 19.4 | GU61: 16 | GV61: 35.8 | GW61: 0 | GX61: 0 | GY61: 32.3 | GZ61: 67 | HB61: 189 | HC61: 26 | HD61: 163 | HE61: 366 | HF61: 334 | HG61: 32 | HH61: 272.9 | HI61: 194 | HJ61: 78.9 | HK61: 593 | HL61: 375.3 | HM61: 217.7 | HO61: 610 | HQ61: 33 | HR61: 12 | HS61: 17 | HT61: 18 | HU61: 6 | HV61: 4 | HW61: 2 | HX61: 6 | HY61: 1 | HZ61: 2 | IA61: 8 | IB61: 5 | IC61: 3 | ID61: 0 | IE61: 17 | IF61: 0 | IG61: 12 | IH61: 26 | II61: 3 | IJ61: 1 | IK61: 0 | IL61: 0 | IM61: 11 | IN61: 12 | IO61: 7 | IP61: 21 | IQ61: 4 | IR61: 11 | IS61: 8 | IT61: 0 | IU61: 12 | IV61: 4 | IW61: 2 | IX61: 4 | IY61: 2 | IZ61: 6 | JA61: 0 | JB61: 1 | JC61: 8 | JD61: 0 | JE61: 14 | JF61: 0 | JG61: 0 | JH61: 0 | JI61: 5 | JJ61: 0 | JK61: 3 | JL61: 0 | JM61: 1 | JN61: 0 | JO61: 0 | JP61: 0 | JQ61: 0 | JR61: 0 | JS61: 2 | JT61: 0 | JV61: 23 | JW61: 6 | JX61: 33 | JY61: 1956 | JZ61: 13 | KA61: 39 | KC61: 0 | KD61: 0 | KE61: 14 | KF61: 1259 | KG61: 35 | KH61: 2293 | KI61: 3 | KJ61: 101 | KK61: 0 | KL61: 0 | KM61: 6 | KN61: 237 | KO61: 0 | KP61: 0 | KQ61: 47 | KR61: 729 | KS61: 28 | KT61: 591 | KU61: 27 | KV61: 569 | KX61: 24 | KZ61: 980 | LA61: 1626 | LC61: 333.62857 | LD61: 118.53 | LE61: 4155.555 | LF61: 279.7 | LH61: 351579 | LI61: 274.2447289 | LJ61: 1281.99 | LK61: 351579 | LL61: 338376 | LM61: 323891 | LN61: 308924 | LO61: 293496 | LP61: 277772 | LQ61: 40591 | LR61: 35154 | LS61: 30769 | LT61: 27976 | LU61: 26510 | LV61: 24849 | LW61: 202353 | LX61: 191988 | LY61: 180983 | LZ61: 167209 | MA61: 150029 | MB61: 137527 | MC61: 108635 | MD61: 111234 | ME61: 112139 | MF61: 113739 | MG61: 116957 | MH61: 115396 | MI61: 52027 | MJ61: 47263 | MK61: 43921 | ML61: 44993 | MM61: 48564 | MN61: 46132 | MO61: 37429 | MP61: 42446 | MQ61: 43846 | MR61: 40104 | MS61: 37800 | MT61: 39152 | MU61: 19179 | MV61: 21525 | MW61: 24372 | MX61: 28642 | MY61: 30593 | MZ61: 30112 | NA61: 常陸太田市、ひたちなか市、常陸大宮市、那珂市、久慈郡大子町、那珂郡東海村 | NC61: ひたちなか総合病院（標準群）
A62: 57 | B62: 鹿行 | C62: 地方都市型 | D62: 鹿嶋市,鉾田市,行方市,潮来市,神栖市 | F62: 茨城県 | G62: 関東 | H62: 0804 | I62: 鹿嶋（茨城） | J62: ロッコウ | K62: 鹿嶋市、潮来市及び周辺部 | L62: 0.5593409019 | M62: 0.7593694885 | N62: -0.09617846343 | O62: -0.5338002287 | P62: 0.4525351905 | Q62: 0.5004457528 | R62: -0.06435196832 | S62: -0.4282147964 | T62: -0.4892678035 | U62: 111.573525 | V62: 471.7955807 | X62: 397.4 | Y62: 1225.7 | Z62: 152 | AB62: 0 | AC62: 0 | AD62: 0 | AE62: 0 | AF62: 0 | AG62: 0 | AH62: 0 | AI62: 0 | AK62: 0 | AL62: 0 | AM62: 1 | AN62: 4 | AO62: 2 | AQ62: 1386 | AR62: 56 | AS62: 673 | AT62: 108 | AU62: 549 | AV62: 0 | AX62: 0 | BC62: 1266 | BD62: 70 | BE62: 374 | BF62: 443 | BG62: 379 | BH62: 0 | BM62: 0 | BT62: 0 | BY62: 1924 | BZ62: 211 | CA62: 665 | CB62: 653 | CC62: 395 | CD62: 0 | CI62: 0 | CP62: 60 | CQ62: 2813 | CR62: 2645.978993 | CS62: 3550.541984 | CT62: 3702.319759 | CV62: 294.23 | CW62: 2766.08 | CY62: 333093.9697 | CZ62: 123358.391 | DA62: 188480.6302 | DB62: 21254.94848 | DC62: 0.8676710483 | DD62: 0.8308467749 | DE62: 0.9050186753 | DF62: 0.7825939021 | DG62: -0.06542087924 | DH62: -0.05152710501 | DI62: -0.0153809675 | DJ62: 215520.5993 | DK62: 14231569.03 | DL62: 68291 | DU62: 11 | DV62: 1 | DW62: 0 | DX62: 0 | DY62: 1 | DZ62: 543 | EA62: 0 | EB62: 0 | EC62: 0 | ED62: 1 | EE62: 0 | EF62: 0 | EG62: 1704 | EH62: 980 | EI62: 540 | EJ62: 178 | EK62: 2 | EL62: 38 | EM62: 4 | EN62: 70 | EO62: 203.7 | EP62: 138 | EQ62: 65.7 | ER62: 813.3 | ES62: 662.2 | ET62: 151.1 | EU62: 103 | EV62: 38 | EW62: 11 | EX62: 1795 | EY62: 636 | EZ62: 96 | FA62: 540 | FB62: 113.9175477 | FC62: 115.3228654 | FD62: 107.9159095 | FE62: 107.9323124 | FF62: 121.4058108 | FG62: 130.3224164 | FH62: 114.9692664 | FI62: 103.1795622 | FJ62: 101.1638465 | FK62: 104.0500484 | FL62: 106.1893948 | FM62: 104.2442858 | FN62: 119.6712293 | FO62: 134.5829897 | FP62: 202.3728205 | FQ62: 198.1960403 | FR62: 153.3470205 | FS62: 154.2620178 | FT62: 130.7529418 | FU62: 139.8148765 | FV62: 118.6025945 | FW62: 114.7191726 | FX62: 130.2257185 | FY62: 160.5681996 | FZ62: 154.9712761 | GA62: 175.9322713 | GB62: 114.7240669 | GC62: 121.2788735 | GD62: 116.2224851 | GE62: 91.85095621 | GF62: 82.9876284 | GG62: 81.7793478 | GH62: 112.9956243 | GI62: 101.522202 | GJ62: 123.529991 | GK62: 107.5477951 | GL62: 10.1 | GM62: 52.6 | GN62: 42.5 | GO62: 5.3 | GP62: 51.8 | GQ62: 46.5 | GR62: 18.4 | GS62: 35.7 | GT62: 17.3 | GU62: 18.1 | GV62: 35.7 | GW62: 100 | GX62: 0 | GY62: 3 | GZ62: 73.4 | HB62: 125 | HC62: 7 | HD62: 118 | HE62: 95 | HF62: 95 | HG62: 0 | HH62: 193.7 | HI62: 122 | HJ62: 71.7 | HK62: 412.4 | HL62: 214.9 | HM62: 197.5 | HO62: 418 | HQ62: 19 | HR62: 4 | HS62: 20 | HT62: 15 | HU62: 3 | HV62: 6 | HW62: 1 | HX62: 6 | HY62: 3 | HZ62: 0 | IA62: 3 | IB62: 4 | IC62: 3 | ID62: 0 | IE62: 9 | IF62: 0 | IG62: 4 | IH62: 27 | II62: 1 | IJ62: 2 | IK62: 1 | IL62: 0 | IM62: 7 | IN62: 5 | IO62: 8 | IP62: 17 | IQ62: 1 | IR62: 10 | IS62: 3 | IT62: 0 | IU62: 10 | IV62: 2 | IW62: 2 | IX62: 7 | IY62: 1 | IZ62: 2 | JA62: 0 | JB62: 0 | JC62: 1 | JD62: 3 | JE62: 15 | JF62: 0 | JG62: 4 | JH62: 0 | JI62: 1 | JJ62: 0 | JK62: 1 | JL62: 0 | JM62: 0 | JN62: 0 | JO62: 2 | JP62: 0 | JQ62: 0 | JR62: 0 | JS62: 0 | JT62: 0 | JV62: 12 | JW62: 1 | JX62: 25 | JY62: 1929 | JZ62: 7 | KA62: 21 | KC62: 0 | KD62: 0 | KE62: 12 | KF62: 1019 | KG62: 24 | KH62: 1359 | KI62: 0 | KJ62: 0 | KK62: 0 | KL62: 0 | KM62: 2 | KN62: 87 | KO62: 2 | KP62: 42 | KQ62: 20 | KR62: 306 | KS62: 10 | KT62: 230 | KU62: 14 | KV62: 324 | KX62: 17 | KZ62: 433 | LA62: 1689 | LC62: 221.93 | LD62: 72.3 | LE62: 2488.38 | LF62: 277.7 | LH62: 268146 | LI62: 355.4097578 | LJ62: 754.47 | LK62: 268146 | LL62: 256790 | LM62: 247993 | LN62: 238400 | LO62: 228186 | LP62: 217651 | LQ62: 31594 | LR62: 27424 | LS62: 24087 | LT62: 22002 | LU62: 21083 | LV62: 20081 | LW62: 156891 | LX62: 147582 | LY62: 142000 | LZ62: 134492 | MA62: 123183 | MB62: 114238 | MC62: 79661 | MD62: 81784 | ME62: 81906 | MF62: 81906 | MG62: 83920 | MH62: 83332 | MI62: 42305 | MJ62: 36855 | MK62: 32122 | ML62: 31937 | MM62: 35449 | MN62: 35566 | MO62: 25859 | MP62: 31873 | MQ62: 34405 | MR62: 30212 | MS62: 26836 | MT62: 27111 | MU62: 11497 | MV62: 13056 | MW62: 15379 | MX62: 19757 | MY62: 21635 | MZ62: 20655 | NA62: 鹿嶋市、潮来市、神栖市、行方市、鉾田市 | NC62: 小山記念病院（標準群）
... 77 more rows

Sheet 全国

Sheet 北海道

Sheet 東北

Sheet 関東

Sheet 中部

Sheet 近畿

Sheet 中国

Sheet 四国

Sheet 九州・沖縄
